Workbook

Sheet Master
A1: Miller Solar
A2: 17395 Oak Rd. Atascadero, CA 93422
A3: WORKSHEET
A5: Client:
A6: Project: | B6: E-1 Tabulation
A7: Date: | D7: Revision: | E7: =Q26 -> 0
Y9: Total
A11: PVWatts: Hourly PV Performance Data
A12: Requested Location: | B12: 93422, USA
A13: Location: | B13: Lat, Lon: 35.49, -120.66
A14: Lat (deg N): | B14: 35.49
A15: Long (deg W): | B15: 120.66
A16: Elev (m): | B16: 283.480011
A17: DC System Size (kW): | B17: 4
A18: Module Type: | B18: Standard
A19: Array Type: | B19: Fixed (open rack)
A20: Array Tilt (deg): | B20: 20
A21: Array Azimuth (deg): | B21: 180
A22: System Losses: | B22: 14.08
A23: Invert Efficiency: | B23: 96
A24: DC to AC Size Ratio: | B24: 1.2
A25: Average Cost of Electricity Purchased from Utility ($/kWh): | B25: 0.156
A26: Capacity Factor (%) | B26: 19.2
W27: =SUM(TOU_CTabulation[Base Value]) -> 986.374062 | X27: =SUM(TOU_CTabulation[Over Value]) -> 952.6797312 | Y27: =W27+X27 -> 1939.053793
A28: Month | B28: Day | C28: Hour | D28: Beam Irradiance (W/m^2) | E28: Diffuse Irradiance (W/m^2) | F28: Ambient Temperature (C) | G28: Wind Speed (m/s) | H28: Plane of Array Irradiance (W/m^2) | I28: Cell Temperature (C) | J28: DC Array Output (W) | K28: AC System Output (W) | L28: AC System Output (kW) | M28: Month Cumm | N28: Season | O28: Base Allow | P28: Month Base Allow | Q28: Month Base Gen | R28: Month Overbase Gen | S28: Day-Part | T28: Daypart | U28: Base Rate | V28: Over Rate | W28: Base Value | X28: Over Value | Y28: Total Hour Value
A29: 1 | B29: 1 | C29: 0 | D29: 0 | E29: 0 | F29: 4 | G29: 1 | H29: 0 | I29: 4 | J29: 0 | K29: 0 | L29: =TOU_CTabulation[[#This Row],[AC System Output (W)]]/1000 -> 0 | M29: =IF(A28=TOU_CTabulation[[#This Row],[Month]],M28+TOU_CTabulation[[#This Row],[AC System Output (kW)]],TOU_CTabulation[[#This Row],[AC System Output (kW)]]) -> 0 | N29: =VLOOKUP(TOU_CTabulation[[#This Row],[Month]],Season,2) -> Winter | O29: =VLOOKUP(TOU_CTabulation[[#This Row],[Season]],CRate,2) -> 10.5 | P29: =IF(A30>TOU_CTabulation[[#This Row],[Month]],TOU_CTabulation[[#This Row],[Day]]*TOU_CTabulation[[#This Row],[Base Allow]],0) -> 0 | Q29: =IF(A30>TOU_CTabulation[[#This Row],[Month]],TOU_CTabulation[[#This Row],[Month Cumm]],0) -> 0 | R29: =IF(TOU_CTabulation[[#This Row],[Month Base Gen]]=0,0,TOU_CTabulation[[#This Row],[Month Base Gen]]-TOU_CTabulation[[#This Row],[Day]]*TOU_CTabulation[[#This Row],[Base Allow]]) -> 0 | S29: =VLOOKUP(TOU_CTabulation[[#This Row],[Hour]],daypart,2) -> All | T29: =TOU_CTabulation[[#This Row],[Season]]&TOU_CTabulation[[#This Row],[Day-Part]] -> WinterAll | U29: =VLOOKUP(TOU_CTabulation[[#This Row],[Daypart]],TOUC,2) -> 0.25902 | V29: =VLOOKUP(TOU_CTabulation[[#This Row],[Daypart]],TOUC,3) -> 0.32596 | W29: =TOU_CTabulation[[#This Row],[Month Base Allow]]*TOU_CTabulation[[#This Row],[Base Rate]] -> 0 | X29: =TOU_CTabulation[[#This Row],[Month Overbase Gen]]*TOU_CTabulation[[#This Row],[Over Rate]] -> 0 | Y29: =TOU_CTabulation[[#This Row],[Base Value]]+TOU_CTabulation[[#This Row],[Over Value]] -> 0
A30: 1 | B30: 1 | C30: 1 | D30: 0 | E30: 0 | F30: 3 | G30: 1 | H30: 0 | I30: 3 | J30: 0 | K30: 0 | L30: =TOU_CTabulation[[#This Row],[AC System Output (W)]]/1000 -> 0 | M30: =IF(A29=TOU_CTabulation[[#This Row],[Month]],M29+TOU_CTabulation[[#This Row],[AC System Output (kW)]],TOU_CTabulation[[#This Row],[AC System Output (kW)]]) -> 0 | N30: =VLOOKUP(TOU_CTabulation[[#This Row],[Month]],Season,2) -> Winter | O30: =VLOOKUP(TOU_CTabulation[[#This Row],[Season]],CRate,2) -> 10.5 | P30: =IF(A31>TOU_CTabulation[[#This Row],[Month]],TOU_CTabulation[[#This Row],[Day]]*TOU_CTabulation[[#This Row],[Base Allow]],0) -> 0 | Q30: =IF(A31>TOU_CTabulation[[#This Row],[Month]],TOU_CTabulation[[#This Row],[Month Cumm]],0) -> 0 | R30: =IF(TOU_CTabulation[[#This Row],[Month Base Gen]]=0,0,TOU_CTabulation[[#This Row],[Month Base Gen]]-TOU_CTabulation[[#This Row],[Day]]*TOU_CTabulation[[#This Row],[Base Allow]]) -> 0 | S30: =VLOOKUP(TOU_CTabulation[[#This Row],[Hour]],daypart,2) -> All | T30: =TOU_CTabulation[[#This Row],[Season]]&TOU_CTabulation[[#This Row],[Day-Part]] -> WinterAll | U30: =VLOOKUP(TOU_CTabulation[[#This Row],[Daypart]],TOUC,2) -> 0.25902 | V30: =VLOOKUP(TOU_CTabulation[[#This Row],[Daypart]],TOUC,3) -> 0.32596 | W30: =TOU_CTabulation[[#This Row],[Month Base Allow]]*TOU_CTabulation[[#This Row],[Base Rate]] -> 0 | X30: =TOU_CTabulation[[#This Row],[Month Overbase Gen]]*TOU_CTabulation[[#This Row],[Over Rate]] -> 0 | Y30: =TOU_CTabulation[[#This Row],[Base Value]]+TOU_CTabulation[[#This Row],[Over Value]] -> 0
A31: 1 | B31: 1 | C31: 2 | D31: 0 | E31: 0 | F31: 3 | G31: 2 | H31: 0 | I31: 3 | J31: 0 | K31: 0 | L31: =TOU_CTabulation[[#This Row],[AC System Output (W)]]/1000 -> 0 | M31: =IF(A30=TOU_CTabulation[[#This Row],[Month]],M30+TOU_CTabulation[[#This Row],[AC System Output (kW)]],TOU_CTabulation[[#This Row],[AC System Output (kW)]]) -> 0 | N31: =VLOOKUP(TOU_CTabulation[[#This Row],[Month]],Season,2) -> Winter | O31: =VLOOKUP(TOU_CTabulation[[#This Row],[Season]],CRate,2) -> 10.5 | P31: =IF(A32>TOU_CTabulation[[#This Row],[Month]],TOU_CTabulation[[#This Row],[Day]]*TOU_CTabulation[[#This Row],[Base Allow]],0) -> 0 | Q31: =IF(A32>TOU_CTabulation[[#This Row],[Month]],TOU_CTabulation[[#This Row],[Month Cumm]],0) -> 0 | R31: =IF(TOU_CTabulation[[#This Row],[Month Base Gen]]=0,0,TOU_CTabulation[[#This Row],[Month Base Gen]]-TOU_CTabulation[[#This Row],[Day]]*TOU_CTabulation[[#This Row],[Base Allow]]) -> 0 | S31: =VLOOKUP(TOU_CTabulation[[#This Row],[Hour]],daypart,2) -> All | T31: =TOU_CTabulation[[#This Row],[Season]]&TOU_CTabulation[[#This Row],[Day-Part]] -> WinterAll | U31: =VLOOKUP(TOU_CTabulation[[#This Row],[Daypart]],TOUC,2) -> 0.25902 | V31: =VLOOKUP(TOU_CTabulation[[#This Row],[Daypart]],TOUC,3) -> 0.32596 | W31: =TOU_CTabulation[[#This Row],[Month Base Allow]]*TOU_CTabulation[[#This Row],[Base Rate]] -> 0 | X31: =TOU_CTabulation[[#This Row],[Month Overbase Gen]]*TOU_CTabulation[[#This Row],[Over Rate]] -> 0 | Y31: =TOU_CTabulation[[#This Row],[Base Value]]+TOU_CTabulation[[#This Row],[Over Value]] -> 0
A32: 1 | B32: 1 | C32: 3 | D32: 0 | E32: 0 | F32: 3 | G32: 2 | H32: 0 | I32: 3 | J32: 0 | K32: 0 | L32: =TOU_CTabulation[[#This Row],[AC System Output (W)]]/1000 -> 0 | M32: =IF(A31=TOU_CTabulation[[#This Row],[Month]],M31+TOU_CTabulation[[#This Row],[AC System Output (kW)]],TOU_CTabulation[[#This Row],[AC System Output (kW)]]) -> 0 | N32: =VLOOKUP(TOU_CTabulation[[#This Row],[Month]],Season,2) -> Winter | O32: =VLOOKUP(TOU_CTabulation[[#This Row],[Season]],CRate,2) -> 10.5 | P32: =IF(A33>TOU_CTabulation[[#This Row],[Month]],TOU_CTabulation[[#This Row],[Day]]*TOU_CTabulation[[#This Row],[Base Allow]],0) -> 0 | Q32: =IF(A33>TOU_CTabulation[[#This Row],[Month]],TOU_CTabulation[[#This Row],[Month Cumm]],0) -> 0 | R32: =IF(TOU_CTabulation[[#This Row],[Month Base Gen]]=0,0,TOU_CTabulation[[#This Row],[Month Base Gen]]-TOU_CTabulation[[#This Row],[Day]]*TOU_CTabulation[[#This Row],[Base Allow]]) -> 0 | S32: =VLOOKUP(TOU_CTabulation[[#This Row],[Hour]],daypart,2) -> All | T32: =TOU_CTabulation[[#This Row],[Season]]&TOU_CTabulation[[#This Row],[Day-Part]] -> WinterAll | U32: =VLOOKUP(TOU_CTabulation[[#This Row],[Daypart]],TOUC,2) -> 0.25902 | V32: =VLOOKUP(TOU_CTabulation[[#This Row],[Daypart]],TOUC,3) -> 0.32596 | W32: =TOU_CTabulation[[#This Row],[Month Base Allow]]*TOU_CTabulation[[#This Row],[Base Rate]] -> 0 | X32: =TOU_CTabulation[[#This Row],[Month Overbase Gen]]*TOU_CTabulation[[#This Row],[Over Rate]] -> 0 | Y32: =TOU_CTabulation[[#This Row],[Base Value]]+TOU_CTabulation[[#This Row],[Over Value]] -> 0
A33: 1 | B33: 1 | C33: 4 | D33: 0 | E33: 0 | F33: 3 | G33: 2 | H33: 0 | I33: 3 | J33: 0 | K33: 0 | L33: =TOU_CTabulation[[#This Row],[AC System Output (W)]]/1000 -> 0 | M33: =IF(A32=TOU_CTabulation[[#This Row],[Month]],M32+TOU_CTabulation[[#This Row],[AC System Output (kW)]],TOU_CTabulation[[#This Row],[AC System Output (kW)]]) -> 0 | N33: =VLOOKUP(TOU_CTabulation[[#This Row],[Month]],Season,2) -> Winter | O33: =VLOOKUP(TOU_CTabulation[[#This Row],[Season]],CRate,2) -> 10.5 | P33: =IF(A34>TOU_CTabulation[[#This Row],[Month]],TOU_CTabulation[[#This Row],[Day]]*TOU_CTabulation[[#This Row],[Base Allow]],0) -> 0 | Q33: =IF(A34>TOU_CTabulation[[#This Row],[Month]],TOU_CTabulation[[#This Row],[Month Cumm]],0) -> 0 | R33: =IF(TOU_CTabulation[[#This Row],[Month Base Gen]]=0,0,TOU_CTabulation[[#This Row],[Month Base Gen]]-TOU_CTabulation[[#This Row],[Day]]*TOU_CTabulation[[#This Row],[Base Allow]]) -> 0 | S33: =VLOOKUP(TOU_CTabulation[[#This Row],[Hour]],daypart,2) -> All | T33: =TOU_CTabulation[[#This Row],[Season]]&TOU_CTabulation[[#This Row],[Day-Part]] -> WinterAll | U33: =VLOOKUP(TOU_CTabulation[[#This Row],[Daypart]],TOUC,2) -> 0.25902 | V33: =VLOOKUP(TOU_CTabulation[[#This Row],[Daypart]],TOUC,3) -> 0.32596 | W33: =TOU_CTabulation[[#This Row],[Month Base Allow]]*TOU_CTabulation[[#This Row],[Base Rate]] -> 0 | X33: =TOU_CTabulation[[#This Row],[Month Overbase Gen]]*TOU_CTabulation[[#This Row],[Over Rate]] -> 0 | Y33: =TOU_CTabulation[[#This Row],[Base Value]]+TOU_CTabulation[[#This Row],[Over Value]] -> 0
A34: 1 | B34: 1 | C34: 5 | D34: 0 | E34: 0 | F34: 3 | G34: 2 | H34: 0 | I34: 3 | J34: 0 | K34: 0 | L34: =TOU_CTabulation[[#This Row],[AC System Output (W)]]/1000 -> 0 | M34: =IF(A33=TOU_CTabulation[[#This Row],[Month]],M33+TOU_CTabulation[[#This Row],[AC System Output (kW)]],TOU_CTabulation[[#This Row],[AC System Output (kW)]]) -> 0 | N34: =VLOOKUP(TOU_CTabulation[[#This Row],[Month]],Season,2) -> Winter | O34: =VLOOKUP(TOU_CTabulation[[#This Row],[Season]],CRate,2) -> 10.5 | P34: =IF(A35>TOU_CTabulation[[#This Row],[Month]],TOU_CTabulation[[#This Row],[Day]]*TOU_CTabulation[[#This Row],[Base Allow]],0) -> 0 | Q34: =IF(A35>TOU_CTabulation[[#This Row],[Month]],TOU_CTabulation[[#This Row],[Month Cumm]],0) -> 0 | R34: =IF(TOU_CTabulation[[#This Row],[Month Base Gen]]=0,0,TOU_CTabulation[[#This Row],[Month Base Gen]]-TOU_CTabulation[[#This Row],[Day]]*TOU_CTabulation[[#This Row],[Base Allow]]) -> 0 | S34: =VLOOKUP(TOU_CTabulation[[#This Row],[Hour]],daypart,2) -> All | T34: =TOU_CTabulation[[#This Row],[Season]]&TOU_CTabulation[[#This Row],[Day-Part]] -> WinterAll | U34: =VLOOKUP(TOU_CTabulation[[#This Row],[Daypart]],TOUC,2) -> 0.25902 | V34: =VLOOKUP(TOU_CTabulation[[#This Row],[Daypart]],TOUC,3) -> 0.32596 | W34: =TOU_CTabulation[[#This Row],[Month Base Allow]]*TOU_CTabulation[[#This Row],[Base Rate]] -> 0 | X34: =TOU_CTabulation[[#This Row],[Month Overbase Gen]]*TOU_CTabulation[[#This Row],[Over Rate]] -> 0 | Y34: =TOU_CTabulation[[#This Row],[Base Value]]+TOU_CTabulation[[#This Row],[Over Value]] -> 0
A35: 1 | B35: 1 | C35: 6 | D35: 0 | E35: 0 | F35: 3 | G35: 3 | H35: 0 | I35: 3 | J35: 0 | K35: 0 | L35: =TOU_CTabulation[[#This Row],[AC System Output (W)]]/1000 -> 0 | M35: =IF(A34=TOU_CTabulation[[#This Row],[Month]],M34+TOU_CTabulation[[#This Row],[AC System Output (kW)]],TOU_CTabulation[[#This Row],[AC System Output (kW)]]) -> 0 | N35: =VLOOKUP(TOU_CTabulation[[#This Row],[Month]],Season,2) -> Winter | O35: =VLOOKUP(TOU_CTabulation[[#This Row],[Season]],CRate,2) -> 10.5 | P35: =IF(A36>TOU_CTabulation[[#This Row],[Month]],TOU_CTabulation[[#This Row],[Day]]*TOU_CTabulation[[#This Row],[Base Allow]],0) -> 0 | Q35: =IF(A36>TOU_CTabulation[[#This Row],[Month]],TOU_CTabulation[[#This Row],[Month Cumm]],0) -> 0 | R35: =IF(TOU_CTabulation[[#This Row],[Month Base Gen]]=0,0,TOU_CTabulation[[#This Row],[Month Base Gen]]-TOU_CTabulation[[#This Row],[Day]]*TOU_CTabulation[[#This Row],[Base Allow]]) -> 0 | S35: =VLOOKUP(TOU_CTabulation[[#This Row],[Hour]],daypart,2) -> All | T35: =TOU_CTabulation[[#This Row],[Season]]&TOU_CTabulation[[#This Row],[Day-Part]] -> WinterAll | U35: =VLOOKUP(TOU_CTabulation[[#This Row],[Daypart]],TOUC,2) -> 0.25902 | V35: =VLOOKUP(TOU_CTabulation[[#This Row],[Daypart]],TOUC,3) -> 0.32596 | W35: =TOU_CTabulation[[#This Row],[Month Base Allow]]*TOU_CTabulation[[#This Row],[Base Rate]] -> 0 | X35: =TOU_CTabulation[[#This Row],[Month Overbase Gen]]*TOU_CTabulation[[#This Row],[Over Rate]] -> 0 | Y35: =TOU_CTabulation[[#This Row],[Base Value]]+TOU_CTabulation[[#This Row],[Over Value]] -> 0
A36: 1 | B36: 1 | C36: 7 | D36: 330 | E36: 15 | F36: 4 | G36: 3 | H36: 105.884 | I36: 4.74 | J36: 324.275 | K36: 297.546 | L36: =TOU_CTabulation[[#This Row],[AC System Output (W)]]/1000 -> 0.297546 | M36: =IF(A35=TOU_CTabulation[[#This Row],[Month]],M35+TOU_CTabulation[[#This Row],[AC System Output (kW)]],TOU_CTabulation[[#This Row],[AC System Output (kW)]]) -> 0.297546 | N36: =VLOOKUP(TOU_CTabulation[[#This Row],[Month]],Season,2) -> Winter | O36: =VLOOKUP(TOU_CTabulation[[#This Row],[Season]],CRate,2) -> 10.5 | P36: =IF(A37>TOU_CTabulation[[#This Row],[Month]],TOU_CTabulation[[#This Row],[Day]]*TOU_CTabulation[[#This Row],[Base Allow]],0) -> 0 | Q36: =IF(A37>TOU_CTabulation[[#This Row],[Month]],TOU_CTabulation[[#This Row],[Month Cumm]],0) -> 0 | R36: =IF(TOU_CTabulation[[#This Row],[Month Base Gen]]=0,0,TOU_CTabulation[[#This Row],[Month Base Gen]]-TOU_CTabulation[[#This Row],[Day]]*TOU_CTabulation[[#This Row],[Base Allow]]) -> 0 | S36: =VLOOKUP(TOU_CTabulation[[#This Row],[Hour]],daypart,2) -> All | T36: =TOU_CTabulation[[#This Row],[Season]]&TOU_CTabulation[[#This Row],[Day-Part]] -> WinterAll | U36: =VLOOKUP(TOU_CTabulation[[#This Row],[Daypart]],TOUC,2) -> 0.25902 | V36: =VLOOKUP(TOU_CTabulation[[#This Row],[Daypart]],TOUC,3) -> 0.32596 | W36: =TOU_CTabulation[[#This Row],[Month Base Allow]]*TOU_CTabulation[[#This Row],[Base Rate]] -> 0 | X36: =TOU_CTabulation[[#This Row],[Month Overbase Gen]]*TOU_CTabulation[[#This Row],[Over Rate]] -> 0 | Y36: =TOU_CTabulation[[#This Row],[Base Value]]+TOU_CTabulation[[#This Row],[Over Value]] -> 0
A37: 1 | B37: 1 | C37: 8 | D37: 127 | E37: 82 | F37: 7 | G37: 4 | H37: 146.361 | I37: 8.848 | J37: 523.533 | K37: 492.436 | L37: =TOU_CTabulation[[#This Row],[AC System Output (W)]]/1000 -> 0.492436 | M37: =IF(A36=TOU_CTabulation[[#This Row],[Month]],M36+TOU_CTabulation[[#This Row],[AC System Output (kW)]],TOU_CTabulation[[#This Row],[AC System Output (kW)]]) -> 0.789982 | N37: =VLOOKUP(TOU_CTabulation[[#This Row],[Month]],Season,2) -> Winter | O37: =VLOOKUP(TOU_CTabulation[[#This Row],[Season]],CRate,2) -> 10.5 | P37: =IF(A38>TOU_CTabulation[[#This Row],[Month]],TOU_CTabulation[[#This Row],[Day]]*TOU_CTabulation[[#This Row],[Base Allow]],0) -> 0 | Q37: =IF(A38>TOU_CTabulation[[#This Row],[Month]],TOU_CTabulation[[#This Row],[Month Cumm]],0) -> 0 | R37: =IF(TOU_CTabulation[[#This Row],[Month Base Gen]]=0,0,TOU_CTabulation[[#This Row],[Month Base Gen]]-TOU_CTabulation[[#This Row],[Day]]*TOU_CTabulation[[#This Row],[Base Allow]]) -> 0 | S37: =VLOOKUP(TOU_CTabulation[[#This Row],[Hour]],daypart,2) -> All | T37: =TOU_CTabulation[[#This Row],[Season]]&TOU_CTabulation[[#This Row],[Day-Part]] -> WinterAll | U37: =VLOOKUP(TOU_CTabulation[[#This Row],[Daypart]],TOUC,2) -> 0.25902 | V37: =VLOOKUP(TOU_CTabulation[[#This Row],[Daypart]],TOUC,3) -> 0.32596 | W37: =TOU_CTabulation[[#This Row],[Month Base Allow]]*TOU_CTabulation[[#This Row],[Base Rate]] -> 0 | X37: =TOU_CTabulation[[#This Row],[Month Overbase Gen]]*TOU_CTabulation[[#This Row],[Over Rate]] -> 0 | Y37: =TOU_CTabulation[[#This Row],[Base Value]]+TOU_CTabulation[[#This Row],[Over Value]] -> 0
A38: 1 | B38: 1 | C38: 9 | D38: 857 | E38: 52 | F38: 10 | G38: 3 | H38: 571.058 | I38: 22.473 | J38: 1932.319 | K38: 1859.805 | L38: =TOU_CTabulation[[#This Row],[AC System Output (W)]]/1000 -> 1.859805 | M38: =IF(A37=TOU_CTabulation[[#This Row],[Month]],M37+TOU_CTabulation[[#This Row],[AC System Output (kW)]],TOU_CTabulation[[#This Row],[AC System Output (kW)]]) -> 2.649787 | N38: =VLOOKUP(TOU_CTabulation[[#This Row],[Month]],Season,2) -> Winter | O38: =VLOOKUP(TOU_CTabulation[[#This Row],[Season]],CRate,2) -> 10.5 | P38: =IF(A39>TOU_CTabulation[[#This Row],[Month]],TOU_CTabulation[[#This Row],[Day]]*TOU_CTabulation[[#This Row],[Base Allow]],0) -> 0 | Q38: =IF(A39>TOU_CTabulation[[#This Row],[Month]],TOU_CTabulation[[#This Row],[Month Cumm]],0) -> 0 | R38: =IF(TOU_CTabulation[[#This Row],[Month Base Gen]]=0,0,TOU_CTabulation[[#This Row],[Month Base Gen]]-TOU_CTabulation[[#This Row],[Day]]*TOU_CTabulation[[#This Row],[Base Allow]]) -> 0 | S38: =VLOOKUP(TOU_CTabulation[[#This Row],[Hour]],daypart,2) -> All | T38: =TOU_CTabulation[[#This Row],[Season]]&TOU_CTabulation[[#This Row],[Day-Part]] -> WinterAll | U38: =VLOOKUP(TOU_CTabulation[[#This Row],[Daypart]],TOUC,2) -> 0.25902 | V38: =VLOOKUP(TOU_CTabulation[[#This Row],[Daypart]],TOUC,3) -> 0.32596 | W38: =TOU_CTabulation[[#This Row],[Month Base Allow]]*TOU_CTabulation[[#This Row],[Base Rate]] -> 0 | X38: =TOU_CTabulation[[#This Row],[Month Overbase Gen]]*TOU_CTabulation[[#This Row],[Over Rate]] -> 0 | Y38: =TOU_CTabulation[[#This Row],[Base Value]]+TOU_CTabulation[[#This Row],[Over Value]] -> 0
A39: 1 | B39: 1 | C39: 10 | D39: 918 | E39: 60 | F39: 13 | G39: 2 | H39: 727.841 | I39: 32.419 | J39: 2388.073 | K39: 2298.211 | L39: =TOU_CTabulation[[#This Row],[AC System Output (W)]]/1000 -> 2.298211 | M39: =IF(A38=TOU_CTabulation[[#This Row],[Month]],M38+TOU_CTabulation[[#This Row],[AC System Output (kW)]],TOU_CTabulation[[#This Row],[AC System Output (kW)]]) -> 4.947998 | N39: =VLOOKUP(TOU_CTabulation[[#This Row],[Month]],Season,2) -> Winter | O39: =VLOOKUP(TOU_CTabulation[[#This Row],[Season]],CRate,2) -> 10.5 | P39: =IF(A40>TOU_CTabulation[[#This Row],[Month]],TOU_CTabulation[[#This Row],[Day]]*TOU_CTabulation[[#This Row],[Base Allow]],0) -> 0 | Q39: =IF(A40>TOU_CTabulation[[#This Row],[Month]],TOU_CTabulation[[#This Row],[Month Cumm]],0) -> 0 | R39: =IF(TOU_CTabulation[[#This Row],[Month Base Gen]]=0,0,TOU_CTabulation[[#This Row],[Month Base Gen]]-TOU_CTabulation[[#This Row],[Day]]*TOU_CTabulation[[#This Row],[Base Allow]]) -> 0 | S39: =VLOOKUP(TOU_CTabulation[[#This Row],[Hour]],daypart,2) -> All | T39: =TOU_CTabulation[[#This Row],[Season]]&TOU_CTabulation[[#This Row],[Day-Part]] -> WinterAll | U39: =VLOOKUP(TOU_CTabulation[[#This Row],[Daypart]],TOUC,2) -> 0.25902 | V39: =VLOOKUP(TOU_CTabulation[[#This Row],[Daypart]],TOUC,3) -> 0.32596 | W39: =TOU_CTabulation[[#This Row],[Month Base Allow]]*TOU_CTabulation[[#This Row],[Base Rate]] -> 0 | X39: =TOU_CTabulation[[#This Row],[Month Overbase Gen]]*TOU_CTabulation[[#This Row],[Over Rate]] -> 0 | Y39: =TOU_CTabulation[[#This Row],[Base Value]]+TOU_CTabulation[[#This Row],[Over Value]] -> 0
A40: 1 | B40: 1 | C40: 11 | D40: 484 | E40: 182 | F40: 15 | G40: 2 | H40: 598.047 | I40: 31.514 | J40: 1984.228 | K40: 1909.836 | L40: =TOU_CTabulation[[#This Row],[AC System Output (W)]]/1000 -> 1.909836 | M40: =IF(A39=TOU_CTabulation[[#This Row],[Month]],M39+TOU_CTabulation[[#This Row],[AC System Output (kW)]],TOU_CTabulation[[#This Row],[AC System Output (kW)]]) -> 6.857834 | N40: =VLOOKUP(TOU_CTabulation[[#This Row],[Month]],Season,2) -> Winter | O40: =VLOOKUP(TOU_CTabulation[[#This Row],[Season]],CRate,2) -> 10.5 | P40: =IF(A41>TOU_CTabulation[[#This Row],[Month]],TOU_CTabulation[[#This Row],[Day]]*TOU_CTabulation[[#This Row],[Base Allow]],0) -> 0 | Q40: =IF(A41>TOU_CTabulation[[#This Row],[Month]],TOU_CTabulation[[#This Row],[Month Cumm]],0) -> 0 | R40: =IF(TOU_CTabulation[[#This Row],[Month Base Gen]]=0,0,TOU_CTabulation[[#This Row],[Month Base Gen]]-TOU_CTabulation[[#This Row],[Day]]*TOU_CTabulation[[#This Row],[Base Allow]]) -> 0 | S40: =VLOOKUP(TOU_CTabulation[[#This Row],[Hour]],daypart,2) -> All | T40: =TOU_CTabulation[[#This Row],[Season]]&TOU_CTabulation[[#This Row],[Day-Part]] -> WinterAll | U40: =VLOOKUP(TOU_CTabulation[[#This Row],[Daypart]],TOUC,2) -> 0.25902 | V40: =VLOOKUP(TOU_CTabulation[[#This Row],[Daypart]],TOUC,3) -> 0.32596 | W40: =TOU_CTabulation[[#This Row],[Month Base Allow]]*TOU_CTabulation[[#This Row],[Base Rate]] -> 0 | X40: =TOU_CTabulation[[#This Row],[Month Overbase Gen]]*TOU_CTabulation[[#This Row],[Over Rate]] -> 0 | Y40: =TOU_CTabulation[[#This Row],[Base Value]]+TOU_CTabulation[[#This Row],[Over Value]] -> 0
A41: 1 | B41: 1 | C41: 12 | D41: 433 | E41: 196 | F41: 16 | G41: 1 | H41: 577.289 | I41: 34.666 | J41: 1887.064 | K41: 1816.167 | L41: =TOU_CTabulation[[#This Row],[AC System Output (W)]]/1000 -> 1.816167 | M41: =IF(A40=TOU_CTabulation[[#This Row],[Month]],M40+TOU_CTabulation[[#This Row],[AC System Output (kW)]],TOU_CTabulation[[#This Row],[AC System Output (kW)]]) -> 8.674001 | N41: =VLOOKUP(TOU_CTabulation[[#This Row],[Month]],Season,2) -> Winter | O41: =VLOOKUP(TOU_CTabulation[[#This Row],[Season]],CRate,2) -> 10.5 | P41: =IF(A42>TOU_CTabulation[[#This Row],[Month]],TOU_CTabulation[[#This Row],[Day]]*TOU_CTabulation[[#This Row],[Base Allow]],0) -> 0 | Q41: =IF(A42>TOU_CTabulation[[#This Row],[Month]],TOU_CTabulation[[#This Row],[Month Cumm]],0) -> 0 | R41: =IF(TOU_CTabulation[[#This Row],[Month Base Gen]]=0,0,TOU_CTabulation[[#This Row],[Month Base Gen]]-TOU_CTabulation[[#This Row],[Day]]*TOU_CTabulation[[#This Row],[Base Allow]]) -> 0 | S41: =VLOOKUP(TOU_CTabulation[[#This Row],[Hour]],daypart,2) -> All | T41: =TOU_CTabulation[[#This Row],[Season]]&TOU_CTabulation[[#This Row],[Day-Part]] -> WinterAll | U41: =VLOOKUP(TOU_CTabulation[[#This Row],[Daypart]],TOUC,2) -> 0.25902 | V41: =VLOOKUP(TOU_CTabulation[[#This Row],[Daypart]],TOUC,3) -> 0.32596 | W41: =TOU_CTabulation[[#This Row],[Month Base Allow]]*TOU_CTabulation[[#This Row],[Base Rate]] -> 0 | X41: =TOU_CTabulation[[#This Row],[Month Overbase Gen]]*TOU_CTabulation[[#This Row],[Over Rate]] -> 0 | Y41: =TOU_CTabulation[[#This Row],[Base Value]]+TOU_CTabulation[[#This Row],[Over Value]] -> 0
A42: 1 | B42: 1 | C42: 13 | D42: 918 | E42: 63 | F42: 17 | G42: 1 | H42: 749.145 | I42: 40.486 | J42: 2365.446 | K42: 2276.49 | L42: =TOU_CTabulation[[#This Row],[AC System Output (W)]]/1000 -> 2.27649 | M42: =IF(A41=TOU_CTabulation[[#This Row],[Month]],M41+TOU_CTabulation[[#This Row],[AC System Output (kW)]],TOU_CTabulation[[#This Row],[AC System Output (kW)]]) -> 10.950491 | N42: =VLOOKUP(TOU_CTabulation[[#This Row],[Month]],Season,2) -> Winter | O42: =VLOOKUP(TOU_CTabulation[[#This Row],[Season]],CRate,2) -> 10.5 | P42: =IF(A43>TOU_CTabulation[[#This Row],[Month]],TOU_CTabulation[[#This Row],[Day]]*TOU_CTabulation[[#This Row],[Base Allow]],0) -> 0 | Q42: =IF(A43>TOU_CTabulation[[#This Row],[Month]],TOU_CTabulation[[#This Row],[Month Cumm]],0) -> 0 | R42: =IF(TOU_CTabulation[[#This Row],[Month Base Gen]]=0,0,TOU_CTabulation[[#This Row],[Month Base Gen]]-TOU_CTabulation[[#This Row],[Day]]*TOU_CTabulation[[#This Row],[Base Allow]]) -> 0 | S42: =VLOOKUP(TOU_CTabulation[[#This Row],[Hour]],daypart,2) -> All | T42: =TOU_CTabulation[[#This Row],[Season]]&TOU_CTabulation[[#This Row],[Day-Part]] -> WinterAll | U42: =VLOOKUP(TOU_CTabulation[[#This Row],[Daypart]],TOUC,2) -> 0.25902 | V42: =VLOOKUP(TOU_CTabulation[[#This Row],[Daypart]],TOUC,3) -> 0.32596 | W42: =TOU_CTabulation[[#This Row],[Month Base Allow]]*TOU_CTabulation[[#This Row],[Base Rate]] -> 0 | X42: =TOU_CTabulation[[#This Row],[Month Overbase Gen]]*TOU_CTabulation[[#This Row],[Over Rate]] -> 0 | Y42: =TOU_CTabulation[[#This Row],[Base Value]]+TOU_CTabulation[[#This Row],[Over Value]] -> 0
A43: 1 | B43: 1 | C43: 14 | D43: 860 | E43: 57 | F43: 16 | G43: 0 | H43: 605.174 | I43: 41.675 | J43: 1875.374 | K43: 1804.892 | L43: =TOU_CTabulation[[#This Row],[AC System Output (W)]]/1000 -> 1.804892 | M43: =IF(A42=TOU_CTabulation[[#This Row],[Month]],M42+TOU_CTabulation[[#This Row],[AC System Output (kW)]],TOU_CTabulation[[#This Row],[AC System Output (kW)]]) -> 12.755383 | N43: =VLOOKUP(TOU_CTabulation[[#This Row],[Month]],Season,2) -> Winter | O43: =VLOOKUP(TOU_CTabulation[[#This Row],[Season]],CRate,2) -> 10.5 | P43: =IF(A44>TOU_CTabulation[[#This Row],[Month]],TOU_CTabulation[[#This Row],[Day]]*TOU_CTabulation[[#This Row],[Base Allow]],0) -> 0 | Q43: =IF(A44>TOU_CTabulation[[#This Row],[Month]],TOU_CTabulation[[#This Row],[Month Cumm]],0) -> 0 | R43: =IF(TOU_CTabulation[[#This Row],[Month Base Gen]]=0,0,TOU_CTabulation[[#This Row],[Month Base Gen]]-TOU_CTabulation[[#This Row],[Day]]*TOU_CTabulation[[#This Row],[Base Allow]]) -> 0 | S43: =VLOOKUP(TOU_CTabulation[[#This Row],[Hour]],daypart,2) -> All | T43: =TOU_CTabulation[[#This Row],[Season]]&TOU_CTabulation[[#This Row],[Day-Part]] -> WinterAll | U43: =VLOOKUP(TOU_CTabulation[[#This Row],[Daypart]],TOUC,2) -> 0.25902 | V43: =VLOOKUP(TOU_CTabulation[[#This Row],[Daypart]],TOUC,3) -> 0.32596 | W43: =TOU_CTabulation[[#This Row],[Month Base Allow]]*TOU_CTabulation[[#This Row],[Base Rate]] -> 0 | X43: =TOU_CTabulation[[#This Row],[Month Overbase Gen]]*TOU_CTabulation[[#This Row],[Over Rate]] -> 0 | Y43: =TOU_CTabulation[[#This Row],[Base Value]]+TOU_CTabulation[[#This Row],[Over Value]] -> 0
A44: 1 | B44: 1 | C44: 15 | D44: 738 | E44: 47 | F44: 15 | G44: 0 | H44: 403.532 | I44: 33.315 | J44: 1253.762 | K44: 1203.5 | L44: =TOU_CTabulation[[#This Row],[AC System Output (W)]]/1000 -> 1.2035 | M44: =IF(A43=TOU_CTabulation[[#This Row],[Month]],M43+TOU_CTabulation[[#This Row],[AC System Output (kW)]],TOU_CTabulation[[#This Row],[AC System Output (kW)]]) -> 13.958883 | N44: =VLOOKUP(TOU_CTabulation[[#This Row],[Month]],Season,2) -> Winter | O44: =VLOOKUP(TOU_CTabulation[[#This Row],[Season]],CRate,2) -> 10.5 | P44: =IF(A45>TOU_CTabulation[[#This Row],[Month]],TOU_CTabulation[[#This Row],[Day]]*TOU_CTabulation[[#This Row],[Base Allow]],0) -> 0 | Q44: =IF(A45>TOU_CTabulation[[#This Row],[Month]],TOU_CTabulation[[#This Row],[Month Cumm]],0) -> 0 | R44: =IF(TOU_CTabulation[[#This Row],[Month Base Gen]]=0,0,TOU_CTabulation[[#This Row],[Month Base Gen]]-TOU_CTabulation[[#This Row],[Day]]*TOU_CTabulation[[#This Row],[Base Allow]]) -> 0 | S44: =VLOOKUP(TOU_CTabulation[[#This Row],[Hour]],daypart,2) -> All | T44: =TOU_CTabulation[[#This Row],[Season]]&TOU_CTabulation[[#This Row],[Day-Part]] -> WinterAll | U44: =VLOOKUP(TOU_CTabulation[[#This Row],[Daypart]],TOUC,2) -> 0.25902 | V44: =VLOOKUP(TOU_CTabulation[[#This Row],[Daypart]],TOUC,3) -> 0.32596 | W44: =TOU_CTabulation[[#This Row],[Month Base Allow]]*TOU_CTabulation[[#This Row],[Base Rate]] -> 0 | X44: =TOU_CTabulation[[#This Row],[Month Overbase Gen]]*TOU_CTabulation[[#This Row],[Over Rate]] -> 0 | Y44: =TOU_CTabulation[[#This Row],[Base Value]]+TOU_CTabulation[[#This Row],[Over Value]] -> 0
A45: 1 | B45: 1 | C45: 16 | D45: 430 | E45: 24 | F45: 13 | G45: 0 | H45: 153.02 | I45: 20.916 | J45: 449.452 | K45: 420.022 | L45: =TOU_CTabulation[[#This Row],[AC System Output (W)]]/1000 -> 0.420022 | M45: =IF(A44=TOU_CTabulation[[#This Row],[Month]],M44+TOU_CTabulation[[#This Row],[AC System Output (kW)]],TOU_CTabulation[[#This Row],[AC System Output (kW)]]) -> 14.378905 | N45: =VLOOKUP(TOU_CTabulation[[#This Row],[Month]],Season,2) -> Winter | O45: =VLOOKUP(TOU_CTabulation[[#This Row],[Season]],CRate,2) -> 10.5 | P45: =IF(A46>TOU_CTabulation[[#This Row],[Month]],TOU_CTabulation[[#This Row],[Day]]*TOU_CTabulation[[#This Row],[Base Allow]],0) -> 0 | Q45: =IF(A46>TOU_CTabulation[[#This Row],[Month]],TOU_CTabulation[[#This Row],[Month Cumm]],0) -> 0 | R45: =IF(TOU_CTabulation[[#This Row],[Month Base Gen]]=0,0,TOU_CTabulation[[#This Row],[Month Base Gen]]-TOU_CTabulation[[#This Row],[Day]]*TOU_CTabulation[[#This Row],[Base Allow]]) -> 0 | S45: =VLOOKUP(TOU_CTabulation[[#This Row],[Hour]],daypart,2) -> All | T45: =TOU_CTabulation[[#This Row],[Season]]&TOU_CTabulation[[#This Row],[Day-Part]] -> WinterAll | U45: =VLOOKUP(TOU_CTabulation[[#This Row],[Daypart]],TOUC,2) -> 0.25902 | V45: =VLOOKUP(TOU_CTabulation[[#This Row],[Daypart]],TOUC,3) -> 0.32596 | W45: =TOU_CTabulation[[#This Row],[Month Base Allow]]*TOU_CTabulation[[#This Row],[Base Rate]] -> 0 | X45: =TOU_CTabulation[[#This Row],[Month Overbase Gen]]*TOU_CTabulation[[#This Row],[Over Rate]] -> 0 | Y45: =TOU_CTabulation[[#This Row],[Base Value]]+TOU_CTabulation[[#This Row],[Over Value]] -> 0
A46: 1 | B46: 1 | C46: 17 | D46: 0 | E46: 0 | F46: 12 | G46: 0 | H46: 0 | I46: 12 | J46: 0 | K46: 0 | L46: =TOU_CTabulation[[#This Row],[AC System Output (W)]]/1000 -> 0 | M46: =IF(A45=TOU_CTabulation[[#This Row],[Month]],M45+TOU_CTabulation[[#This Row],[AC System Output (kW)]],TOU_CTabulation[[#This Row],[AC System Output (kW)]]) -> 14.378905 | N46: =VLOOKUP(TOU_CTabulation[[#This Row],[Month]],Season,2) -> Winter | O46: =VLOOKUP(TOU_CTabulation[[#This Row],[Season]],CRate,2) -> 10.5 | P46: =IF(A47>TOU_CTabulation[[#This Row],[Month]],TOU_CTabulation[[#This Row],[Day]]*TOU_CTabulation[[#This Row],[Base Allow]],0) -> 0 | Q46: =IF(A47>TOU_CTabulation[[#This Row],[Month]],TOU_CTabulation[[#This Row],[Month Cumm]],0) -> 0 | R46: =IF(TOU_CTabulation[[#This Row],[Month Base Gen]]=0,0,TOU_CTabulation[[#This Row],[Month Base Gen]]-TOU_CTabulation[[#This Row],[Day]]*TOU_CTabulation[[#This Row],[Base Allow]]) -> 0 | S46: =VLOOKUP(TOU_CTabulation[[#This Row],[Hour]],daypart,2) -> All | T46: =TOU_CTabulation[[#This Row],[Season]]&TOU_CTabulation[[#This Row],[Day-Part]] -> WinterAll | U46: =VLOOKUP(TOU_CTabulation[[#This Row],[Daypart]],TOUC,2) -> 0.25902 | V46: =VLOOKUP(TOU_CTabulation[[#This Row],[Daypart]],TOUC,3) -> 0.32596 | W46: =TOU_CTabulation[[#This Row],[Month Base Allow]]*TOU_CTabulation[[#This Row],[Base Rate]] -> 0 | X46: =TOU_CTabulation[[#This Row],[Month Overbase Gen]]*TOU_CTabulation[[#This Row],[Over Rate]] -> 0 | Y46: =TOU_CTabulation[[#This Row],[Base Value]]+TOU_CTabulation[[#This Row],[Over Value]] -> 0
A47: 1 | B47: 1 | C47: 18 | D47: 0 | E47: 0 | F47: 10 | G47: 0 | H47: 0 | I47: 10 | J47: 0 | K47: 0 | L47: =TOU_CTabulation[[#This Row],[AC System Output (W)]]/1000 -> 0 | M47: =IF(A46=TOU_CTabulation[[#This Row],[Month]],M46+TOU_CTabulation[[#This Row],[AC System Output (kW)]],TOU_CTabulation[[#This Row],[AC System Output (kW)]]) -> 14.378905 | N47: =VLOOKUP(TOU_CTabulation[[#This Row],[Month]],Season,2) -> Winter | O47: =VLOOKUP(TOU_CTabulation[[#This Row],[Season]],CRate,2) -> 10.5 | P47: =IF(A48>TOU_CTabulation[[#This Row],[Month]],TOU_CTabulation[[#This Row],[Day]]*TOU_CTabulation[[#This Row],[Base Allow]],0) -> 0 | Q47: =IF(A48>TOU_CTabulation[[#This Row],[Month]],TOU_CTabulation[[#This Row],[Month Cumm]],0) -> 0 | R47: =IF(TOU_CTabulation[[#This Row],[Month Base Gen]]=0,0,TOU_CTabulation[[#This Row],[Month Base Gen]]-TOU_CTabulation[[#This Row],[Day]]*TOU_CTabulation[[#This Row],[Base Allow]]) -> 0 | S47: =VLOOKUP(TOU_CTabulation[[#This Row],[Hour]],daypart,2) -> All | T47: =TOU_CTabulation[[#This Row],[Season]]&TOU_CTabulation[[#This Row],[Day-Part]] -> WinterAll | U47: =VLOOKUP(TOU_CTabulation[[#This Row],[Daypart]],TOUC,2) -> 0.25902 | V47: =VLOOKUP(TOU_CTabulation[[#This Row],[Daypart]],TOUC,3) -> 0.32596 | W47: =TOU_CTabulation[[#This Row],[Month Base Allow]]*TOU_CTabulation[[#This Row],[Base Rate]] -> 0 | X47: =TOU_CTabulation[[#This Row],[Month Overbase Gen]]*TOU_CTabulation[[#This Row],[Over Rate]] -> 0 | Y47: =TOU_CTabulation[[#This Row],[Base Value]]+TOU_CTabulation[[#This Row],[Over Value]] -> 0
A48: 1 | B48: 1 | C48: 19 | D48: 0 | E48: 0 | F48: 9 | G48: 1 | H48: 0 | I48: 9 | J48: 0 | K48: 0 | L48: =TOU_CTabulation[[#This Row],[AC System Output (W)]]/1000 -> 0 | M48: =IF(A47=TOU_CTabulation[[#This Row],[Month]],M47+TOU_CTabulation[[#This Row],[AC System Output (kW)]],TOU_CTabulation[[#This Row],[AC System Output (kW)]]) -> 14.378905 | N48: =VLOOKUP(TOU_CTabulation[[#This Row],[Month]],Season,2) -> Winter | O48: =VLOOKUP(TOU_CTabulation[[#This Row],[Season]],CRate,2) -> 10.5 | P48: =IF(A49>TOU_CTabulation[[#This Row],[Month]],TOU_CTabulation[[#This Row],[Day]]*TOU_CTabulation[[#This Row],[Base Allow]],0) -> 0 | Q48: =IF(A49>TOU_CTabulation[[#This Row],[Month]],TOU_CTabulation[[#This Row],[Month Cumm]],0) -> 0 | R48: =IF(TOU_CTabulation[[#This Row],[Month Base Gen]]=0,0,TOU_CTabulation[[#This Row],[Month Base Gen]]-TOU_CTabulation[[#This Row],[Day]]*TOU_CTabulation[[#This Row],[Base Allow]]) -> 0 | S48: =VLOOKUP(TOU_CTabulation[[#This Row],[Hour]],daypart,2) -> All | T48: =TOU_CTabulation[[#This Row],[Season]]&TOU_CTabulation[[#This Row],[Day-Part]] -> WinterAll | U48: =VLOOKUP(TOU_CTabulation[[#This Row],[Daypart]],TOUC,2) -> 0.25902 | V48: =VLOOKUP(TOU_CTabulation[[#This Row],[Daypart]],TOUC,3) -> 0.32596 | W48: =TOU_CTabulation[[#This Row],[Month Base Allow]]*TOU_CTabulation[[#This Row],[Base Rate]] -> 0 | X48: =TOU_CTabulation[[#This Row],[Month Overbase Gen]]*TOU_CTabulation[[#This Row],[Over Rate]] -> 0 | Y48: =TOU_CTabulation[[#This Row],[Base Value]]+TOU_CTabulation[[#This Row],[Over Value]] -> 0
A49: 1 | B49: 1 | C49: 20 | D49: 0 | E49: 0 | F49: 7 | G49: 1 | H49: 0 | I49: 7 | J49: 0 | K49: 0 | L49: =TOU_CTabulation[[#This Row],[AC System Output (W)]]/1000 -> 0 | M49: =IF(A48=TOU_CTabulation[[#This Row],[Month]],M48+TOU_CTabulation[[#This Row],[AC System Output (kW)]],TOU_CTabulation[[#This Row],[AC System Output (kW)]]) -> 14.378905 | N49: =VLOOKUP(TOU_CTabulation[[#This Row],[Month]],Season,2) -> Winter | O49: =VLOOKUP(TOU_CTabulation[[#This Row],[Season]],CRate,2) -> 10.5 | P49: =IF(A50>TOU_CTabulation[[#This Row],[Month]],TOU_CTabulation[[#This Row],[Day]]*TOU_CTabulation[[#This Row],[Base Allow]],0) -> 0 | Q49: =IF(A50>TOU_CTabulation[[#This Row],[Month]],TOU_CTabulation[[#This Row],[Month Cumm]],0) -> 0 | R49: =IF(TOU_CTabulation[[#This Row],[Month Base Gen]]=0,0,TOU_CTabulation[[#This Row],[Month Base Gen]]-TOU_CTabulation[[#This Row],[Day]]*TOU_CTabulation[[#This Row],[Base Allow]]) -> 0 | S49: =VLOOKUP(TOU_CTabulation[[#This Row],[Hour]],daypart,2) -> All | T49: =TOU_CTabulation[[#This Row],[Season]]&TOU_CTabulation[[#This Row],[Day-Part]] -> WinterAll | U49: =VLOOKUP(TOU_CTabulation[[#This Row],[Daypart]],TOUC,2) -> 0.25902 | V49: =VLOOKUP(TOU_CTabulation[[#This Row],[Daypart]],TOUC,3) -> 0.32596 | W49: =TOU_CTabulation[[#This Row],[Month Base Allow]]*TOU_CTabulation[[#This Row],[Base Rate]] -> 0 | X49: =TOU_CTabulation[[#This Row],[Month Overbase Gen]]*TOU_CTabulation[[#This Row],[Over Rate]] -> 0 | Y49: =TOU_CTabulation[[#This Row],[Base Value]]+TOU_CTabulation[[#This Row],[Over Value]] -> 0
A50: 1 | B50: 1 | C50: 21 | D50: 0 | E50: 0 | F50: 6 | G50: 1 | H50: 0 | I50: 6 | J50: 0 | K50: 0 | L50: =TOU_CTabulation[[#This Row],[AC System Output (W)]]/1000 -> 0 | M50: =IF(A49=TOU_CTabulation[[#This Row],[Month]],M49+TOU_CTabulation[[#This Row],[AC System Output (kW)]],TOU_CTabulation[[#This Row],[AC System Output (kW)]]) -> 14.378905 | N50: =VLOOKUP(TOU_CTabulation[[#This Row],[Month]],Season,2) -> Winter | O50: =VLOOKUP(TOU_CTabulation[[#This Row],[Season]],CRate,2) -> 10.5 | P50: =IF(A51>TOU_CTabulation[[#This Row],[Month]],TOU_CTabulation[[#This Row],[Day]]*TOU_CTabulation[[#This Row],[Base Allow]],0) -> 0 | Q50: =IF(A51>TOU_CTabulation[[#This Row],[Month]],TOU_CTabulation[[#This Row],[Month Cumm]],0) -> 0 | R50: =IF(TOU_CTabulation[[#This Row],[Month Base Gen]]=0,0,TOU_CTabulation[[#This Row],[Month Base Gen]]-TOU_CTabulation[[#This Row],[Day]]*TOU_CTabulation[[#This Row],[Base Allow]]) -> 0 | S50: =VLOOKUP(TOU_CTabulation[[#This Row],[Hour]],daypart,2) -> All | T50: =TOU_CTabulation[[#This Row],[Season]]&TOU_CTabulation[[#This Row],[Day-Part]] -> WinterAll | U50: =VLOOKUP(TOU_CTabulation[[#This Row],[Daypart]],TOUC,2) -> 0.25902 | V50: =VLOOKUP(TOU_CTabulation[[#This Row],[Daypart]],TOUC,3) -> 0.32596 | W50: =TOU_CTabulation[[#This Row],[Month Base Allow]]*TOU_CTabulation[[#This Row],[Base Rate]] -> 0 | X50: =TOU_CTabulation[[#This Row],[Month Overbase Gen]]*TOU_CTabulation[[#This Row],[Over Rate]] -> 0 | Y50: =TOU_CTabulation[[#This Row],[Base Value]]+TOU_CTabulation[[#This Row],[Over Value]] -> 0
A51: 1 | B51: 1 | C51: 22 | D51: 0 | E51: 0 | F51: 6 | G51: 1 | H51: 0 | I51: 6 | J51: 0 | K51: 0 | L51: =TOU_CTabulation[[#This Row],[AC System Output (W)]]/1000 -> 0 | M51: =IF(A50=TOU_CTabulation[[#This Row],[Month]],M50+TOU_CTabulation[[#This Row],[AC System Output (kW)]],TOU_CTabulation[[#This Row],[AC System Output (kW)]]) -> 14.378905 | N51: =VLOOKUP(TOU_CTabulation[[#This Row],[Month]],Season,2) -> Winter | O51: =VLOOKUP(TOU_CTabulation[[#This Row],[Season]],CRate,2) -> 10.5 | P51: =IF(A52>TOU_CTabulation[[#This Row],[Month]],TOU_CTabulation[[#This Row],[Day]]*TOU_CTabulation[[#This Row],[Base Allow]],0) -> 0 | Q51: =IF(A52>TOU_CTabulation[[#This Row],[Month]],TOU_CTabulation[[#This Row],[Month Cumm]],0) -> 0 | R51: =IF(TOU_CTabulation[[#This Row],[Month Base Gen]]=0,0,TOU_CTabulation[[#This Row],[Month Base Gen]]-TOU_CTabulation[[#This Row],[Day]]*TOU_CTabulation[[#This Row],[Base Allow]]) -> 0 | S51: =VLOOKUP(TOU_CTabulation[[#This Row],[Hour]],daypart,2) -> All | T51: =TOU_CTabulation[[#This Row],[Season]]&TOU_CTabulation[[#This Row],[Day-Part]] -> WinterAll | U51: =VLOOKUP(TOU_CTabulation[[#This Row],[Daypart]],TOUC,2) -> 0.25902 | V51: =VLOOKUP(TOU_CTabulation[[#This Row],[Daypart]],TOUC,3) -> 0.32596 | W51: =TOU_CTabulation[[#This Row],[Month Base Allow]]*TOU_CTabulation[[#This Row],[Base Rate]] -> 0 | X51: =TOU_CTabulation[[#This Row],[Month Overbase Gen]]*TOU_CTabulation[[#This Row],[Over Rate]] -> 0 | Y51: =TOU_CTabulation[[#This Row],[Base Value]]+TOU_CTabulation[[#This Row],[Over Value]] -> 0
A52: 1 | B52: 1 | C52: 23 | D52: 0 | E52: 0 | F52: 5 | G52: 1 | H52: 0 | I52: 5 | J52: 0 | K52: 0 | L52: =TOU_CTabulation[[#This Row],[AC System Output (W)]]/1000 -> 0 | M52: =IF(A51=TOU_CTabulation[[#This Row],[Month]],M51+TOU_CTabulation[[#This Row],[AC System Output (kW)]],TOU_CTabulation[[#This Row],[AC System Output (kW)]]) -> 14.378905 | N52: =VLOOKUP(TOU_CTabulation[[#This Row],[Month]],Season,2) -> Winter | O52: =VLOOKUP(TOU_CTabulation[[#This Row],[Season]],CRate,2) -> 10.5 | P52: =IF(A53>TOU_CTabulation[[#This Row],[Month]],TOU_CTabulation[[#This Row],[Day]]*TOU_CTabulation[[#This Row],[Base Allow]],0) -> 0 | Q52: =IF(A53>TOU_CTabulation[[#This Row],[Month]],TOU_CTabulation[[#This Row],[Month Cumm]],0) -> 0 | R52: =IF(TOU_CTabulation[[#This Row],[Month Base Gen]]=0,0,TOU_CTabulation[[#This Row],[Month Base Gen]]-TOU_CTabulation[[#This Row],[Day]]*TOU_CTabulation[[#This Row],[Base Allow]]) -> 0 | S52: =VLOOKUP(TOU_CTabulation[[#This Row],[Hour]],daypart,2) -> All | T52: =TOU_CTabulation[[#This Row],[Season]]&TOU_CTabulation[[#This Row],[Day-Part]] -> WinterAll | U52: =VLOOKUP(TOU_CTabulation[[#This Row],[Daypart]],TOUC,2) -> 0.25902 | V52: =VLOOKUP(TOU_CTabulation[[#This Row],[Daypart]],TOUC,3) -> 0.32596 | W52: =TOU_CTabulation[[#This Row],[Month Base Allow]]*TOU_CTabulation[[#This Row],[Base Rate]] -> 0 | X52: =TOU_CTabulation[[#This Row],[Month Overbase Gen]]*TOU_CTabulation[[#This Row],[Over Rate]] -> 0 | Y52: =TOU_CTabulation[[#This Row],[Base Value]]+TOU_CTabulation[[#This Row],[Over Value]] -> 0
A53: 1 | B53: 2 | C53: 0 | D53: 0 | E53: 0 | F53: 5 | G53: 2 | H53: 0 | I53: 5 | J53: 0 | K53: 0 | L53: =TOU_CTabulation[[#This Row],[AC System Output (W)]]/1000 -> 0 | M53: =IF(A52=TOU_CTabulation[[#This Row],[Month]],M52+TOU_CTabulation[[#This Row],[AC System Output (kW)]],TOU_CTabulation[[#This Row],[AC System Output (kW)]]) -> 14.378905 | N53: =VLOOKUP(TOU_CTabulation[[#This Row],[Month]],Season,2) -> Winter | O53: =VLOOKUP(TOU_CTabulation[[#This Row],[Season]],CRate,2) -> 10.5 | P53: =IF(A54>TOU_CTabulation[[#This Row],[Month]],TOU_CTabulation[[#This Row],[Day]]*TOU_CTabulation[[#This Row],[Base Allow]],0) -> 0 | Q53: =IF(A54>TOU_CTabulation[[#This Row],[Month]],TOU_CTabulation[[#This Row],[Month Cumm]],0) -> 0 | R53: =IF(TOU_CTabulation[[#This Row],[Month Base Gen]]=0,0,TOU_CTabulation[[#This Row],[Month Base Gen]]-TOU_CTabulation[[#This Row],[Day]]*TOU_CTabulation[[#This Row],[Base Allow]]) -> 0 | S53: =VLOOKUP(TOU_CTabulation[[#This Row],[Hour]],daypart,2) -> All | T53: =TOU_CTabulation[[#This Row],[Season]]&TOU_CTabulation[[#This Row],[Day-Part]] -> WinterAll | U53: =VLOOKUP(TOU_CTabulation[[#This Row],[Daypart]],TOUC,2) -> 0.25902 | V53: =VLOOKUP(TOU_CTabulation[[#This Row],[Daypart]],TOUC,3) -> 0.32596 | W53: =TOU_CTabulation[[#This Row],[Month Base Allow]]*TOU_CTabulation[[#This Row],[Base Rate]] -> 0 | X53: =TOU_CTabulation[[#This Row],[Month Overbase Gen]]*TOU_CTabulation[[#This Row],[Over Rate]] -> 0 | Y53: =TOU_CTabulation[[#This Row],[Base Value]]+TOU_CTabulation[[#This Row],[Over Value]] -> 0
A54: 1 | B54: 2 | C54: 1 | D54: 0 | E54: 0 | F54: 4 | G54: 2 | H54: 0 | I54: 4 | J54: 0 | K54: 0 | L54: =TOU_CTabulation[[#This Row],[AC System Output (W)]]/1000 -> 0 | M54: =IF(A53=TOU_CTabulation[[#This Row],[Month]],M53+TOU_CTabulation[[#This Row],[AC System Output (kW)]],TOU_CTabulation[[#This Row],[AC System Output (kW)]]) -> 14.378905 | N54: =VLOOKUP(TOU_CTabulation[[#This Row],[Month]],Season,2) -> Winter | O54: =VLOOKUP(TOU_CTabulation[[#This Row],[Season]],CRate,2) -> 10.5 | P54: =IF(A55>TOU_CTabulation[[#This Row],[Month]],TOU_CTabulation[[#This Row],[Day]]*TOU_CTabulation[[#This Row],[Base Allow]],0) -> 0 | Q54: =IF(A55>TOU_CTabulation[[#This Row],[Month]],TOU_CTabulation[[#This Row],[Month Cumm]],0) -> 0 | R54: =IF(TOU_CTabulation[[#This Row],[Month Base Gen]]=0,0,TOU_CTabulation[[#This Row],[Month Base Gen]]-TOU_CTabulation[[#This Row],[Day]]*TOU_CTabulation[[#This Row],[Base Allow]]) -> 0 | S54: =VLOOKUP(TOU_CTabulation[[#This Row],[Hour]],daypart,2) -> All | T54: =TOU_CTabulation[[#This Row],[Season]]&TOU_CTabulation[[#This Row],[Day-Part]] -> WinterAll | U54: =VLOOKUP(TOU_CTabulation[[#This Row],[Daypart]],TOUC,2) -> 0.25902 | V54: =VLOOKUP(TOU_CTabulation[[#This Row],[Daypart]],TOUC,3) -> 0.32596 | W54: =TOU_CTabulation[[#This Row],[Month Base Allow]]*TOU_CTabulation[[#This Row],[Base Rate]] -> 0 | X54: =TOU_CTabulation[[#This Row],[Month Overbase Gen]]*TOU_CTabulation[[#This Row],[Over Rate]] -> 0 | Y54: =TOU_CTabulation[[#This Row],[Base Value]]+TOU_CTabulation[[#This Row],[Over Value]] -> 0
A55: 1 | B55: 2 | C55: 2 | D55: 0 | E55: 0 | F55: 4 | G55: 2 | H55: 0 | I55: 4 | J55: 0 | K55: 0 | L55: =TOU_CTabulation[[#This Row],[AC System Output (W)]]/1000 -> 0 | M55: =IF(A54=TOU_CTabulation[[#This Row],[Month]],M54+TOU_CTabulation[[#This Row],[AC System Output (kW)]],TOU_CTabulation[[#This Row],[AC System Output (kW)]]) -> 14.378905 | N55: =VLOOKUP(TOU_CTabulation[[#This Row],[Month]],Season,2) -> Winter | O55: =VLOOKUP(TOU_CTabulation[[#This Row],[Season]],CRate,2) -> 10.5 | P55: =IF(A56>TOU_CTabulation[[#This Row],[Month]],TOU_CTabulation[[#This Row],[Day]]*TOU_CTabulation[[#This Row],[Base Allow]],0) -> 0 | Q55: =IF(A56>TOU_CTabulation[[#This Row],[Month]],TOU_CTabulation[[#This Row],[Month Cumm]],0) -> 0 | R55: =IF(TOU_CTabulation[[#This Row],[Month Base Gen]]=0,0,TOU_CTabulation[[#This Row],[Month Base Gen]]-TOU_CTabulation[[#This Row],[Day]]*TOU_CTabulation[[#This Row],[Base Allow]]) -> 0 | S55: =VLOOKUP(TOU_CTabulation[[#This Row],[Hour]],daypart,2) -> All | T55: =TOU_CTabulation[[#This Row],[Season]]&TOU_CTabulation[[#This Row],[Day-Part]] -> WinterAll | U55: =VLOOKUP(TOU_CTabulation[[#This Row],[Daypart]],TOUC,2) -> 0.25902 | V55: =VLOOKUP(TOU_CTabulation[[#This Row],[Daypart]],TOUC,3) -> 0.32596 | W55: =TOU_CTabulation[[#This Row],[Month Base Allow]]*TOU_CTabulation[[#This Row],[Base Rate]] -> 0 | X55: =TOU_CTabulation[[#This Row],[Month Overbase Gen]]*TOU_CTabulation[[#This Row],[Over Rate]] -> 0 | Y55: =TOU_CTabulation[[#This Row],[Base Value]]+TOU_CTabulation[[#This Row],[Over Value]] -> 0
A56: 1 | B56: 2 | C56: 3 | D56: 0 | E56: 0 | F56: 4 | G56: 2 | H56: 0 | I56: 4 | J56: 0 | K56: 0 | L56: =TOU_CTabulation[[#This Row],[AC System Output (W)]]/1000 -> 0 | M56: =IF(A55=TOU_CTabulation[[#This Row],[Month]],M55+TOU_CTabulation[[#This Row],[AC System Output (kW)]],TOU_CTabulation[[#This Row],[AC System Output (kW)]]) -> 14.378905 | N56: =VLOOKUP(TOU_CTabulation[[#This Row],[Month]],Season,2) -> Winter | O56: =VLOOKUP(TOU_CTabulation[[#This Row],[Season]],CRate,2) -> 10.5 | P56: =IF(A57>TOU_CTabulation[[#This Row],[Month]],TOU_CTabulation[[#This Row],[Day]]*TOU_CTabulation[[#This Row],[Base Allow]],0) -> 0 | Q56: =IF(A57>TOU_CTabulation[[#This Row],[Month]],TOU_CTabulation[[#This Row],[Month Cumm]],0) -> 0 | R56: =IF(TOU_CTabulation[[#This Row],[Month Base Gen]]=0,0,TOU_CTabulation[[#This Row],[Month Base Gen]]-TOU_CTabulation[[#This Row],[Day]]*TOU_CTabulation[[#This Row],[Base Allow]]) -> 0 | S56: =VLOOKUP(TOU_CTabulation[[#This Row],[Hour]],daypart,2) -> All | T56: =TOU_CTabulation[[#This Row],[Season]]&TOU_CTabulation[[#This Row],[Day-Part]] -> WinterAll | U56: =VLOOKUP(TOU_CTabulation[[#This Row],[Daypart]],TOUC,2) -> 0.25902 | V56: =VLOOKUP(TOU_CTabulation[[#This Row],[Daypart]],TOUC,3) -> 0.32596 | W56: =TOU_CTabulation[[#This Row],[Month Base Allow]]*TOU_CTabulation[[#This Row],[Base Rate]] -> 0 | X56: =TOU_CTabulation[[#This Row],[Month Overbase Gen]]*TOU_CTabulation[[#This Row],[Over Rate]] -> 0 | Y56: =TOU_CTabulation[[#This Row],[Base Value]]+TOU_CTabulation[[#This Row],[Over Value]] -> 0
A57: 1 | B57: 2 | C57: 4 | D57: 0 | E57: 0 | F57: 4 | G57: 2 | H57: 0 | I57: 4 | J57: 0 | K57: 0 | L57: =TOU_CTabulation[[#This Row],[AC System Output (W)]]/1000 -> 0 | M57: =IF(A56=TOU_CTabulation[[#This Row],[Month]],M56+TOU_CTabulation[[#This Row],[AC System Output (kW)]],TOU_CTabulation[[#This Row],[AC System Output (kW)]]) -> 14.378905 | N57: =VLOOKUP(TOU_CTabulation[[#This Row],[Month]],Season,2) -> Winter | O57: =VLOOKUP(TOU_CTabulation[[#This Row],[Season]],CRate,2) -> 10.5 | P57: =IF(A58>TOU_CTabulation[[#This Row],[Month]],TOU_CTabulation[[#This Row],[Day]]*TOU_CTabulation[[#This Row],[Base Allow]],0) -> 0 | Q57: =IF(A58>TOU_CTabulation[[#This Row],[Month]],TOU_CTabulation[[#This Row],[Month Cumm]],0) -> 0 | R57: =IF(TOU_CTabulation[[#This Row],[Month Base Gen]]=0,0,TOU_CTabulation[[#This Row],[Month Base Gen]]-TOU_CTabulation[[#This Row],[Day]]*TOU_CTabulation[[#This Row],[Base Allow]]) -> 0 | S57: =VLOOKUP(TOU_CTabulation[[#This Row],[Hour]],daypart,2) -> All | T57: =TOU_CTabulation[[#This Row],[Season]]&TOU_CTabulation[[#This Row],[Day-Part]] -> WinterAll | U57: =VLOOKUP(TOU_CTabulation[[#This Row],[Daypart]],TOUC,2) -> 0.25902 | V57: =VLOOKUP(TOU_CTabulation[[#This Row],[Daypart]],TOUC,3) -> 0.32596 | W57: =TOU_CTabulation[[#This Row],[Month Base Allow]]*TOU_CTabulation[[#This Row],[Base Rate]] -> 0 | X57: =TOU_CTabulation[[#This Row],[Month Overbase Gen]]*TOU_CTabulation[[#This Row],[Over Rate]] -> 0 | Y57: =TOU_CTabulation[[#This Row],[Base Value]]+TOU_CTabulation[[#This Row],[Over Value]] -> 0
A58: 1 | B58: 2 | C58: 5 | D58: 0 | E58: 0 | F58: 3 | G58: 2 | H58: 0 | I58: 3 | J58: 0 | K58: 0 | L58: =TOU_CTabulation[[#This Row],[AC System Output (W)]]/1000 -> 0 | M58: =IF(A57=TOU_CTabulation[[#This Row],[Month]],M57+TOU_CTabulation[[#This Row],[AC System Output (kW)]],TOU_CTabulation[[#This Row],[AC System Output (kW)]]) -> 14.378905 | N58: =VLOOKUP(TOU_CTabulation[[#This Row],[Month]],Season,2) -> Winter | O58: =VLOOKUP(TOU_CTabulation[[#This Row],[Season]],CRate,2) -> 10.5 | P58: =IF(A59>TOU_CTabulation[[#This Row],[Month]],TOU_CTabulation[[#This Row],[Day]]*TOU_CTabulation[[#This Row],[Base Allow]],0) -> 0 | Q58: =IF(A59>TOU_CTabulation[[#This Row],[Month]],TOU_CTabulation[[#This Row],[Month Cumm]],0) -> 0 | R58: =IF(TOU_CTabulation[[#This Row],[Month Base Gen]]=0,0,TOU_CTabulation[[#This Row],[Month Base Gen]]-TOU_CTabulation[[#This Row],[Day]]*TOU_CTabulation[[#This Row],[Base Allow]]) -> 0 | S58: =VLOOKUP(TOU_CTabulation[[#This Row],[Hour]],daypart,2) -> All | T58: =TOU_CTabulation[[#This Row],[Season]]&TOU_CTabulation[[#This Row],[Day-Part]] -> WinterAll | U58: =VLOOKUP(TOU_CTabulation[[#This Row],[Daypart]],TOUC,2) -> 0.25902 | V58: =VLOOKUP(TOU_CTabulation[[#This Row],[Daypart]],TOUC,3) -> 0.32596 | W58: =TOU_CTabulation[[#This Row],[Month Base Allow]]*TOU_CTabulation[[#This Row],[Base Rate]] -> 0 | X58: =TOU_CTabulation[[#This Row],[Month Overbase Gen]]*TOU_CTabulation[[#This Row],[Over Rate]] -> 0 | Y58: =TOU_CTabulation[[#This Row],[Base Value]]+TOU_CTabulation[[#This Row],[Over Value]] -> 0
A59: 1 | B59: 2 | C59: 6 | D59: 0 | E59: 0 | F59: 3 | G59: 3 | H59: 0 | I59: 3 | J59: 0 | K59: 0 | L59: =TOU_CTabulation[[#This Row],[AC System Output (W)]]/1000 -> 0 | M59: =IF(A58=TOU_CTabulation[[#This Row],[Month]],M58+TOU_CTabulation[[#This Row],[AC System Output (kW)]],TOU_CTabulation[[#This Row],[AC System Output (kW)]]) -> 14.378905 | N59: =VLOOKUP(TOU_CTabulation[[#This Row],[Month]],Season,2) -> Winter | O59: =VLOOKUP(TOU_CTabulation[[#This Row],[Season]],CRate,2) -> 10.5 | P59: =IF(A60>TOU_CTabulation[[#This Row],[Month]],TOU_CTabulation[[#This Row],[Day]]*TOU_CTabulation[[#This Row],[Base Allow]],0) -> 0 | Q59: =IF(A60>TOU_CTabulation[[#This Row],[Month]],TOU_CTabulation[[#This Row],[Month Cumm]],0) -> 0 | R59: =IF(TOU_CTabulation[[#This Row],[Month Base Gen]]=0,0,TOU_CTabulation[[#This Row],[Month Base Gen]]-TOU_CTabulation[[#This Row],[Day]]*TOU_CTabulation[[#This Row],[Base Allow]]) -> 0 | S59: =VLOOKUP(TOU_CTabulation[[#This Row],[Hour]],daypart,2) -> All | T59: =TOU_CTabulation[[#This Row],[Season]]&TOU_CTabulation[[#This Row],[Day-Part]] -> WinterAll | U59: =VLOOKUP(TOU_CTabulation[[#This Row],[Daypart]],TOUC,2) -> 0.25902 | V59: =VLOOKUP(TOU_CTabulation[[#This Row],[Daypart]],TOUC,3) -> 0.32596 | W59: =TOU_CTabulation[[#This Row],[Month Base Allow]]*TOU_CTabulation[[#This Row],[Base Rate]] -> 0 | X59: =TOU_CTabulation[[#This Row],[Month Overbase Gen]]*TOU_CTabulation[[#This Row],[Over Rate]] -> 0 | Y59: =TOU_CTabulation[[#This Row],[Base Value]]+TOU_CTabulation[[#This Row],[Over Value]] -> 0
A60: 1 | B60: 2 | C60: 7 | D60: 0 | E60: 15 | F60: 5 | G60: 3 | H60: 14.213 | I60: 3.882 | J60: 53.696 | K60: 32.309 | L60: =TOU_CTabulation[[#This Row],[AC System Output (W)]]/1000 -> 0.032309 | M60: =IF(A59=TOU_CTabulation[[#This Row],[Month]],M59+TOU_CTabulation[[#This Row],[AC System Output (kW)]],TOU_CTabulation[[#This Row],[AC System Output (kW)]]) -> 14.411214 | N60: =VLOOKUP(TOU_CTabulation[[#This Row],[Month]],Season,2) -> Winter | O60: =VLOOKUP(TOU_CTabulation[[#This Row],[Season]],CRate,2) -> 10.5 | P60: =IF(A61>TOU_CTabulation[[#This Row],[Month]],TOU_CTabulation[[#This Row],[Day]]*TOU_CTabulation[[#This Row],[Base Allow]],0) -> 0 | Q60: =IF(A61>TOU_CTabulation[[#This Row],[Month]],TOU_CTabulation[[#This Row],[Month Cumm]],0) -> 0 | R60: =IF(TOU_CTabulation[[#This Row],[Month Base Gen]]=0,0,TOU_CTabulation[[#This Row],[Month Base Gen]]-TOU_CTabulation[[#This Row],[Day]]*TOU_CTabulation[[#This Row],[Base Allow]]) -> 0 | S60: =VLOOKUP(TOU_CTabulation[[#This Row],[Hour]],daypart,2) -> All | T60: =TOU_CTabulation[[#This Row],[Season]]&TOU_CTabulation[[#This Row],[Day-Part]] -> WinterAll | U60: =VLOOKUP(TOU_CTabulation[[#This Row],[Daypart]],TOUC,2) -> 0.25902 | V60: =VLOOKUP(TOU_CTabulation[[#This Row],[Daypart]],TOUC,3) -> 0.32596 | W60: =TOU_CTabulation[[#This Row],[Month Base Allow]]*TOU_CTabulation[[#This Row],[Base Rate]] -> 0 | X60: =TOU_CTabulation[[#This Row],[Month Overbase Gen]]*TOU_CTabulation[[#This Row],[Over Rate]] -> 0 | Y60: =TOU_CTabulation[[#This Row],[Base Value]]+TOU_CTabulation[[#This Row],[Over Value]] -> 0
A61: 1 | B61: 2 | C61: 8 | D61: 106 | E61: 82 | F61: 8 | G61: 4 | H61: 137.474 | I61: 9.456 | J61: 492.24 | K61: 461.854 | L61: =TOU_CTabulation[[#This Row],[AC System Output (W)]]/1000 -> 0.461854 | M61: =IF(A60=TOU_CTabulation[[#This Row],[Month]],M60+TOU_CTabulation[[#This Row],[AC System Output (kW)]],TOU_CTabulation[[#This Row],[AC System Output (kW)]]) -> 14.873068 | N61: =VLOOKUP(TOU_CTabulation[[#This Row],[Month]],Season,2) -> Winter | O61: =VLOOKUP(TOU_CTabulation[[#This Row],[Season]],CRate,2) -> 10.5 | P61: =IF(A62>TOU_CTabulation[[#This Row],[Month]],TOU_CTabulation[[#This Row],[Day]]*TOU_CTabulation[[#This Row],[Base Allow]],0) -> 0 | Q61: =IF(A62>TOU_CTabulation[[#This Row],[Month]],TOU_CTabulation[[#This Row],[Month Cumm]],0) -> 0 | R61: =IF(TOU_CTabulation[[#This Row],[Month Base Gen]]=0,0,TOU_CTabulation[[#This Row],[Month Base Gen]]-TOU_CTabulation[[#This Row],[Day]]*TOU_CTabulation[[#This Row],[Base Allow]]) -> 0 | S61: =VLOOKUP(TOU_CTabulation[[#This Row],[Hour]],daypart,2) -> All | T61: =TOU_CTabulation[[#This Row],[Season]]&TOU_CTabulation[[#This Row],[Day-Part]] -> WinterAll | U61: =VLOOKUP(TOU_CTabulation[[#This Row],[Daypart]],TOUC,2) -> 0.25902 | V61: =VLOOKUP(TOU_CTabulation[[#This Row],[Daypart]],TOUC,3) -> 0.32596 | W61: =TOU_CTabulation[[#This Row],[Month Base Allow]]*TOU_CTabulation[[#This Row],[Base Rate]] -> 0 | X61: =TOU_CTabulation[[#This Row],[Month Overbase Gen]]*TOU_CTabulation[[#This Row],[Over Rate]] -> 0 | Y61: =TOU_CTabulation[[#This Row],[Base Value]]+TOU_CTabulation[[#This Row],[Over Value]] -> 0
A62: 1 | B62: 2 | C62: 9 | D62: 871 | E62: 53 | F62: 12 | G62: 3 | H62: 580.191 | I62: 24.638 | J62: 1943.377 | K62: 1870.465 | L62: =TOU_CTabulation[[#This Row],[AC System Output (W)]]/1000 -> 1.870465 | M62: =IF(A61=TOU_CTabulation[[#This Row],[Month]],M61+TOU_CTabulation[[#This Row],[AC System Output (kW)]],TOU_CTabulation[[#This Row],[AC System Output (kW)]]) -> 16.743533 | N62: =VLOOKUP(TOU_CTabulation[[#This Row],[Month]],Season,2) -> Winter | O62: =VLOOKUP(TOU_CTabulation[[#This Row],[Season]],CRate,2) -> 10.5 | P62: =IF(A63>TOU_CTabulation[[#This Row],[Month]],TOU_CTabulation[[#This Row],[Day]]*TOU_CTabulation[[#This Row],[Base Allow]],0) -> 0 | Q62: =IF(A63>TOU_CTabulation[[#This Row],[Month]],TOU_CTabulation[[#This Row],[Month Cumm]],0) -> 0 | R62: =IF(TOU_CTabulation[[#This Row],[Month Base Gen]]=0,0,TOU_CTabulation[[#This Row],[Month Base Gen]]-TOU_CTabulation[[#This Row],[Day]]*TOU_CTabulation[[#This Row],[Base Allow]]) -> 0 | S62: =VLOOKUP(TOU_CTabulation[[#This Row],[Hour]],daypart,2) -> All | T62: =TOU_CTabulation[[#This Row],[Season]]&TOU_CTabulation[[#This Row],[Day-Part]] -> WinterAll | U62: =VLOOKUP(TOU_CTabulation[[#This Row],[Daypart]],TOUC,2) -> 0.25902 | V62: =VLOOKUP(TOU_CTabulation[[#This Row],[Daypart]],TOUC,3) -> 0.32596 | W62: =TOU_CTabulation[[#This Row],[Month Base Allow]]*TOU_CTabulation[[#This Row],[Base Rate]] -> 0 | X62: =TOU_CTabulation[[#This Row],[Month Overbase Gen]]*TOU_CTabulation[[#This Row],[Over Rate]] -> 0 | Y62: =TOU_CTabulation[[#This Row],[Base Value]]+TOU_CTabulation[[#This Row],[Over Value]] -> 0
A63: 1 | B63: 2 | C63: 10 | D63: 937 | E63: 58 | F63: 15 | G63: 3 | H63: 738.958 | I63: 32.387 | J63: 2424.815 | K63: 2333.471 | L63: =TOU_CTabulation[[#This Row],[AC System Output (W)]]/1000 -> 2.333471 | M63: =IF(A62=TOU_CTabulation[[#This Row],[Month]],M62+TOU_CTabulation[[#This Row],[AC System Output (kW)]],TOU_CTabulation[[#This Row],[AC System Output (kW)]]) -> 19.077004 | N63: =VLOOKUP(TOU_CTabulation[[#This Row],[Month]],Season,2) -> Winter | O63: =VLOOKUP(TOU_CTabulation[[#This Row],[Season]],CRate,2) -> 10.5 | P63: =IF(A64>TOU_CTabulation[[#This Row],[Month]],TOU_CTabulation[[#This Row],[Day]]*TOU_CTabulation[[#This Row],[Base Allow]],0) -> 0 | Q63: =IF(A64>TOU_CTabulation[[#This Row],[Month]],TOU_CTabulation[[#This Row],[Month Cumm]],0) -> 0 | R63: =IF(TOU_CTabulation[[#This Row],[Month Base Gen]]=0,0,TOU_CTabulation[[#This Row],[Month Base Gen]]-TOU_CTabulation[[#This Row],[Day]]*TOU_CTabulation[[#This Row],[Base Allow]]) -> 0 | S63: =VLOOKUP(TOU_CTabulation[[#This Row],[Hour]],daypart,2) -> All | T63: =TOU_CTabulation[[#This Row],[Season]]&TOU_CTabulation[[#This Row],[Day-Part]] -> WinterAll | U63: =VLOOKUP(TOU_CTabulation[[#This Row],[Daypart]],TOUC,2) -> 0.25902 | V63: =VLOOKUP(TOU_CTabulation[[#This Row],[Daypart]],TOUC,3) -> 0.32596 | W63: =TOU_CTabulation[[#This Row],[Month Base Allow]]*TOU_CTabulation[[#This Row],[Base Rate]] -> 0 | X63: =TOU_CTabulation[[#This Row],[Month Overbase Gen]]*TOU_CTabulation[[#This Row],[Over Rate]] -> 0 | Y63: =TOU_CTabulation[[#This Row],[Base Value]]+TOU_CTabulation[[#This Row],[Over Value]] -> 0
A64: 1 | B64: 2 | C64: 11 | D64: 962 | E64: 61 | F64: 18 | G64: 2 | H64: 824.499 | I64: 40.169 | J64: 2616.067 | K64: 2516.802 | L64: =TOU_CTabulation[[#This Row],[AC System Output (W)]]/1000 -> 2.516802 | M64: =IF(A63=TOU_CTabulation[[#This Row],[Month]],M63+TOU_CTabulation[[#This Row],[AC System Output (kW)]],TOU_CTabulation[[#This Row],[AC System Output (kW)]]) -> 21.593806 | N64: =VLOOKUP(TOU_CTabulation[[#This Row],[Month]],Season,2) -> Winter | O64: =VLOOKUP(TOU_CTabulation[[#This Row],[Season]],CRate,2) -> 10.5 | P64: =IF(A65>TOU_CTabulation[[#This Row],[Month]],TOU_CTabulation[[#This Row],[Day]]*TOU_CTabulation[[#This Row],[Base Allow]],0) -> 0 | Q64: =IF(A65>TOU_CTabulation[[#This Row],[Month]],TOU_CTabulation[[#This Row],[Month Cumm]],0) -> 0 | R64: =IF(TOU_CTabulation[[#This Row],[Month Base Gen]]=0,0,TOU_CTabulation[[#This Row],[Month Base Gen]]-TOU_CTabulation[[#This Row],[Day]]*TOU_CTabulation[[#This Row],[Base Allow]]) -> 0 | S64: =VLOOKUP(TOU_CTabulation[[#This Row],[Hour]],daypart,2) -> All | T64: =TOU_CTabulation[[#This Row],[Season]]&TOU_CTabulation[[#This Row],[Day-Part]] -> WinterAll | U64: =VLOOKUP(TOU_CTabulation[[#This Row],[Daypart]],TOUC,2) -> 0.25902 | V64: =VLOOKUP(TOU_CTabulation[[#This Row],[Daypart]],TOUC,3) -> 0.32596 | W64: =TOU_CTabulation[[#This Row],[Month Base Allow]]*TOU_CTabulation[[#This Row],[Base Rate]] -> 0 | X64: =TOU_CTabulation[[#This Row],[Month Overbase Gen]]*TOU_CTabulation[[#This Row],[Over Rate]] -> 0 | Y64: =TOU_CTabulation[[#This Row],[Base Value]]+TOU_CTabulation[[#This Row],[Over Value]] -> 0
A65: 1 | B65: 2 | C65: 12 | D65: 961 | E65: 62 | F65: 19 | G65: 2 | H65: 831.714 | I65: 41.558 | J65: 2621.506 | K65: 2522.011 | L65: =TOU_CTabulation[[#This Row],[AC System Output (W)]]/1000 -> 2.522011 | M65: =IF(A64=TOU_CTabulation[[#This Row],[Month]],M64+TOU_CTabulation[[#This Row],[AC System Output (kW)]],TOU_CTabulation[[#This Row],[AC System Output (kW)]]) -> 24.115817 | N65: =VLOOKUP(TOU_CTabulation[[#This Row],[Month]],Season,2) -> Winter | O65: =VLOOKUP(TOU_CTabulation[[#This Row],[Season]],CRate,2) -> 10.5 | P65: =IF(A66>TOU_CTabulation[[#This Row],[Month]],TOU_CTabulation[[#This Row],[Day]]*TOU_CTabulation[[#This Row],[Base Allow]],0) -> 0 | Q65: =IF(A66>TOU_CTabulation[[#This Row],[Month]],TOU_CTabulation[[#This Row],[Month Cumm]],0) -> 0 | R65: =IF(TOU_CTabulation[[#This Row],[Month Base Gen]]=0,0,TOU_CTabulation[[#This Row],[Month Base Gen]]-TOU_CTabulation[[#This Row],[Day]]*TOU_CTabulation[[#This Row],[Base Allow]]) -> 0 | S65: =VLOOKUP(TOU_CTabulation[[#This Row],[Hour]],daypart,2) -> All | T65: =TOU_CTabulation[[#This Row],[Season]]&TOU_CTabulation[[#This Row],[Day-Part]] -> WinterAll | U65: =VLOOKUP(TOU_CTabulation[[#This Row],[Daypart]],TOUC,2) -> 0.25902 | V65: =VLOOKUP(TOU_CTabulation[[#This Row],[Daypart]],TOUC,3) -> 0.32596 | W65: =TOU_CTabulation[[#This Row],[Month Base Allow]]*TOU_CTabulation[[#This Row],[Base Rate]] -> 0 | X65: =TOU_CTabulation[[#This Row],[Month Overbase Gen]]*TOU_CTabulation[[#This Row],[Over Rate]] -> 0 | Y65: =TOU_CTabulation[[#This Row],[Base Value]]+TOU_CTabulation[[#This Row],[Over Value]] -> 0
A66: 1 | B66: 2 | C66: 13 | D66: 934 | E66: 60 | F66: 19 | G66: 1 | H66: 758.542 | I66: 43.673 | J66: 2356.57 | K66: 2267.97 | L66: =TOU_CTabulation[[#This Row],[AC System Output (W)]]/1000 -> 2.26797 | M66: =IF(A65=TOU_CTabulation[[#This Row],[Month]],M65+TOU_CTabulation[[#This Row],[AC System Output (kW)]],TOU_CTabulation[[#This Row],[AC System Output (kW)]]) -> 26.383787 | N66: =VLOOKUP(TOU_CTabulation[[#This Row],[Month]],Season,2) -> Winter | O66: =VLOOKUP(TOU_CTabulation[[#This Row],[Season]],CRate,2) -> 10.5 | P66: =IF(A67>TOU_CTabulation[[#This Row],[Month]],TOU_CTabulation[[#This Row],[Day]]*TOU_CTabulation[[#This Row],[Base Allow]],0) -> 0 | Q66: =IF(A67>TOU_CTabulation[[#This Row],[Month]],TOU_CTabulation[[#This Row],[Month Cumm]],0) -> 0 | R66: =IF(TOU_CTabulation[[#This Row],[Month Base Gen]]=0,0,TOU_CTabulation[[#This Row],[Month Base Gen]]-TOU_CTabulation[[#This Row],[Day]]*TOU_CTabulation[[#This Row],[Base Allow]]) -> 0 | S66: =VLOOKUP(TOU_CTabulation[[#This Row],[Hour]],daypart,2) -> All | T66: =TOU_CTabulation[[#This Row],[Season]]&TOU_CTabulation[[#This Row],[Day-Part]] -> WinterAll | U66: =VLOOKUP(TOU_CTabulation[[#This Row],[Daypart]],TOUC,2) -> 0.25902 | V66: =VLOOKUP(TOU_CTabulation[[#This Row],[Daypart]],TOUC,3) -> 0.32596 | W66: =TOU_CTabulation[[#This Row],[Month Base Allow]]*TOU_CTabulation[[#This Row],[Base Rate]] -> 0 | X66: =TOU_CTabulation[[#This Row],[Month Overbase Gen]]*TOU_CTabulation[[#This Row],[Over Rate]] -> 0 | Y66: =TOU_CTabulation[[#This Row],[Base Value]]+TOU_CTabulation[[#This Row],[Over Value]] -> 0
A67: 1 | B67: 2 | C67: 14 | D67: 873 | E67: 55 | F67: 18 | G67: 0 | H67: 612.37 | I67: 43.816 | J67: 1877.266 | K67: 1806.717 | L67: =TOU_CTabulation[[#This Row],[AC System Output (W)]]/1000 -> 1.806717 | M67: =IF(A66=TOU_CTabulation[[#This Row],[Month]],M66+TOU_CTabulation[[#This Row],[AC System Output (kW)]],TOU_CTabulation[[#This Row],[AC System Output (kW)]]) -> 28.190504 | N67: =VLOOKUP(TOU_CTabulation[[#This Row],[Month]],Season,2) -> Winter | O67: =VLOOKUP(TOU_CTabulation[[#This Row],[Season]],CRate,2) -> 10.5 | P67: =IF(A68>TOU_CTabulation[[#This Row],[Month]],TOU_CTabulation[[#This Row],[Day]]*TOU_CTabulation[[#This Row],[Base Allow]],0) -> 0 | Q67: =IF(A68>TOU_CTabulation[[#This Row],[Month]],TOU_CTabulation[[#This Row],[Month Cumm]],0) -> 0 | R67: =IF(TOU_CTabulation[[#This Row],[Month Base Gen]]=0,0,TOU_CTabulation[[#This Row],[Month Base Gen]]-TOU_CTabulation[[#This Row],[Day]]*TOU_CTabulation[[#This Row],[Base Allow]]) -> 0 | S67: =VLOOKUP(TOU_CTabulation[[#This Row],[Hour]],daypart,2) -> All | T67: =TOU_CTabulation[[#This Row],[Season]]&TOU_CTabulation[[#This Row],[Day-Part]] -> WinterAll | U67: =VLOOKUP(TOU_CTabulation[[#This Row],[Daypart]],TOUC,2) -> 0.25902 | V67: =VLOOKUP(TOU_CTabulation[[#This Row],[Daypart]],TOUC,3) -> 0.32596 | W67: =TOU_CTabulation[[#This Row],[Month Base Allow]]*TOU_CTabulation[[#This Row],[Base Rate]] -> 0 | X67: =TOU_CTabulation[[#This Row],[Month Overbase Gen]]*TOU_CTabulation[[#This Row],[Over Rate]] -> 0 | Y67: =TOU_CTabulation[[#This Row],[Base Value]]+TOU_CTabulation[[#This Row],[Over Value]] -> 0
A68: 1 | B68: 2 | C68: 15 | D68: 491 | E68: 68 | F68: 16 | G68: 0 | H68: 317.408 | I68: 31.42 | J68: 1005.426 | K68: 962.237 | L68: =TOU_CTabulation[[#This Row],[AC System Output (W)]]/1000 -> 0.962237 | M68: =IF(A67=TOU_CTabulation[[#This Row],[Month]],M67+TOU_CTabulation[[#This Row],[AC System Output (kW)]],TOU_CTabulation[[#This Row],[AC System Output (kW)]]) -> 29.152741 | N68: =VLOOKUP(TOU_CTabulation[[#This Row],[Month]],Season,2) -> Winter | O68: =VLOOKUP(TOU_CTabulation[[#This Row],[Season]],CRate,2) -> 10.5 | P68: =IF(A69>TOU_CTabulation[[#This Row],[Month]],TOU_CTabulation[[#This Row],[Day]]*TOU_CTabulation[[#This Row],[Base Allow]],0) -> 0 | Q68: =IF(A69>TOU_CTabulation[[#This Row],[Month]],TOU_CTabulation[[#This Row],[Month Cumm]],0) -> 0 | R68: =IF(TOU_CTabulation[[#This Row],[Month Base Gen]]=0,0,TOU_CTabulation[[#This Row],[Month Base Gen]]-TOU_CTabulation[[#This Row],[Day]]*TOU_CTabulation[[#This Row],[Base Allow]]) -> 0 | S68: =VLOOKUP(TOU_CTabulation[[#This Row],[Hour]],daypart,2) -> All | T68: =TOU_CTabulation[[#This Row],[Season]]&TOU_CTabulation[[#This Row],[Day-Part]] -> WinterAll | U68: =VLOOKUP(TOU_CTabulation[[#This Row],[Daypart]],TOUC,2) -> 0.25902 | V68: =VLOOKUP(TOU_CTabulation[[#This Row],[Daypart]],TOUC,3) -> 0.32596 | W68: =TOU_CTabulation[[#This Row],[Month Base Allow]]*TOU_CTabulation[[#This Row],[Base Rate]] -> 0 | X68: =TOU_CTabulation[[#This Row],[Month Overbase Gen]]*TOU_CTabulation[[#This Row],[Over Rate]] -> 0 | Y68: =TOU_CTabulation[[#This Row],[Base Value]]+TOU_CTabulation[[#This Row],[Over Value]] -> 0
A69: 1 | B69: 2 | C69: 16 | D69: 259 | E69: 26 | F69: 14 | G69: 0 | H69: 112.135 | I69: 19.482 | J69: 343 | K69: 315.877 | L69: =TOU_CTabulation[[#This Row],[AC System Output (W)]]/1000 -> 0.315877 | M69: =IF(A68=TOU_CTabulation[[#This Row],[Month]],M68+TOU_CTabulation[[#This Row],[AC System Output (kW)]],TOU_CTabulation[[#This Row],[AC System Output (kW)]]) -> 29.468618 | N69: =VLOOKUP(TOU_CTabulation[[#This Row],[Month]],Season,2) -> Winter | O69: =VLOOKUP(TOU_CTabulation[[#This Row],[Season]],CRate,2) -> 10.5 | P69: =IF(A70>TOU_CTabulation[[#This Row],[Month]],TOU_CTabulation[[#This Row],[Day]]*TOU_CTabulation[[#This Row],[Base Allow]],0) -> 0 | Q69: =IF(A70>TOU_CTabulation[[#This Row],[Month]],TOU_CTabulation[[#This Row],[Month Cumm]],0) -> 0 | R69: =IF(TOU_CTabulation[[#This Row],[Month Base Gen]]=0,0,TOU_CTabulation[[#This Row],[Month Base Gen]]-TOU_CTabulation[[#This Row],[Day]]*TOU_CTabulation[[#This Row],[Base Allow]]) -> 0 | S69: =VLOOKUP(TOU_CTabulation[[#This Row],[Hour]],daypart,2) -> All | T69: =TOU_CTabulation[[#This Row],[Season]]&TOU_CTabulation[[#This Row],[Day-Part]] -> WinterAll | U69: =VLOOKUP(TOU_CTabulation[[#This Row],[Daypart]],TOUC,2) -> 0.25902 | V69: =VLOOKUP(TOU_CTabulation[[#This Row],[Daypart]],TOUC,3) -> 0.32596 | W69: =TOU_CTabulation[[#This Row],[Month Base Allow]]*TOU_CTabulation[[#This Row],[Base Rate]] -> 0 | X69: =TOU_CTabulation[[#This Row],[Month Overbase Gen]]*TOU_CTabulation[[#This Row],[Over Rate]] -> 0 | Y69: =TOU_CTabulation[[#This Row],[Base Value]]+TOU_CTabulation[[#This Row],[Over Value]] -> 0
A70: 1 | B70: 2 | C70: 17 | D70: 0 | E70: 0 | F70: 11 | G70: 1 | H70: 0 | I70: 11 | J70: 0 | K70: 0 | L70: =TOU_CTabulation[[#This Row],[AC System Output (W)]]/1000 -> 0 | M70: =IF(A69=TOU_CTabulation[[#This Row],[Month]],M69+TOU_CTabulation[[#This Row],[AC System Output (kW)]],TOU_CTabulation[[#This Row],[AC System Output (kW)]]) -> 29.468618 | N70: =VLOOKUP(TOU_CTabulation[[#This Row],[Month]],Season,2) -> Winter | O70: =VLOOKUP(TOU_CTabulation[[#This Row],[Season]],CRate,2) -> 10.5 | P70: =IF(A71>TOU_CTabulation[[#This Row],[Month]],TOU_CTabulation[[#This Row],[Day]]*TOU_CTabulation[[#This Row],[Base Allow]],0) -> 0 | Q70: =IF(A71>TOU_CTabulation[[#This Row],[Month]],TOU_CTabulation[[#This Row],[Month Cumm]],0) -> 0 | R70: =IF(TOU_CTabulation[[#This Row],[Month Base Gen]]=0,0,TOU_CTabulation[[#This Row],[Month Base Gen]]-TOU_CTabulation[[#This Row],[Day]]*TOU_CTabulation[[#This Row],[Base Allow]]) -> 0 | S70: =VLOOKUP(TOU_CTabulation[[#This Row],[Hour]],daypart,2) -> All | T70: =TOU_CTabulation[[#This Row],[Season]]&TOU_CTabulation[[#This Row],[Day-Part]] -> WinterAll | U70: =VLOOKUP(TOU_CTabulation[[#This Row],[Daypart]],TOUC,2) -> 0.25902 | V70: =VLOOKUP(TOU_CTabulation[[#This Row],[Daypart]],TOUC,3) -> 0.32596 | W70: =TOU_CTabulation[[#This Row],[Month Base Allow]]*TOU_CTabulation[[#This Row],[Base Rate]] -> 0 | X70: =TOU_CTabulation[[#This Row],[Month Overbase Gen]]*TOU_CTabulation[[#This Row],[Over Rate]] -> 0 | Y70: =TOU_CTabulation[[#This Row],[Base Value]]+TOU_CTabulation[[#This Row],[Over Value]] -> 0
A71: 1 | B71: 2 | C71: 18 | D71: 0 | E71: 0 | F71: 9 | G71: 1 | H71: 0 | I71: 9 | J71: 0 | K71: 0 | L71: =TOU_CTabulation[[#This Row],[AC System Output (W)]]/1000 -> 0 | M71: =IF(A70=TOU_CTabulation[[#This Row],[Month]],M70+TOU_CTabulation[[#This Row],[AC System Output (kW)]],TOU_CTabulation[[#This Row],[AC System Output (kW)]]) -> 29.468618 | N71: =VLOOKUP(TOU_CTabulation[[#This Row],[Month]],Season,2) -> Winter | O71: =VLOOKUP(TOU_CTabulation[[#This Row],[Season]],CRate,2) -> 10.5 | P71: =IF(A72>TOU_CTabulation[[#This Row],[Month]],TOU_CTabulation[[#This Row],[Day]]*TOU_CTabulation[[#This Row],[Base Allow]],0) -> 0 | Q71: =IF(A72>TOU_CTabulation[[#This Row],[Month]],TOU_CTabulation[[#This Row],[Month Cumm]],0) -> 0 | R71: =IF(TOU_CTabulation[[#This Row],[Month Base Gen]]=0,0,TOU_CTabulation[[#This Row],[Month Base Gen]]-TOU_CTabulation[[#This Row],[Day]]*TOU_CTabulation[[#This Row],[Base Allow]]) -> 0 | S71: =VLOOKUP(TOU_CTabulation[[#This Row],[Hour]],daypart,2) -> All | T71: =TOU_CTabulation[[#This Row],[Season]]&TOU_CTabulation[[#This Row],[Day-Part]] -> WinterAll | U71: =VLOOKUP(TOU_CTabulation[[#This Row],[Daypart]],TOUC,2) -> 0.25902 | V71: =VLOOKUP(TOU_CTabulation[[#This Row],[Daypart]],TOUC,3) -> 0.32596 | W71: =TOU_CTabulation[[#This Row],[Month Base Allow]]*TOU_CTabulation[[#This Row],[Base Rate]] -> 0 | X71: =TOU_CTabulation[[#This Row],[Month Overbase Gen]]*TOU_CTabulation[[#This Row],[Over Rate]] -> 0 | Y71: =TOU_CTabulation[[#This Row],[Base Value]]+TOU_CTabulation[[#This Row],[Over Value]] -> 0
A72: 1 | B72: 2 | C72: 19 | D72: 0 | E72: 0 | F72: 8 | G72: 1 | H72: 0 | I72: 8 | J72: 0 | K72: 0 | L72: =TOU_CTabulation[[#This Row],[AC System Output (W)]]/1000 -> 0 | M72: =IF(A71=TOU_CTabulation[[#This Row],[Month]],M71+TOU_CTabulation[[#This Row],[AC System Output (kW)]],TOU_CTabulation[[#This Row],[AC System Output (kW)]]) -> 29.468618 | N72: =VLOOKUP(TOU_CTabulation[[#This Row],[Month]],Season,2) -> Winter | O72: =VLOOKUP(TOU_CTabulation[[#This Row],[Season]],CRate,2) -> 10.5 | P72: =IF(A73>TOU_CTabulation[[#This Row],[Month]],TOU_CTabulation[[#This Row],[Day]]*TOU_CTabulation[[#This Row],[Base Allow]],0) -> 0 | Q72: =IF(A73>TOU_CTabulation[[#This Row],[Month]],TOU_CTabulation[[#This Row],[Month Cumm]],0) -> 0 | R72: =IF(TOU_CTabulation[[#This Row],[Month Base Gen]]=0,0,TOU_CTabulation[[#This Row],[Month Base Gen]]-TOU_CTabulation[[#This Row],[Day]]*TOU_CTabulation[[#This Row],[Base Allow]]) -> 0 | S72: =VLOOKUP(TOU_CTabulation[[#This Row],[Hour]],daypart,2) -> All | T72: =TOU_CTabulation[[#This Row],[Season]]&TOU_CTabulation[[#This Row],[Day-Part]] -> WinterAll | U72: =VLOOKUP(TOU_CTabulation[[#This Row],[Daypart]],TOUC,2) -> 0.25902 | V72: =VLOOKUP(TOU_CTabulation[[#This Row],[Daypart]],TOUC,3) -> 0.32596 | W72: =TOU_CTabulation[[#This Row],[Month Base Allow]]*TOU_CTabulation[[#This Row],[Base Rate]] -> 0 | X72: =TOU_CTabulation[[#This Row],[Month Overbase Gen]]*TOU_CTabulation[[#This Row],[Over Rate]] -> 0 | Y72: =TOU_CTabulation[[#This Row],[Base Value]]+TOU_CTabulation[[#This Row],[Over Value]] -> 0
A73: 1 | B73: 2 | C73: 20 | D73: 0 | E73: 0 | F73: 8 | G73: 1 | H73: 0 | I73: 8 | J73: 0 | K73: 0 | L73: =TOU_CTabulation[[#This Row],[AC System Output (W)]]/1000 -> 0 | M73: =IF(A72=TOU_CTabulation[[#This Row],[Month]],M72+TOU_CTabulation[[#This Row],[AC System Output (kW)]],TOU_CTabulation[[#This Row],[AC System Output (kW)]]) -> 29.468618 | N73: =VLOOKUP(TOU_CTabulation[[#This Row],[Month]],Season,2) -> Winter | O73: =VLOOKUP(TOU_CTabulation[[#This Row],[Season]],CRate,2) -> 10.5 | P73: =IF(A74>TOU_CTabulation[[#This Row],[Month]],TOU_CTabulation[[#This Row],[Day]]*TOU_CTabulation[[#This Row],[Base Allow]],0) -> 0 | Q73: =IF(A74>TOU_CTabulation[[#This Row],[Month]],TOU_CTabulation[[#This Row],[Month Cumm]],0) -> 0 | R73: =IF(TOU_CTabulation[[#This Row],[Month Base Gen]]=0,0,TOU_CTabulation[[#This Row],[Month Base Gen]]-TOU_CTabulation[[#This Row],[Day]]*TOU_CTabulation[[#This Row],[Base Allow]]) -> 0 | S73: =VLOOKUP(TOU_CTabulation[[#This Row],[Hour]],daypart,2) -> All | T73: =TOU_CTabulation[[#This Row],[Season]]&TOU_CTabulation[[#This Row],[Day-Part]] -> WinterAll | U73: =VLOOKUP(TOU_CTabulation[[#This Row],[Daypart]],TOUC,2) -> 0.25902 | V73: =VLOOKUP(TOU_CTabulation[[#This Row],[Daypart]],TOUC,3) -> 0.32596 | W73: =TOU_CTabulation[[#This Row],[Month Base Allow]]*TOU_CTabulation[[#This Row],[Base Rate]] -> 0 | X73: =TOU_CTabulation[[#This Row],[Month Overbase Gen]]*TOU_CTabulation[[#This Row],[Over Rate]] -> 0 | Y73: =TOU_CTabulation[[#This Row],[Base Value]]+TOU_CTabulation[[#This Row],[Over Value]] -> 0
A74: 1 | B74: 2 | C74: 21 | D74: 0 | E74: 0 | F74: 7 | G74: 2 | H74: 0 | I74: 7 | J74: 0 | K74: 0 | L74: =TOU_CTabulation[[#This Row],[AC System Output (W)]]/1000 -> 0 | M74: =IF(A73=TOU_CTabulation[[#This Row],[Month]],M73+TOU_CTabulation[[#This Row],[AC System Output (kW)]],TOU_CTabulation[[#This Row],[AC System Output (kW)]]) -> 29.468618 | N74: =VLOOKUP(TOU_CTabulation[[#This Row],[Month]],Season,2) -> Winter | O74: =VLOOKUP(TOU_CTabulation[[#This Row],[Season]],CRate,2) -> 10.5 | P74: =IF(A75>TOU_CTabulation[[#This Row],[Month]],TOU_CTabulation[[#This Row],[Day]]*TOU_CTabulation[[#This Row],[Base Allow]],0) -> 0 | Q74: =IF(A75>TOU_CTabulation[[#This Row],[Month]],TOU_CTabulation[[#This Row],[Month Cumm]],0) -> 0 | R74: =IF(TOU_CTabulation[[#This Row],[Month Base Gen]]=0,0,TOU_CTabulation[[#This Row],[Month Base Gen]]-TOU_CTabulation[[#This Row],[Day]]*TOU_CTabulation[[#This Row],[Base Allow]]) -> 0 | S74: =VLOOKUP(TOU_CTabulation[[#This Row],[Hour]],daypart,2) -> All | T74: =TOU_CTabulation[[#This Row],[Season]]&TOU_CTabulation[[#This Row],[Day-Part]] -> WinterAll | U74: =VLOOKUP(TOU_CTabulation[[#This Row],[Daypart]],TOUC,2) -> 0.25902 | V74: =VLOOKUP(TOU_CTabulation[[#This Row],[Daypart]],TOUC,3) -> 0.32596 | W74: =TOU_CTabulation[[#This Row],[Month Base Allow]]*TOU_CTabulation[[#This Row],[Base Rate]] -> 0 | X74: =TOU_CTabulation[[#This Row],[Month Overbase Gen]]*TOU_CTabulation[[#This Row],[Over Rate]] -> 0 | Y74: =TOU_CTabulation[[#This Row],[Base Value]]+TOU_CTabulation[[#This Row],[Over Value]] -> 0
A75: 1 | B75: 2 | C75: 22 | D75: 0 | E75: 0 | F75: 6 | G75: 2 | H75: 0 | I75: 6 | J75: 0 | K75: 0 | L75: =TOU_CTabulation[[#This Row],[AC System Output (W)]]/1000 -> 0 | M75: =IF(A74=TOU_CTabulation[[#This Row],[Month]],M74+TOU_CTabulation[[#This Row],[AC System Output (kW)]],TOU_CTabulation[[#This Row],[AC System Output (kW)]]) -> 29.468618 | N75: =VLOOKUP(TOU_CTabulation[[#This Row],[Month]],Season,2) -> Winter | O75: =VLOOKUP(TOU_CTabulation[[#This Row],[Season]],CRate,2) -> 10.5 | P75: =IF(A76>TOU_CTabulation[[#This Row],[Month]],TOU_CTabulation[[#This Row],[Day]]*TOU_CTabulation[[#This Row],[Base Allow]],0) -> 0 | Q75: =IF(A76>TOU_CTabulation[[#This Row],[Month]],TOU_CTabulation[[#This Row],[Month Cumm]],0) -> 0 | R75: =IF(TOU_CTabulation[[#This Row],[Month Base Gen]]=0,0,TOU_CTabulation[[#This Row],[Month Base Gen]]-TOU_CTabulation[[#This Row],[Day]]*TOU_CTabulation[[#This Row],[Base Allow]]) -> 0 | S75: =VLOOKUP(TOU_CTabulation[[#This Row],[Hour]],daypart,2) -> All | T75: =TOU_CTabulation[[#This Row],[Season]]&TOU_CTabulation[[#This Row],[Day-Part]] -> WinterAll | U75: =VLOOKUP(TOU_CTabulation[[#This Row],[Daypart]],TOUC,2) -> 0.25902 | V75: =VLOOKUP(TOU_CTabulation[[#This Row],[Daypart]],TOUC,3) -> 0.32596 | W75: =TOU_CTabulation[[#This Row],[Month Base Allow]]*TOU_CTabulation[[#This Row],[Base Rate]] -> 0 | X75: =TOU_CTabulation[[#This Row],[Month Overbase Gen]]*TOU_CTabulation[[#This Row],[Over Rate]] -> 0 | Y75: =TOU_CTabulation[[#This Row],[Base Value]]+TOU_CTabulation[[#This Row],[Over Value]] -> 0
A76: 1 | B76: 2 | C76: 23 | D76: 0 | E76: 0 | F76: 6 | G76: 2 | H76: 0 | I76: 6 | J76: 0 | K76: 0 | L76: =TOU_CTabulation[[#This Row],[AC System Output (W)]]/1000 -> 0 | M76: =IF(A75=TOU_CTabulation[[#This Row],[Month]],M75+TOU_CTabulation[[#This Row],[AC System Output (kW)]],TOU_CTabulation[[#This Row],[AC System Output (kW)]]) -> 29.468618 | N76: =VLOOKUP(TOU_CTabulation[[#This Row],[Month]],Season,2) -> Winter | O76: =VLOOKUP(TOU_CTabulation[[#This Row],[Season]],CRate,2) -> 10.5 | P76: =IF(A77>TOU_CTabulation[[#This Row],[Month]],TOU_CTabulation[[#This Row],[Day]]*TOU_CTabulation[[#This Row],[Base Allow]],0) -> 0 | Q76: =IF(A77>TOU_CTabulation[[#This Row],[Month]],TOU_CTabulation[[#This Row],[Month Cumm]],0) -> 0 | R76: =IF(TOU_CTabulation[[#This Row],[Month Base Gen]]=0,0,TOU_CTabulation[[#This Row],[Month Base Gen]]-TOU_CTabulation[[#This Row],[Day]]*TOU_CTabulation[[#This Row],[Base Allow]]) -> 0 | S76: =VLOOKUP(TOU_CTabulation[[#This Row],[Hour]],daypart,2) -> All | T76: =TOU_CTabulation[[#This Row],[Season]]&TOU_CTabulation[[#This Row],[Day-Part]] -> WinterAll | U76: =VLOOKUP(TOU_CTabulation[[#This Row],[Daypart]],TOUC,2) -> 0.25902 | V76: =VLOOKUP(TOU_CTabulation[[#This Row],[Daypart]],TOUC,3) -> 0.32596 | W76: =TOU_CTabulation[[#This Row],[Month Base Allow]]*TOU_CTabulation[[#This Row],[Base Rate]] -> 0 | X76: =TOU_CTabulation[[#This Row],[Month Overbase Gen]]*TOU_CTabulation[[#This Row],[Over Rate]] -> 0 | Y76: =TOU_CTabulation[[#This Row],[Base Value]]+TOU_CTabulation[[#This Row],[Over Value]] -> 0
A77: 1 | B77: 3 | C77: 0 | D77: 0 | E77: 0 | F77: 6 | G77: 2 | H77: 0 | I77: 6 | J77: 0 | K77: 0 | L77: =TOU_CTabulation[[#This Row],[AC System Output (W)]]/1000 -> 0 | M77: =IF(A76=TOU_CTabulation[[#This Row],[Month]],M76+TOU_CTabulation[[#This Row],[AC System Output (kW)]],TOU_CTabulation[[#This Row],[AC System Output (kW)]]) -> 29.468618 | N77: =VLOOKUP(TOU_CTabulation[[#This Row],[Month]],Season,2) -> Winter | O77: =VLOOKUP(TOU_CTabulation[[#This Row],[Season]],CRate,2) -> 10.5 | P77: =IF(A78>TOU_CTabulation[[#This Row],[Month]],TOU_CTabulation[[#This Row],[Day]]*TOU_CTabulation[[#This Row],[Base Allow]],0) -> 0 | Q77: =IF(A78>TOU_CTabulation[[#This Row],[Month]],TOU_CTabulation[[#This Row],[Month Cumm]],0) -> 0 | R77: =IF(TOU_CTabulation[[#This Row],[Month Base Gen]]=0,0,TOU_CTabulation[[#This Row],[Month Base Gen]]-TOU_CTabulation[[#This Row],[Day]]*TOU_CTabulation[[#This Row],[Base Allow]]) -> 0 | S77: =VLOOKUP(TOU_CTabulation[[#This Row],[Hour]],daypart,2) -> All | T77: =TOU_CTabulation[[#This Row],[Season]]&TOU_CTabulation[[#This Row],[Day-Part]] -> WinterAll | U77: =VLOOKUP(TOU_CTabulation[[#This Row],[Daypart]],TOUC,2) -> 0.25902 | V77: =VLOOKUP(TOU_CTabulation[[#This Row],[Daypart]],TOUC,3) -> 0.32596 | W77: =TOU_CTabulation[[#This Row],[Month Base Allow]]*TOU_CTabulation[[#This Row],[Base Rate]] -> 0 | X77: =TOU_CTabulation[[#This Row],[Month Overbase Gen]]*TOU_CTabulation[[#This Row],[Over Rate]] -> 0 | Y77: =TOU_CTabulation[[#This Row],[Base Value]]+TOU_CTabulation[[#This Row],[Over Value]] -> 0
A78: 1 | B78: 3 | C78: 1 | D78: 0 | E78: 0 | F78: 6 | G78: 2 | H78: 0 | I78: 6 | J78: 0 | K78: 0 | L78: =TOU_CTabulation[[#This Row],[AC System Output (W)]]/1000 -> 0 | M78: =IF(A77=TOU_CTabulation[[#This Row],[Month]],M77+TOU_CTabulation[[#This Row],[AC System Output (kW)]],TOU_CTabulation[[#This Row],[AC System Output (kW)]]) -> 29.468618 | N78: =VLOOKUP(TOU_CTabulation[[#This Row],[Month]],Season,2) -> Winter | O78: =VLOOKUP(TOU_CTabulation[[#This Row],[Season]],CRate,2) -> 10.5 | P78: =IF(A79>TOU_CTabulation[[#This Row],[Month]],TOU_CTabulation[[#This Row],[Day]]*TOU_CTabulation[[#This Row],[Base Allow]],0) -> 0 | Q78: =IF(A79>TOU_CTabulation[[#This Row],[Month]],TOU_CTabulation[[#This Row],[Month Cumm]],0) -> 0 | R78: =IF(TOU_CTabulation[[#This Row],[Month Base Gen]]=0,0,TOU_CTabulation[[#This Row],[Month Base Gen]]-TOU_CTabulation[[#This Row],[Day]]*TOU_CTabulation[[#This Row],[Base Allow]]) -> 0 | S78: =VLOOKUP(TOU_CTabulation[[#This Row],[Hour]],daypart,2) -> All | T78: =TOU_CTabulation[[#This Row],[Season]]&TOU_CTabulation[[#This Row],[Day-Part]] -> WinterAll | U78: =VLOOKUP(TOU_CTabulation[[#This Row],[Daypart]],TOUC,2) -> 0.25902 | V78: =VLOOKUP(TOU_CTabulation[[#This Row],[Daypart]],TOUC,3) -> 0.32596 | W78: =TOU_CTabulation[[#This Row],[Month Base Allow]]*TOU_CTabulation[[#This Row],[Base Rate]] -> 0 | X78: =TOU_CTabulation[[#This Row],[Month Overbase Gen]]*TOU_CTabulation[[#This Row],[Over Rate]] -> 0 | Y78: =TOU_CTabulation[[#This Row],[Base Value]]+TOU_CTabulation[[#This Row],[Over Value]] -> 0
A79: 1 | B79: 3 | C79: 2 | D79: 0 | E79: 0 | F79: 6 | G79: 3 | H79: 0 | I79: 6 | J79: 0 | K79: 0 | L79: =TOU_CTabulation[[#This Row],[AC System Output (W)]]/1000 -> 0 | M79: =IF(A78=TOU_CTabulation[[#This Row],[Month]],M78+TOU_CTabulation[[#This Row],[AC System Output (kW)]],TOU_CTabulation[[#This Row],[AC System Output (kW)]]) -> 29.468618 | N79: =VLOOKUP(TOU_CTabulation[[#This Row],[Month]],Season,2) -> Winter | O79: =VLOOKUP(TOU_CTabulation[[#This Row],[Season]],CRate,2) -> 10.5 | P79: =IF(A80>TOU_CTabulation[[#This Row],[Month]],TOU_CTabulation[[#This Row],[Day]]*TOU_CTabulation[[#This Row],[Base Allow]],0) -> 0 | Q79: =IF(A80>TOU_CTabulation[[#This Row],[Month]],TOU_CTabulation[[#This Row],[Month Cumm]],0) -> 0 | R79: =IF(TOU_CTabulation[[#This Row],[Month Base Gen]]=0,0,TOU_CTabulation[[#This Row],[Month Base Gen]]-TOU_CTabulation[[#This Row],[Day]]*TOU_CTabulation[[#This Row],[Base Allow]]) -> 0 | S79: =VLOOKUP(TOU_CTabulation[[#This Row],[Hour]],daypart,2) -> All | T79: =TOU_CTabulation[[#This Row],[Season]]&TOU_CTabulation[[#This Row],[Day-Part]] -> WinterAll | U79: =VLOOKUP(TOU_CTabulation[[#This Row],[Daypart]],TOUC,2) -> 0.25902 | V79: =VLOOKUP(TOU_CTabulation[[#This Row],[Daypart]],TOUC,3) -> 0.32596 | W79: =TOU_CTabulation[[#This Row],[Month Base Allow]]*TOU_CTabulation[[#This Row],[Base Rate]] -> 0 | X79: =TOU_CTabulation[[#This Row],[Month Overbase Gen]]*TOU_CTabulation[[#This Row],[Over Rate]] -> 0 | Y79: =TOU_CTabulation[[#This Row],[Base Value]]+TOU_CTabulation[[#This Row],[Over Value]] -> 0
A80: 1 | B80: 3 | C80: 3 | D80: 0 | E80: 0 | F80: 6 | G80: 3 | H80: 0 | I80: 6 | J80: 0 | K80: 0 | L80: =TOU_CTabulation[[#This Row],[AC System Output (W)]]/1000 -> 0 | M80: =IF(A79=TOU_CTabulation[[#This Row],[Month]],M79+TOU_CTabulation[[#This Row],[AC System Output (kW)]],TOU_CTabulation[[#This Row],[AC System Output (kW)]]) -> 29.468618 | N80: =VLOOKUP(TOU_CTabulation[[#This Row],[Month]],Season,2) -> Winter | O80: =VLOOKUP(TOU_CTabulation[[#This Row],[Season]],CRate,2) -> 10.5 | P80: =IF(A81>TOU_CTabulation[[#This Row],[Month]],TOU_CTabulation[[#This Row],[Day]]*TOU_CTabulation[[#This Row],[Base Allow]],0) -> 0 | Q80: =IF(A81>TOU_CTabulation[[#This Row],[Month]],TOU_CTabulation[[#This Row],[Month Cumm]],0) -> 0 | R80: =IF(TOU_CTabulation[[#This Row],[Month Base Gen]]=0,0,TOU_CTabulation[[#This Row],[Month Base Gen]]-TOU_CTabulation[[#This Row],[Day]]*TOU_CTabulation[[#This Row],[Base Allow]]) -> 0 | S80: =VLOOKUP(TOU_CTabulation[[#This Row],[Hour]],daypart,2) -> All | T80: =TOU_CTabulation[[#This Row],[Season]]&TOU_CTabulation[[#This Row],[Day-Part]] -> WinterAll | U80: =VLOOKUP(TOU_CTabulation[[#This Row],[Daypart]],TOUC,2) -> 0.25902 | V80: =VLOOKUP(TOU_CTabulation[[#This Row],[Daypart]],TOUC,3) -> 0.32596 | W80: =TOU_CTabulation[[#This Row],[Month Base Allow]]*TOU_CTabulation[[#This Row],[Base Rate]] -> 0 | X80: =TOU_CTabulation[[#This Row],[Month Overbase Gen]]*TOU_CTabulation[[#This Row],[Over Rate]] -> 0 | Y80: =TOU_CTabulation[[#This Row],[Base Value]]+TOU_CTabulation[[#This Row],[Over Value]] -> 0
A81: 1 | B81: 3 | C81: 4 | D81: 0 | E81: 0 | F81: 6 | G81: 3 | H81: 0 | I81: 6 | J81: 0 | K81: 0 | L81: =TOU_CTabulation[[#This Row],[AC System Output (W)]]/1000 -> 0 | M81: =IF(A80=TOU_CTabulation[[#This Row],[Month]],M80+TOU_CTabulation[[#This Row],[AC System Output (kW)]],TOU_CTabulation[[#This Row],[AC System Output (kW)]]) -> 29.468618 | N81: =VLOOKUP(TOU_CTabulation[[#This Row],[Month]],Season,2) -> Winter | O81: =VLOOKUP(TOU_CTabulation[[#This Row],[Season]],CRate,2) -> 10.5 | P81: =IF(A82>TOU_CTabulation[[#This Row],[Month]],TOU_CTabulation[[#This Row],[Day]]*TOU_CTabulation[[#This Row],[Base Allow]],0) -> 0 | Q81: =IF(A82>TOU_CTabulation[[#This Row],[Month]],TOU_CTabulation[[#This Row],[Month Cumm]],0) -> 0 | R81: =IF(TOU_CTabulation[[#This Row],[Month Base Gen]]=0,0,TOU_CTabulation[[#This Row],[Month Base Gen]]-TOU_CTabulation[[#This Row],[Day]]*TOU_CTabulation[[#This Row],[Base Allow]]) -> 0 | S81: =VLOOKUP(TOU_CTabulation[[#This Row],[Hour]],daypart,2) -> All | T81: =TOU_CTabulation[[#This Row],[Season]]&TOU_CTabulation[[#This Row],[Day-Part]] -> WinterAll | U81: =VLOOKUP(TOU_CTabulation[[#This Row],[Daypart]],TOUC,2) -> 0.25902 | V81: =VLOOKUP(TOU_CTabulation[[#This Row],[Daypart]],TOUC,3) -> 0.32596 | W81: =TOU_CTabulation[[#This Row],[Month Base Allow]]*TOU_CTabulation[[#This Row],[Base Rate]] -> 0 | X81: =TOU_CTabulation[[#This Row],[Month Overbase Gen]]*TOU_CTabulation[[#This Row],[Over Rate]] -> 0 | Y81: =TOU_CTabulation[[#This Row],[Base Value]]+TOU_CTabulation[[#This Row],[Over Value]] -> 0
A82: 1 | B82: 3 | C82: 5 | D82: 0 | E82: 0 | F82: 6 | G82: 3 | H82: 0 | I82: 6 | J82: 0 | K82: 0 | L82: =TOU_CTabulation[[#This Row],[AC System Output (W)]]/1000 -> 0 | M82: =IF(A81=TOU_CTabulation[[#This Row],[Month]],M81+TOU_CTabulation[[#This Row],[AC System Output (kW)]],TOU_CTabulation[[#This Row],[AC System Output (kW)]]) -> 29.468618 | N82: =VLOOKUP(TOU_CTabulation[[#This Row],[Month]],Season,2) -> Winter | O82: =VLOOKUP(TOU_CTabulation[[#This Row],[Season]],CRate,2) -> 10.5 | P82: =IF(A83>TOU_CTabulation[[#This Row],[Month]],TOU_CTabulation[[#This Row],[Day]]*TOU_CTabulation[[#This Row],[Base Allow]],0) -> 0 | Q82: =IF(A83>TOU_CTabulation[[#This Row],[Month]],TOU_CTabulation[[#This Row],[Month Cumm]],0) -> 0 | R82: =IF(TOU_CTabulation[[#This Row],[Month Base Gen]]=0,0,TOU_CTabulation[[#This Row],[Month Base Gen]]-TOU_CTabulation[[#This Row],[Day]]*TOU_CTabulation[[#This Row],[Base Allow]]) -> 0 | S82: =VLOOKUP(TOU_CTabulation[[#This Row],[Hour]],daypart,2) -> All | T82: =TOU_CTabulation[[#This Row],[Season]]&TOU_CTabulation[[#This Row],[Day-Part]] -> WinterAll | U82: =VLOOKUP(TOU_CTabulation[[#This Row],[Daypart]],TOUC,2) -> 0.25902 | V82: =VLOOKUP(TOU_CTabulation[[#This Row],[Daypart]],TOUC,3) -> 0.32596 | W82: =TOU_CTabulation[[#This Row],[Month Base Allow]]*TOU_CTabulation[[#This Row],[Base Rate]] -> 0 | X82: =TOU_CTabulation[[#This Row],[Month Overbase Gen]]*TOU_CTabulation[[#This Row],[Over Rate]] -> 0 | Y82: =TOU_CTabulation[[#This Row],[Base Value]]+TOU_CTabulation[[#This Row],[Over Value]] -> 0
A83: 1 | B83: 3 | C83: 6 | D83: 0 | E83: 0 | F83: 6 | G83: 3 | H83: 0 | I83: 6 | J83: 0 | K83: 0 | L83: =TOU_CTabulation[[#This Row],[AC System Output (W)]]/1000 -> 0 | M83: =IF(A82=TOU_CTabulation[[#This Row],[Month]],M82+TOU_CTabulation[[#This Row],[AC System Output (kW)]],TOU_CTabulation[[#This Row],[AC System Output (kW)]]) -> 29.468618 | N83: =VLOOKUP(TOU_CTabulation[[#This Row],[Month]],Season,2) -> Winter | O83: =VLOOKUP(TOU_CTabulation[[#This Row],[Season]],CRate,2) -> 10.5 | P83: =IF(A84>TOU_CTabulation[[#This Row],[Month]],TOU_CTabulation[[#This Row],[Day]]*TOU_CTabulation[[#This Row],[Base Allow]],0) -> 0 | Q83: =IF(A84>TOU_CTabulation[[#This Row],[Month]],TOU_CTabulation[[#This Row],[Month Cumm]],0) -> 0 | R83: =IF(TOU_CTabulation[[#This Row],[Month Base Gen]]=0,0,TOU_CTabulation[[#This Row],[Month Base Gen]]-TOU_CTabulation[[#This Row],[Day]]*TOU_CTabulation[[#This Row],[Base Allow]]) -> 0 | S83: =VLOOKUP(TOU_CTabulation[[#This Row],[Hour]],daypart,2) -> All | T83: =TOU_CTabulation[[#This Row],[Season]]&TOU_CTabulation[[#This Row],[Day-Part]] -> WinterAll | U83: =VLOOKUP(TOU_CTabulation[[#This Row],[Daypart]],TOUC,2) -> 0.25902 | V83: =VLOOKUP(TOU_CTabulation[[#This Row],[Daypart]],TOUC,3) -> 0.32596 | W83: =TOU_CTabulation[[#This Row],[Month Base Allow]]*TOU_CTabulation[[#This Row],[Base Rate]] -> 0 | X83: =TOU_CTabulation[[#This Row],[Month Overbase Gen]]*TOU_CTabulation[[#This Row],[Over Rate]] -> 0 | Y83: =TOU_CTabulation[[#This Row],[Base Value]]+TOU_CTabulation[[#This Row],[Over Value]] -> 0
A84: 1 | B84: 3 | C84: 7 | D84: 0 | E84: 17 | F84: 8 | G84: 3 | H84: 16.116 | I84: 6.851 | J84: 60.111 | K84: 38.606 | L84: =TOU_CTabulation[[#This Row],[AC System Output (W)]]/1000 -> 0.038606 | M84: =IF(A83=TOU_CTabulation[[#This Row],[Month]],M83+TOU_CTabulation[[#This Row],[AC System Output (kW)]],TOU_CTabulation[[#This Row],[AC System Output (kW)]]) -> 29.507224 | N84: =VLOOKUP(TOU_CTabulation[[#This Row],[Month]],Season,2) -> Winter | O84: =VLOOKUP(TOU_CTabulation[[#This Row],[Season]],CRate,2) -> 10.5 | P84: =IF(A85>TOU_CTabulation[[#This Row],[Month]],TOU_CTabulation[[#This Row],[Day]]*TOU_CTabulation[[#This Row],[Base Allow]],0) -> 0 | Q84: =IF(A85>TOU_CTabulation[[#This Row],[Month]],TOU_CTabulation[[#This Row],[Month Cumm]],0) -> 0 | R84: =IF(TOU_CTabulation[[#This Row],[Month Base Gen]]=0,0,TOU_CTabulation[[#This Row],[Month Base Gen]]-TOU_CTabulation[[#This Row],[Day]]*TOU_CTabulation[[#This Row],[Base Allow]]) -> 0 | S84: =VLOOKUP(TOU_CTabulation[[#This Row],[Hour]],daypart,2) -> All | T84: =TOU_CTabulation[[#This Row],[Season]]&TOU_CTabulation[[#This Row],[Day-Part]] -> WinterAll | U84: =VLOOKUP(TOU_CTabulation[[#This Row],[Daypart]],TOUC,2) -> 0.25902 | V84: =VLOOKUP(TOU_CTabulation[[#This Row],[Daypart]],TOUC,3) -> 0.32596 | W84: =TOU_CTabulation[[#This Row],[Month Base Allow]]*TOU_CTabulation[[#This Row],[Base Rate]] -> 0 | X84: =TOU_CTabulation[[#This Row],[Month Overbase Gen]]*TOU_CTabulation[[#This Row],[Over Rate]] -> 0 | Y84: =TOU_CTabulation[[#This Row],[Base Value]]+TOU_CTabulation[[#This Row],[Over Value]] -> 0
A85: 1 | B85: 3 | C85: 8 | D85: 165 | E85: 81 | F85: 11 | G85: 3 | H85: 166.448 | I85: 13.346 | J85: 580.76 | K85: 548.34 | L85: =TOU_CTabulation[[#This Row],[AC System Output (W)]]/1000 -> 0.54834 | M85: =IF(A84=TOU_CTabulation[[#This Row],[Month]],M84+TOU_CTabulation[[#This Row],[AC System Output (kW)]],TOU_CTabulation[[#This Row],[AC System Output (kW)]]) -> 30.055564 | N85: =VLOOKUP(TOU_CTabulation[[#This Row],[Month]],Season,2) -> Winter | O85: =VLOOKUP(TOU_CTabulation[[#This Row],[Season]],CRate,2) -> 10.5 | P85: =IF(A86>TOU_CTabulation[[#This Row],[Month]],TOU_CTabulation[[#This Row],[Day]]*TOU_CTabulation[[#This Row],[Base Allow]],0) -> 0 | Q85: =IF(A86>TOU_CTabulation[[#This Row],[Month]],TOU_CTabulation[[#This Row],[Month Cumm]],0) -> 0 | R85: =IF(TOU_CTabulation[[#This Row],[Month Base Gen]]=0,0,TOU_CTabulation[[#This Row],[Month Base Gen]]-TOU_CTabulation[[#This Row],[Day]]*TOU_CTabulation[[#This Row],[Base Allow]]) -> 0 | S85: =VLOOKUP(TOU_CTabulation[[#This Row],[Hour]],daypart,2) -> All | T85: =TOU_CTabulation[[#This Row],[Season]]&TOU_CTabulation[[#This Row],[Day-Part]] -> WinterAll | U85: =VLOOKUP(TOU_CTabulation[[#This Row],[Daypart]],TOUC,2) -> 0.25902 | V85: =VLOOKUP(TOU_CTabulation[[#This Row],[Daypart]],TOUC,3) -> 0.32596 | W85: =TOU_CTabulation[[#This Row],[Month Base Allow]]*TOU_CTabulation[[#This Row],[Base Rate]] -> 0 | X85: =TOU_CTabulation[[#This Row],[Month Overbase Gen]]*TOU_CTabulation[[#This Row],[Over Rate]] -> 0 | Y85: =TOU_CTabulation[[#This Row],[Base Value]]+TOU_CTabulation[[#This Row],[Over Value]] -> 0
A86: 1 | B86: 3 | C86: 9 | D86: 317 | E86: 135 | F86: 14 | G86: 3 | H86: 343.736 | I86: 21.065 | J86: 1183.184 | K86: 1134.991 | L86: =TOU_CTabulation[[#This Row],[AC System Output (W)]]/1000 -> 1.134991 | M86: =IF(A85=TOU_CTabulation[[#This Row],[Month]],M85+TOU_CTabulation[[#This Row],[AC System Output (kW)]],TOU_CTabulation[[#This Row],[AC System Output (kW)]]) -> 31.190555 | N86: =VLOOKUP(TOU_CTabulation[[#This Row],[Month]],Season,2) -> Winter | O86: =VLOOKUP(TOU_CTabulation[[#This Row],[Season]],CRate,2) -> 10.5 | P86: =IF(A87>TOU_CTabulation[[#This Row],[Month]],TOU_CTabulation[[#This Row],[Day]]*TOU_CTabulation[[#This Row],[Base Allow]],0) -> 0 | Q86: =IF(A87>TOU_CTabulation[[#This Row],[Month]],TOU_CTabulation[[#This Row],[Month Cumm]],0) -> 0 | R86: =IF(TOU_CTabulation[[#This Row],[Month Base Gen]]=0,0,TOU_CTabulation[[#This Row],[Month Base Gen]]-TOU_CTabulation[[#This Row],[Day]]*TOU_CTabulation[[#This Row],[Base Allow]]) -> 0 | S86: =VLOOKUP(TOU_CTabulation[[#This Row],[Hour]],daypart,2) -> All | T86: =TOU_CTabulation[[#This Row],[Season]]&TOU_CTabulation[[#This Row],[Day-Part]] -> WinterAll | U86: =VLOOKUP(TOU_CTabulation[[#This Row],[Daypart]],TOUC,2) -> 0.25902 | V86: =VLOOKUP(TOU_CTabulation[[#This Row],[Daypart]],TOUC,3) -> 0.32596 | W86: =TOU_CTabulation[[#This Row],[Month Base Allow]]*TOU_CTabulation[[#This Row],[Base Rate]] -> 0 | X86: =TOU_CTabulation[[#This Row],[Month Overbase Gen]]*TOU_CTabulation[[#This Row],[Over Rate]] -> 0 | Y86: =TOU_CTabulation[[#This Row],[Base Value]]+TOU_CTabulation[[#This Row],[Over Value]] -> 0
A87: 1 | B87: 3 | C87: 10 | D87: 507 | E87: 150 | F87: 17 | G87: 2 | H87: 544.521 | I87: 30.867 | J87: 1805.296 | K87: 1737.273 | L87: =TOU_CTabulation[[#This Row],[AC System Output (W)]]/1000 -> 1.737273 | M87: =IF(A86=TOU_CTabulation[[#This Row],[Month]],M86+TOU_CTabulation[[#This Row],[AC System Output (kW)]],TOU_CTabulation[[#This Row],[AC System Output (kW)]]) -> 32.927828 | N87: =VLOOKUP(TOU_CTabulation[[#This Row],[Month]],Season,2) -> Winter | O87: =VLOOKUP(TOU_CTabulation[[#This Row],[Season]],CRate,2) -> 10.5 | P87: =IF(A88>TOU_CTabulation[[#This Row],[Month]],TOU_CTabulation[[#This Row],[Day]]*TOU_CTabulation[[#This Row],[Base Allow]],0) -> 0 | Q87: =IF(A88>TOU_CTabulation[[#This Row],[Month]],TOU_CTabulation[[#This Row],[Month Cumm]],0) -> 0 | R87: =IF(TOU_CTabulation[[#This Row],[Month Base Gen]]=0,0,TOU_CTabulation[[#This Row],[Month Base Gen]]-TOU_CTabulation[[#This Row],[Day]]*TOU_CTabulation[[#This Row],[Base Allow]]) -> 0 | S87: =VLOOKUP(TOU_CTabulation[[#This Row],[Hour]],daypart,2) -> All | T87: =TOU_CTabulation[[#This Row],[Season]]&TOU_CTabulation[[#This Row],[Day-Part]] -> WinterAll | U87: =VLOOKUP(TOU_CTabulation[[#This Row],[Daypart]],TOUC,2) -> 0.25902 | V87: =VLOOKUP(TOU_CTabulation[[#This Row],[Daypart]],TOUC,3) -> 0.32596 | W87: =TOU_CTabulation[[#This Row],[Month Base Allow]]*TOU_CTabulation[[#This Row],[Base Rate]] -> 0 | X87: =TOU_CTabulation[[#This Row],[Month Overbase Gen]]*TOU_CTabulation[[#This Row],[Over Rate]] -> 0 | Y87: =TOU_CTabulation[[#This Row],[Base Value]]+TOU_CTabulation[[#This Row],[Over Value]] -> 0
A88: 1 | B88: 3 | C88: 11 | D88: 953 | E88: 71 | F88: 19 | G88: 2 | H88: 830.385 | I88: 40.699 | J88: 2628.032 | K88: 2528.26 | L88: =TOU_CTabulation[[#This Row],[AC System Output (W)]]/1000 -> 2.52826 | M88: =IF(A87=TOU_CTabulation[[#This Row],[Month]],M87+TOU_CTabulation[[#This Row],[AC System Output (kW)]],TOU_CTabulation[[#This Row],[AC System Output (kW)]]) -> 35.456088 | N88: =VLOOKUP(TOU_CTabulation[[#This Row],[Month]],Season,2) -> Winter | O88: =VLOOKUP(TOU_CTabulation[[#This Row],[Season]],CRate,2) -> 10.5 | P88: =IF(A89>TOU_CTabulation[[#This Row],[Month]],TOU_CTabulation[[#This Row],[Day]]*TOU_CTabulation[[#This Row],[Base Allow]],0) -> 0 | Q88: =IF(A89>TOU_CTabulation[[#This Row],[Month]],TOU_CTabulation[[#This Row],[Month Cumm]],0) -> 0 | R88: =IF(TOU_CTabulation[[#This Row],[Month Base Gen]]=0,0,TOU_CTabulation[[#This Row],[Month Base Gen]]-TOU_CTabulation[[#This Row],[Day]]*TOU_CTabulation[[#This Row],[Base Allow]]) -> 0 | S88: =VLOOKUP(TOU_CTabulation[[#This Row],[Hour]],daypart,2) -> All | T88: =TOU_CTabulation[[#This Row],[Season]]&TOU_CTabulation[[#This Row],[Day-Part]] -> WinterAll | U88: =VLOOKUP(TOU_CTabulation[[#This Row],[Daypart]],TOUC,2) -> 0.25902 | V88: =VLOOKUP(TOU_CTabulation[[#This Row],[Daypart]],TOUC,3) -> 0.32596 | W88: =TOU_CTabulation[[#This Row],[Month Base Allow]]*TOU_CTabulation[[#This Row],[Base Rate]] -> 0 | X88: =TOU_CTabulation[[#This Row],[Month Overbase Gen]]*TOU_CTabulation[[#This Row],[Over Rate]] -> 0 | Y88: =TOU_CTabulation[[#This Row],[Base Value]]+TOU_CTabulation[[#This Row],[Over Value]] -> 0
A89: 1 | B89: 3 | C89: 12 | D89: 948 | E89: 73 | F89: 20 | G89: 2 | H89: 836.047 | I89: 42.638 | J89: 2621.079 | K89: 2521.602 | L89: =TOU_CTabulation[[#This Row],[AC System Output (W)]]/1000 -> 2.521602 | M89: =IF(A88=TOU_CTabulation[[#This Row],[Month]],M88+TOU_CTabulation[[#This Row],[AC System Output (kW)]],TOU_CTabulation[[#This Row],[AC System Output (kW)]]) -> 37.97769 | N89: =VLOOKUP(TOU_CTabulation[[#This Row],[Month]],Season,2) -> Winter | O89: =VLOOKUP(TOU_CTabulation[[#This Row],[Season]],CRate,2) -> 10.5 | P89: =IF(A90>TOU_CTabulation[[#This Row],[Month]],TOU_CTabulation[[#This Row],[Day]]*TOU_CTabulation[[#This Row],[Base Allow]],0) -> 0 | Q89: =IF(A90>TOU_CTabulation[[#This Row],[Month]],TOU_CTabulation[[#This Row],[Month Cumm]],0) -> 0 | R89: =IF(TOU_CTabulation[[#This Row],[Month Base Gen]]=0,0,TOU_CTabulation[[#This Row],[Month Base Gen]]-TOU_CTabulation[[#This Row],[Day]]*TOU_CTabulation[[#This Row],[Base Allow]]) -> 0 | S89: =VLOOKUP(TOU_CTabulation[[#This Row],[Hour]],daypart,2) -> All | T89: =TOU_CTabulation[[#This Row],[Season]]&TOU_CTabulation[[#This Row],[Day-Part]] -> WinterAll | U89: =VLOOKUP(TOU_CTabulation[[#This Row],[Daypart]],TOUC,2) -> 0.25902 | V89: =VLOOKUP(TOU_CTabulation[[#This Row],[Daypart]],TOUC,3) -> 0.32596 | W89: =TOU_CTabulation[[#This Row],[Month Base Allow]]*TOU_CTabulation[[#This Row],[Base Rate]] -> 0 | X89: =TOU_CTabulation[[#This Row],[Month Overbase Gen]]*TOU_CTabulation[[#This Row],[Over Rate]] -> 0 | Y89: =TOU_CTabulation[[#This Row],[Base Value]]+TOU_CTabulation[[#This Row],[Over Value]] -> 0
A90: 1 | B90: 3 | C90: 13 | D90: 924 | E90: 70 | F90: 19 | G90: 1 | H90: 764.91 | I90: 43.869 | J90: 2374.636 | K90: 2285.314 | L90: =TOU_CTabulation[[#This Row],[AC System Output (W)]]/1000 -> 2.285314 | M90: =IF(A89=TOU_CTabulation[[#This Row],[Month]],M89+TOU_CTabulation[[#This Row],[AC System Output (kW)]],TOU_CTabulation[[#This Row],[AC System Output (kW)]]) -> 40.263004 | N90: =VLOOKUP(TOU_CTabulation[[#This Row],[Month]],Season,2) -> Winter | O90: =VLOOKUP(TOU_CTabulation[[#This Row],[Season]],CRate,2) -> 10.5 | P90: =IF(A91>TOU_CTabulation[[#This Row],[Month]],TOU_CTabulation[[#This Row],[Day]]*TOU_CTabulation[[#This Row],[Base Allow]],0) -> 0 | Q90: =IF(A91>TOU_CTabulation[[#This Row],[Month]],TOU_CTabulation[[#This Row],[Month Cumm]],0) -> 0 | R90: =IF(TOU_CTabulation[[#This Row],[Month Base Gen]]=0,0,TOU_CTabulation[[#This Row],[Month Base Gen]]-TOU_CTabulation[[#This Row],[Day]]*TOU_CTabulation[[#This Row],[Base Allow]]) -> 0 | S90: =VLOOKUP(TOU_CTabulation[[#This Row],[Hour]],daypart,2) -> All | T90: =TOU_CTabulation[[#This Row],[Season]]&TOU_CTabulation[[#This Row],[Day-Part]] -> WinterAll | U90: =VLOOKUP(TOU_CTabulation[[#This Row],[Daypart]],TOUC,2) -> 0.25902 | V90: =VLOOKUP(TOU_CTabulation[[#This Row],[Daypart]],TOUC,3) -> 0.32596 | W90: =TOU_CTabulation[[#This Row],[Month Base Allow]]*TOU_CTabulation[[#This Row],[Base Rate]] -> 0 | X90: =TOU_CTabulation[[#This Row],[Month Overbase Gen]]*TOU_CTabulation[[#This Row],[Over Rate]] -> 0 | Y90: =TOU_CTabulation[[#This Row],[Base Value]]+TOU_CTabulation[[#This Row],[Over Value]] -> 0
A91: 1 | B91: 3 | C91: 14 | D91: 863 | E91: 64 | F91: 18 | G91: 0 | H91: 622.902 | I91: 44.18 | J91: 1907.601 | K91: 1835.973 | L91: =TOU_CTabulation[[#This Row],[AC System Output (W)]]/1000 -> 1.835973 | M91: =IF(A90=TOU_CTabulation[[#This Row],[Month]],M90+TOU_CTabulation[[#This Row],[AC System Output (kW)]],TOU_CTabulation[[#This Row],[AC System Output (kW)]]) -> 42.098977 | N91: =VLOOKUP(TOU_CTabulation[[#This Row],[Month]],Season,2) -> Winter | O91: =VLOOKUP(TOU_CTabulation[[#This Row],[Season]],CRate,2) -> 10.5 | P91: =IF(A92>TOU_CTabulation[[#This Row],[Month]],TOU_CTabulation[[#This Row],[Day]]*TOU_CTabulation[[#This Row],[Base Allow]],0) -> 0 | Q91: =IF(A92>TOU_CTabulation[[#This Row],[Month]],TOU_CTabulation[[#This Row],[Month Cumm]],0) -> 0 | R91: =IF(TOU_CTabulation[[#This Row],[Month Base Gen]]=0,0,TOU_CTabulation[[#This Row],[Month Base Gen]]-TOU_CTabulation[[#This Row],[Day]]*TOU_CTabulation[[#This Row],[Base Allow]]) -> 0 | S91: =VLOOKUP(TOU_CTabulation[[#This Row],[Hour]],daypart,2) -> All | T91: =TOU_CTabulation[[#This Row],[Season]]&TOU_CTabulation[[#This Row],[Day-Part]] -> WinterAll | U91: =VLOOKUP(TOU_CTabulation[[#This Row],[Daypart]],TOUC,2) -> 0.25902 | V91: =VLOOKUP(TOU_CTabulation[[#This Row],[Daypart]],TOUC,3) -> 0.32596 | W91: =TOU_CTabulation[[#This Row],[Month Base Allow]]*TOU_CTabulation[[#This Row],[Base Rate]] -> 0 | X91: =TOU_CTabulation[[#This Row],[Month Overbase Gen]]*TOU_CTabulation[[#This Row],[Over Rate]] -> 0 | Y91: =TOU_CTabulation[[#This Row],[Base Value]]+TOU_CTabulation[[#This Row],[Over Value]] -> 0
A92: 1 | B92: 3 | C92: 15 | D92: 739 | E92: 51 | F92: 16 | G92: 0 | H92: 411.728 | I92: 34.662 | J92: 1273.628 | K92: 1222.776 | L92: =TOU_CTabulation[[#This Row],[AC System Output (W)]]/1000 -> 1.222776 | M92: =IF(A91=TOU_CTabulation[[#This Row],[Month]],M91+TOU_CTabulation[[#This Row],[AC System Output (kW)]],TOU_CTabulation[[#This Row],[AC System Output (kW)]]) -> 43.321753 | N92: =VLOOKUP(TOU_CTabulation[[#This Row],[Month]],Season,2) -> Winter | O92: =VLOOKUP(TOU_CTabulation[[#This Row],[Season]],CRate,2) -> 10.5 | P92: =IF(A93>TOU_CTabulation[[#This Row],[Month]],TOU_CTabulation[[#This Row],[Day]]*TOU_CTabulation[[#This Row],[Base Allow]],0) -> 0 | Q92: =IF(A93>TOU_CTabulation[[#This Row],[Month]],TOU_CTabulation[[#This Row],[Month Cumm]],0) -> 0 | R92: =IF(TOU_CTabulation[[#This Row],[Month Base Gen]]=0,0,TOU_CTabulation[[#This Row],[Month Base Gen]]-TOU_CTabulation[[#This Row],[Day]]*TOU_CTabulation[[#This Row],[Base Allow]]) -> 0 | S92: =VLOOKUP(TOU_CTabulation[[#This Row],[Hour]],daypart,2) -> All | T92: =TOU_CTabulation[[#This Row],[Season]]&TOU_CTabulation[[#This Row],[Day-Part]] -> WinterAll | U92: =VLOOKUP(TOU_CTabulation[[#This Row],[Daypart]],TOUC,2) -> 0.25902 | V92: =VLOOKUP(TOU_CTabulation[[#This Row],[Daypart]],TOUC,3) -> 0.32596 | W92: =TOU_CTabulation[[#This Row],[Month Base Allow]]*TOU_CTabulation[[#This Row],[Base Rate]] -> 0 | X92: =TOU_CTabulation[[#This Row],[Month Overbase Gen]]*TOU_CTabulation[[#This Row],[Over Rate]] -> 0 | Y92: =TOU_CTabulation[[#This Row],[Base Value]]+TOU_CTabulation[[#This Row],[Over Value]] -> 0
A93: 1 | B93: 3 | C93: 16 | D93: 433 | E93: 26 | F93: 14 | G93: 0 | H93: 156.379 | I93: 22.099 | J93: 458.398 | K93: 428.769 | L93: =TOU_CTabulation[[#This Row],[AC System Output (W)]]/1000 -> 0.428769 | M93: =IF(A92=TOU_CTabulation[[#This Row],[Month]],M92+TOU_CTabulation[[#This Row],[AC System Output (kW)]],TOU_CTabulation[[#This Row],[AC System Output (kW)]]) -> 43.750522 | N93: =VLOOKUP(TOU_CTabulation[[#This Row],[Month]],Season,2) -> Winter | O93: =VLOOKUP(TOU_CTabulation[[#This Row],[Season]],CRate,2) -> 10.5 | P93: =IF(A94>TOU_CTabulation[[#This Row],[Month]],TOU_CTabulation[[#This Row],[Day]]*TOU_CTabulation[[#This Row],[Base Allow]],0) -> 0 | Q93: =IF(A94>TOU_CTabulation[[#This Row],[Month]],TOU_CTabulation[[#This Row],[Month Cumm]],0) -> 0 | R93: =IF(TOU_CTabulation[[#This Row],[Month Base Gen]]=0,0,TOU_CTabulation[[#This Row],[Month Base Gen]]-TOU_CTabulation[[#This Row],[Day]]*TOU_CTabulation[[#This Row],[Base Allow]]) -> 0 | S93: =VLOOKUP(TOU_CTabulation[[#This Row],[Hour]],daypart,2) -> All | T93: =TOU_CTabulation[[#This Row],[Season]]&TOU_CTabulation[[#This Row],[Day-Part]] -> WinterAll | U93: =VLOOKUP(TOU_CTabulation[[#This Row],[Daypart]],TOUC,2) -> 0.25902 | V93: =VLOOKUP(TOU_CTabulation[[#This Row],[Daypart]],TOUC,3) -> 0.32596 | W93: =TOU_CTabulation[[#This Row],[Month Base Allow]]*TOU_CTabulation[[#This Row],[Base Rate]] -> 0 | X93: =TOU_CTabulation[[#This Row],[Month Overbase Gen]]*TOU_CTabulation[[#This Row],[Over Rate]] -> 0 | Y93: =TOU_CTabulation[[#This Row],[Base Value]]+TOU_CTabulation[[#This Row],[Over Value]] -> 0
A94: 1 | B94: 3 | C94: 17 | D94: 0 | E94: 0 | F94: 13 | G94: 0 | H94: 0 | I94: 13 | J94: 0 | K94: 0 | L94: =TOU_CTabulation[[#This Row],[AC System Output (W)]]/1000 -> 0 | M94: =IF(A93=TOU_CTabulation[[#This Row],[Month]],M93+TOU_CTabulation[[#This Row],[AC System Output (kW)]],TOU_CTabulation[[#This Row],[AC System Output (kW)]]) -> 43.750522 | N94: =VLOOKUP(TOU_CTabulation[[#This Row],[Month]],Season,2) -> Winter | O94: =VLOOKUP(TOU_CTabulation[[#This Row],[Season]],CRate,2) -> 10.5 | P94: =IF(A95>TOU_CTabulation[[#This Row],[Month]],TOU_CTabulation[[#This Row],[Day]]*TOU_CTabulation[[#This Row],[Base Allow]],0) -> 0 | Q94: =IF(A95>TOU_CTabulation[[#This Row],[Month]],TOU_CTabulation[[#This Row],[Month Cumm]],0) -> 0 | R94: =IF(TOU_CTabulation[[#This Row],[Month Base Gen]]=0,0,TOU_CTabulation[[#This Row],[Month Base Gen]]-TOU_CTabulation[[#This Row],[Day]]*TOU_CTabulation[[#This Row],[Base Allow]]) -> 0 | S94: =VLOOKUP(TOU_CTabulation[[#This Row],[Hour]],daypart,2) -> All | T94: =TOU_CTabulation[[#This Row],[Season]]&TOU_CTabulation[[#This Row],[Day-Part]] -> WinterAll | U94: =VLOOKUP(TOU_CTabulation[[#This Row],[Daypart]],TOUC,2) -> 0.25902 | V94: =VLOOKUP(TOU_CTabulation[[#This Row],[Daypart]],TOUC,3) -> 0.32596 | W94: =TOU_CTabulation[[#This Row],[Month Base Allow]]*TOU_CTabulation[[#This Row],[Base Rate]] -> 0 | X94: =TOU_CTabulation[[#This Row],[Month Overbase Gen]]*TOU_CTabulation[[#This Row],[Over Rate]] -> 0 | Y94: =TOU_CTabulation[[#This Row],[Base Value]]+TOU_CTabulation[[#This Row],[Over Value]] -> 0
A95: 1 | B95: 3 | C95: 18 | D95: 0 | E95: 0 | F95: 12 | G95: 0 | H95: 0 | I95: 12 | J95: 0 | K95: 0 | L95: =TOU_CTabulation[[#This Row],[AC System Output (W)]]/1000 -> 0 | M95: =IF(A94=TOU_CTabulation[[#This Row],[Month]],M94+TOU_CTabulation[[#This Row],[AC System Output (kW)]],TOU_CTabulation[[#This Row],[AC System Output (kW)]]) -> 43.750522 | N95: =VLOOKUP(TOU_CTabulation[[#This Row],[Month]],Season,2) -> Winter | O95: =VLOOKUP(TOU_CTabulation[[#This Row],[Season]],CRate,2) -> 10.5 | P95: =IF(A96>TOU_CTabulation[[#This Row],[Month]],TOU_CTabulation[[#This Row],[Day]]*TOU_CTabulation[[#This Row],[Base Allow]],0) -> 0 | Q95: =IF(A96>TOU_CTabulation[[#This Row],[Month]],TOU_CTabulation[[#This Row],[Month Cumm]],0) -> 0 | R95: =IF(TOU_CTabulation[[#This Row],[Month Base Gen]]=0,0,TOU_CTabulation[[#This Row],[Month Base Gen]]-TOU_CTabulation[[#This Row],[Day]]*TOU_CTabulation[[#This Row],[Base Allow]]) -> 0 | S95: =VLOOKUP(TOU_CTabulation[[#This Row],[Hour]],daypart,2) -> All | T95: =TOU_CTabulation[[#This Row],[Season]]&TOU_CTabulation[[#This Row],[Day-Part]] -> WinterAll | U95: =VLOOKUP(TOU_CTabulation[[#This Row],[Daypart]],TOUC,2) -> 0.25902 | V95: =VLOOKUP(TOU_CTabulation[[#This Row],[Daypart]],TOUC,3) -> 0.32596 | W95: =TOU_CTabulation[[#This Row],[Month Base Allow]]*TOU_CTabulation[[#This Row],[Base Rate]] -> 0 | X95: =TOU_CTabulation[[#This Row],[Month Overbase Gen]]*TOU_CTabulation[[#This Row],[Over Rate]] -> 0 | Y95: =TOU_CTabulation[[#This Row],[Base Value]]+TOU_CTabulation[[#This Row],[Over Value]] -> 0
A96: 1 | B96: 3 | C96: 19 | D96: 0 | E96: 0 | F96: 11 | G96: 1 | H96: 0 | I96: 11 | J96: 0 | K96: 0 | L96: =TOU_CTabulation[[#This Row],[AC System Output (W)]]/1000 -> 0 | M96: =IF(A95=TOU_CTabulation[[#This Row],[Month]],M95+TOU_CTabulation[[#This Row],[AC System Output (kW)]],TOU_CTabulation[[#This Row],[AC System Output (kW)]]) -> 43.750522 | N96: =VLOOKUP(TOU_CTabulation[[#This Row],[Month]],Season,2) -> Winter | O96: =VLOOKUP(TOU_CTabulation[[#This Row],[Season]],CRate,2) -> 10.5 | P96: =IF(A97>TOU_CTabulation[[#This Row],[Month]],TOU_CTabulation[[#This Row],[Day]]*TOU_CTabulation[[#This Row],[Base Allow]],0) -> 0 | Q96: =IF(A97>TOU_CTabulation[[#This Row],[Month]],TOU_CTabulation[[#This Row],[Month Cumm]],0) -> 0 | R96: =IF(TOU_CTabulation[[#This Row],[Month Base Gen]]=0,0,TOU_CTabulation[[#This Row],[Month Base Gen]]-TOU_CTabulation[[#This Row],[Day]]*TOU_CTabulation[[#This Row],[Base Allow]]) -> 0 | S96: =VLOOKUP(TOU_CTabulation[[#This Row],[Hour]],daypart,2) -> All | T96: =TOU_CTabulation[[#This Row],[Season]]&TOU_CTabulation[[#This Row],[Day-Part]] -> WinterAll | U96: =VLOOKUP(TOU_CTabulation[[#This Row],[Daypart]],TOUC,2) -> 0.25902 | V96: =VLOOKUP(TOU_CTabulation[[#This Row],[Daypart]],TOUC,3) -> 0.32596 | W96: =TOU_CTabulation[[#This Row],[Month Base Allow]]*TOU_CTabulation[[#This Row],[Base Rate]] -> 0 | X96: =TOU_CTabulation[[#This Row],[Month Overbase Gen]]*TOU_CTabulation[[#This Row],[Over Rate]] -> 0 | Y96: =TOU_CTabulation[[#This Row],[Base Value]]+TOU_CTabulation[[#This Row],[Over Value]] -> 0
A97: 1 | B97: 3 | C97: 20 | D97: 0 | E97: 0 | F97: 10 | G97: 1 | H97: 0 | I97: 10 | J97: 0 | K97: 0 | L97: =TOU_CTabulation[[#This Row],[AC System Output (W)]]/1000 -> 0 | M97: =IF(A96=TOU_CTabulation[[#This Row],[Month]],M96+TOU_CTabulation[[#This Row],[AC System Output (kW)]],TOU_CTabulation[[#This Row],[AC System Output (kW)]]) -> 43.750522 | N97: =VLOOKUP(TOU_CTabulation[[#This Row],[Month]],Season,2) -> Winter | O97: =VLOOKUP(TOU_CTabulation[[#This Row],[Season]],CRate,2) -> 10.5 | P97: =IF(A98>TOU_CTabulation[[#This Row],[Month]],TOU_CTabulation[[#This Row],[Day]]*TOU_CTabulation[[#This Row],[Base Allow]],0) -> 0 | Q97: =IF(A98>TOU_CTabulation[[#This Row],[Month]],TOU_CTabulation[[#This Row],[Month Cumm]],0) -> 0 | R97: =IF(TOU_CTabulation[[#This Row],[Month Base Gen]]=0,0,TOU_CTabulation[[#This Row],[Month Base Gen]]-TOU_CTabulation[[#This Row],[Day]]*TOU_CTabulation[[#This Row],[Base Allow]]) -> 0 | S97: =VLOOKUP(TOU_CTabulation[[#This Row],[Hour]],daypart,2) -> All | T97: =TOU_CTabulation[[#This Row],[Season]]&TOU_CTabulation[[#This Row],[Day-Part]] -> WinterAll | U97: =VLOOKUP(TOU_CTabulation[[#This Row],[Daypart]],TOUC,2) -> 0.25902 | V97: =VLOOKUP(TOU_CTabulation[[#This Row],[Daypart]],TOUC,3) -> 0.32596 | W97: =TOU_CTabulation[[#This Row],[Month Base Allow]]*TOU_CTabulation[[#This Row],[Base Rate]] -> 0 | X97: =TOU_CTabulation[[#This Row],[Month Overbase Gen]]*TOU_CTabulation[[#This Row],[Over Rate]] -> 0 | Y97: =TOU_CTabulation[[#This Row],[Base Value]]+TOU_CTabulation[[#This Row],[Over Value]] -> 0
A98: 1 | B98: 3 | C98: 21 | D98: 0 | E98: 0 | F98: 10 | G98: 1 | H98: 0 | I98: 10 | J98: 0 | K98: 0 | L98: =TOU_CTabulation[[#This Row],[AC System Output (W)]]/1000 -> 0 | M98: =IF(A97=TOU_CTabulation[[#This Row],[Month]],M97+TOU_CTabulation[[#This Row],[AC System Output (kW)]],TOU_CTabulation[[#This Row],[AC System Output (kW)]]) -> 43.750522 | N98: =VLOOKUP(TOU_CTabulation[[#This Row],[Month]],Season,2) -> Winter | O98: =VLOOKUP(TOU_CTabulation[[#This Row],[Season]],CRate,2) -> 10.5 | P98: =IF(A99>TOU_CTabulation[[#This Row],[Month]],TOU_CTabulation[[#This Row],[Day]]*TOU_CTabulation[[#This Row],[Base Allow]],0) -> 0 | Q98: =IF(A99>TOU_CTabulation[[#This Row],[Month]],TOU_CTabulation[[#This Row],[Month Cumm]],0) -> 0 | R98: =IF(TOU_CTabulation[[#This Row],[Month Base Gen]]=0,0,TOU_CTabulation[[#This Row],[Month Base Gen]]-TOU_CTabulation[[#This Row],[Day]]*TOU_CTabulation[[#This Row],[Base Allow]]) -> 0 | S98: =VLOOKUP(TOU_CTabulation[[#This Row],[Hour]],daypart,2) -> All | T98: =TOU_CTabulation[[#This Row],[Season]]&TOU_CTabulation[[#This Row],[Day-Part]] -> WinterAll | U98: =VLOOKUP(TOU_CTabulation[[#This Row],[Daypart]],TOUC,2) -> 0.25902 | V98: =VLOOKUP(TOU_CTabulation[[#This Row],[Daypart]],TOUC,3) -> 0.32596 | W98: =TOU_CTabulation[[#This Row],[Month Base Allow]]*TOU_CTabulation[[#This Row],[Base Rate]] -> 0 | X98: =TOU_CTabulation[[#This Row],[Month Overbase Gen]]*TOU_CTabulation[[#This Row],[Over Rate]] -> 0 | Y98: =TOU_CTabulation[[#This Row],[Base Value]]+TOU_CTabulation[[#This Row],[Over Value]] -> 0
A99: 1 | B99: 3 | C99: 22 | D99: 0 | E99: 0 | F99: 9 | G99: 1 | H99: 0 | I99: 9 | J99: 0 | K99: 0 | L99: =TOU_CTabulation[[#This Row],[AC System Output (W)]]/1000 -> 0 | M99: =IF(A98=TOU_CTabulation[[#This Row],[Month]],M98+TOU_CTabulation[[#This Row],[AC System Output (kW)]],TOU_CTabulation[[#This Row],[AC System Output (kW)]]) -> 43.750522 | N99: =VLOOKUP(TOU_CTabulation[[#This Row],[Month]],Season,2) -> Winter | O99: =VLOOKUP(TOU_CTabulation[[#This Row],[Season]],CRate,2) -> 10.5 | P99: =IF(A100>TOU_CTabulation[[#This Row],[Month]],TOU_CTabulation[[#This Row],[Day]]*TOU_CTabulation[[#This Row],[Base Allow]],0) -> 0 | Q99: =IF(A100>TOU_CTabulation[[#This Row],[Month]],TOU_CTabulation[[#This Row],[Month Cumm]],0) -> 0 | R99: =IF(TOU_CTabulation[[#This Row],[Month Base Gen]]=0,0,TOU_CTabulation[[#This Row],[Month Base Gen]]-TOU_CTabulation[[#This Row],[Day]]*TOU_CTabulation[[#This Row],[Base Allow]]) -> 0 | S99: =VLOOKUP(TOU_CTabulation[[#This Row],[Hour]],daypart,2) -> All | T99: =TOU_CTabulation[[#This Row],[Season]]&TOU_CTabulation[[#This Row],[Day-Part]] -> WinterAll | U99: =VLOOKUP(TOU_CTabulation[[#This Row],[Daypart]],TOUC,2) -> 0.25902 | V99: =VLOOKUP(TOU_CTabulation[[#This Row],[Daypart]],TOUC,3) -> 0.32596 | W99: =TOU_CTabulation[[#This Row],[Month Base Allow]]*TOU_CTabulation[[#This Row],[Base Rate]] -> 0 | X99: =TOU_CTabulation[[#This Row],[Month Overbase Gen]]*TOU_CTabulation[[#This Row],[Over Rate]] -> 0 | Y99: =TOU_CTabulation[[#This Row],[Base Value]]+TOU_CTabulation[[#This Row],[Over Value]] -> 0
A100: 1 | B100: 3 | C100: 23 | D100: 0 | E100: 0 | F100: 9 | G100: 1 | H100: 0 | I100: 9 | J100: 0 | K100: 0 | L100: =TOU_CTabulation[[#This Row],[AC System Output (W)]]/1000 -> 0 | M100: =IF(A99=TOU_CTabulation[[#This Row],[Month]],M99+TOU_CTabulation[[#This Row],[AC System Output (kW)]],TOU_CTabulation[[#This Row],[AC System Output (kW)]]) -> 43.750522 | N100: =VLOOKUP(TOU_CTabulation[[#This Row],[Month]],Season,2) -> Winter | O100: =VLOOKUP(TOU_CTabulation[[#This Row],[Season]],CRate,2) -> 10.5 | P100: =IF(A101>TOU_CTabulation[[#This Row],[Month]],TOU_CTabulation[[#This Row],[Day]]*TOU_CTabulation[[#This Row],[Base Allow]],0) -> 0 | Q100: =IF(A101>TOU_CTabulation[[#This Row],[Month]],TOU_CTabulation[[#This Row],[Month Cumm]],0) -> 0 | R100: =IF(TOU_CTabulation[[#This Row],[Month Base Gen]]=0,0,TOU_CTabulation[[#This Row],[Month Base Gen]]-TOU_CTabulation[[#This Row],[Day]]*TOU_CTabulation[[#This Row],[Base Allow]]) -> 0 | S100: =VLOOKUP(TOU_CTabulation[[#This Row],[Hour]],daypart,2) -> All | T100: =TOU_CTabulation[[#This Row],[Season]]&TOU_CTabulation[[#This Row],[Day-Part]] -> WinterAll | U100: =VLOOKUP(TOU_CTabulation[[#This Row],[Daypart]],TOUC,2) -> 0.25902 | V100: =VLOOKUP(TOU_CTabulation[[#This Row],[Daypart]],TOUC,3) -> 0.32596 | W100: =TOU_CTabulation[[#This Row],[Month Base Allow]]*TOU_CTabulation[[#This Row],[Base Rate]] -> 0 | X100: =TOU_CTabulation[[#This Row],[Month Overbase Gen]]*TOU_CTabulation[[#This Row],[Over Rate]] -> 0 | Y100: =TOU_CTabulation[[#This Row],[Base Value]]+TOU_CTabulation[[#This Row],[Over Value]] -> 0
A101: 1 | B101: 4 | C101: 0 | D101: 0 | E101: 0 | F101: 8 | G101: 1 | H101: 0 | I101: 8 | J101: 0 | K101: 0 | L101: =TOU_CTabulation[[#This Row],[AC System Output (W)]]/1000 -> 0 | M101: =IF(A100=TOU_CTabulation[[#This Row],[Month]],M100+TOU_CTabulation[[#This Row],[AC System Output (kW)]],TOU_CTabulation[[#This Row],[AC System Output (kW)]]) -> 43.750522 | N101: =VLOOKUP(TOU_CTabulation[[#This Row],[Month]],Season,2) -> Winter | O101: =VLOOKUP(TOU_CTabulation[[#This Row],[Season]],CRate,2) -> 10.5 | P101: =IF(A102>TOU_CTabulation[[#This Row],[Month]],TOU_CTabulation[[#This Row],[Day]]*TOU_CTabulation[[#This Row],[Base Allow]],0) -> 0 | Q101: =IF(A102>TOU_CTabulation[[#This Row],[Month]],TOU_CTabulation[[#This Row],[Month Cumm]],0) -> 0 | R101: =IF(TOU_CTabulation[[#This Row],[Month Base Gen]]=0,0,TOU_CTabulation[[#This Row],[Month Base Gen]]-TOU_CTabulation[[#This Row],[Day]]*TOU_CTabulation[[#This Row],[Base Allow]]) -> 0 | S101: =VLOOKUP(TOU_CTabulation[[#This Row],[Hour]],daypart,2) -> All | T101: =TOU_CTabulation[[#This Row],[Season]]&TOU_CTabulation[[#This Row],[Day-Part]] -> WinterAll | U101: =VLOOKUP(TOU_CTabulation[[#This Row],[Daypart]],TOUC,2) -> 0.25902 | V101: =VLOOKUP(TOU_CTabulation[[#This Row],[Daypart]],TOUC,3) -> 0.32596 | W101: =TOU_CTabulation[[#This Row],[Month Base Allow]]*TOU_CTabulation[[#This Row],[Base Rate]] -> 0 | X101: =TOU_CTabulation[[#This Row],[Month Overbase Gen]]*TOU_CTabulation[[#This Row],[Over Rate]] -> 0 | Y101: =TOU_CTabulation[[#This Row],[Base Value]]+TOU_CTabulation[[#This Row],[Over Value]] -> 0
A102: 1 | B102: 4 | C102: 1 | D102: 0 | E102: 0 | F102: 8 | G102: 1 | H102: 0 | I102: 8 | J102: 0 | K102: 0 | L102: =TOU_CTabulation[[#This Row],[AC System Output (W)]]/1000 -> 0 | M102: =IF(A101=TOU_CTabulation[[#This Row],[Month]],M101+TOU_CTabulation[[#This Row],[AC System Output (kW)]],TOU_CTabulation[[#This Row],[AC System Output (kW)]]) -> 43.750522 | N102: =VLOOKUP(TOU_CTabulation[[#This Row],[Month]],Season,2) -> Winter | O102: =VLOOKUP(TOU_CTabulation[[#This Row],[Season]],CRate,2) -> 10.5 | P102: =IF(A103>TOU_CTabulation[[#This Row],[Month]],TOU_CTabulation[[#This Row],[Day]]*TOU_CTabulation[[#This Row],[Base Allow]],0) -> 0 | Q102: =IF(A103>TOU_CTabulation[[#This Row],[Month]],TOU_CTabulation[[#This Row],[Month Cumm]],0) -> 0 | R102: =IF(TOU_CTabulation[[#This Row],[Month Base Gen]]=0,0,TOU_CTabulation[[#This Row],[Month Base Gen]]-TOU_CTabulation[[#This Row],[Day]]*TOU_CTabulation[[#This Row],[Base Allow]]) -> 0 | S102: =VLOOKUP(TOU_CTabulation[[#This Row],[Hour]],daypart,2) -> All | T102: =TOU_CTabulation[[#This Row],[Season]]&TOU_CTabulation[[#This Row],[Day-Part]] -> WinterAll | U102: =VLOOKUP(TOU_CTabulation[[#This Row],[Daypart]],TOUC,2) -> 0.25902 | V102: =VLOOKUP(TOU_CTabulation[[#This Row],[Daypart]],TOUC,3) -> 0.32596 | W102: =TOU_CTabulation[[#This Row],[Month Base Allow]]*TOU_CTabulation[[#This Row],[Base Rate]] -> 0 | X102: =TOU_CTabulation[[#This Row],[Month Overbase Gen]]*TOU_CTabulation[[#This Row],[Over Rate]] -> 0 | Y102: =TOU_CTabulation[[#This Row],[Base Value]]+TOU_CTabulation[[#This Row],[Over Value]] -> 0
A103: 1 | B103: 4 | C103: 2 | D103: 0 | E103: 0 | F103: 7 | G103: 1 | H103: 0 | I103: 7 | J103: 0 | K103: 0 | L103: =TOU_CTabulation[[#This Row],[AC System Output (W)]]/1000 -> 0 | M103: =IF(A102=TOU_CTabulation[[#This Row],[Month]],M102+TOU_CTabulation[[#This Row],[AC System Output (kW)]],TOU_CTabulation[[#This Row],[AC System Output (kW)]]) -> 43.750522 | N103: =VLOOKUP(TOU_CTabulation[[#This Row],[Month]],Season,2) -> Winter | O103: =VLOOKUP(TOU_CTabulation[[#This Row],[Season]],CRate,2) -> 10.5 | P103: =IF(A104>TOU_CTabulation[[#This Row],[Month]],TOU_CTabulation[[#This Row],[Day]]*TOU_CTabulation[[#This Row],[Base Allow]],0) -> 0 | Q103: =IF(A104>TOU_CTabulation[[#This Row],[Month]],TOU_CTabulation[[#This Row],[Month Cumm]],0) -> 0 | R103: =IF(TOU_CTabulation[[#This Row],[Month Base Gen]]=0,0,TOU_CTabulation[[#This Row],[Month Base Gen]]-TOU_CTabulation[[#This Row],[Day]]*TOU_CTabulation[[#This Row],[Base Allow]]) -> 0 | S103: =VLOOKUP(TOU_CTabulation[[#This Row],[Hour]],daypart,2) -> All | T103: =TOU_CTabulation[[#This Row],[Season]]&TOU_CTabulation[[#This Row],[Day-Part]] -> WinterAll | U103: =VLOOKUP(TOU_CTabulation[[#This Row],[Daypart]],TOUC,2) -> 0.25902 | V103: =VLOOKUP(TOU_CTabulation[[#This Row],[Daypart]],TOUC,3) -> 0.32596 | W103: =TOU_CTabulation[[#This Row],[Month Base Allow]]*TOU_CTabulation[[#This Row],[Base Rate]] -> 0 | X103: =TOU_CTabulation[[#This Row],[Month Overbase Gen]]*TOU_CTabulation[[#This Row],[Over Rate]] -> 0 | Y103: =TOU_CTabulation[[#This Row],[Base Value]]+TOU_CTabulation[[#This Row],[Over Value]] -> 0
A104: 1 | B104: 4 | C104: 3 | D104: 0 | E104: 0 | F104: 7 | G104: 2 | H104: 0 | I104: 7 | J104: 0 | K104: 0 | L104: =TOU_CTabulation[[#This Row],[AC System Output (W)]]/1000 -> 0 | M104: =IF(A103=TOU_CTabulation[[#This Row],[Month]],M103+TOU_CTabulation[[#This Row],[AC System Output (kW)]],TOU_CTabulation[[#This Row],[AC System Output (kW)]]) -> 43.750522 | N104: =VLOOKUP(TOU_CTabulation[[#This Row],[Month]],Season,2) -> Winter | O104: =VLOOKUP(TOU_CTabulation[[#This Row],[Season]],CRate,2) -> 10.5 | P104: =IF(A105>TOU_CTabulation[[#This Row],[Month]],TOU_CTabulation[[#This Row],[Day]]*TOU_CTabulation[[#This Row],[Base Allow]],0) -> 0 | Q104: =IF(A105>TOU_CTabulation[[#This Row],[Month]],TOU_CTabulation[[#This Row],[Month Cumm]],0) -> 0 | R104: =IF(TOU_CTabulation[[#This Row],[Month Base Gen]]=0,0,TOU_CTabulation[[#This Row],[Month Base Gen]]-TOU_CTabulation[[#This Row],[Day]]*TOU_CTabulation[[#This Row],[Base Allow]]) -> 0 | S104: =VLOOKUP(TOU_CTabulation[[#This Row],[Hour]],daypart,2) -> All | T104: =TOU_CTabulation[[#This Row],[Season]]&TOU_CTabulation[[#This Row],[Day-Part]] -> WinterAll | U104: =VLOOKUP(TOU_CTabulation[[#This Row],[Daypart]],TOUC,2) -> 0.25902 | V104: =VLOOKUP(TOU_CTabulation[[#This Row],[Daypart]],TOUC,3) -> 0.32596 | W104: =TOU_CTabulation[[#This Row],[Month Base Allow]]*TOU_CTabulation[[#This Row],[Base Rate]] -> 0 | X104: =TOU_CTabulation[[#This Row],[Month Overbase Gen]]*TOU_CTabulation[[#This Row],[Over Rate]] -> 0 | Y104: =TOU_CTabulation[[#This Row],[Base Value]]+TOU_CTabulation[[#This Row],[Over Value]] -> 0
A105: 1 | B105: 4 | C105: 4 | D105: 0 | E105: 0 | F105: 7 | G105: 2 | H105: 0 | I105: 7 | J105: 0 | K105: 0 | L105: =TOU_CTabulation[[#This Row],[AC System Output (W)]]/1000 -> 0 | M105: =IF(A104=TOU_CTabulation[[#This Row],[Month]],M104+TOU_CTabulation[[#This Row],[AC System Output (kW)]],TOU_CTabulation[[#This Row],[AC System Output (kW)]]) -> 43.750522 | N105: =VLOOKUP(TOU_CTabulation[[#This Row],[Month]],Season,2) -> Winter | O105: =VLOOKUP(TOU_CTabulation[[#This Row],[Season]],CRate,2) -> 10.5 | P105: =IF(A106>TOU_CTabulation[[#This Row],[Month]],TOU_CTabulation[[#This Row],[Day]]*TOU_CTabulation[[#This Row],[Base Allow]],0) -> 0 | Q105: =IF(A106>TOU_CTabulation[[#This Row],[Month]],TOU_CTabulation[[#This Row],[Month Cumm]],0) -> 0 | R105: =IF(TOU_CTabulation[[#This Row],[Month Base Gen]]=0,0,TOU_CTabulation[[#This Row],[Month Base Gen]]-TOU_CTabulation[[#This Row],[Day]]*TOU_CTabulation[[#This Row],[Base Allow]]) -> 0 | S105: =VLOOKUP(TOU_CTabulation[[#This Row],[Hour]],daypart,2) -> All | T105: =TOU_CTabulation[[#This Row],[Season]]&TOU_CTabulation[[#This Row],[Day-Part]] -> WinterAll | U105: =VLOOKUP(TOU_CTabulation[[#This Row],[Daypart]],TOUC,2) -> 0.25902 | V105: =VLOOKUP(TOU_CTabulation[[#This Row],[Daypart]],TOUC,3) -> 0.32596 | W105: =TOU_CTabulation[[#This Row],[Month Base Allow]]*TOU_CTabulation[[#This Row],[Base Rate]] -> 0 | X105: =TOU_CTabulation[[#This Row],[Month Overbase Gen]]*TOU_CTabulation[[#This Row],[Over Rate]] -> 0 | Y105: =TOU_CTabulation[[#This Row],[Base Value]]+TOU_CTabulation[[#This Row],[Over Value]] -> 0
A106: 1 | B106: 4 | C106: 5 | D106: 0 | E106: 0 | F106: 7 | G106: 2 | H106: 0 | I106: 7 | J106: 0 | K106: 0 | L106: =TOU_CTabulation[[#This Row],[AC System Output (W)]]/1000 -> 0 | M106: =IF(A105=TOU_CTabulation[[#This Row],[Month]],M105+TOU_CTabulation[[#This Row],[AC System Output (kW)]],TOU_CTabulation[[#This Row],[AC System Output (kW)]]) -> 43.750522 | N106: =VLOOKUP(TOU_CTabulation[[#This Row],[Month]],Season,2) -> Winter | O106: =VLOOKUP(TOU_CTabulation[[#This Row],[Season]],CRate,2) -> 10.5 | P106: =IF(A107>TOU_CTabulation[[#This Row],[Month]],TOU_CTabulation[[#This Row],[Day]]*TOU_CTabulation[[#This Row],[Base Allow]],0) -> 0 | Q106: =IF(A107>TOU_CTabulation[[#This Row],[Month]],TOU_CTabulation[[#This Row],[Month Cumm]],0) -> 0 | R106: =IF(TOU_CTabulation[[#This Row],[Month Base Gen]]=0,0,TOU_CTabulation[[#This Row],[Month Base Gen]]-TOU_CTabulation[[#This Row],[Day]]*TOU_CTabulation[[#This Row],[Base Allow]]) -> 0 | S106: =VLOOKUP(TOU_CTabulation[[#This Row],[Hour]],daypart,2) -> All | T106: =TOU_CTabulation[[#This Row],[Season]]&TOU_CTabulation[[#This Row],[Day-Part]] -> WinterAll | U106: =VLOOKUP(TOU_CTabulation[[#This Row],[Daypart]],TOUC,2) -> 0.25902 | V106: =VLOOKUP(TOU_CTabulation[[#This Row],[Daypart]],TOUC,3) -> 0.32596 | W106: =TOU_CTabulation[[#This Row],[Month Base Allow]]*TOU_CTabulation[[#This Row],[Base Rate]] -> 0 | X106: =TOU_CTabulation[[#This Row],[Month Overbase Gen]]*TOU_CTabulation[[#This Row],[Over Rate]] -> 0 | Y106: =TOU_CTabulation[[#This Row],[Base Value]]+TOU_CTabulation[[#This Row],[Over Value]] -> 0
A107: 1 | B107: 4 | C107: 6 | D107: 0 | E107: 0 | F107: 7 | G107: 2 | H107: 0 | I107: 7 | J107: 0 | K107: 0 | L107: =TOU_CTabulation[[#This Row],[AC System Output (W)]]/1000 -> 0 | M107: =IF(A106=TOU_CTabulation[[#This Row],[Month]],M106+TOU_CTabulation[[#This Row],[AC System Output (kW)]],TOU_CTabulation[[#This Row],[AC System Output (kW)]]) -> 43.750522 | N107: =VLOOKUP(TOU_CTabulation[[#This Row],[Month]],Season,2) -> Winter | O107: =VLOOKUP(TOU_CTabulation[[#This Row],[Season]],CRate,2) -> 10.5 | P107: =IF(A108>TOU_CTabulation[[#This Row],[Month]],TOU_CTabulation[[#This Row],[Day]]*TOU_CTabulation[[#This Row],[Base Allow]],0) -> 0 | Q107: =IF(A108>TOU_CTabulation[[#This Row],[Month]],TOU_CTabulation[[#This Row],[Month Cumm]],0) -> 0 | R107: =IF(TOU_CTabulation[[#This Row],[Month Base Gen]]=0,0,TOU_CTabulation[[#This Row],[Month Base Gen]]-TOU_CTabulation[[#This Row],[Day]]*TOU_CTabulation[[#This Row],[Base Allow]]) -> 0 | S107: =VLOOKUP(TOU_CTabulation[[#This Row],[Hour]],daypart,2) -> All | T107: =TOU_CTabulation[[#This Row],[Season]]&TOU_CTabulation[[#This Row],[Day-Part]] -> WinterAll | U107: =VLOOKUP(TOU_CTabulation[[#This Row],[Daypart]],TOUC,2) -> 0.25902 | V107: =VLOOKUP(TOU_CTabulation[[#This Row],[Daypart]],TOUC,3) -> 0.32596 | W107: =TOU_CTabulation[[#This Row],[Month Base Allow]]*TOU_CTabulation[[#This Row],[Base Rate]] -> 0 | X107: =TOU_CTabulation[[#This Row],[Month Overbase Gen]]*TOU_CTabulation[[#This Row],[Over Rate]] -> 0 | Y107: =TOU_CTabulation[[#This Row],[Base Value]]+TOU_CTabulation[[#This Row],[Over Value]] -> 0
A108: 1 | B108: 4 | C108: 7 | D108: 0 | E108: 28 | F108: 8 | G108: 2 | H108: 29.06 | I108: 7.254 | J108: 108.204 | K108: 85.796 | L108: =TOU_CTabulation[[#This Row],[AC System Output (W)]]/1000 -> 0.085796 | M108: =IF(A107=TOU_CTabulation[[#This Row],[Month]],M107+TOU_CTabulation[[#This Row],[AC System Output (kW)]],TOU_CTabulation[[#This Row],[AC System Output (kW)]]) -> 43.836318 | N108: =VLOOKUP(TOU_CTabulation[[#This Row],[Month]],Season,2) -> Winter | O108: =VLOOKUP(TOU_CTabulation[[#This Row],[Season]],CRate,2) -> 10.5 | P108: =IF(A109>TOU_CTabulation[[#This Row],[Month]],TOU_CTabulation[[#This Row],[Day]]*TOU_CTabulation[[#This Row],[Base Allow]],0) -> 0 | Q108: =IF(A109>TOU_CTabulation[[#This Row],[Month]],TOU_CTabulation[[#This Row],[Month Cumm]],0) -> 0 | R108: =IF(TOU_CTabulation[[#This Row],[Month Base Gen]]=0,0,TOU_CTabulation[[#This Row],[Month Base Gen]]-TOU_CTabulation[[#This Row],[Day]]*TOU_CTabulation[[#This Row],[Base Allow]]) -> 0 | S108: =VLOOKUP(TOU_CTabulation[[#This Row],[Hour]],daypart,2) -> All | T108: =TOU_CTabulation[[#This Row],[Season]]&TOU_CTabulation[[#This Row],[Day-Part]] -> WinterAll | U108: =VLOOKUP(TOU_CTabulation[[#This Row],[Daypart]],TOUC,2) -> 0.25902 | V108: =VLOOKUP(TOU_CTabulation[[#This Row],[Daypart]],TOUC,3) -> 0.32596 | W108: =TOU_CTabulation[[#This Row],[Month Base Allow]]*TOU_CTabulation[[#This Row],[Base Rate]] -> 0 | X108: =TOU_CTabulation[[#This Row],[Month Overbase Gen]]*TOU_CTabulation[[#This Row],[Over Rate]] -> 0 | Y108: =TOU_CTabulation[[#This Row],[Base Value]]+TOU_CTabulation[[#This Row],[Over Value]] -> 0
A109: 1 | B109: 4 | C109: 8 | D109: 114 | E109: 82 | F109: 11 | G109: 2 | H109: 140.579 | I109: 12.958 | J109: 494.796 | K109: 464.352 | L109: =TOU_CTabulation[[#This Row],[AC System Output (W)]]/1000 -> 0.464352 | M109: =IF(A108=TOU_CTabulation[[#This Row],[Month]],M108+TOU_CTabulation[[#This Row],[AC System Output (kW)]],TOU_CTabulation[[#This Row],[AC System Output (kW)]]) -> 44.30067 | N109: =VLOOKUP(TOU_CTabulation[[#This Row],[Month]],Season,2) -> Winter | O109: =VLOOKUP(TOU_CTabulation[[#This Row],[Season]],CRate,2) -> 10.5 | P109: =IF(A110>TOU_CTabulation[[#This Row],[Month]],TOU_CTabulation[[#This Row],[Day]]*TOU_CTabulation[[#This Row],[Base Allow]],0) -> 0 | Q109: =IF(A110>TOU_CTabulation[[#This Row],[Month]],TOU_CTabulation[[#This Row],[Month Cumm]],0) -> 0 | R109: =IF(TOU_CTabulation[[#This Row],[Month Base Gen]]=0,0,TOU_CTabulation[[#This Row],[Month Base Gen]]-TOU_CTabulation[[#This Row],[Day]]*TOU_CTabulation[[#This Row],[Base Allow]]) -> 0 | S109: =VLOOKUP(TOU_CTabulation[[#This Row],[Hour]],daypart,2) -> All | T109: =TOU_CTabulation[[#This Row],[Season]]&TOU_CTabulation[[#This Row],[Day-Part]] -> WinterAll | U109: =VLOOKUP(TOU_CTabulation[[#This Row],[Daypart]],TOUC,2) -> 0.25902 | V109: =VLOOKUP(TOU_CTabulation[[#This Row],[Daypart]],TOUC,3) -> 0.32596 | W109: =TOU_CTabulation[[#This Row],[Month Base Allow]]*TOU_CTabulation[[#This Row],[Base Rate]] -> 0 | X109: =TOU_CTabulation[[#This Row],[Month Overbase Gen]]*TOU_CTabulation[[#This Row],[Over Rate]] -> 0 | Y109: =TOU_CTabulation[[#This Row],[Base Value]]+TOU_CTabulation[[#This Row],[Over Value]] -> 0
A110: 1 | B110: 4 | C110: 9 | D110: 863 | E110: 59 | F110: 13 | G110: 2 | H110: 586.186 | I110: 27.377 | J110: 1939.143 | K110: 1866.384 | L110: =TOU_CTabulation[[#This Row],[AC System Output (W)]]/1000 -> 1.866384 | M110: =IF(A109=TOU_CTabulation[[#This Row],[Month]],M109+TOU_CTabulation[[#This Row],[AC System Output (kW)]],TOU_CTabulation[[#This Row],[AC System Output (kW)]]) -> 46.167054 | N110: =VLOOKUP(TOU_CTabulation[[#This Row],[Month]],Season,2) -> Winter | O110: =VLOOKUP(TOU_CTabulation[[#This Row],[Season]],CRate,2) -> 10.5 | P110: =IF(A111>TOU_CTabulation[[#This Row],[Month]],TOU_CTabulation[[#This Row],[Day]]*TOU_CTabulation[[#This Row],[Base Allow]],0) -> 0 | Q110: =IF(A111>TOU_CTabulation[[#This Row],[Month]],TOU_CTabulation[[#This Row],[Month Cumm]],0) -> 0 | R110: =IF(TOU_CTabulation[[#This Row],[Month Base Gen]]=0,0,TOU_CTabulation[[#This Row],[Month Base Gen]]-TOU_CTabulation[[#This Row],[Day]]*TOU_CTabulation[[#This Row],[Base Allow]]) -> 0 | S110: =VLOOKUP(TOU_CTabulation[[#This Row],[Hour]],daypart,2) -> All | T110: =TOU_CTabulation[[#This Row],[Season]]&TOU_CTabulation[[#This Row],[Day-Part]] -> WinterAll | U110: =VLOOKUP(TOU_CTabulation[[#This Row],[Daypart]],TOUC,2) -> 0.25902 | V110: =VLOOKUP(TOU_CTabulation[[#This Row],[Daypart]],TOUC,3) -> 0.32596 | W110: =TOU_CTabulation[[#This Row],[Month Base Allow]]*TOU_CTabulation[[#This Row],[Base Rate]] -> 0 | X110: =TOU_CTabulation[[#This Row],[Month Overbase Gen]]*TOU_CTabulation[[#This Row],[Over Rate]] -> 0 | Y110: =TOU_CTabulation[[#This Row],[Base Value]]+TOU_CTabulation[[#This Row],[Over Value]] -> 0
A111: 1 | B111: 4 | C111: 10 | D111: 929 | E111: 67 | F111: 15 | G111: 2 | H111: 744.735 | I111: 34.822 | J111: 2415.333 | K111: 2324.373 | L111: =TOU_CTabulation[[#This Row],[AC System Output (W)]]/1000 -> 2.324373 | M111: =IF(A110=TOU_CTabulation[[#This Row],[Month]],M110+TOU_CTabulation[[#This Row],[AC System Output (kW)]],TOU_CTabulation[[#This Row],[AC System Output (kW)]]) -> 48.491427 | N111: =VLOOKUP(TOU_CTabulation[[#This Row],[Month]],Season,2) -> Winter | O111: =VLOOKUP(TOU_CTabulation[[#This Row],[Season]],CRate,2) -> 10.5 | P111: =IF(A112>TOU_CTabulation[[#This Row],[Month]],TOU_CTabulation[[#This Row],[Day]]*TOU_CTabulation[[#This Row],[Base Allow]],0) -> 0 | Q111: =IF(A112>TOU_CTabulation[[#This Row],[Month]],TOU_CTabulation[[#This Row],[Month Cumm]],0) -> 0 | R111: =IF(TOU_CTabulation[[#This Row],[Month Base Gen]]=0,0,TOU_CTabulation[[#This Row],[Month Base Gen]]-TOU_CTabulation[[#This Row],[Day]]*TOU_CTabulation[[#This Row],[Base Allow]]) -> 0 | S111: =VLOOKUP(TOU_CTabulation[[#This Row],[Hour]],daypart,2) -> All | T111: =TOU_CTabulation[[#This Row],[Season]]&TOU_CTabulation[[#This Row],[Day-Part]] -> WinterAll | U111: =VLOOKUP(TOU_CTabulation[[#This Row],[Daypart]],TOUC,2) -> 0.25902 | V111: =VLOOKUP(TOU_CTabulation[[#This Row],[Daypart]],TOUC,3) -> 0.32596 | W111: =TOU_CTabulation[[#This Row],[Month Base Allow]]*TOU_CTabulation[[#This Row],[Base Rate]] -> 0 | X111: =TOU_CTabulation[[#This Row],[Month Overbase Gen]]*TOU_CTabulation[[#This Row],[Over Rate]] -> 0 | Y111: =TOU_CTabulation[[#This Row],[Base Value]]+TOU_CTabulation[[#This Row],[Over Value]] -> 0
A112: 1 | B112: 4 | C112: 11 | D112: 537 | E112: 168 | F112: 16 | G112: 1 | H112: 624.211 | I112: 36.664 | J112: 2018.964 | K112: 1943.301 | L112: =TOU_CTabulation[[#This Row],[AC System Output (W)]]/1000 -> 1.943301 | M112: =IF(A111=TOU_CTabulation[[#This Row],[Month]],M111+TOU_CTabulation[[#This Row],[AC System Output (kW)]],TOU_CTabulation[[#This Row],[AC System Output (kW)]]) -> 50.434728 | N112: =VLOOKUP(TOU_CTabulation[[#This Row],[Month]],Season,2) -> Winter | O112: =VLOOKUP(TOU_CTabulation[[#This Row],[Season]],CRate,2) -> 10.5 | P112: =IF(A113>TOU_CTabulation[[#This Row],[Month]],TOU_CTabulation[[#This Row],[Day]]*TOU_CTabulation[[#This Row],[Base Allow]],0) -> 0 | Q112: =IF(A113>TOU_CTabulation[[#This Row],[Month]],TOU_CTabulation[[#This Row],[Month Cumm]],0) -> 0 | R112: =IF(TOU_CTabulation[[#This Row],[Month Base Gen]]=0,0,TOU_CTabulation[[#This Row],[Month Base Gen]]-TOU_CTabulation[[#This Row],[Day]]*TOU_CTabulation[[#This Row],[Base Allow]]) -> 0 | S112: =VLOOKUP(TOU_CTabulation[[#This Row],[Hour]],daypart,2) -> All | T112: =TOU_CTabulation[[#This Row],[Season]]&TOU_CTabulation[[#This Row],[Day-Part]] -> WinterAll | U112: =VLOOKUP(TOU_CTabulation[[#This Row],[Daypart]],TOUC,2) -> 0.25902 | V112: =VLOOKUP(TOU_CTabulation[[#This Row],[Daypart]],TOUC,3) -> 0.32596 | W112: =TOU_CTabulation[[#This Row],[Month Base Allow]]*TOU_CTabulation[[#This Row],[Base Rate]] -> 0 | X112: =TOU_CTabulation[[#This Row],[Month Overbase Gen]]*TOU_CTabulation[[#This Row],[Over Rate]] -> 0 | Y112: =TOU_CTabulation[[#This Row],[Base Value]]+TOU_CTabulation[[#This Row],[Over Value]] -> 0
A113: 1 | B113: 4 | C113: 12 | D113: 523 | E113: 174 | F113: 17 | G113: 1 | H113: 624.544 | I113: 37.113 | J113: 2016.362 | K113: 1940.794 | L113: =TOU_CTabulation[[#This Row],[AC System Output (W)]]/1000 -> 1.940794 | M113: =IF(A112=TOU_CTabulation[[#This Row],[Month]],M112+TOU_CTabulation[[#This Row],[AC System Output (kW)]],TOU_CTabulation[[#This Row],[AC System Output (kW)]]) -> 52.375522 | N113: =VLOOKUP(TOU_CTabulation[[#This Row],[Month]],Season,2) -> Winter | O113: =VLOOKUP(TOU_CTabulation[[#This Row],[Season]],CRate,2) -> 10.5 | P113: =IF(A114>TOU_CTabulation[[#This Row],[Month]],TOU_CTabulation[[#This Row],[Day]]*TOU_CTabulation[[#This Row],[Base Allow]],0) -> 0 | Q113: =IF(A114>TOU_CTabulation[[#This Row],[Month]],TOU_CTabulation[[#This Row],[Month Cumm]],0) -> 0 | R113: =IF(TOU_CTabulation[[#This Row],[Month Base Gen]]=0,0,TOU_CTabulation[[#This Row],[Month Base Gen]]-TOU_CTabulation[[#This Row],[Day]]*TOU_CTabulation[[#This Row],[Base Allow]]) -> 0 | S113: =VLOOKUP(TOU_CTabulation[[#This Row],[Hour]],daypart,2) -> All | T113: =TOU_CTabulation[[#This Row],[Season]]&TOU_CTabulation[[#This Row],[Day-Part]] -> WinterAll | U113: =VLOOKUP(TOU_CTabulation[[#This Row],[Daypart]],TOUC,2) -> 0.25902 | V113: =VLOOKUP(TOU_CTabulation[[#This Row],[Daypart]],TOUC,3) -> 0.32596 | W113: =TOU_CTabulation[[#This Row],[Month Base Allow]]*TOU_CTabulation[[#This Row],[Base Rate]] -> 0 | X113: =TOU_CTabulation[[#This Row],[Month Overbase Gen]]*TOU_CTabulation[[#This Row],[Over Rate]] -> 0 | Y113: =TOU_CTabulation[[#This Row],[Base Value]]+TOU_CTabulation[[#This Row],[Over Value]] -> 0
A114: 1 | B114: 4 | C114: 13 | D114: 935 | E114: 69 | F114: 18 | G114: 1 | H114: 773.29 | I114: 42.308 | J114: 2420.229 | K114: 2329.07 | L114: =TOU_CTabulation[[#This Row],[AC System Output (W)]]/1000 -> 2.32907 | M114: =IF(A113=TOU_CTabulation[[#This Row],[Month]],M113+TOU_CTabulation[[#This Row],[AC System Output (kW)]],TOU_CTabulation[[#This Row],[AC System Output (kW)]]) -> 54.704592 | N114: =VLOOKUP(TOU_CTabulation[[#This Row],[Month]],Season,2) -> Winter | O114: =VLOOKUP(TOU_CTabulation[[#This Row],[Season]],CRate,2) -> 10.5 | P114: =IF(A115>TOU_CTabulation[[#This Row],[Month]],TOU_CTabulation[[#This Row],[Day]]*TOU_CTabulation[[#This Row],[Base Allow]],0) -> 0 | Q114: =IF(A115>TOU_CTabulation[[#This Row],[Month]],TOU_CTabulation[[#This Row],[Month Cumm]],0) -> 0 | R114: =IF(TOU_CTabulation[[#This Row],[Month Base Gen]]=0,0,TOU_CTabulation[[#This Row],[Month Base Gen]]-TOU_CTabulation[[#This Row],[Day]]*TOU_CTabulation[[#This Row],[Base Allow]]) -> 0 | S114: =VLOOKUP(TOU_CTabulation[[#This Row],[Hour]],daypart,2) -> All | T114: =TOU_CTabulation[[#This Row],[Season]]&TOU_CTabulation[[#This Row],[Day-Part]] -> WinterAll | U114: =VLOOKUP(TOU_CTabulation[[#This Row],[Daypart]],TOUC,2) -> 0.25902 | V114: =VLOOKUP(TOU_CTabulation[[#This Row],[Daypart]],TOUC,3) -> 0.32596 | W114: =TOU_CTabulation[[#This Row],[Month Base Allow]]*TOU_CTabulation[[#This Row],[Base Rate]] -> 0 | X114: =TOU_CTabulation[[#This Row],[Month Overbase Gen]]*TOU_CTabulation[[#This Row],[Over Rate]] -> 0 | Y114: =TOU_CTabulation[[#This Row],[Base Value]]+TOU_CTabulation[[#This Row],[Over Value]] -> 0
A115: 1 | B115: 4 | C115: 14 | D115: 881 | E115: 62 | F115: 17 | G115: 0 | H115: 629.326 | I115: 43.498 | J115: 1934.111 | K115: 1861.533 | L115: =TOU_CTabulation[[#This Row],[AC System Output (W)]]/1000 -> 1.861533 | M115: =IF(A114=TOU_CTabulation[[#This Row],[Month]],M114+TOU_CTabulation[[#This Row],[AC System Output (kW)]],TOU_CTabulation[[#This Row],[AC System Output (kW)]]) -> 56.566125 | N115: =VLOOKUP(TOU_CTabulation[[#This Row],[Month]],Season,2) -> Winter | O115: =VLOOKUP(TOU_CTabulation[[#This Row],[Season]],CRate,2) -> 10.5 | P115: =IF(A116>TOU_CTabulation[[#This Row],[Month]],TOU_CTabulation[[#This Row],[Day]]*TOU_CTabulation[[#This Row],[Base Allow]],0) -> 0 | Q115: =IF(A116>TOU_CTabulation[[#This Row],[Month]],TOU_CTabulation[[#This Row],[Month Cumm]],0) -> 0 | R115: =IF(TOU_CTabulation[[#This Row],[Month Base Gen]]=0,0,TOU_CTabulation[[#This Row],[Month Base Gen]]-TOU_CTabulation[[#This Row],[Day]]*TOU_CTabulation[[#This Row],[Base Allow]]) -> 0 | S115: =VLOOKUP(TOU_CTabulation[[#This Row],[Hour]],daypart,2) -> All | T115: =TOU_CTabulation[[#This Row],[Season]]&TOU_CTabulation[[#This Row],[Day-Part]] -> WinterAll | U115: =VLOOKUP(TOU_CTabulation[[#This Row],[Daypart]],TOUC,2) -> 0.25902 | V115: =VLOOKUP(TOU_CTabulation[[#This Row],[Daypart]],TOUC,3) -> 0.32596 | W115: =TOU_CTabulation[[#This Row],[Month Base Allow]]*TOU_CTabulation[[#This Row],[Base Rate]] -> 0 | X115: =TOU_CTabulation[[#This Row],[Month Overbase Gen]]*TOU_CTabulation[[#This Row],[Over Rate]] -> 0 | Y115: =TOU_CTabulation[[#This Row],[Base Value]]+TOU_CTabulation[[#This Row],[Over Value]] -> 0
A116: 1 | B116: 4 | C116: 15 | D116: 763 | E116: 50 | F116: 15 | G116: 0 | H116: 423.405 | I116: 34.146 | J116: 1313.476 | K116: 1261.428 | L116: =TOU_CTabulation[[#This Row],[AC System Output (W)]]/1000 -> 1.261428 | M116: =IF(A115=TOU_CTabulation[[#This Row],[Month]],M115+TOU_CTabulation[[#This Row],[AC System Output (kW)]],TOU_CTabulation[[#This Row],[AC System Output (kW)]]) -> 57.827553 | N116: =VLOOKUP(TOU_CTabulation[[#This Row],[Month]],Season,2) -> Winter | O116: =VLOOKUP(TOU_CTabulation[[#This Row],[Season]],CRate,2) -> 10.5 | P116: =IF(A117>TOU_CTabulation[[#This Row],[Month]],TOU_CTabulation[[#This Row],[Day]]*TOU_CTabulation[[#This Row],[Base Allow]],0) -> 0 | Q116: =IF(A117>TOU_CTabulation[[#This Row],[Month]],TOU_CTabulation[[#This Row],[Month Cumm]],0) -> 0 | R116: =IF(TOU_CTabulation[[#This Row],[Month Base Gen]]=0,0,TOU_CTabulation[[#This Row],[Month Base Gen]]-TOU_CTabulation[[#This Row],[Day]]*TOU_CTabulation[[#This Row],[Base Allow]]) -> 0 | S116: =VLOOKUP(TOU_CTabulation[[#This Row],[Hour]],daypart,2) -> All | T116: =TOU_CTabulation[[#This Row],[Season]]&TOU_CTabulation[[#This Row],[Day-Part]] -> WinterAll | U116: =VLOOKUP(TOU_CTabulation[[#This Row],[Daypart]],TOUC,2) -> 0.25902 | V116: =VLOOKUP(TOU_CTabulation[[#This Row],[Daypart]],TOUC,3) -> 0.32596 | W116: =TOU_CTabulation[[#This Row],[Month Base Allow]]*TOU_CTabulation[[#This Row],[Base Rate]] -> 0 | X116: =TOU_CTabulation[[#This Row],[Month Overbase Gen]]*TOU_CTabulation[[#This Row],[Over Rate]] -> 0 | Y116: =TOU_CTabulation[[#This Row],[Base Value]]+TOU_CTabulation[[#This Row],[Over Value]] -> 0
A117: 1 | B117: 4 | C117: 16 | D117: 99 | E117: 31 | F117: 13 | G117: 0 | H117: 68.237 | I117: 17.89 | J117: 222.256 | K117: 197.622 | L117: =TOU_CTabulation[[#This Row],[AC System Output (W)]]/1000 -> 0.197622 | M117: =IF(A116=TOU_CTabulation[[#This Row],[Month]],M116+TOU_CTabulation[[#This Row],[AC System Output (kW)]],TOU_CTabulation[[#This Row],[AC System Output (kW)]]) -> 58.025175 | N117: =VLOOKUP(TOU_CTabulation[[#This Row],[Month]],Season,2) -> Winter | O117: =VLOOKUP(TOU_CTabulation[[#This Row],[Season]],CRate,2) -> 10.5 | P117: =IF(A118>TOU_CTabulation[[#This Row],[Month]],TOU_CTabulation[[#This Row],[Day]]*TOU_CTabulation[[#This Row],[Base Allow]],0) -> 0 | Q117: =IF(A118>TOU_CTabulation[[#This Row],[Month]],TOU_CTabulation[[#This Row],[Month Cumm]],0) -> 0 | R117: =IF(TOU_CTabulation[[#This Row],[Month Base Gen]]=0,0,TOU_CTabulation[[#This Row],[Month Base Gen]]-TOU_CTabulation[[#This Row],[Day]]*TOU_CTabulation[[#This Row],[Base Allow]]) -> 0 | S117: =VLOOKUP(TOU_CTabulation[[#This Row],[Hour]],daypart,2) -> All | T117: =TOU_CTabulation[[#This Row],[Season]]&TOU_CTabulation[[#This Row],[Day-Part]] -> WinterAll | U117: =VLOOKUP(TOU_CTabulation[[#This Row],[Daypart]],TOUC,2) -> 0.25902 | V117: =VLOOKUP(TOU_CTabulation[[#This Row],[Daypart]],TOUC,3) -> 0.32596 | W117: =TOU_CTabulation[[#This Row],[Month Base Allow]]*TOU_CTabulation[[#This Row],[Base Rate]] -> 0 | X117: =TOU_CTabulation[[#This Row],[Month Overbase Gen]]*TOU_CTabulation[[#This Row],[Over Rate]] -> 0 | Y117: =TOU_CTabulation[[#This Row],[Base Value]]+TOU_CTabulation[[#This Row],[Over Value]] -> 0
A118: 1 | B118: 4 | C118: 17 | D118: 0 | E118: 0 | F118: 11 | G118: 0 | H118: 0 | I118: 11 | J118: 0 | K118: 0 | L118: =TOU_CTabulation[[#This Row],[AC System Output (W)]]/1000 -> 0 | M118: =IF(A117=TOU_CTabulation[[#This Row],[Month]],M117+TOU_CTabulation[[#This Row],[AC System Output (kW)]],TOU_CTabulation[[#This Row],[AC System Output (kW)]]) -> 58.025175 | N118: =VLOOKUP(TOU_CTabulation[[#This Row],[Month]],Season,2) -> Winter | O118: =VLOOKUP(TOU_CTabulation[[#This Row],[Season]],CRate,2) -> 10.5 | P118: =IF(A119>TOU_CTabulation[[#This Row],[Month]],TOU_CTabulation[[#This Row],[Day]]*TOU_CTabulation[[#This Row],[Base Allow]],0) -> 0 | Q118: =IF(A119>TOU_CTabulation[[#This Row],[Month]],TOU_CTabulation[[#This Row],[Month Cumm]],0) -> 0 | R118: =IF(TOU_CTabulation[[#This Row],[Month Base Gen]]=0,0,TOU_CTabulation[[#This Row],[Month Base Gen]]-TOU_CTabulation[[#This Row],[Day]]*TOU_CTabulation[[#This Row],[Base Allow]]) -> 0 | S118: =VLOOKUP(TOU_CTabulation[[#This Row],[Hour]],daypart,2) -> All | T118: =TOU_CTabulation[[#This Row],[Season]]&TOU_CTabulation[[#This Row],[Day-Part]] -> WinterAll | U118: =VLOOKUP(TOU_CTabulation[[#This Row],[Daypart]],TOUC,2) -> 0.25902 | V118: =VLOOKUP(TOU_CTabulation[[#This Row],[Daypart]],TOUC,3) -> 0.32596 | W118: =TOU_CTabulation[[#This Row],[Month Base Allow]]*TOU_CTabulation[[#This Row],[Base Rate]] -> 0 | X118: =TOU_CTabulation[[#This Row],[Month Overbase Gen]]*TOU_CTabulation[[#This Row],[Over Rate]] -> 0 | Y118: =TOU_CTabulation[[#This Row],[Base Value]]+TOU_CTabulation[[#This Row],[Over Value]] -> 0
A119: 1 | B119: 4 | C119: 18 | D119: 0 | E119: 0 | F119: 10 | G119: 0 | H119: 0 | I119: 10 | J119: 0 | K119: 0 | L119: =TOU_CTabulation[[#This Row],[AC System Output (W)]]/1000 -> 0 | M119: =IF(A118=TOU_CTabulation[[#This Row],[Month]],M118+TOU_CTabulation[[#This Row],[AC System Output (kW)]],TOU_CTabulation[[#This Row],[AC System Output (kW)]]) -> 58.025175 | N119: =VLOOKUP(TOU_CTabulation[[#This Row],[Month]],Season,2) -> Winter | O119: =VLOOKUP(TOU_CTabulation[[#This Row],[Season]],CRate,2) -> 10.5 | P119: =IF(A120>TOU_CTabulation[[#This Row],[Month]],TOU_CTabulation[[#This Row],[Day]]*TOU_CTabulation[[#This Row],[Base Allow]],0) -> 0 | Q119: =IF(A120>TOU_CTabulation[[#This Row],[Month]],TOU_CTabulation[[#This Row],[Month Cumm]],0) -> 0 | R119: =IF(TOU_CTabulation[[#This Row],[Month Base Gen]]=0,0,TOU_CTabulation[[#This Row],[Month Base Gen]]-TOU_CTabulation[[#This Row],[Day]]*TOU_CTabulation[[#This Row],[Base Allow]]) -> 0 | S119: =VLOOKUP(TOU_CTabulation[[#This Row],[Hour]],daypart,2) -> All | T119: =TOU_CTabulation[[#This Row],[Season]]&TOU_CTabulation[[#This Row],[Day-Part]] -> WinterAll | U119: =VLOOKUP(TOU_CTabulation[[#This Row],[Daypart]],TOUC,2) -> 0.25902 | V119: =VLOOKUP(TOU_CTabulation[[#This Row],[Daypart]],TOUC,3) -> 0.32596 | W119: =TOU_CTabulation[[#This Row],[Month Base Allow]]*TOU_CTabulation[[#This Row],[Base Rate]] -> 0 | X119: =TOU_CTabulation[[#This Row],[Month Overbase Gen]]*TOU_CTabulation[[#This Row],[Over Rate]] -> 0 | Y119: =TOU_CTabulation[[#This Row],[Base Value]]+TOU_CTabulation[[#This Row],[Over Value]] -> 0
A120: 1 | B120: 4 | C120: 19 | D120: 0 | E120: 0 | F120: 9 | G120: 1 | H120: 0 | I120: 9 | J120: 0 | K120: 0 | L120: =TOU_CTabulation[[#This Row],[AC System Output (W)]]/1000 -> 0 | M120: =IF(A119=TOU_CTabulation[[#This Row],[Month]],M119+TOU_CTabulation[[#This Row],[AC System Output (kW)]],TOU_CTabulation[[#This Row],[AC System Output (kW)]]) -> 58.025175 | N120: =VLOOKUP(TOU_CTabulation[[#This Row],[Month]],Season,2) -> Winter | O120: =VLOOKUP(TOU_CTabulation[[#This Row],[Season]],CRate,2) -> 10.5 | P120: =IF(A121>TOU_CTabulation[[#This Row],[Month]],TOU_CTabulation[[#This Row],[Day]]*TOU_CTabulation[[#This Row],[Base Allow]],0) -> 0 | Q120: =IF(A121>TOU_CTabulation[[#This Row],[Month]],TOU_CTabulation[[#This Row],[Month Cumm]],0) -> 0 | R120: =IF(TOU_CTabulation[[#This Row],[Month Base Gen]]=0,0,TOU_CTabulation[[#This Row],[Month Base Gen]]-TOU_CTabulation[[#This Row],[Day]]*TOU_CTabulation[[#This Row],[Base Allow]]) -> 0 | S120: =VLOOKUP(TOU_CTabulation[[#This Row],[Hour]],daypart,2) -> All | T120: =TOU_CTabulation[[#This Row],[Season]]&TOU_CTabulation[[#This Row],[Day-Part]] -> WinterAll | U120: =VLOOKUP(TOU_CTabulation[[#This Row],[Daypart]],TOUC,2) -> 0.25902 | V120: =VLOOKUP(TOU_CTabulation[[#This Row],[Daypart]],TOUC,3) -> 0.32596 | W120: =TOU_CTabulation[[#This Row],[Month Base Allow]]*TOU_CTabulation[[#This Row],[Base Rate]] -> 0 | X120: =TOU_CTabulation[[#This Row],[Month Overbase Gen]]*TOU_CTabulation[[#This Row],[Over Rate]] -> 0 | Y120: =TOU_CTabulation[[#This Row],[Base Value]]+TOU_CTabulation[[#This Row],[Over Value]] -> 0
A121: 1 | B121: 4 | C121: 20 | D121: 0 | E121: 0 | F121: 9 | G121: 1 | H121: 0 | I121: 9 | J121: 0 | K121: 0 | L121: =TOU_CTabulation[[#This Row],[AC System Output (W)]]/1000 -> 0 | M121: =IF(A120=TOU_CTabulation[[#This Row],[Month]],M120+TOU_CTabulation[[#This Row],[AC System Output (kW)]],TOU_CTabulation[[#This Row],[AC System Output (kW)]]) -> 58.025175 | N121: =VLOOKUP(TOU_CTabulation[[#This Row],[Month]],Season,2) -> Winter | O121: =VLOOKUP(TOU_CTabulation[[#This Row],[Season]],CRate,2) -> 10.5 | P121: =IF(A122>TOU_CTabulation[[#This Row],[Month]],TOU_CTabulation[[#This Row],[Day]]*TOU_CTabulation[[#This Row],[Base Allow]],0) -> 0 | Q121: =IF(A122>TOU_CTabulation[[#This Row],[Month]],TOU_CTabulation[[#This Row],[Month Cumm]],0) -> 0 | R121: =IF(TOU_CTabulation[[#This Row],[Month Base Gen]]=0,0,TOU_CTabulation[[#This Row],[Month Base Gen]]-TOU_CTabulation[[#This Row],[Day]]*TOU_CTabulation[[#This Row],[Base Allow]]) -> 0 | S121: =VLOOKUP(TOU_CTabulation[[#This Row],[Hour]],daypart,2) -> All | T121: =TOU_CTabulation[[#This Row],[Season]]&TOU_CTabulation[[#This Row],[Day-Part]] -> WinterAll | U121: =VLOOKUP(TOU_CTabulation[[#This Row],[Daypart]],TOUC,2) -> 0.25902 | V121: =VLOOKUP(TOU_CTabulation[[#This Row],[Daypart]],TOUC,3) -> 0.32596 | W121: =TOU_CTabulation[[#This Row],[Month Base Allow]]*TOU_CTabulation[[#This Row],[Base Rate]] -> 0 | X121: =TOU_CTabulation[[#This Row],[Month Overbase Gen]]*TOU_CTabulation[[#This Row],[Over Rate]] -> 0 | Y121: =TOU_CTabulation[[#This Row],[Base Value]]+TOU_CTabulation[[#This Row],[Over Value]] -> 0
A122: 1 | B122: 4 | C122: 21 | D122: 0 | E122: 0 | F122: 8 | G122: 1 | H122: 0 | I122: 8 | J122: 0 | K122: 0 | L122: =TOU_CTabulation[[#This Row],[AC System Output (W)]]/1000 -> 0 | M122: =IF(A121=TOU_CTabulation[[#This Row],[Month]],M121+TOU_CTabulation[[#This Row],[AC System Output (kW)]],TOU_CTabulation[[#This Row],[AC System Output (kW)]]) -> 58.025175 | N122: =VLOOKUP(TOU_CTabulation[[#This Row],[Month]],Season,2) -> Winter | O122: =VLOOKUP(TOU_CTabulation[[#This Row],[Season]],CRate,2) -> 10.5 | P122: =IF(A123>TOU_CTabulation[[#This Row],[Month]],TOU_CTabulation[[#This Row],[Day]]*TOU_CTabulation[[#This Row],[Base Allow]],0) -> 0 | Q122: =IF(A123>TOU_CTabulation[[#This Row],[Month]],TOU_CTabulation[[#This Row],[Month Cumm]],0) -> 0 | R122: =IF(TOU_CTabulation[[#This Row],[Month Base Gen]]=0,0,TOU_CTabulation[[#This Row],[Month Base Gen]]-TOU_CTabulation[[#This Row],[Day]]*TOU_CTabulation[[#This Row],[Base Allow]]) -> 0 | S122: =VLOOKUP(TOU_CTabulation[[#This Row],[Hour]],daypart,2) -> All | T122: =TOU_CTabulation[[#This Row],[Season]]&TOU_CTabulation[[#This Row],[Day-Part]] -> WinterAll | U122: =VLOOKUP(TOU_CTabulation[[#This Row],[Daypart]],TOUC,2) -> 0.25902 | V122: =VLOOKUP(TOU_CTabulation[[#This Row],[Daypart]],TOUC,3) -> 0.32596 | W122: =TOU_CTabulation[[#This Row],[Month Base Allow]]*TOU_CTabulation[[#This Row],[Base Rate]] -> 0 | X122: =TOU_CTabulation[[#This Row],[Month Overbase Gen]]*TOU_CTabulation[[#This Row],[Over Rate]] -> 0 | Y122: =TOU_CTabulation[[#This Row],[Base Value]]+TOU_CTabulation[[#This Row],[Over Value]] -> 0
A123: 1 | B123: 4 | C123: 22 | D123: 0 | E123: 0 | F123: 8 | G123: 1 | H123: 0 | I123: 8 | J123: 0 | K123: 0 | L123: =TOU_CTabulation[[#This Row],[AC System Output (W)]]/1000 -> 0 | M123: =IF(A122=TOU_CTabulation[[#This Row],[Month]],M122+TOU_CTabulation[[#This Row],[AC System Output (kW)]],TOU_CTabulation[[#This Row],[AC System Output (kW)]]) -> 58.025175 | N123: =VLOOKUP(TOU_CTabulation[[#This Row],[Month]],Season,2) -> Winter | O123: =VLOOKUP(TOU_CTabulation[[#This Row],[Season]],CRate,2) -> 10.5 | P123: =IF(A124>TOU_CTabulation[[#This Row],[Month]],TOU_CTabulation[[#This Row],[Day]]*TOU_CTabulation[[#This Row],[Base Allow]],0) -> 0 | Q123: =IF(A124>TOU_CTabulation[[#This Row],[Month]],TOU_CTabulation[[#This Row],[Month Cumm]],0) -> 0 | R123: =IF(TOU_CTabulation[[#This Row],[Month Base Gen]]=0,0,TOU_CTabulation[[#This Row],[Month Base Gen]]-TOU_CTabulation[[#This Row],[Day]]*TOU_CTabulation[[#This Row],[Base Allow]]) -> 0 | S123: =VLOOKUP(TOU_CTabulation[[#This Row],[Hour]],daypart,2) -> All | T123: =TOU_CTabulation[[#This Row],[Season]]&TOU_CTabulation[[#This Row],[Day-Part]] -> WinterAll | U123: =VLOOKUP(TOU_CTabulation[[#This Row],[Daypart]],TOUC,2) -> 0.25902 | V123: =VLOOKUP(TOU_CTabulation[[#This Row],[Daypart]],TOUC,3) -> 0.32596 | W123: =TOU_CTabulation[[#This Row],[Month Base Allow]]*TOU_CTabulation[[#This Row],[Base Rate]] -> 0 | X123: =TOU_CTabulation[[#This Row],[Month Overbase Gen]]*TOU_CTabulation[[#This Row],[Over Rate]] -> 0 | Y123: =TOU_CTabulation[[#This Row],[Base Value]]+TOU_CTabulation[[#This Row],[Over Value]] -> 0
A124: 1 | B124: 4 | C124: 23 | D124: 0 | E124: 0 | F124: 8 | G124: 1 | H124: 0 | I124: 8 | J124: 0 | K124: 0 | L124: =TOU_CTabulation[[#This Row],[AC System Output (W)]]/1000 -> 0 | M124: =IF(A123=TOU_CTabulation[[#This Row],[Month]],M123+TOU_CTabulation[[#This Row],[AC System Output (kW)]],TOU_CTabulation[[#This Row],[AC System Output (kW)]]) -> 58.025175 | N124: =VLOOKUP(TOU_CTabulation[[#This Row],[Month]],Season,2) -> Winter | O124: =VLOOKUP(TOU_CTabulation[[#This Row],[Season]],CRate,2) -> 10.5 | P124: =IF(A125>TOU_CTabulation[[#This Row],[Month]],TOU_CTabulation[[#This Row],[Day]]*TOU_CTabulation[[#This Row],[Base Allow]],0) -> 0 | Q124: =IF(A125>TOU_CTabulation[[#This Row],[Month]],TOU_CTabulation[[#This Row],[Month Cumm]],0) -> 0 | R124: =IF(TOU_CTabulation[[#This Row],[Month Base Gen]]=0,0,TOU_CTabulation[[#This Row],[Month Base Gen]]-TOU_CTabulation[[#This Row],[Day]]*TOU_CTabulation[[#This Row],[Base Allow]]) -> 0 | S124: =VLOOKUP(TOU_CTabulation[[#This Row],[Hour]],daypart,2) -> All | T124: =TOU_CTabulation[[#This Row],[Season]]&TOU_CTabulation[[#This Row],[Day-Part]] -> WinterAll | U124: =VLOOKUP(TOU_CTabulation[[#This Row],[Daypart]],TOUC,2) -> 0.25902 | V124: =VLOOKUP(TOU_CTabulation[[#This Row],[Daypart]],TOUC,3) -> 0.32596 | W124: =TOU_CTabulation[[#This Row],[Month Base Allow]]*TOU_CTabulation[[#This Row],[Base Rate]] -> 0 | X124: =TOU_CTabulation[[#This Row],[Month Overbase Gen]]*TOU_CTabulation[[#This Row],[Over Rate]] -> 0 | Y124: =TOU_CTabulation[[#This Row],[Base Value]]+TOU_CTabulation[[#This Row],[Over Value]] -> 0
A125: 1 | B125: 5 | C125: 0 | D125: 0 | E125: 0 | F125: 7 | G125: 1 | H125: 0 | I125: 7 | J125: 0 | K125: 0 | L125: =TOU_CTabulation[[#This Row],[AC System Output (W)]]/1000 -> 0 | M125: =IF(A124=TOU_CTabulation[[#This Row],[Month]],M124+TOU_CTabulation[[#This Row],[AC System Output (kW)]],TOU_CTabulation[[#This Row],[AC System Output (kW)]]) -> 58.025175 | N125: =VLOOKUP(TOU_CTabulation[[#This Row],[Month]],Season,2) -> Winter | O125: =VLOOKUP(TOU_CTabulation[[#This Row],[Season]],CRate,2) -> 10.5 | P125: =IF(A126>TOU_CTabulation[[#This Row],[Month]],TOU_CTabulation[[#This Row],[Day]]*TOU_CTabulation[[#This Row],[Base Allow]],0) -> 0 | Q125: =IF(A126>TOU_CTabulation[[#This Row],[Month]],TOU_CTabulation[[#This Row],[Month Cumm]],0) -> 0 | R125: =IF(TOU_CTabulation[[#This Row],[Month Base Gen]]=0,0,TOU_CTabulation[[#This Row],[Month Base Gen]]-TOU_CTabulation[[#This Row],[Day]]*TOU_CTabulation[[#This Row],[Base Allow]]) -> 0 | S125: =VLOOKUP(TOU_CTabulation[[#This Row],[Hour]],daypart,2) -> All | T125: =TOU_CTabulation[[#This Row],[Season]]&TOU_CTabulation[[#This Row],[Day-Part]] -> WinterAll | U125: =VLOOKUP(TOU_CTabulation[[#This Row],[Daypart]],TOUC,2) -> 0.25902 | V125: =VLOOKUP(TOU_CTabulation[[#This Row],[Daypart]],TOUC,3) -> 0.32596 | W125: =TOU_CTabulation[[#This Row],[Month Base Allow]]*TOU_CTabulation[[#This Row],[Base Rate]] -> 0 | X125: =TOU_CTabulation[[#This Row],[Month Overbase Gen]]*TOU_CTabulation[[#This Row],[Over Rate]] -> 0 | Y125: =TOU_CTabulation[[#This Row],[Base Value]]+TOU_CTabulation[[#This Row],[Over Value]] -> 0
A126: 1 | B126: 5 | C126: 1 | D126: 0 | E126: 0 | F126: 6 | G126: 1 | H126: 0 | I126: 6 | J126: 0 | K126: 0 | L126: =TOU_CTabulation[[#This Row],[AC System Output (W)]]/1000 -> 0 | M126: =IF(A125=TOU_CTabulation[[#This Row],[Month]],M125+TOU_CTabulation[[#This Row],[AC System Output (kW)]],TOU_CTabulation[[#This Row],[AC System Output (kW)]]) -> 58.025175 | N126: =VLOOKUP(TOU_CTabulation[[#This Row],[Month]],Season,2) -> Winter | O126: =VLOOKUP(TOU_CTabulation[[#This Row],[Season]],CRate,2) -> 10.5 | P126: =IF(A127>TOU_CTabulation[[#This Row],[Month]],TOU_CTabulation[[#This Row],[Day]]*TOU_CTabulation[[#This Row],[Base Allow]],0) -> 0 | Q126: =IF(A127>TOU_CTabulation[[#This Row],[Month]],TOU_CTabulation[[#This Row],[Month Cumm]],0) -> 0 | R126: =IF(TOU_CTabulation[[#This Row],[Month Base Gen]]=0,0,TOU_CTabulation[[#This Row],[Month Base Gen]]-TOU_CTabulation[[#This Row],[Day]]*TOU_CTabulation[[#This Row],[Base Allow]]) -> 0 | S126: =VLOOKUP(TOU_CTabulation[[#This Row],[Hour]],daypart,2) -> All | T126: =TOU_CTabulation[[#This Row],[Season]]&TOU_CTabulation[[#This Row],[Day-Part]] -> WinterAll | U126: =VLOOKUP(TOU_CTabulation[[#This Row],[Daypart]],TOUC,2) -> 0.25902 | V126: =VLOOKUP(TOU_CTabulation[[#This Row],[Daypart]],TOUC,3) -> 0.32596 | W126: =TOU_CTabulation[[#This Row],[Month Base Allow]]*TOU_CTabulation[[#This Row],[Base Rate]] -> 0 | X126: =TOU_CTabulation[[#This Row],[Month Overbase Gen]]*TOU_CTabulation[[#This Row],[Over Rate]] -> 0 | Y126: =TOU_CTabulation[[#This Row],[Base Value]]+TOU_CTabulation[[#This Row],[Over Value]] -> 0
A127: 1 | B127: 5 | C127: 2 | D127: 0 | E127: 0 | F127: 5 | G127: 1 | H127: 0 | I127: 5 | J127: 0 | K127: 0 | L127: =TOU_CTabulation[[#This Row],[AC System Output (W)]]/1000 -> 0 | M127: =IF(A126=TOU_CTabulation[[#This Row],[Month]],M126+TOU_CTabulation[[#This Row],[AC System Output (kW)]],TOU_CTabulation[[#This Row],[AC System Output (kW)]]) -> 58.025175 | N127: =VLOOKUP(TOU_CTabulation[[#This Row],[Month]],Season,2) -> Winter | O127: =VLOOKUP(TOU_CTabulation[[#This Row],[Season]],CRate,2) -> 10.5 | P127: =IF(A128>TOU_CTabulation[[#This Row],[Month]],TOU_CTabulation[[#This Row],[Day]]*TOU_CTabulation[[#This Row],[Base Allow]],0) -> 0 | Q127: =IF(A128>TOU_CTabulation[[#This Row],[Month]],TOU_CTabulation[[#This Row],[Month Cumm]],0) -> 0 | R127: =IF(TOU_CTabulation[[#This Row],[Month Base Gen]]=0,0,TOU_CTabulation[[#This Row],[Month Base Gen]]-TOU_CTabulation[[#This Row],[Day]]*TOU_CTabulation[[#This Row],[Base Allow]]) -> 0 | S127: =VLOOKUP(TOU_CTabulation[[#This Row],[Hour]],daypart,2) -> All | T127: =TOU_CTabulation[[#This Row],[Season]]&TOU_CTabulation[[#This Row],[Day-Part]] -> WinterAll | U127: =VLOOKUP(TOU_CTabulation[[#This Row],[Daypart]],TOUC,2) -> 0.25902 | V127: =VLOOKUP(TOU_CTabulation[[#This Row],[Daypart]],TOUC,3) -> 0.32596 | W127: =TOU_CTabulation[[#This Row],[Month Base Allow]]*TOU_CTabulation[[#This Row],[Base Rate]] -> 0 | X127: =TOU_CTabulation[[#This Row],[Month Overbase Gen]]*TOU_CTabulation[[#This Row],[Over Rate]] -> 0 | Y127: =TOU_CTabulation[[#This Row],[Base Value]]+TOU_CTabulation[[#This Row],[Over Value]] -> 0
A128: 1 | B128: 5 | C128: 3 | D128: 0 | E128: 0 | F128: 5 | G128: 2 | H128: 0 | I128: 5 | J128: 0 | K128: 0 | L128: =TOU_CTabulation[[#This Row],[AC System Output (W)]]/1000 -> 0 | M128: =IF(A127=TOU_CTabulation[[#This Row],[Month]],M127+TOU_CTabulation[[#This Row],[AC System Output (kW)]],TOU_CTabulation[[#This Row],[AC System Output (kW)]]) -> 58.025175 | N128: =VLOOKUP(TOU_CTabulation[[#This Row],[Month]],Season,2) -> Winter | O128: =VLOOKUP(TOU_CTabulation[[#This Row],[Season]],CRate,2) -> 10.5 | P128: =IF(A129>TOU_CTabulation[[#This Row],[Month]],TOU_CTabulation[[#This Row],[Day]]*TOU_CTabulation[[#This Row],[Base Allow]],0) -> 0 | Q128: =IF(A129>TOU_CTabulation[[#This Row],[Month]],TOU_CTabulation[[#This Row],[Month Cumm]],0) -> 0 | R128: =IF(TOU_CTabulation[[#This Row],[Month Base Gen]]=0,0,TOU_CTabulation[[#This Row],[Month Base Gen]]-TOU_CTabulation[[#This Row],[Day]]*TOU_CTabulation[[#This Row],[Base Allow]]) -> 0 | S128: =VLOOKUP(TOU_CTabulation[[#This Row],[Hour]],daypart,2) -> All | T128: =TOU_CTabulation[[#This Row],[Season]]&TOU_CTabulation[[#This Row],[Day-Part]] -> WinterAll | U128: =VLOOKUP(TOU_CTabulation[[#This Row],[Daypart]],TOUC,2) -> 0.25902 | V128: =VLOOKUP(TOU_CTabulation[[#This Row],[Daypart]],TOUC,3) -> 0.32596 | W128: =TOU_CTabulation[[#This Row],[Month Base Allow]]*TOU_CTabulation[[#This Row],[Base Rate]] -> 0 | X128: =TOU_CTabulation[[#This Row],[Month Overbase Gen]]*TOU_CTabulation[[#This Row],[Over Rate]] -> 0 | Y128: =TOU_CTabulation[[#This Row],[Base Value]]+TOU_CTabulation[[#This Row],[Over Value]] -> 0
A129: 1 | B129: 5 | C129: 4 | D129: 0 | E129: 0 | F129: 5 | G129: 2 | H129: 0 | I129: 5 | J129: 0 | K129: 0 | L129: =TOU_CTabulation[[#This Row],[AC System Output (W)]]/1000 -> 0 | M129: =IF(A128=TOU_CTabulation[[#This Row],[Month]],M128+TOU_CTabulation[[#This Row],[AC System Output (kW)]],TOU_CTabulation[[#This Row],[AC System Output (kW)]]) -> 58.025175 | N129: =VLOOKUP(TOU_CTabulation[[#This Row],[Month]],Season,2) -> Winter | O129: =VLOOKUP(TOU_CTabulation[[#This Row],[Season]],CRate,2) -> 10.5 | P129: =IF(A130>TOU_CTabulation[[#This Row],[Month]],TOU_CTabulation[[#This Row],[Day]]*TOU_CTabulation[[#This Row],[Base Allow]],0) -> 0 | Q129: =IF(A130>TOU_CTabulation[[#This Row],[Month]],TOU_CTabulation[[#This Row],[Month Cumm]],0) -> 0 | R129: =IF(TOU_CTabulation[[#This Row],[Month Base Gen]]=0,0,TOU_CTabulation[[#This Row],[Month Base Gen]]-TOU_CTabulation[[#This Row],[Day]]*TOU_CTabulation[[#This Row],[Base Allow]]) -> 0 | S129: =VLOOKUP(TOU_CTabulation[[#This Row],[Hour]],daypart,2) -> All | T129: =TOU_CTabulation[[#This Row],[Season]]&TOU_CTabulation[[#This Row],[Day-Part]] -> WinterAll | U129: =VLOOKUP(TOU_CTabulation[[#This Row],[Daypart]],TOUC,2) -> 0.25902 | V129: =VLOOKUP(TOU_CTabulation[[#This Row],[Daypart]],TOUC,3) -> 0.32596 | W129: =TOU_CTabulation[[#This Row],[Month Base Allow]]*TOU_CTabulation[[#This Row],[Base Rate]] -> 0 | X129: =TOU_CTabulation[[#This Row],[Month Overbase Gen]]*TOU_CTabulation[[#This Row],[Over Rate]] -> 0 | Y129: =TOU_CTabulation[[#This Row],[Base Value]]+TOU_CTabulation[[#This Row],[Over Value]] -> 0
A130: 1 | B130: 5 | C130: 5 | D130: 0 | E130: 0 | F130: 5 | G130: 2 | H130: 0 | I130: 5 | J130: 0 | K130: 0 | L130: =TOU_CTabulation[[#This Row],[AC System Output (W)]]/1000 -> 0 | M130: =IF(A129=TOU_CTabulation[[#This Row],[Month]],M129+TOU_CTabulation[[#This Row],[AC System Output (kW)]],TOU_CTabulation[[#This Row],[AC System Output (kW)]]) -> 58.025175 | N130: =VLOOKUP(TOU_CTabulation[[#This Row],[Month]],Season,2) -> Winter | O130: =VLOOKUP(TOU_CTabulation[[#This Row],[Season]],CRate,2) -> 10.5 | P130: =IF(A131>TOU_CTabulation[[#This Row],[Month]],TOU_CTabulation[[#This Row],[Day]]*TOU_CTabulation[[#This Row],[Base Allow]],0) -> 0 | Q130: =IF(A131>TOU_CTabulation[[#This Row],[Month]],TOU_CTabulation[[#This Row],[Month Cumm]],0) -> 0 | R130: =IF(TOU_CTabulation[[#This Row],[Month Base Gen]]=0,0,TOU_CTabulation[[#This Row],[Month Base Gen]]-TOU_CTabulation[[#This Row],[Day]]*TOU_CTabulation[[#This Row],[Base Allow]]) -> 0 | S130: =VLOOKUP(TOU_CTabulation[[#This Row],[Hour]],daypart,2) -> All | T130: =TOU_CTabulation[[#This Row],[Season]]&TOU_CTabulation[[#This Row],[Day-Part]] -> WinterAll | U130: =VLOOKUP(TOU_CTabulation[[#This Row],[Daypart]],TOUC,2) -> 0.25902 | V130: =VLOOKUP(TOU_CTabulation[[#This Row],[Daypart]],TOUC,3) -> 0.32596 | W130: =TOU_CTabulation[[#This Row],[Month Base Allow]]*TOU_CTabulation[[#This Row],[Base Rate]] -> 0 | X130: =TOU_CTabulation[[#This Row],[Month Overbase Gen]]*TOU_CTabulation[[#This Row],[Over Rate]] -> 0 | Y130: =TOU_CTabulation[[#This Row],[Base Value]]+TOU_CTabulation[[#This Row],[Over Value]] -> 0
A131: 1 | B131: 5 | C131: 6 | D131: 0 | E131: 0 | F131: 5 | G131: 2 | H131: 0 | I131: 5 | J131: 0 | K131: 0 | L131: =TOU_CTabulation[[#This Row],[AC System Output (W)]]/1000 -> 0 | M131: =IF(A130=TOU_CTabulation[[#This Row],[Month]],M130+TOU_CTabulation[[#This Row],[AC System Output (kW)]],TOU_CTabulation[[#This Row],[AC System Output (kW)]]) -> 58.025175 | N131: =VLOOKUP(TOU_CTabulation[[#This Row],[Month]],Season,2) -> Winter | O131: =VLOOKUP(TOU_CTabulation[[#This Row],[Season]],CRate,2) -> 10.5 | P131: =IF(A132>TOU_CTabulation[[#This Row],[Month]],TOU_CTabulation[[#This Row],[Day]]*TOU_CTabulation[[#This Row],[Base Allow]],0) -> 0 | Q131: =IF(A132>TOU_CTabulation[[#This Row],[Month]],TOU_CTabulation[[#This Row],[Month Cumm]],0) -> 0 | R131: =IF(TOU_CTabulation[[#This Row],[Month Base Gen]]=0,0,TOU_CTabulation[[#This Row],[Month Base Gen]]-TOU_CTabulation[[#This Row],[Day]]*TOU_CTabulation[[#This Row],[Base Allow]]) -> 0 | S131: =VLOOKUP(TOU_CTabulation[[#This Row],[Hour]],daypart,2) -> All | T131: =TOU_CTabulation[[#This Row],[Season]]&TOU_CTabulation[[#This Row],[Day-Part]] -> WinterAll | U131: =VLOOKUP(TOU_CTabulation[[#This Row],[Daypart]],TOUC,2) -> 0.25902 | V131: =VLOOKUP(TOU_CTabulation[[#This Row],[Daypart]],TOUC,3) -> 0.32596 | W131: =TOU_CTabulation[[#This Row],[Month Base Allow]]*TOU_CTabulation[[#This Row],[Base Rate]] -> 0 | X131: =TOU_CTabulation[[#This Row],[Month Overbase Gen]]*TOU_CTabulation[[#This Row],[Over Rate]] -> 0 | Y131: =TOU_CTabulation[[#This Row],[Base Value]]+TOU_CTabulation[[#This Row],[Over Value]] -> 0
A132: 1 | B132: 5 | C132: 7 | D132: 0 | E132: 16 | F132: 6 | G132: 2 | H132: 15.164 | I132: 4.497 | J132: 57.139 | K132: 35.689 | L132: =TOU_CTabulation[[#This Row],[AC System Output (W)]]/1000 -> 0.035689 | M132: =IF(A131=TOU_CTabulation[[#This Row],[Month]],M131+TOU_CTabulation[[#This Row],[AC System Output (kW)]],TOU_CTabulation[[#This Row],[AC System Output (kW)]]) -> 58.060864 | N132: =VLOOKUP(TOU_CTabulation[[#This Row],[Month]],Season,2) -> Winter | O132: =VLOOKUP(TOU_CTabulation[[#This Row],[Season]],CRate,2) -> 10.5 | P132: =IF(A133>TOU_CTabulation[[#This Row],[Month]],TOU_CTabulation[[#This Row],[Day]]*TOU_CTabulation[[#This Row],[Base Allow]],0) -> 0 | Q132: =IF(A133>TOU_CTabulation[[#This Row],[Month]],TOU_CTabulation[[#This Row],[Month Cumm]],0) -> 0 | R132: =IF(TOU_CTabulation[[#This Row],[Month Base Gen]]=0,0,TOU_CTabulation[[#This Row],[Month Base Gen]]-TOU_CTabulation[[#This Row],[Day]]*TOU_CTabulation[[#This Row],[Base Allow]]) -> 0 | S132: =VLOOKUP(TOU_CTabulation[[#This Row],[Hour]],daypart,2) -> All | T132: =TOU_CTabulation[[#This Row],[Season]]&TOU_CTabulation[[#This Row],[Day-Part]] -> WinterAll | U132: =VLOOKUP(TOU_CTabulation[[#This Row],[Daypart]],TOUC,2) -> 0.25902 | V132: =VLOOKUP(TOU_CTabulation[[#This Row],[Daypart]],TOUC,3) -> 0.32596 | W132: =TOU_CTabulation[[#This Row],[Month Base Allow]]*TOU_CTabulation[[#This Row],[Base Rate]] -> 0 | X132: =TOU_CTabulation[[#This Row],[Month Overbase Gen]]*TOU_CTabulation[[#This Row],[Over Rate]] -> 0 | Y132: =TOU_CTabulation[[#This Row],[Base Value]]+TOU_CTabulation[[#This Row],[Over Value]] -> 0
A133: 1 | B133: 5 | C133: 8 | D133: 148 | E133: 82 | F133: 9 | G133: 2 | H133: 160.303 | I133: 11.438 | J133: 565.5 | K133: 533.435 | L133: =TOU_CTabulation[[#This Row],[AC System Output (W)]]/1000 -> 0.533435 | M133: =IF(A132=TOU_CTabulation[[#This Row],[Month]],M132+TOU_CTabulation[[#This Row],[AC System Output (kW)]],TOU_CTabulation[[#This Row],[AC System Output (kW)]]) -> 58.594299 | N133: =VLOOKUP(TOU_CTabulation[[#This Row],[Month]],Season,2) -> Winter | O133: =VLOOKUP(TOU_CTabulation[[#This Row],[Season]],CRate,2) -> 10.5 | P133: =IF(A134>TOU_CTabulation[[#This Row],[Month]],TOU_CTabulation[[#This Row],[Day]]*TOU_CTabulation[[#This Row],[Base Allow]],0) -> 0 | Q133: =IF(A134>TOU_CTabulation[[#This Row],[Month]],TOU_CTabulation[[#This Row],[Month Cumm]],0) -> 0 | R133: =IF(TOU_CTabulation[[#This Row],[Month Base Gen]]=0,0,TOU_CTabulation[[#This Row],[Month Base Gen]]-TOU_CTabulation[[#This Row],[Day]]*TOU_CTabulation[[#This Row],[Base Allow]]) -> 0 | S133: =VLOOKUP(TOU_CTabulation[[#This Row],[Hour]],daypart,2) -> All | T133: =TOU_CTabulation[[#This Row],[Season]]&TOU_CTabulation[[#This Row],[Day-Part]] -> WinterAll | U133: =VLOOKUP(TOU_CTabulation[[#This Row],[Daypart]],TOUC,2) -> 0.25902 | V133: =VLOOKUP(TOU_CTabulation[[#This Row],[Daypart]],TOUC,3) -> 0.32596 | W133: =TOU_CTabulation[[#This Row],[Month Base Allow]]*TOU_CTabulation[[#This Row],[Base Rate]] -> 0 | X133: =TOU_CTabulation[[#This Row],[Month Overbase Gen]]*TOU_CTabulation[[#This Row],[Over Rate]] -> 0 | Y133: =TOU_CTabulation[[#This Row],[Base Value]]+TOU_CTabulation[[#This Row],[Over Value]] -> 0
A134: 1 | B134: 5 | C134: 9 | D134: 365 | E134: 129 | F134: 12 | G134: 2 | H134: 373.082 | I134: 20.792 | J134: 1284.462 | K134: 1233.285 | L134: =TOU_CTabulation[[#This Row],[AC System Output (W)]]/1000 -> 1.233285 | M134: =IF(A133=TOU_CTabulation[[#This Row],[Month]],M133+TOU_CTabulation[[#This Row],[AC System Output (kW)]],TOU_CTabulation[[#This Row],[AC System Output (kW)]]) -> 59.827584 | N134: =VLOOKUP(TOU_CTabulation[[#This Row],[Month]],Season,2) -> Winter | O134: =VLOOKUP(TOU_CTabulation[[#This Row],[Season]],CRate,2) -> 10.5 | P134: =IF(A135>TOU_CTabulation[[#This Row],[Month]],TOU_CTabulation[[#This Row],[Day]]*TOU_CTabulation[[#This Row],[Base Allow]],0) -> 0 | Q134: =IF(A135>TOU_CTabulation[[#This Row],[Month]],TOU_CTabulation[[#This Row],[Month Cumm]],0) -> 0 | R134: =IF(TOU_CTabulation[[#This Row],[Month Base Gen]]=0,0,TOU_CTabulation[[#This Row],[Month Base Gen]]-TOU_CTabulation[[#This Row],[Day]]*TOU_CTabulation[[#This Row],[Base Allow]]) -> 0 | S134: =VLOOKUP(TOU_CTabulation[[#This Row],[Hour]],daypart,2) -> All | T134: =TOU_CTabulation[[#This Row],[Season]]&TOU_CTabulation[[#This Row],[Day-Part]] -> WinterAll | U134: =VLOOKUP(TOU_CTabulation[[#This Row],[Daypart]],TOUC,2) -> 0.25902 | V134: =VLOOKUP(TOU_CTabulation[[#This Row],[Daypart]],TOUC,3) -> 0.32596 | W134: =TOU_CTabulation[[#This Row],[Month Base Allow]]*TOU_CTabulation[[#This Row],[Base Rate]] -> 0 | X134: =TOU_CTabulation[[#This Row],[Month Overbase Gen]]*TOU_CTabulation[[#This Row],[Over Rate]] -> 0 | Y134: =TOU_CTabulation[[#This Row],[Base Value]]+TOU_CTabulation[[#This Row],[Over Value]] -> 0
A135: 1 | B135: 5 | C135: 10 | D135: 946 | E135: 67 | F135: 15 | G135: 2 | H135: 757.128 | I135: 34.48 | J135: 2459.701 | K135: 2366.937 | L135: =TOU_CTabulation[[#This Row],[AC System Output (W)]]/1000 -> 2.366937 | M135: =IF(A134=TOU_CTabulation[[#This Row],[Month]],M134+TOU_CTabulation[[#This Row],[AC System Output (kW)]],TOU_CTabulation[[#This Row],[AC System Output (kW)]]) -> 62.194521 | N135: =VLOOKUP(TOU_CTabulation[[#This Row],[Month]],Season,2) -> Winter | O135: =VLOOKUP(TOU_CTabulation[[#This Row],[Season]],CRate,2) -> 10.5 | P135: =IF(A136>TOU_CTabulation[[#This Row],[Month]],TOU_CTabulation[[#This Row],[Day]]*TOU_CTabulation[[#This Row],[Base Allow]],0) -> 0 | Q135: =IF(A136>TOU_CTabulation[[#This Row],[Month]],TOU_CTabulation[[#This Row],[Month Cumm]],0) -> 0 | R135: =IF(TOU_CTabulation[[#This Row],[Month Base Gen]]=0,0,TOU_CTabulation[[#This Row],[Month Base Gen]]-TOU_CTabulation[[#This Row],[Day]]*TOU_CTabulation[[#This Row],[Base Allow]]) -> 0 | S135: =VLOOKUP(TOU_CTabulation[[#This Row],[Hour]],daypart,2) -> All | T135: =TOU_CTabulation[[#This Row],[Season]]&TOU_CTabulation[[#This Row],[Day-Part]] -> WinterAll | U135: =VLOOKUP(TOU_CTabulation[[#This Row],[Daypart]],TOUC,2) -> 0.25902 | V135: =VLOOKUP(TOU_CTabulation[[#This Row],[Daypart]],TOUC,3) -> 0.32596 | W135: =TOU_CTabulation[[#This Row],[Month Base Allow]]*TOU_CTabulation[[#This Row],[Base Rate]] -> 0 | X135: =TOU_CTabulation[[#This Row],[Month Overbase Gen]]*TOU_CTabulation[[#This Row],[Over Rate]] -> 0 | Y135: =TOU_CTabulation[[#This Row],[Base Value]]+TOU_CTabulation[[#This Row],[Over Value]] -> 0
A136: 1 | B136: 5 | C136: 11 | D136: 969 | E136: 72 | F136: 16 | G136: 1 | H136: 845.594 | I136: 42.99 | J136: 2645.305 | K136: 2544.8 | L136: =TOU_CTabulation[[#This Row],[AC System Output (W)]]/1000 -> 2.5448 | M136: =IF(A135=TOU_CTabulation[[#This Row],[Month]],M135+TOU_CTabulation[[#This Row],[AC System Output (kW)]],TOU_CTabulation[[#This Row],[AC System Output (kW)]]) -> 64.739321 | N136: =VLOOKUP(TOU_CTabulation[[#This Row],[Month]],Season,2) -> Winter | O136: =VLOOKUP(TOU_CTabulation[[#This Row],[Season]],CRate,2) -> 10.5 | P136: =IF(A137>TOU_CTabulation[[#This Row],[Month]],TOU_CTabulation[[#This Row],[Day]]*TOU_CTabulation[[#This Row],[Base Allow]],0) -> 0 | Q136: =IF(A137>TOU_CTabulation[[#This Row],[Month]],TOU_CTabulation[[#This Row],[Month Cumm]],0) -> 0 | R136: =IF(TOU_CTabulation[[#This Row],[Month Base Gen]]=0,0,TOU_CTabulation[[#This Row],[Month Base Gen]]-TOU_CTabulation[[#This Row],[Day]]*TOU_CTabulation[[#This Row],[Base Allow]]) -> 0 | S136: =VLOOKUP(TOU_CTabulation[[#This Row],[Hour]],daypart,2) -> All | T136: =TOU_CTabulation[[#This Row],[Season]]&TOU_CTabulation[[#This Row],[Day-Part]] -> WinterAll | U136: =VLOOKUP(TOU_CTabulation[[#This Row],[Daypart]],TOUC,2) -> 0.25902 | V136: =VLOOKUP(TOU_CTabulation[[#This Row],[Daypart]],TOUC,3) -> 0.32596 | W136: =TOU_CTabulation[[#This Row],[Month Base Allow]]*TOU_CTabulation[[#This Row],[Base Rate]] -> 0 | X136: =TOU_CTabulation[[#This Row],[Month Overbase Gen]]*TOU_CTabulation[[#This Row],[Over Rate]] -> 0 | Y136: =TOU_CTabulation[[#This Row],[Base Value]]+TOU_CTabulation[[#This Row],[Over Value]] -> 0
A137: 1 | B137: 5 | C137: 12 | D137: 354 | E137: 217 | F137: 16 | G137: 1 | H137: 530.467 | I137: 34.383 | J137: 1737.369 | K137: 1671.686 | L137: =TOU_CTabulation[[#This Row],[AC System Output (W)]]/1000 -> 1.671686 | M137: =IF(A136=TOU_CTabulation[[#This Row],[Month]],M136+TOU_CTabulation[[#This Row],[AC System Output (kW)]],TOU_CTabulation[[#This Row],[AC System Output (kW)]]) -> 66.411007 | N137: =VLOOKUP(TOU_CTabulation[[#This Row],[Month]],Season,2) -> Winter | O137: =VLOOKUP(TOU_CTabulation[[#This Row],[Season]],CRate,2) -> 10.5 | P137: =IF(A138>TOU_CTabulation[[#This Row],[Month]],TOU_CTabulation[[#This Row],[Day]]*TOU_CTabulation[[#This Row],[Base Allow]],0) -> 0 | Q137: =IF(A138>TOU_CTabulation[[#This Row],[Month]],TOU_CTabulation[[#This Row],[Month Cumm]],0) -> 0 | R137: =IF(TOU_CTabulation[[#This Row],[Month Base Gen]]=0,0,TOU_CTabulation[[#This Row],[Month Base Gen]]-TOU_CTabulation[[#This Row],[Day]]*TOU_CTabulation[[#This Row],[Base Allow]]) -> 0 | S137: =VLOOKUP(TOU_CTabulation[[#This Row],[Hour]],daypart,2) -> All | T137: =TOU_CTabulation[[#This Row],[Season]]&TOU_CTabulation[[#This Row],[Day-Part]] -> WinterAll | U137: =VLOOKUP(TOU_CTabulation[[#This Row],[Daypart]],TOUC,2) -> 0.25902 | V137: =VLOOKUP(TOU_CTabulation[[#This Row],[Daypart]],TOUC,3) -> 0.32596 | W137: =TOU_CTabulation[[#This Row],[Month Base Allow]]*TOU_CTabulation[[#This Row],[Base Rate]] -> 0 | X137: =TOU_CTabulation[[#This Row],[Month Overbase Gen]]*TOU_CTabulation[[#This Row],[Over Rate]] -> 0 | Y137: =TOU_CTabulation[[#This Row],[Base Value]]+TOU_CTabulation[[#This Row],[Over Value]] -> 0
A138: 1 | B138: 5 | C138: 13 | D138: 630 | E138: 126 | F138: 16 | G138: 0 | H138: 625.462 | I138: 40.98 | J138: 1973.941 | K138: 1899.923 | L138: =TOU_CTabulation[[#This Row],[AC System Output (W)]]/1000 -> 1.899923 | M138: =IF(A137=TOU_CTabulation[[#This Row],[Month]],M137+TOU_CTabulation[[#This Row],[AC System Output (kW)]],TOU_CTabulation[[#This Row],[AC System Output (kW)]]) -> 68.31093 | N138: =VLOOKUP(TOU_CTabulation[[#This Row],[Month]],Season,2) -> Winter | O138: =VLOOKUP(TOU_CTabulation[[#This Row],[Season]],CRate,2) -> 10.5 | P138: =IF(A139>TOU_CTabulation[[#This Row],[Month]],TOU_CTabulation[[#This Row],[Day]]*TOU_CTabulation[[#This Row],[Base Allow]],0) -> 0 | Q138: =IF(A139>TOU_CTabulation[[#This Row],[Month]],TOU_CTabulation[[#This Row],[Month Cumm]],0) -> 0 | R138: =IF(TOU_CTabulation[[#This Row],[Month Base Gen]]=0,0,TOU_CTabulation[[#This Row],[Month Base Gen]]-TOU_CTabulation[[#This Row],[Day]]*TOU_CTabulation[[#This Row],[Base Allow]]) -> 0 | S138: =VLOOKUP(TOU_CTabulation[[#This Row],[Hour]],daypart,2) -> All | T138: =TOU_CTabulation[[#This Row],[Season]]&TOU_CTabulation[[#This Row],[Day-Part]] -> WinterAll | U138: =VLOOKUP(TOU_CTabulation[[#This Row],[Daypart]],TOUC,2) -> 0.25902 | V138: =VLOOKUP(TOU_CTabulation[[#This Row],[Daypart]],TOUC,3) -> 0.32596 | W138: =TOU_CTabulation[[#This Row],[Month Base Allow]]*TOU_CTabulation[[#This Row],[Base Rate]] -> 0 | X138: =TOU_CTabulation[[#This Row],[Month Overbase Gen]]*TOU_CTabulation[[#This Row],[Over Rate]] -> 0 | Y138: =TOU_CTabulation[[#This Row],[Base Value]]+TOU_CTabulation[[#This Row],[Over Value]] -> 0
A139: 1 | B139: 5 | C139: 14 | D139: 463 | E139: 128 | F139: 15 | G139: 0 | H139: 448.176 | I139: 34.93 | J139: 1446.323 | K139: 1390.181 | L139: =TOU_CTabulation[[#This Row],[AC System Output (W)]]/1000 -> 1.390181 | M139: =IF(A138=TOU_CTabulation[[#This Row],[Month]],M138+TOU_CTabulation[[#This Row],[AC System Output (kW)]],TOU_CTabulation[[#This Row],[AC System Output (kW)]]) -> 69.701111 | N139: =VLOOKUP(TOU_CTabulation[[#This Row],[Month]],Season,2) -> Winter | O139: =VLOOKUP(TOU_CTabulation[[#This Row],[Season]],CRate,2) -> 10.5 | P139: =IF(A140>TOU_CTabulation[[#This Row],[Month]],TOU_CTabulation[[#This Row],[Day]]*TOU_CTabulation[[#This Row],[Base Allow]],0) -> 0 | Q139: =IF(A140>TOU_CTabulation[[#This Row],[Month]],TOU_CTabulation[[#This Row],[Month Cumm]],0) -> 0 | R139: =IF(TOU_CTabulation[[#This Row],[Month Base Gen]]=0,0,TOU_CTabulation[[#This Row],[Month Base Gen]]-TOU_CTabulation[[#This Row],[Day]]*TOU_CTabulation[[#This Row],[Base Allow]]) -> 0 | S139: =VLOOKUP(TOU_CTabulation[[#This Row],[Hour]],daypart,2) -> All | T139: =TOU_CTabulation[[#This Row],[Season]]&TOU_CTabulation[[#This Row],[Day-Part]] -> WinterAll | U139: =VLOOKUP(TOU_CTabulation[[#This Row],[Daypart]],TOUC,2) -> 0.25902 | V139: =VLOOKUP(TOU_CTabulation[[#This Row],[Daypart]],TOUC,3) -> 0.32596 | W139: =TOU_CTabulation[[#This Row],[Month Base Allow]]*TOU_CTabulation[[#This Row],[Base Rate]] -> 0 | X139: =TOU_CTabulation[[#This Row],[Month Overbase Gen]]*TOU_CTabulation[[#This Row],[Over Rate]] -> 0 | Y139: =TOU_CTabulation[[#This Row],[Base Value]]+TOU_CTabulation[[#This Row],[Over Value]] -> 0
A140: 1 | B140: 5 | C140: 15 | D140: 485 | E140: 71 | F140: 13 | G140: 0 | H140: 321.188 | I140: 27.42 | J140: 1039.817 | K140: 995.684 | L140: =TOU_CTabulation[[#This Row],[AC System Output (W)]]/1000 -> 0.995684 | M140: =IF(A139=TOU_CTabulation[[#This Row],[Month]],M139+TOU_CTabulation[[#This Row],[AC System Output (kW)]],TOU_CTabulation[[#This Row],[AC System Output (kW)]]) -> 70.696795 | N140: =VLOOKUP(TOU_CTabulation[[#This Row],[Month]],Season,2) -> Winter | O140: =VLOOKUP(TOU_CTabulation[[#This Row],[Season]],CRate,2) -> 10.5 | P140: =IF(A141>TOU_CTabulation[[#This Row],[Month]],TOU_CTabulation[[#This Row],[Day]]*TOU_CTabulation[[#This Row],[Base Allow]],0) -> 0 | Q140: =IF(A141>TOU_CTabulation[[#This Row],[Month]],TOU_CTabulation[[#This Row],[Month Cumm]],0) -> 0 | R140: =IF(TOU_CTabulation[[#This Row],[Month Base Gen]]=0,0,TOU_CTabulation[[#This Row],[Month Base Gen]]-TOU_CTabulation[[#This Row],[Day]]*TOU_CTabulation[[#This Row],[Base Allow]]) -> 0 | S140: =VLOOKUP(TOU_CTabulation[[#This Row],[Hour]],daypart,2) -> All | T140: =TOU_CTabulation[[#This Row],[Season]]&TOU_CTabulation[[#This Row],[Day-Part]] -> WinterAll | U140: =VLOOKUP(TOU_CTabulation[[#This Row],[Daypart]],TOUC,2) -> 0.25902 | V140: =VLOOKUP(TOU_CTabulation[[#This Row],[Daypart]],TOUC,3) -> 0.32596 | W140: =TOU_CTabulation[[#This Row],[Month Base Allow]]*TOU_CTabulation[[#This Row],[Base Rate]] -> 0 | X140: =TOU_CTabulation[[#This Row],[Month Overbase Gen]]*TOU_CTabulation[[#This Row],[Over Rate]] -> 0 | Y140: =TOU_CTabulation[[#This Row],[Base Value]]+TOU_CTabulation[[#This Row],[Over Value]] -> 0
A141: 1 | B141: 5 | C141: 16 | D141: 136 | E141: 32 | F141: 11 | G141: 1 | H141: 84.982 | I141: 13.09 | J141: 280.248 | K141: 254.435 | L141: =TOU_CTabulation[[#This Row],[AC System Output (W)]]/1000 -> 0.254435 | M141: =IF(A140=TOU_CTabulation[[#This Row],[Month]],M140+TOU_CTabulation[[#This Row],[AC System Output (kW)]],TOU_CTabulation[[#This Row],[AC System Output (kW)]]) -> 70.95123 | N141: =VLOOKUP(TOU_CTabulation[[#This Row],[Month]],Season,2) -> Winter | O141: =VLOOKUP(TOU_CTabulation[[#This Row],[Season]],CRate,2) -> 10.5 | P141: =IF(A142>TOU_CTabulation[[#This Row],[Month]],TOU_CTabulation[[#This Row],[Day]]*TOU_CTabulation[[#This Row],[Base Allow]],0) -> 0 | Q141: =IF(A142>TOU_CTabulation[[#This Row],[Month]],TOU_CTabulation[[#This Row],[Month Cumm]],0) -> 0 | R141: =IF(TOU_CTabulation[[#This Row],[Month Base Gen]]=0,0,TOU_CTabulation[[#This Row],[Month Base Gen]]-TOU_CTabulation[[#This Row],[Day]]*TOU_CTabulation[[#This Row],[Base Allow]]) -> 0 | S141: =VLOOKUP(TOU_CTabulation[[#This Row],[Hour]],daypart,2) -> All | T141: =TOU_CTabulation[[#This Row],[Season]]&TOU_CTabulation[[#This Row],[Day-Part]] -> WinterAll | U141: =VLOOKUP(TOU_CTabulation[[#This Row],[Daypart]],TOUC,2) -> 0.25902 | V141: =VLOOKUP(TOU_CTabulation[[#This Row],[Daypart]],TOUC,3) -> 0.32596 | W141: =TOU_CTabulation[[#This Row],[Month Base Allow]]*TOU_CTabulation[[#This Row],[Base Rate]] -> 0 | X141: =TOU_CTabulation[[#This Row],[Month Overbase Gen]]*TOU_CTabulation[[#This Row],[Over Rate]] -> 0 | Y141: =TOU_CTabulation[[#This Row],[Base Value]]+TOU_CTabulation[[#This Row],[Over Value]] -> 0
A142: 1 | B142: 5 | C142: 17 | D142: 0 | E142: 0 | F142: 9 | G142: 1 | H142: 0 | I142: 9 | J142: 0 | K142: 0 | L142: =TOU_CTabulation[[#This Row],[AC System Output (W)]]/1000 -> 0 | M142: =IF(A141=TOU_CTabulation[[#This Row],[Month]],M141+TOU_CTabulation[[#This Row],[AC System Output (kW)]],TOU_CTabulation[[#This Row],[AC System Output (kW)]]) -> 70.95123 | N142: =VLOOKUP(TOU_CTabulation[[#This Row],[Month]],Season,2) -> Winter | O142: =VLOOKUP(TOU_CTabulation[[#This Row],[Season]],CRate,2) -> 10.5 | P142: =IF(A143>TOU_CTabulation[[#This Row],[Month]],TOU_CTabulation[[#This Row],[Day]]*TOU_CTabulation[[#This Row],[Base Allow]],0) -> 0 | Q142: =IF(A143>TOU_CTabulation[[#This Row],[Month]],TOU_CTabulation[[#This Row],[Month Cumm]],0) -> 0 | R142: =IF(TOU_CTabulation[[#This Row],[Month Base Gen]]=0,0,TOU_CTabulation[[#This Row],[Month Base Gen]]-TOU_CTabulation[[#This Row],[Day]]*TOU_CTabulation[[#This Row],[Base Allow]]) -> 0 | S142: =VLOOKUP(TOU_CTabulation[[#This Row],[Hour]],daypart,2) -> All | T142: =TOU_CTabulation[[#This Row],[Season]]&TOU_CTabulation[[#This Row],[Day-Part]] -> WinterAll | U142: =VLOOKUP(TOU_CTabulation[[#This Row],[Daypart]],TOUC,2) -> 0.25902 | V142: =VLOOKUP(TOU_CTabulation[[#This Row],[Daypart]],TOUC,3) -> 0.32596 | W142: =TOU_CTabulation[[#This Row],[Month Base Allow]]*TOU_CTabulation[[#This Row],[Base Rate]] -> 0 | X142: =TOU_CTabulation[[#This Row],[Month Overbase Gen]]*TOU_CTabulation[[#This Row],[Over Rate]] -> 0 | Y142: =TOU_CTabulation[[#This Row],[Base Value]]+TOU_CTabulation[[#This Row],[Over Value]] -> 0
A143: 1 | B143: 5 | C143: 18 | D143: 0 | E143: 0 | F143: 9 | G143: 1 | H143: 0 | I143: 9 | J143: 0 | K143: 0 | L143: =TOU_CTabulation[[#This Row],[AC System Output (W)]]/1000 -> 0 | M143: =IF(A142=TOU_CTabulation[[#This Row],[Month]],M142+TOU_CTabulation[[#This Row],[AC System Output (kW)]],TOU_CTabulation[[#This Row],[AC System Output (kW)]]) -> 70.95123 | N143: =VLOOKUP(TOU_CTabulation[[#This Row],[Month]],Season,2) -> Winter | O143: =VLOOKUP(TOU_CTabulation[[#This Row],[Season]],CRate,2) -> 10.5 | P143: =IF(A144>TOU_CTabulation[[#This Row],[Month]],TOU_CTabulation[[#This Row],[Day]]*TOU_CTabulation[[#This Row],[Base Allow]],0) -> 0 | Q143: =IF(A144>TOU_CTabulation[[#This Row],[Month]],TOU_CTabulation[[#This Row],[Month Cumm]],0) -> 0 | R143: =IF(TOU_CTabulation[[#This Row],[Month Base Gen]]=0,0,TOU_CTabulation[[#This Row],[Month Base Gen]]-TOU_CTabulation[[#This Row],[Day]]*TOU_CTabulation[[#This Row],[Base Allow]]) -> 0 | S143: =VLOOKUP(TOU_CTabulation[[#This Row],[Hour]],daypart,2) -> All | T143: =TOU_CTabulation[[#This Row],[Season]]&TOU_CTabulation[[#This Row],[Day-Part]] -> WinterAll | U143: =VLOOKUP(TOU_CTabulation[[#This Row],[Daypart]],TOUC,2) -> 0.25902 | V143: =VLOOKUP(TOU_CTabulation[[#This Row],[Daypart]],TOUC,3) -> 0.32596 | W143: =TOU_CTabulation[[#This Row],[Month Base Allow]]*TOU_CTabulation[[#This Row],[Base Rate]] -> 0 | X143: =TOU_CTabulation[[#This Row],[Month Overbase Gen]]*TOU_CTabulation[[#This Row],[Over Rate]] -> 0 | Y143: =TOU_CTabulation[[#This Row],[Base Value]]+TOU_CTabulation[[#This Row],[Over Value]] -> 0
A144: 1 | B144: 5 | C144: 19 | D144: 0 | E144: 0 | F144: 8 | G144: 2 | H144: 0 | I144: 8 | J144: 0 | K144: 0 | L144: =TOU_CTabulation[[#This Row],[AC System Output (W)]]/1000 -> 0 | M144: =IF(A143=TOU_CTabulation[[#This Row],[Month]],M143+TOU_CTabulation[[#This Row],[AC System Output (kW)]],TOU_CTabulation[[#This Row],[AC System Output (kW)]]) -> 70.95123 | N144: =VLOOKUP(TOU_CTabulation[[#This Row],[Month]],Season,2) -> Winter | O144: =VLOOKUP(TOU_CTabulation[[#This Row],[Season]],CRate,2) -> 10.5 | P144: =IF(A145>TOU_CTabulation[[#This Row],[Month]],TOU_CTabulation[[#This Row],[Day]]*TOU_CTabulation[[#This Row],[Base Allow]],0) -> 0 | Q144: =IF(A145>TOU_CTabulation[[#This Row],[Month]],TOU_CTabulation[[#This Row],[Month Cumm]],0) -> 0 | R144: =IF(TOU_CTabulation[[#This Row],[Month Base Gen]]=0,0,TOU_CTabulation[[#This Row],[Month Base Gen]]-TOU_CTabulation[[#This Row],[Day]]*TOU_CTabulation[[#This Row],[Base Allow]]) -> 0 | S144: =VLOOKUP(TOU_CTabulation[[#This Row],[Hour]],daypart,2) -> All | T144: =TOU_CTabulation[[#This Row],[Season]]&TOU_CTabulation[[#This Row],[Day-Part]] -> WinterAll | U144: =VLOOKUP(TOU_CTabulation[[#This Row],[Daypart]],TOUC,2) -> 0.25902 | V144: =VLOOKUP(TOU_CTabulation[[#This Row],[Daypart]],TOUC,3) -> 0.32596 | W144: =TOU_CTabulation[[#This Row],[Month Base Allow]]*TOU_CTabulation[[#This Row],[Base Rate]] -> 0 | X144: =TOU_CTabulation[[#This Row],[Month Overbase Gen]]*TOU_CTabulation[[#This Row],[Over Rate]] -> 0 | Y144: =TOU_CTabulation[[#This Row],[Base Value]]+TOU_CTabulation[[#This Row],[Over Value]] -> 0
A145: 1 | B145: 5 | C145: 20 | D145: 0 | E145: 0 | F145: 8 | G145: 2 | H145: 0 | I145: 8 | J145: 0 | K145: 0 | L145: =TOU_CTabulation[[#This Row],[AC System Output (W)]]/1000 -> 0 | M145: =IF(A144=TOU_CTabulation[[#This Row],[Month]],M144+TOU_CTabulation[[#This Row],[AC System Output (kW)]],TOU_CTabulation[[#This Row],[AC System Output (kW)]]) -> 70.95123 | N145: =VLOOKUP(TOU_CTabulation[[#This Row],[Month]],Season,2) -> Winter | O145: =VLOOKUP(TOU_CTabulation[[#This Row],[Season]],CRate,2) -> 10.5 | P145: =IF(A146>TOU_CTabulation[[#This Row],[Month]],TOU_CTabulation[[#This Row],[Day]]*TOU_CTabulation[[#This Row],[Base Allow]],0) -> 0 | Q145: =IF(A146>TOU_CTabulation[[#This Row],[Month]],TOU_CTabulation[[#This Row],[Month Cumm]],0) -> 0 | R145: =IF(TOU_CTabulation[[#This Row],[Month Base Gen]]=0,0,TOU_CTabulation[[#This Row],[Month Base Gen]]-TOU_CTabulation[[#This Row],[Day]]*TOU_CTabulation[[#This Row],[Base Allow]]) -> 0 | S145: =VLOOKUP(TOU_CTabulation[[#This Row],[Hour]],daypart,2) -> All | T145: =TOU_CTabulation[[#This Row],[Season]]&TOU_CTabulation[[#This Row],[Day-Part]] -> WinterAll | U145: =VLOOKUP(TOU_CTabulation[[#This Row],[Daypart]],TOUC,2) -> 0.25902 | V145: =VLOOKUP(TOU_CTabulation[[#This Row],[Daypart]],TOUC,3) -> 0.32596 | W145: =TOU_CTabulation[[#This Row],[Month Base Allow]]*TOU_CTabulation[[#This Row],[Base Rate]] -> 0 | X145: =TOU_CTabulation[[#This Row],[Month Overbase Gen]]*TOU_CTabulation[[#This Row],[Over Rate]] -> 0 | Y145: =TOU_CTabulation[[#This Row],[Base Value]]+TOU_CTabulation[[#This Row],[Over Value]] -> 0
A146: 1 | B146: 5 | C146: 21 | D146: 0 | E146: 0 | F146: 8 | G146: 2 | H146: 0 | I146: 8 | J146: 0 | K146: 0 | L146: =TOU_CTabulation[[#This Row],[AC System Output (W)]]/1000 -> 0 | M146: =IF(A145=TOU_CTabulation[[#This Row],[Month]],M145+TOU_CTabulation[[#This Row],[AC System Output (kW)]],TOU_CTabulation[[#This Row],[AC System Output (kW)]]) -> 70.95123 | N146: =VLOOKUP(TOU_CTabulation[[#This Row],[Month]],Season,2) -> Winter | O146: =VLOOKUP(TOU_CTabulation[[#This Row],[Season]],CRate,2) -> 10.5 | P146: =IF(A147>TOU_CTabulation[[#This Row],[Month]],TOU_CTabulation[[#This Row],[Day]]*TOU_CTabulation[[#This Row],[Base Allow]],0) -> 0 | Q146: =IF(A147>TOU_CTabulation[[#This Row],[Month]],TOU_CTabulation[[#This Row],[Month Cumm]],0) -> 0 | R146: =IF(TOU_CTabulation[[#This Row],[Month Base Gen]]=0,0,TOU_CTabulation[[#This Row],[Month Base Gen]]-TOU_CTabulation[[#This Row],[Day]]*TOU_CTabulation[[#This Row],[Base Allow]]) -> 0 | S146: =VLOOKUP(TOU_CTabulation[[#This Row],[Hour]],daypart,2) -> All | T146: =TOU_CTabulation[[#This Row],[Season]]&TOU_CTabulation[[#This Row],[Day-Part]] -> WinterAll | U146: =VLOOKUP(TOU_CTabulation[[#This Row],[Daypart]],TOUC,2) -> 0.25902 | V146: =VLOOKUP(TOU_CTabulation[[#This Row],[Daypart]],TOUC,3) -> 0.32596 | W146: =TOU_CTabulation[[#This Row],[Month Base Allow]]*TOU_CTabulation[[#This Row],[Base Rate]] -> 0 | X146: =TOU_CTabulation[[#This Row],[Month Overbase Gen]]*TOU_CTabulation[[#This Row],[Over Rate]] -> 0 | Y146: =TOU_CTabulation[[#This Row],[Base Value]]+TOU_CTabulation[[#This Row],[Over Value]] -> 0
A147: 1 | B147: 5 | C147: 22 | D147: 0 | E147: 0 | F147: 7 | G147: 2 | H147: 0 | I147: 7 | J147: 0 | K147: 0 | L147: =TOU_CTabulation[[#This Row],[AC System Output (W)]]/1000 -> 0 | M147: =IF(A146=TOU_CTabulation[[#This Row],[Month]],M146+TOU_CTabulation[[#This Row],[AC System Output (kW)]],TOU_CTabulation[[#This Row],[AC System Output (kW)]]) -> 70.95123 | N147: =VLOOKUP(TOU_CTabulation[[#This Row],[Month]],Season,2) -> Winter | O147: =VLOOKUP(TOU_CTabulation[[#This Row],[Season]],CRate,2) -> 10.5 | P147: =IF(A148>TOU_CTabulation[[#This Row],[Month]],TOU_CTabulation[[#This Row],[Day]]*TOU_CTabulation[[#This Row],[Base Allow]],0) -> 0 | Q147: =IF(A148>TOU_CTabulation[[#This Row],[Month]],TOU_CTabulation[[#This Row],[Month Cumm]],0) -> 0 | R147: =IF(TOU_CTabulation[[#This Row],[Month Base Gen]]=0,0,TOU_CTabulation[[#This Row],[Month Base Gen]]-TOU_CTabulation[[#This Row],[Day]]*TOU_CTabulation[[#This Row],[Base Allow]]) -> 0 | S147: =VLOOKUP(TOU_CTabulation[[#This Row],[Hour]],daypart,2) -> All | T147: =TOU_CTabulation[[#This Row],[Season]]&TOU_CTabulation[[#This Row],[Day-Part]] -> WinterAll | U147: =VLOOKUP(TOU_CTabulation[[#This Row],[Daypart]],TOUC,2) -> 0.25902 | V147: =VLOOKUP(TOU_CTabulation[[#This Row],[Daypart]],TOUC,3) -> 0.32596 | W147: =TOU_CTabulation[[#This Row],[Month Base Allow]]*TOU_CTabulation[[#This Row],[Base Rate]] -> 0 | X147: =TOU_CTabulation[[#This Row],[Month Overbase Gen]]*TOU_CTabulation[[#This Row],[Over Rate]] -> 0 | Y147: =TOU_CTabulation[[#This Row],[Base Value]]+TOU_CTabulation[[#This Row],[Over Value]] -> 0
A148: 1 | B148: 5 | C148: 23 | D148: 0 | E148: 0 | F148: 7 | G148: 2 | H148: 0 | I148: 7 | J148: 0 | K148: 0 | L148: =TOU_CTabulation[[#This Row],[AC System Output (W)]]/1000 -> 0 | M148: =IF(A147=TOU_CTabulation[[#This Row],[Month]],M147+TOU_CTabulation[[#This Row],[AC System Output (kW)]],TOU_CTabulation[[#This Row],[AC System Output (kW)]]) -> 70.95123 | N148: =VLOOKUP(TOU_CTabulation[[#This Row],[Month]],Season,2) -> Winter | O148: =VLOOKUP(TOU_CTabulation[[#This Row],[Season]],CRate,2) -> 10.5 | P148: =IF(A149>TOU_CTabulation[[#This Row],[Month]],TOU_CTabulation[[#This Row],[Day]]*TOU_CTabulation[[#This Row],[Base Allow]],0) -> 0 | Q148: =IF(A149>TOU_CTabulation[[#This Row],[Month]],TOU_CTabulation[[#This Row],[Month Cumm]],0) -> 0 | R148: =IF(TOU_CTabulation[[#This Row],[Month Base Gen]]=0,0,TOU_CTabulation[[#This Row],[Month Base Gen]]-TOU_CTabulation[[#This Row],[Day]]*TOU_CTabulation[[#This Row],[Base Allow]]) -> 0 | S148: =VLOOKUP(TOU_CTabulation[[#This Row],[Hour]],daypart,2) -> All | T148: =TOU_CTabulation[[#This Row],[Season]]&TOU_CTabulation[[#This Row],[Day-Part]] -> WinterAll | U148: =VLOOKUP(TOU_CTabulation[[#This Row],[Daypart]],TOUC,2) -> 0.25902 | V148: =VLOOKUP(TOU_CTabulation[[#This Row],[Daypart]],TOUC,3) -> 0.32596 | W148: =TOU_CTabulation[[#This Row],[Month Base Allow]]*TOU_CTabulation[[#This Row],[Base Rate]] -> 0 | X148: =TOU_CTabulation[[#This Row],[Month Overbase Gen]]*TOU_CTabulation[[#This Row],[Over Rate]] -> 0 | Y148: =TOU_CTabulation[[#This Row],[Base Value]]+TOU_CTabulation[[#This Row],[Over Value]] -> 0
A149: 1 | B149: 6 | C149: 0 | D149: 0 | E149: 0 | F149: 7 | G149: 1 | H149: 0 | I149: 7 | J149: 0 | K149: 0 | L149: =TOU_CTabulation[[#This Row],[AC System Output (W)]]/1000 -> 0 | M149: =IF(A148=TOU_CTabulation[[#This Row],[Month]],M148+TOU_CTabulation[[#This Row],[AC System Output (kW)]],TOU_CTabulation[[#This Row],[AC System Output (kW)]]) -> 70.95123 | N149: =VLOOKUP(TOU_CTabulation[[#This Row],[Month]],Season,2) -> Winter | O149: =VLOOKUP(TOU_CTabulation[[#This Row],[Season]],CRate,2) -> 10.5 | P149: =IF(A150>TOU_CTabulation[[#This Row],[Month]],TOU_CTabulation[[#This Row],[Day]]*TOU_CTabulation[[#This Row],[Base Allow]],0) -> 0 | Q149: =IF(A150>TOU_CTabulation[[#This Row],[Month]],TOU_CTabulation[[#This Row],[Month Cumm]],0) -> 0 | R149: =IF(TOU_CTabulation[[#This Row],[Month Base Gen]]=0,0,TOU_CTabulation[[#This Row],[Month Base Gen]]-TOU_CTabulation[[#This Row],[Day]]*TOU_CTabulation[[#This Row],[Base Allow]]) -> 0 | S149: =VLOOKUP(TOU_CTabulation[[#This Row],[Hour]],daypart,2) -> All | T149: =TOU_CTabulation[[#This Row],[Season]]&TOU_CTabulation[[#This Row],[Day-Part]] -> WinterAll | U149: =VLOOKUP(TOU_CTabulation[[#This Row],[Daypart]],TOUC,2) -> 0.25902 | V149: =VLOOKUP(TOU_CTabulation[[#This Row],[Daypart]],TOUC,3) -> 0.32596 | W149: =TOU_CTabulation[[#This Row],[Month Base Allow]]*TOU_CTabulation[[#This Row],[Base Rate]] -> 0 | X149: =TOU_CTabulation[[#This Row],[Month Overbase Gen]]*TOU_CTabulation[[#This Row],[Over Rate]] -> 0 | Y149: =TOU_CTabulation[[#This Row],[Base Value]]+TOU_CTabulation[[#This Row],[Over Value]] -> 0
A150: 1 | B150: 6 | C150: 1 | D150: 0 | E150: 0 | F150: 7 | G150: 1 | H150: 0 | I150: 7 | J150: 0 | K150: 0 | L150: =TOU_CTabulation[[#This Row],[AC System Output (W)]]/1000 -> 0 | M150: =IF(A149=TOU_CTabulation[[#This Row],[Month]],M149+TOU_CTabulation[[#This Row],[AC System Output (kW)]],TOU_CTabulation[[#This Row],[AC System Output (kW)]]) -> 70.95123 | N150: =VLOOKUP(TOU_CTabulation[[#This Row],[Month]],Season,2) -> Winter | O150: =VLOOKUP(TOU_CTabulation[[#This Row],[Season]],CRate,2) -> 10.5 | P150: =IF(A151>TOU_CTabulation[[#This Row],[Month]],TOU_CTabulation[[#This Row],[Day]]*TOU_CTabulation[[#This Row],[Base Allow]],0) -> 0 | Q150: =IF(A151>TOU_CTabulation[[#This Row],[Month]],TOU_CTabulation[[#This Row],[Month Cumm]],0) -> 0 | R150: =IF(TOU_CTabulation[[#This Row],[Month Base Gen]]=0,0,TOU_CTabulation[[#This Row],[Month Base Gen]]-TOU_CTabulation[[#This Row],[Day]]*TOU_CTabulation[[#This Row],[Base Allow]]) -> 0 | S150: =VLOOKUP(TOU_CTabulation[[#This Row],[Hour]],daypart,2) -> All | T150: =TOU_CTabulation[[#This Row],[Season]]&TOU_CTabulation[[#This Row],[Day-Part]] -> WinterAll | U150: =VLOOKUP(TOU_CTabulation[[#This Row],[Daypart]],TOUC,2) -> 0.25902 | V150: =VLOOKUP(TOU_CTabulation[[#This Row],[Daypart]],TOUC,3) -> 0.32596 | W150: =TOU_CTabulation[[#This Row],[Month Base Allow]]*TOU_CTabulation[[#This Row],[Base Rate]] -> 0 | X150: =TOU_CTabulation[[#This Row],[Month Overbase Gen]]*TOU_CTabulation[[#This Row],[Over Rate]] -> 0 | Y150: =TOU_CTabulation[[#This Row],[Base Value]]+TOU_CTabulation[[#This Row],[Over Value]] -> 0
A151: 1 | B151: 6 | C151: 2 | D151: 0 | E151: 0 | F151: 7 | G151: 1 | H151: 0 | I151: 7 | J151: 0 | K151: 0 | L151: =TOU_CTabulation[[#This Row],[AC System Output (W)]]/1000 -> 0 | M151: =IF(A150=TOU_CTabulation[[#This Row],[Month]],M150+TOU_CTabulation[[#This Row],[AC System Output (kW)]],TOU_CTabulation[[#This Row],[AC System Output (kW)]]) -> 70.95123 | N151: =VLOOKUP(TOU_CTabulation[[#This Row],[Month]],Season,2) -> Winter | O151: =VLOOKUP(TOU_CTabulation[[#This Row],[Season]],CRate,2) -> 10.5 | P151: =IF(A152>TOU_CTabulation[[#This Row],[Month]],TOU_CTabulation[[#This Row],[Day]]*TOU_CTabulation[[#This Row],[Base Allow]],0) -> 0 | Q151: =IF(A152>TOU_CTabulation[[#This Row],[Month]],TOU_CTabulation[[#This Row],[Month Cumm]],0) -> 0 | R151: =IF(TOU_CTabulation[[#This Row],[Month Base Gen]]=0,0,TOU_CTabulation[[#This Row],[Month Base Gen]]-TOU_CTabulation[[#This Row],[Day]]*TOU_CTabulation[[#This Row],[Base Allow]]) -> 0 | S151: =VLOOKUP(TOU_CTabulation[[#This Row],[Hour]],daypart,2) -> All | T151: =TOU_CTabulation[[#This Row],[Season]]&TOU_CTabulation[[#This Row],[Day-Part]] -> WinterAll | U151: =VLOOKUP(TOU_CTabulation[[#This Row],[Daypart]],TOUC,2) -> 0.25902 | V151: =VLOOKUP(TOU_CTabulation[[#This Row],[Daypart]],TOUC,3) -> 0.32596 | W151: =TOU_CTabulation[[#This Row],[Month Base Allow]]*TOU_CTabulation[[#This Row],[Base Rate]] -> 0 | X151: =TOU_CTabulation[[#This Row],[Month Overbase Gen]]*TOU_CTabulation[[#This Row],[Over Rate]] -> 0 | Y151: =TOU_CTabulation[[#This Row],[Base Value]]+TOU_CTabulation[[#This Row],[Over Value]] -> 0
A152: 1 | B152: 6 | C152: 3 | D152: 0 | E152: 0 | F152: 7 | G152: 1 | H152: 0 | I152: 7 | J152: 0 | K152: 0 | L152: =TOU_CTabulation[[#This Row],[AC System Output (W)]]/1000 -> 0 | M152: =IF(A151=TOU_CTabulation[[#This Row],[Month]],M151+TOU_CTabulation[[#This Row],[AC System Output (kW)]],TOU_CTabulation[[#This Row],[AC System Output (kW)]]) -> 70.95123 | N152: =VLOOKUP(TOU_CTabulation[[#This Row],[Month]],Season,2) -> Winter | O152: =VLOOKUP(TOU_CTabulation[[#This Row],[Season]],CRate,2) -> 10.5 | P152: =IF(A153>TOU_CTabulation[[#This Row],[Month]],TOU_CTabulation[[#This Row],[Day]]*TOU_CTabulation[[#This Row],[Base Allow]],0) -> 0 | Q152: =IF(A153>TOU_CTabulation[[#This Row],[Month]],TOU_CTabulation[[#This Row],[Month Cumm]],0) -> 0 | R152: =IF(TOU_CTabulation[[#This Row],[Month Base Gen]]=0,0,TOU_CTabulation[[#This Row],[Month Base Gen]]-TOU_CTabulation[[#This Row],[Day]]*TOU_CTabulation[[#This Row],[Base Allow]]) -> 0 | S152: =VLOOKUP(TOU_CTabulation[[#This Row],[Hour]],daypart,2) -> All | T152: =TOU_CTabulation[[#This Row],[Season]]&TOU_CTabulation[[#This Row],[Day-Part]] -> WinterAll | U152: =VLOOKUP(TOU_CTabulation[[#This Row],[Daypart]],TOUC,2) -> 0.25902 | V152: =VLOOKUP(TOU_CTabulation[[#This Row],[Daypart]],TOUC,3) -> 0.32596 | W152: =TOU_CTabulation[[#This Row],[Month Base Allow]]*TOU_CTabulation[[#This Row],[Base Rate]] -> 0 | X152: =TOU_CTabulation[[#This Row],[Month Overbase Gen]]*TOU_CTabulation[[#This Row],[Over Rate]] -> 0 | Y152: =TOU_CTabulation[[#This Row],[Base Value]]+TOU_CTabulation[[#This Row],[Over Value]] -> 0
A153: 1 | B153: 6 | C153: 4 | D153: 0 | E153: 0 | F153: 6 | G153: 1 | H153: 0 | I153: 6 | J153: 0 | K153: 0 | L153: =TOU_CTabulation[[#This Row],[AC System Output (W)]]/1000 -> 0 | M153: =IF(A152=TOU_CTabulation[[#This Row],[Month]],M152+TOU_CTabulation[[#This Row],[AC System Output (kW)]],TOU_CTabulation[[#This Row],[AC System Output (kW)]]) -> 70.95123 | N153: =VLOOKUP(TOU_CTabulation[[#This Row],[Month]],Season,2) -> Winter | O153: =VLOOKUP(TOU_CTabulation[[#This Row],[Season]],CRate,2) -> 10.5 | P153: =IF(A154>TOU_CTabulation[[#This Row],[Month]],TOU_CTabulation[[#This Row],[Day]]*TOU_CTabulation[[#This Row],[Base Allow]],0) -> 0 | Q153: =IF(A154>TOU_CTabulation[[#This Row],[Month]],TOU_CTabulation[[#This Row],[Month Cumm]],0) -> 0 | R153: =IF(TOU_CTabulation[[#This Row],[Month Base Gen]]=0,0,TOU_CTabulation[[#This Row],[Month Base Gen]]-TOU_CTabulation[[#This Row],[Day]]*TOU_CTabulation[[#This Row],[Base Allow]]) -> 0 | S153: =VLOOKUP(TOU_CTabulation[[#This Row],[Hour]],daypart,2) -> All | T153: =TOU_CTabulation[[#This Row],[Season]]&TOU_CTabulation[[#This Row],[Day-Part]] -> WinterAll | U153: =VLOOKUP(TOU_CTabulation[[#This Row],[Daypart]],TOUC,2) -> 0.25902 | V153: =VLOOKUP(TOU_CTabulation[[#This Row],[Daypart]],TOUC,3) -> 0.32596 | W153: =TOU_CTabulation[[#This Row],[Month Base Allow]]*TOU_CTabulation[[#This Row],[Base Rate]] -> 0 | X153: =TOU_CTabulation[[#This Row],[Month Overbase Gen]]*TOU_CTabulation[[#This Row],[Over Rate]] -> 0 | Y153: =TOU_CTabulation[[#This Row],[Base Value]]+TOU_CTabulation[[#This Row],[Over Value]] -> 0
A154: 1 | B154: 6 | C154: 5 | D154: 0 | E154: 0 | F154: 6 | G154: 2 | H154: 0 | I154: 6 | J154: 0 | K154: 0 | L154: =TOU_CTabulation[[#This Row],[AC System Output (W)]]/1000 -> 0 | M154: =IF(A153=TOU_CTabulation[[#This Row],[Month]],M153+TOU_CTabulation[[#This Row],[AC System Output (kW)]],TOU_CTabulation[[#This Row],[AC System Output (kW)]]) -> 70.95123 | N154: =VLOOKUP(TOU_CTabulation[[#This Row],[Month]],Season,2) -> Winter | O154: =VLOOKUP(TOU_CTabulation[[#This Row],[Season]],CRate,2) -> 10.5 | P154: =IF(A155>TOU_CTabulation[[#This Row],[Month]],TOU_CTabulation[[#This Row],[Day]]*TOU_CTabulation[[#This Row],[Base Allow]],0) -> 0 | Q154: =IF(A155>TOU_CTabulation[[#This Row],[Month]],TOU_CTabulation[[#This Row],[Month Cumm]],0) -> 0 | R154: =IF(TOU_CTabulation[[#This Row],[Month Base Gen]]=0,0,TOU_CTabulation[[#This Row],[Month Base Gen]]-TOU_CTabulation[[#This Row],[Day]]*TOU_CTabulation[[#This Row],[Base Allow]]) -> 0 | S154: =VLOOKUP(TOU_CTabulation[[#This Row],[Hour]],daypart,2) -> All | T154: =TOU_CTabulation[[#This Row],[Season]]&TOU_CTabulation[[#This Row],[Day-Part]] -> WinterAll | U154: =VLOOKUP(TOU_CTabulation[[#This Row],[Daypart]],TOUC,2) -> 0.25902 | V154: =VLOOKUP(TOU_CTabulation[[#This Row],[Daypart]],TOUC,3) -> 0.32596 | W154: =TOU_CTabulation[[#This Row],[Month Base Allow]]*TOU_CTabulation[[#This Row],[Base Rate]] -> 0 | X154: =TOU_CTabulation[[#This Row],[Month Overbase Gen]]*TOU_CTabulation[[#This Row],[Over Rate]] -> 0 | Y154: =TOU_CTabulation[[#This Row],[Base Value]]+TOU_CTabulation[[#This Row],[Over Value]] -> 0
A155: 1 | B155: 6 | C155: 6 | D155: 0 | E155: 0 | F155: 6 | G155: 2 | H155: 0 | I155: 6 | J155: 0 | K155: 0 | L155: =TOU_CTabulation[[#This Row],[AC System Output (W)]]/1000 -> 0 | M155: =IF(A154=TOU_CTabulation[[#This Row],[Month]],M154+TOU_CTabulation[[#This Row],[AC System Output (kW)]],TOU_CTabulation[[#This Row],[AC System Output (kW)]]) -> 70.95123 | N155: =VLOOKUP(TOU_CTabulation[[#This Row],[Month]],Season,2) -> Winter | O155: =VLOOKUP(TOU_CTabulation[[#This Row],[Season]],CRate,2) -> 10.5 | P155: =IF(A156>TOU_CTabulation[[#This Row],[Month]],TOU_CTabulation[[#This Row],[Day]]*TOU_CTabulation[[#This Row],[Base Allow]],0) -> 0 | Q155: =IF(A156>TOU_CTabulation[[#This Row],[Month]],TOU_CTabulation[[#This Row],[Month Cumm]],0) -> 0 | R155: =IF(TOU_CTabulation[[#This Row],[Month Base Gen]]=0,0,TOU_CTabulation[[#This Row],[Month Base Gen]]-TOU_CTabulation[[#This Row],[Day]]*TOU_CTabulation[[#This Row],[Base Allow]]) -> 0 | S155: =VLOOKUP(TOU_CTabulation[[#This Row],[Hour]],daypart,2) -> All | T155: =TOU_CTabulation[[#This Row],[Season]]&TOU_CTabulation[[#This Row],[Day-Part]] -> WinterAll | U155: =VLOOKUP(TOU_CTabulation[[#This Row],[Daypart]],TOUC,2) -> 0.25902 | V155: =VLOOKUP(TOU_CTabulation[[#This Row],[Daypart]],TOUC,3) -> 0.32596 | W155: =TOU_CTabulation[[#This Row],[Month Base Allow]]*TOU_CTabulation[[#This Row],[Base Rate]] -> 0 | X155: =TOU_CTabulation[[#This Row],[Month Overbase Gen]]*TOU_CTabulation[[#This Row],[Over Rate]] -> 0 | Y155: =TOU_CTabulation[[#This Row],[Base Value]]+TOU_CTabulation[[#This Row],[Over Value]] -> 0
A156: 1 | B156: 6 | C156: 7 | D156: 0 | E156: 28 | F156: 8 | G156: 2 | H156: 29.035 | I156: 6.984 | J156: 108.238 | K156: 85.83 | L156: =TOU_CTabulation[[#This Row],[AC System Output (W)]]/1000 -> 0.08583 | M156: =IF(A155=TOU_CTabulation[[#This Row],[Month]],M155+TOU_CTabulation[[#This Row],[AC System Output (kW)]],TOU_CTabulation[[#This Row],[AC System Output (kW)]]) -> 71.03706 | N156: =VLOOKUP(TOU_CTabulation[[#This Row],[Month]],Season,2) -> Winter | O156: =VLOOKUP(TOU_CTabulation[[#This Row],[Season]],CRate,2) -> 10.5 | P156: =IF(A157>TOU_CTabulation[[#This Row],[Month]],TOU_CTabulation[[#This Row],[Day]]*TOU_CTabulation[[#This Row],[Base Allow]],0) -> 0 | Q156: =IF(A157>TOU_CTabulation[[#This Row],[Month]],TOU_CTabulation[[#This Row],[Month Cumm]],0) -> 0 | R156: =IF(TOU_CTabulation[[#This Row],[Month Base Gen]]=0,0,TOU_CTabulation[[#This Row],[Month Base Gen]]-TOU_CTabulation[[#This Row],[Day]]*TOU_CTabulation[[#This Row],[Base Allow]]) -> 0 | S156: =VLOOKUP(TOU_CTabulation[[#This Row],[Hour]],daypart,2) -> All | T156: =TOU_CTabulation[[#This Row],[Season]]&TOU_CTabulation[[#This Row],[Day-Part]] -> WinterAll | U156: =VLOOKUP(TOU_CTabulation[[#This Row],[Daypart]],TOUC,2) -> 0.25902 | V156: =VLOOKUP(TOU_CTabulation[[#This Row],[Daypart]],TOUC,3) -> 0.32596 | W156: =TOU_CTabulation[[#This Row],[Month Base Allow]]*TOU_CTabulation[[#This Row],[Base Rate]] -> 0 | X156: =TOU_CTabulation[[#This Row],[Month Overbase Gen]]*TOU_CTabulation[[#This Row],[Over Rate]] -> 0 | Y156: =TOU_CTabulation[[#This Row],[Base Value]]+TOU_CTabulation[[#This Row],[Over Value]] -> 0
A157: 1 | B157: 6 | C157: 8 | D157: 104 | E157: 82 | F157: 11 | G157: 2 | H157: 136.185 | I157: 12.835 | J157: 480.428 | K157: 450.307 | L157: =TOU_CTabulation[[#This Row],[AC System Output (W)]]/1000 -> 0.450307 | M157: =IF(A156=TOU_CTabulation[[#This Row],[Month]],M156+TOU_CTabulation[[#This Row],[AC System Output (kW)]],TOU_CTabulation[[#This Row],[AC System Output (kW)]]) -> 71.487367 | N157: =VLOOKUP(TOU_CTabulation[[#This Row],[Month]],Season,2) -> Winter | O157: =VLOOKUP(TOU_CTabulation[[#This Row],[Season]],CRate,2) -> 10.5 | P157: =IF(A158>TOU_CTabulation[[#This Row],[Month]],TOU_CTabulation[[#This Row],[Day]]*TOU_CTabulation[[#This Row],[Base Allow]],0) -> 0 | Q157: =IF(A158>TOU_CTabulation[[#This Row],[Month]],TOU_CTabulation[[#This Row],[Month Cumm]],0) -> 0 | R157: =IF(TOU_CTabulation[[#This Row],[Month Base Gen]]=0,0,TOU_CTabulation[[#This Row],[Month Base Gen]]-TOU_CTabulation[[#This Row],[Day]]*TOU_CTabulation[[#This Row],[Base Allow]]) -> 0 | S157: =VLOOKUP(TOU_CTabulation[[#This Row],[Hour]],daypart,2) -> All | T157: =TOU_CTabulation[[#This Row],[Season]]&TOU_CTabulation[[#This Row],[Day-Part]] -> WinterAll | U157: =VLOOKUP(TOU_CTabulation[[#This Row],[Daypart]],TOUC,2) -> 0.25902 | V157: =VLOOKUP(TOU_CTabulation[[#This Row],[Daypart]],TOUC,3) -> 0.32596 | W157: =TOU_CTabulation[[#This Row],[Month Base Allow]]*TOU_CTabulation[[#This Row],[Base Rate]] -> 0 | X157: =TOU_CTabulation[[#This Row],[Month Overbase Gen]]*TOU_CTabulation[[#This Row],[Over Rate]] -> 0 | Y157: =TOU_CTabulation[[#This Row],[Base Value]]+TOU_CTabulation[[#This Row],[Over Value]] -> 0
A158: 1 | B158: 6 | C158: 9 | D158: 857 | E158: 58 | F158: 13 | G158: 1 | H158: 577.518 | I158: 29.702 | J158: 1888.916 | K158: 1817.954 | L158: =TOU_CTabulation[[#This Row],[AC System Output (W)]]/1000 -> 1.817954 | M158: =IF(A157=TOU_CTabulation[[#This Row],[Month]],M157+TOU_CTabulation[[#This Row],[AC System Output (kW)]],TOU_CTabulation[[#This Row],[AC System Output (kW)]]) -> 73.305321 | N158: =VLOOKUP(TOU_CTabulation[[#This Row],[Month]],Season,2) -> Winter | O158: =VLOOKUP(TOU_CTabulation[[#This Row],[Season]],CRate,2) -> 10.5 | P158: =IF(A159>TOU_CTabulation[[#This Row],[Month]],TOU_CTabulation[[#This Row],[Day]]*TOU_CTabulation[[#This Row],[Base Allow]],0) -> 0 | Q158: =IF(A159>TOU_CTabulation[[#This Row],[Month]],TOU_CTabulation[[#This Row],[Month Cumm]],0) -> 0 | R158: =IF(TOU_CTabulation[[#This Row],[Month Base Gen]]=0,0,TOU_CTabulation[[#This Row],[Month Base Gen]]-TOU_CTabulation[[#This Row],[Day]]*TOU_CTabulation[[#This Row],[Base Allow]]) -> 0 | S158: =VLOOKUP(TOU_CTabulation[[#This Row],[Hour]],daypart,2) -> All | T158: =TOU_CTabulation[[#This Row],[Season]]&TOU_CTabulation[[#This Row],[Day-Part]] -> WinterAll | U158: =VLOOKUP(TOU_CTabulation[[#This Row],[Daypart]],TOUC,2) -> 0.25902 | V158: =VLOOKUP(TOU_CTabulation[[#This Row],[Daypart]],TOUC,3) -> 0.32596 | W158: =TOU_CTabulation[[#This Row],[Month Base Allow]]*TOU_CTabulation[[#This Row],[Base Rate]] -> 0 | X158: =TOU_CTabulation[[#This Row],[Month Overbase Gen]]*TOU_CTabulation[[#This Row],[Over Rate]] -> 0 | Y158: =TOU_CTabulation[[#This Row],[Base Value]]+TOU_CTabulation[[#This Row],[Over Value]] -> 0
A159: 1 | B159: 6 | C159: 10 | D159: 928 | E159: 64 | F159: 16 | G159: 1 | H159: 741.114 | I159: 39.31 | J159: 2350.494 | K159: 2262.136 | L159: =TOU_CTabulation[[#This Row],[AC System Output (W)]]/1000 -> 2.262136 | M159: =IF(A158=TOU_CTabulation[[#This Row],[Month]],M158+TOU_CTabulation[[#This Row],[AC System Output (kW)]],TOU_CTabulation[[#This Row],[AC System Output (kW)]]) -> 75.567457 | N159: =VLOOKUP(TOU_CTabulation[[#This Row],[Month]],Season,2) -> Winter | O159: =VLOOKUP(TOU_CTabulation[[#This Row],[Season]],CRate,2) -> 10.5 | P159: =IF(A160>TOU_CTabulation[[#This Row],[Month]],TOU_CTabulation[[#This Row],[Day]]*TOU_CTabulation[[#This Row],[Base Allow]],0) -> 0 | Q159: =IF(A160>TOU_CTabulation[[#This Row],[Month]],TOU_CTabulation[[#This Row],[Month Cumm]],0) -> 0 | R159: =IF(TOU_CTabulation[[#This Row],[Month Base Gen]]=0,0,TOU_CTabulation[[#This Row],[Month Base Gen]]-TOU_CTabulation[[#This Row],[Day]]*TOU_CTabulation[[#This Row],[Base Allow]]) -> 0 | S159: =VLOOKUP(TOU_CTabulation[[#This Row],[Hour]],daypart,2) -> All | T159: =TOU_CTabulation[[#This Row],[Season]]&TOU_CTabulation[[#This Row],[Day-Part]] -> WinterAll | U159: =VLOOKUP(TOU_CTabulation[[#This Row],[Daypart]],TOUC,2) -> 0.25902 | V159: =VLOOKUP(TOU_CTabulation[[#This Row],[Daypart]],TOUC,3) -> 0.32596 | W159: =TOU_CTabulation[[#This Row],[Month Base Allow]]*TOU_CTabulation[[#This Row],[Base Rate]] -> 0 | X159: =TOU_CTabulation[[#This Row],[Month Overbase Gen]]*TOU_CTabulation[[#This Row],[Over Rate]] -> 0 | Y159: =TOU_CTabulation[[#This Row],[Base Value]]+TOU_CTabulation[[#This Row],[Over Value]] -> 0
A160: 1 | B160: 6 | C160: 11 | D160: 957 | E160: 67 | F160: 18 | G160: 0 | H160: 831.083 | I160: 50.345 | J160: 2501.786 | K160: 2407.295 | L160: =TOU_CTabulation[[#This Row],[AC System Output (W)]]/1000 -> 2.407295 | M160: =IF(A159=TOU_CTabulation[[#This Row],[Month]],M159+TOU_CTabulation[[#This Row],[AC System Output (kW)]],TOU_CTabulation[[#This Row],[AC System Output (kW)]]) -> 77.974752 | N160: =VLOOKUP(TOU_CTabulation[[#This Row],[Month]],Season,2) -> Winter | O160: =VLOOKUP(TOU_CTabulation[[#This Row],[Season]],CRate,2) -> 10.5 | P160: =IF(A161>TOU_CTabulation[[#This Row],[Month]],TOU_CTabulation[[#This Row],[Day]]*TOU_CTabulation[[#This Row],[Base Allow]],0) -> 0 | Q160: =IF(A161>TOU_CTabulation[[#This Row],[Month]],TOU_CTabulation[[#This Row],[Month Cumm]],0) -> 0 | R160: =IF(TOU_CTabulation[[#This Row],[Month Base Gen]]=0,0,TOU_CTabulation[[#This Row],[Month Base Gen]]-TOU_CTabulation[[#This Row],[Day]]*TOU_CTabulation[[#This Row],[Base Allow]]) -> 0 | S160: =VLOOKUP(TOU_CTabulation[[#This Row],[Hour]],daypart,2) -> All | T160: =TOU_CTabulation[[#This Row],[Season]]&TOU_CTabulation[[#This Row],[Day-Part]] -> WinterAll | U160: =VLOOKUP(TOU_CTabulation[[#This Row],[Daypart]],TOUC,2) -> 0.25902 | V160: =VLOOKUP(TOU_CTabulation[[#This Row],[Daypart]],TOUC,3) -> 0.32596 | W160: =TOU_CTabulation[[#This Row],[Month Base Allow]]*TOU_CTabulation[[#This Row],[Base Rate]] -> 0 | X160: =TOU_CTabulation[[#This Row],[Month Overbase Gen]]*TOU_CTabulation[[#This Row],[Over Rate]] -> 0 | Y160: =TOU_CTabulation[[#This Row],[Base Value]]+TOU_CTabulation[[#This Row],[Over Value]] -> 0
A161: 1 | B161: 6 | C161: 12 | D161: 960 | E161: 67 | F161: 19 | G161: 0 | H161: 841.972 | I161: 52.066 | J161: 2512.541 | K161: 2417.606 | L161: =TOU_CTabulation[[#This Row],[AC System Output (W)]]/1000 -> 2.417606 | M161: =IF(A160=TOU_CTabulation[[#This Row],[Month]],M160+TOU_CTabulation[[#This Row],[AC System Output (kW)]],TOU_CTabulation[[#This Row],[AC System Output (kW)]]) -> 80.392358 | N161: =VLOOKUP(TOU_CTabulation[[#This Row],[Month]],Season,2) -> Winter | O161: =VLOOKUP(TOU_CTabulation[[#This Row],[Season]],CRate,2) -> 10.5 | P161: =IF(A162>TOU_CTabulation[[#This Row],[Month]],TOU_CTabulation[[#This Row],[Day]]*TOU_CTabulation[[#This Row],[Base Allow]],0) -> 0 | Q161: =IF(A162>TOU_CTabulation[[#This Row],[Month]],TOU_CTabulation[[#This Row],[Month Cumm]],0) -> 0 | R161: =IF(TOU_CTabulation[[#This Row],[Month Base Gen]]=0,0,TOU_CTabulation[[#This Row],[Month Base Gen]]-TOU_CTabulation[[#This Row],[Day]]*TOU_CTabulation[[#This Row],[Base Allow]]) -> 0 | S161: =VLOOKUP(TOU_CTabulation[[#This Row],[Hour]],daypart,2) -> All | T161: =TOU_CTabulation[[#This Row],[Season]]&TOU_CTabulation[[#This Row],[Day-Part]] -> WinterAll | U161: =VLOOKUP(TOU_CTabulation[[#This Row],[Daypart]],TOUC,2) -> 0.25902 | V161: =VLOOKUP(TOU_CTabulation[[#This Row],[Daypart]],TOUC,3) -> 0.32596 | W161: =TOU_CTabulation[[#This Row],[Month Base Allow]]*TOU_CTabulation[[#This Row],[Base Rate]] -> 0 | X161: =TOU_CTabulation[[#This Row],[Month Overbase Gen]]*TOU_CTabulation[[#This Row],[Over Rate]] -> 0 | Y161: =TOU_CTabulation[[#This Row],[Base Value]]+TOU_CTabulation[[#This Row],[Over Value]] -> 0
A162: 1 | B162: 6 | C162: 13 | D162: 940 | E162: 64 | F162: 19 | G162: 1 | H162: 774.165 | I162: 44.153 | J162: 2400.577 | K162: 2310.212 | L162: =TOU_CTabulation[[#This Row],[AC System Output (W)]]/1000 -> 2.310212 | M162: =IF(A161=TOU_CTabulation[[#This Row],[Month]],M161+TOU_CTabulation[[#This Row],[AC System Output (kW)]],TOU_CTabulation[[#This Row],[AC System Output (kW)]]) -> 82.70257 | N162: =VLOOKUP(TOU_CTabulation[[#This Row],[Month]],Season,2) -> Winter | O162: =VLOOKUP(TOU_CTabulation[[#This Row],[Season]],CRate,2) -> 10.5 | P162: =IF(A163>TOU_CTabulation[[#This Row],[Month]],TOU_CTabulation[[#This Row],[Day]]*TOU_CTabulation[[#This Row],[Base Allow]],0) -> 0 | Q162: =IF(A163>TOU_CTabulation[[#This Row],[Month]],TOU_CTabulation[[#This Row],[Month Cumm]],0) -> 0 | R162: =IF(TOU_CTabulation[[#This Row],[Month Base Gen]]=0,0,TOU_CTabulation[[#This Row],[Month Base Gen]]-TOU_CTabulation[[#This Row],[Day]]*TOU_CTabulation[[#This Row],[Base Allow]]) -> 0 | S162: =VLOOKUP(TOU_CTabulation[[#This Row],[Hour]],daypart,2) -> All | T162: =TOU_CTabulation[[#This Row],[Season]]&TOU_CTabulation[[#This Row],[Day-Part]] -> WinterAll | U162: =VLOOKUP(TOU_CTabulation[[#This Row],[Daypart]],TOUC,2) -> 0.25902 | V162: =VLOOKUP(TOU_CTabulation[[#This Row],[Daypart]],TOUC,3) -> 0.32596 | W162: =TOU_CTabulation[[#This Row],[Month Base Allow]]*TOU_CTabulation[[#This Row],[Base Rate]] -> 0 | X162: =TOU_CTabulation[[#This Row],[Month Overbase Gen]]*TOU_CTabulation[[#This Row],[Over Rate]] -> 0 | Y162: =TOU_CTabulation[[#This Row],[Base Value]]+TOU_CTabulation[[#This Row],[Over Value]] -> 0
A163: 1 | B163: 6 | C163: 14 | D163: 883 | E163: 59 | F163: 18 | G163: 1 | H163: 630.533 | I163: 38.874 | J163: 1984.922 | K163: 1910.505 | L163: =TOU_CTabulation[[#This Row],[AC System Output (W)]]/1000 -> 1.910505 | M163: =IF(A162=TOU_CTabulation[[#This Row],[Month]],M162+TOU_CTabulation[[#This Row],[AC System Output (kW)]],TOU_CTabulation[[#This Row],[AC System Output (kW)]]) -> 84.613075 | N163: =VLOOKUP(TOU_CTabulation[[#This Row],[Month]],Season,2) -> Winter | O163: =VLOOKUP(TOU_CTabulation[[#This Row],[Season]],CRate,2) -> 10.5 | P163: =IF(A164>TOU_CTabulation[[#This Row],[Month]],TOU_CTabulation[[#This Row],[Day]]*TOU_CTabulation[[#This Row],[Base Allow]],0) -> 0 | Q163: =IF(A164>TOU_CTabulation[[#This Row],[Month]],TOU_CTabulation[[#This Row],[Month Cumm]],0) -> 0 | R163: =IF(TOU_CTabulation[[#This Row],[Month Base Gen]]=0,0,TOU_CTabulation[[#This Row],[Month Base Gen]]-TOU_CTabulation[[#This Row],[Day]]*TOU_CTabulation[[#This Row],[Base Allow]]) -> 0 | S163: =VLOOKUP(TOU_CTabulation[[#This Row],[Hour]],daypart,2) -> All | T163: =TOU_CTabulation[[#This Row],[Season]]&TOU_CTabulation[[#This Row],[Day-Part]] -> WinterAll | U163: =VLOOKUP(TOU_CTabulation[[#This Row],[Daypart]],TOUC,2) -> 0.25902 | V163: =VLOOKUP(TOU_CTabulation[[#This Row],[Daypart]],TOUC,3) -> 0.32596 | W163: =TOU_CTabulation[[#This Row],[Month Base Allow]]*TOU_CTabulation[[#This Row],[Base Rate]] -> 0 | X163: =TOU_CTabulation[[#This Row],[Month Overbase Gen]]*TOU_CTabulation[[#This Row],[Over Rate]] -> 0 | Y163: =TOU_CTabulation[[#This Row],[Base Value]]+TOU_CTabulation[[#This Row],[Over Value]] -> 0
A164: 1 | B164: 6 | C164: 15 | D164: 765 | E164: 49 | F164: 16 | G164: 0 | H164: 426.683 | I164: 35.195 | J164: 1318.681 | K164: 1266.475 | L164: =TOU_CTabulation[[#This Row],[AC System Output (W)]]/1000 -> 1.266475 | M164: =IF(A163=TOU_CTabulation[[#This Row],[Month]],M163+TOU_CTabulation[[#This Row],[AC System Output (kW)]],TOU_CTabulation[[#This Row],[AC System Output (kW)]]) -> 85.87955 | N164: =VLOOKUP(TOU_CTabulation[[#This Row],[Month]],Season,2) -> Winter | O164: =VLOOKUP(TOU_CTabulation[[#This Row],[Season]],CRate,2) -> 10.5 | P164: =IF(A165>TOU_CTabulation[[#This Row],[Month]],TOU_CTabulation[[#This Row],[Day]]*TOU_CTabulation[[#This Row],[Base Allow]],0) -> 0 | Q164: =IF(A165>TOU_CTabulation[[#This Row],[Month]],TOU_CTabulation[[#This Row],[Month Cumm]],0) -> 0 | R164: =IF(TOU_CTabulation[[#This Row],[Month Base Gen]]=0,0,TOU_CTabulation[[#This Row],[Month Base Gen]]-TOU_CTabulation[[#This Row],[Day]]*TOU_CTabulation[[#This Row],[Base Allow]]) -> 0 | S164: =VLOOKUP(TOU_CTabulation[[#This Row],[Hour]],daypart,2) -> All | T164: =TOU_CTabulation[[#This Row],[Season]]&TOU_CTabulation[[#This Row],[Day-Part]] -> WinterAll | U164: =VLOOKUP(TOU_CTabulation[[#This Row],[Daypart]],TOUC,2) -> 0.25902 | V164: =VLOOKUP(TOU_CTabulation[[#This Row],[Daypart]],TOUC,3) -> 0.32596 | W164: =TOU_CTabulation[[#This Row],[Month Base Allow]]*TOU_CTabulation[[#This Row],[Base Rate]] -> 0 | X164: =TOU_CTabulation[[#This Row],[Month Overbase Gen]]*TOU_CTabulation[[#This Row],[Over Rate]] -> 0 | Y164: =TOU_CTabulation[[#This Row],[Base Value]]+TOU_CTabulation[[#This Row],[Over Value]] -> 0
A165: 1 | B165: 6 | C165: 16 | D165: 110 | E165: 32 | F165: 13 | G165: 0 | H165: 72.444 | I165: 18.092 | J165: 234.831 | K165: 209.944 | L165: =TOU_CTabulation[[#This Row],[AC System Output (W)]]/1000 -> 0.209944 | M165: =IF(A164=TOU_CTabulation[[#This Row],[Month]],M164+TOU_CTabulation[[#This Row],[AC System Output (kW)]],TOU_CTabulation[[#This Row],[AC System Output (kW)]]) -> 86.089494 | N165: =VLOOKUP(TOU_CTabulation[[#This Row],[Month]],Season,2) -> Winter | O165: =VLOOKUP(TOU_CTabulation[[#This Row],[Season]],CRate,2) -> 10.5 | P165: =IF(A166>TOU_CTabulation[[#This Row],[Month]],TOU_CTabulation[[#This Row],[Day]]*TOU_CTabulation[[#This Row],[Base Allow]],0) -> 0 | Q165: =IF(A166>TOU_CTabulation[[#This Row],[Month]],TOU_CTabulation[[#This Row],[Month Cumm]],0) -> 0 | R165: =IF(TOU_CTabulation[[#This Row],[Month Base Gen]]=0,0,TOU_CTabulation[[#This Row],[Month Base Gen]]-TOU_CTabulation[[#This Row],[Day]]*TOU_CTabulation[[#This Row],[Base Allow]]) -> 0 | S165: =VLOOKUP(TOU_CTabulation[[#This Row],[Hour]],daypart,2) -> All | T165: =TOU_CTabulation[[#This Row],[Season]]&TOU_CTabulation[[#This Row],[Day-Part]] -> WinterAll | U165: =VLOOKUP(TOU_CTabulation[[#This Row],[Daypart]],TOUC,2) -> 0.25902 | V165: =VLOOKUP(TOU_CTabulation[[#This Row],[Daypart]],TOUC,3) -> 0.32596 | W165: =TOU_CTabulation[[#This Row],[Month Base Allow]]*TOU_CTabulation[[#This Row],[Base Rate]] -> 0 | X165: =TOU_CTabulation[[#This Row],[Month Overbase Gen]]*TOU_CTabulation[[#This Row],[Over Rate]] -> 0 | Y165: =TOU_CTabulation[[#This Row],[Base Value]]+TOU_CTabulation[[#This Row],[Over Value]] -> 0
A166: 1 | B166: 6 | C166: 17 | D166: 0 | E166: 0 | F166: 11 | G166: 0 | H166: 0 | I166: 11 | J166: 0 | K166: 0 | L166: =TOU_CTabulation[[#This Row],[AC System Output (W)]]/1000 -> 0 | M166: =IF(A165=TOU_CTabulation[[#This Row],[Month]],M165+TOU_CTabulation[[#This Row],[AC System Output (kW)]],TOU_CTabulation[[#This Row],[AC System Output (kW)]]) -> 86.089494 | N166: =VLOOKUP(TOU_CTabulation[[#This Row],[Month]],Season,2) -> Winter | O166: =VLOOKUP(TOU_CTabulation[[#This Row],[Season]],CRate,2) -> 10.5 | P166: =IF(A167>TOU_CTabulation[[#This Row],[Month]],TOU_CTabulation[[#This Row],[Day]]*TOU_CTabulation[[#This Row],[Base Allow]],0) -> 0 | Q166: =IF(A167>TOU_CTabulation[[#This Row],[Month]],TOU_CTabulation[[#This Row],[Month Cumm]],0) -> 0 | R166: =IF(TOU_CTabulation[[#This Row],[Month Base Gen]]=0,0,TOU_CTabulation[[#This Row],[Month Base Gen]]-TOU_CTabulation[[#This Row],[Day]]*TOU_CTabulation[[#This Row],[Base Allow]]) -> 0 | S166: =VLOOKUP(TOU_CTabulation[[#This Row],[Hour]],daypart,2) -> All | T166: =TOU_CTabulation[[#This Row],[Season]]&TOU_CTabulation[[#This Row],[Day-Part]] -> WinterAll | U166: =VLOOKUP(TOU_CTabulation[[#This Row],[Daypart]],TOUC,2) -> 0.25902 | V166: =VLOOKUP(TOU_CTabulation[[#This Row],[Daypart]],TOUC,3) -> 0.32596 | W166: =TOU_CTabulation[[#This Row],[Month Base Allow]]*TOU_CTabulation[[#This Row],[Base Rate]] -> 0 | X166: =TOU_CTabulation[[#This Row],[Month Overbase Gen]]*TOU_CTabulation[[#This Row],[Over Rate]] -> 0 | Y166: =TOU_CTabulation[[#This Row],[Base Value]]+TOU_CTabulation[[#This Row],[Over Value]] -> 0
A167: 1 | B167: 6 | C167: 18 | D167: 0 | E167: 0 | F167: 9 | G167: 0 | H167: 0 | I167: 9 | J167: 0 | K167: 0 | L167: =TOU_CTabulation[[#This Row],[AC System Output (W)]]/1000 -> 0 | M167: =IF(A166=TOU_CTabulation[[#This Row],[Month]],M166+TOU_CTabulation[[#This Row],[AC System Output (kW)]],TOU_CTabulation[[#This Row],[AC System Output (kW)]]) -> 86.089494 | N167: =VLOOKUP(TOU_CTabulation[[#This Row],[Month]],Season,2) -> Winter | O167: =VLOOKUP(TOU_CTabulation[[#This Row],[Season]],CRate,2) -> 10.5 | P167: =IF(A168>TOU_CTabulation[[#This Row],[Month]],TOU_CTabulation[[#This Row],[Day]]*TOU_CTabulation[[#This Row],[Base Allow]],0) -> 0 | Q167: =IF(A168>TOU_CTabulation[[#This Row],[Month]],TOU_CTabulation[[#This Row],[Month Cumm]],0) -> 0 | R167: =IF(TOU_CTabulation[[#This Row],[Month Base Gen]]=0,0,TOU_CTabulation[[#This Row],[Month Base Gen]]-TOU_CTabulation[[#This Row],[Day]]*TOU_CTabulation[[#This Row],[Base Allow]]) -> 0 | S167: =VLOOKUP(TOU_CTabulation[[#This Row],[Hour]],daypart,2) -> All | T167: =TOU_CTabulation[[#This Row],[Season]]&TOU_CTabulation[[#This Row],[Day-Part]] -> WinterAll | U167: =VLOOKUP(TOU_CTabulation[[#This Row],[Daypart]],TOUC,2) -> 0.25902 | V167: =VLOOKUP(TOU_CTabulation[[#This Row],[Daypart]],TOUC,3) -> 0.32596 | W167: =TOU_CTabulation[[#This Row],[Month Base Allow]]*TOU_CTabulation[[#This Row],[Base Rate]] -> 0 | X167: =TOU_CTabulation[[#This Row],[Month Overbase Gen]]*TOU_CTabulation[[#This Row],[Over Rate]] -> 0 | Y167: =TOU_CTabulation[[#This Row],[Base Value]]+TOU_CTabulation[[#This Row],[Over Value]] -> 0
A168: 1 | B168: 6 | C168: 19 | D168: 0 | E168: 0 | F168: 8 | G168: 1 | H168: 0 | I168: 8 | J168: 0 | K168: 0 | L168: =TOU_CTabulation[[#This Row],[AC System Output (W)]]/1000 -> 0 | M168: =IF(A167=TOU_CTabulation[[#This Row],[Month]],M167+TOU_CTabulation[[#This Row],[AC System Output (kW)]],TOU_CTabulation[[#This Row],[AC System Output (kW)]]) -> 86.089494 | N168: =VLOOKUP(TOU_CTabulation[[#This Row],[Month]],Season,2) -> Winter | O168: =VLOOKUP(TOU_CTabulation[[#This Row],[Season]],CRate,2) -> 10.5 | P168: =IF(A169>TOU_CTabulation[[#This Row],[Month]],TOU_CTabulation[[#This Row],[Day]]*TOU_CTabulation[[#This Row],[Base Allow]],0) -> 0 | Q168: =IF(A169>TOU_CTabulation[[#This Row],[Month]],TOU_CTabulation[[#This Row],[Month Cumm]],0) -> 0 | R168: =IF(TOU_CTabulation[[#This Row],[Month Base Gen]]=0,0,TOU_CTabulation[[#This Row],[Month Base Gen]]-TOU_CTabulation[[#This Row],[Day]]*TOU_CTabulation[[#This Row],[Base Allow]]) -> 0 | S168: =VLOOKUP(TOU_CTabulation[[#This Row],[Hour]],daypart,2) -> All | T168: =TOU_CTabulation[[#This Row],[Season]]&TOU_CTabulation[[#This Row],[Day-Part]] -> WinterAll | U168: =VLOOKUP(TOU_CTabulation[[#This Row],[Daypart]],TOUC,2) -> 0.25902 | V168: =VLOOKUP(TOU_CTabulation[[#This Row],[Daypart]],TOUC,3) -> 0.32596 | W168: =TOU_CTabulation[[#This Row],[Month Base Allow]]*TOU_CTabulation[[#This Row],[Base Rate]] -> 0 | X168: =TOU_CTabulation[[#This Row],[Month Overbase Gen]]*TOU_CTabulation[[#This Row],[Over Rate]] -> 0 | Y168: =TOU_CTabulation[[#This Row],[Base Value]]+TOU_CTabulation[[#This Row],[Over Value]] -> 0
A169: 1 | B169: 6 | C169: 20 | D169: 0 | E169: 0 | F169: 8 | G169: 1 | H169: 0 | I169: 8 | J169: 0 | K169: 0 | L169: =TOU_CTabulation[[#This Row],[AC System Output (W)]]/1000 -> 0 | M169: =IF(A168=TOU_CTabulation[[#This Row],[Month]],M168+TOU_CTabulation[[#This Row],[AC System Output (kW)]],TOU_CTabulation[[#This Row],[AC System Output (kW)]]) -> 86.089494 | N169: =VLOOKUP(TOU_CTabulation[[#This Row],[Month]],Season,2) -> Winter | O169: =VLOOKUP(TOU_CTabulation[[#This Row],[Season]],CRate,2) -> 10.5 | P169: =IF(A170>TOU_CTabulation[[#This Row],[Month]],TOU_CTabulation[[#This Row],[Day]]*TOU_CTabulation[[#This Row],[Base Allow]],0) -> 0 | Q169: =IF(A170>TOU_CTabulation[[#This Row],[Month]],TOU_CTabulation[[#This Row],[Month Cumm]],0) -> 0 | R169: =IF(TOU_CTabulation[[#This Row],[Month Base Gen]]=0,0,TOU_CTabulation[[#This Row],[Month Base Gen]]-TOU_CTabulation[[#This Row],[Day]]*TOU_CTabulation[[#This Row],[Base Allow]]) -> 0 | S169: =VLOOKUP(TOU_CTabulation[[#This Row],[Hour]],daypart,2) -> All | T169: =TOU_CTabulation[[#This Row],[Season]]&TOU_CTabulation[[#This Row],[Day-Part]] -> WinterAll | U169: =VLOOKUP(TOU_CTabulation[[#This Row],[Daypart]],TOUC,2) -> 0.25902 | V169: =VLOOKUP(TOU_CTabulation[[#This Row],[Daypart]],TOUC,3) -> 0.32596 | W169: =TOU_CTabulation[[#This Row],[Month Base Allow]]*TOU_CTabulation[[#This Row],[Base Rate]] -> 0 | X169: =TOU_CTabulation[[#This Row],[Month Overbase Gen]]*TOU_CTabulation[[#This Row],[Over Rate]] -> 0 | Y169: =TOU_CTabulation[[#This Row],[Base Value]]+TOU_CTabulation[[#This Row],[Over Value]] -> 0
A170: 1 | B170: 6 | C170: 21 | D170: 0 | E170: 0 | F170: 7 | G170: 1 | H170: 0 | I170: 7 | J170: 0 | K170: 0 | L170: =TOU_CTabulation[[#This Row],[AC System Output (W)]]/1000 -> 0 | M170: =IF(A169=TOU_CTabulation[[#This Row],[Month]],M169+TOU_CTabulation[[#This Row],[AC System Output (kW)]],TOU_CTabulation[[#This Row],[AC System Output (kW)]]) -> 86.089494 | N170: =VLOOKUP(TOU_CTabulation[[#This Row],[Month]],Season,2) -> Winter | O170: =VLOOKUP(TOU_CTabulation[[#This Row],[Season]],CRate,2) -> 10.5 | P170: =IF(A171>TOU_CTabulation[[#This Row],[Month]],TOU_CTabulation[[#This Row],[Day]]*TOU_CTabulation[[#This Row],[Base Allow]],0) -> 0 | Q170: =IF(A171>TOU_CTabulation[[#This Row],[Month]],TOU_CTabulation[[#This Row],[Month Cumm]],0) -> 0 | R170: =IF(TOU_CTabulation[[#This Row],[Month Base Gen]]=0,0,TOU_CTabulation[[#This Row],[Month Base Gen]]-TOU_CTabulation[[#This Row],[Day]]*TOU_CTabulation[[#This Row],[Base Allow]]) -> 0 | S170: =VLOOKUP(TOU_CTabulation[[#This Row],[Hour]],daypart,2) -> All | T170: =TOU_CTabulation[[#This Row],[Season]]&TOU_CTabulation[[#This Row],[Day-Part]] -> WinterAll | U170: =VLOOKUP(TOU_CTabulation[[#This Row],[Daypart]],TOUC,2) -> 0.25902 | V170: =VLOOKUP(TOU_CTabulation[[#This Row],[Daypart]],TOUC,3) -> 0.32596 | W170: =TOU_CTabulation[[#This Row],[Month Base Allow]]*TOU_CTabulation[[#This Row],[Base Rate]] -> 0 | X170: =TOU_CTabulation[[#This Row],[Month Overbase Gen]]*TOU_CTabulation[[#This Row],[Over Rate]] -> 0 | Y170: =TOU_CTabulation[[#This Row],[Base Value]]+TOU_CTabulation[[#This Row],[Over Value]] -> 0
A171: 1 | B171: 6 | C171: 22 | D171: 0 | E171: 0 | F171: 6 | G171: 1 | H171: 0 | I171: 6 | J171: 0 | K171: 0 | L171: =TOU_CTabulation[[#This Row],[AC System Output (W)]]/1000 -> 0 | M171: =IF(A170=TOU_CTabulation[[#This Row],[Month]],M170+TOU_CTabulation[[#This Row],[AC System Output (kW)]],TOU_CTabulation[[#This Row],[AC System Output (kW)]]) -> 86.089494 | N171: =VLOOKUP(TOU_CTabulation[[#This Row],[Month]],Season,2) -> Winter | O171: =VLOOKUP(TOU_CTabulation[[#This Row],[Season]],CRate,2) -> 10.5 | P171: =IF(A172>TOU_CTabulation[[#This Row],[Month]],TOU_CTabulation[[#This Row],[Day]]*TOU_CTabulation[[#This Row],[Base Allow]],0) -> 0 | Q171: =IF(A172>TOU_CTabulation[[#This Row],[Month]],TOU_CTabulation[[#This Row],[Month Cumm]],0) -> 0 | R171: =IF(TOU_CTabulation[[#This Row],[Month Base Gen]]=0,0,TOU_CTabulation[[#This Row],[Month Base Gen]]-TOU_CTabulation[[#This Row],[Day]]*TOU_CTabulation[[#This Row],[Base Allow]]) -> 0 | S171: =VLOOKUP(TOU_CTabulation[[#This Row],[Hour]],daypart,2) -> All | T171: =TOU_CTabulation[[#This Row],[Season]]&TOU_CTabulation[[#This Row],[Day-Part]] -> WinterAll | U171: =VLOOKUP(TOU_CTabulation[[#This Row],[Daypart]],TOUC,2) -> 0.25902 | V171: =VLOOKUP(TOU_CTabulation[[#This Row],[Daypart]],TOUC,3) -> 0.32596 | W171: =TOU_CTabulation[[#This Row],[Month Base Allow]]*TOU_CTabulation[[#This Row],[Base Rate]] -> 0 | X171: =TOU_CTabulation[[#This Row],[Month Overbase Gen]]*TOU_CTabulation[[#This Row],[Over Rate]] -> 0 | Y171: =TOU_CTabulation[[#This Row],[Base Value]]+TOU_CTabulation[[#This Row],[Over Value]] -> 0
A172: 1 | B172: 6 | C172: 23 | D172: 0 | E172: 0 | F172: 6 | G172: 1 | H172: 0 | I172: 6 | J172: 0 | K172: 0 | L172: =TOU_CTabulation[[#This Row],[AC System Output (W)]]/1000 -> 0 | M172: =IF(A171=TOU_CTabulation[[#This Row],[Month]],M171+TOU_CTabulation[[#This Row],[AC System Output (kW)]],TOU_CTabulation[[#This Row],[AC System Output (kW)]]) -> 86.089494 | N172: =VLOOKUP(TOU_CTabulation[[#This Row],[Month]],Season,2) -> Winter | O172: =VLOOKUP(TOU_CTabulation[[#This Row],[Season]],CRate,2) -> 10.5 | P172: =IF(A173>TOU_CTabulation[[#This Row],[Month]],TOU_CTabulation[[#This Row],[Day]]*TOU_CTabulation[[#This Row],[Base Allow]],0) -> 0 | Q172: =IF(A173>TOU_CTabulation[[#This Row],[Month]],TOU_CTabulation[[#This Row],[Month Cumm]],0) -> 0 | R172: =IF(TOU_CTabulation[[#This Row],[Month Base Gen]]=0,0,TOU_CTabulation[[#This Row],[Month Base Gen]]-TOU_CTabulation[[#This Row],[Day]]*TOU_CTabulation[[#This Row],[Base Allow]]) -> 0 | S172: =VLOOKUP(TOU_CTabulation[[#This Row],[Hour]],daypart,2) -> All | T172: =TOU_CTabulation[[#This Row],[Season]]&TOU_CTabulation[[#This Row],[Day-Part]] -> WinterAll | U172: =VLOOKUP(TOU_CTabulation[[#This Row],[Daypart]],TOUC,2) -> 0.25902 | V172: =VLOOKUP(TOU_CTabulation[[#This Row],[Daypart]],TOUC,3) -> 0.32596 | W172: =TOU_CTabulation[[#This Row],[Month Base Allow]]*TOU_CTabulation[[#This Row],[Base Rate]] -> 0 | X172: =TOU_CTabulation[[#This Row],[Month Overbase Gen]]*TOU_CTabulation[[#This Row],[Over Rate]] -> 0 | Y172: =TOU_CTabulation[[#This Row],[Base Value]]+TOU_CTabulation[[#This Row],[Over Value]] -> 0
A173: 1 | B173: 7 | C173: 0 | D173: 0 | E173: 0 | F173: 6 | G173: 1 | H173: 0 | I173: 6 | J173: 0 | K173: 0 | L173: =TOU_CTabulation[[#This Row],[AC System Output (W)]]/1000 -> 0 | M173: =IF(A172=TOU_CTabulation[[#This Row],[Month]],M172+TOU_CTabulation[[#This Row],[AC System Output (kW)]],TOU_CTabulation[[#This Row],[AC System Output (kW)]]) -> 86.089494 | N173: =VLOOKUP(TOU_CTabulation[[#This Row],[Month]],Season,2) -> Winter | O173: =VLOOKUP(TOU_CTabulation[[#This Row],[Season]],CRate,2) -> 10.5 | P173: =IF(A174>TOU_CTabulation[[#This Row],[Month]],TOU_CTabulation[[#This Row],[Day]]*TOU_CTabulation[[#This Row],[Base Allow]],0) -> 0 | Q173: =IF(A174>TOU_CTabulation[[#This Row],[Month]],TOU_CTabulation[[#This Row],[Month Cumm]],0) -> 0 | R173: =IF(TOU_CTabulation[[#This Row],[Month Base Gen]]=0,0,TOU_CTabulation[[#This Row],[Month Base Gen]]-TOU_CTabulation[[#This Row],[Day]]*TOU_CTabulation[[#This Row],[Base Allow]]) -> 0 | S173: =VLOOKUP(TOU_CTabulation[[#This Row],[Hour]],daypart,2) -> All | T173: =TOU_CTabulation[[#This Row],[Season]]&TOU_CTabulation[[#This Row],[Day-Part]] -> WinterAll | U173: =VLOOKUP(TOU_CTabulation[[#This Row],[Daypart]],TOUC,2) -> 0.25902 | V173: =VLOOKUP(TOU_CTabulation[[#This Row],[Daypart]],TOUC,3) -> 0.32596 | W173: =TOU_CTabulation[[#This Row],[Month Base Allow]]*TOU_CTabulation[[#This Row],[Base Rate]] -> 0 | X173: =TOU_CTabulation[[#This Row],[Month Overbase Gen]]*TOU_CTabulation[[#This Row],[Over Rate]] -> 0 | Y173: =TOU_CTabulation[[#This Row],[Base Value]]+TOU_CTabulation[[#This Row],[Over Value]] -> 0
A174: 1 | B174: 7 | C174: 1 | D174: 0 | E174: 0 | F174: 5 | G174: 1 | H174: 0 | I174: 5 | J174: 0 | K174: 0 | L174: =TOU_CTabulation[[#This Row],[AC System Output (W)]]/1000 -> 0 | M174: =IF(A173=TOU_CTabulation[[#This Row],[Month]],M173+TOU_CTabulation[[#This Row],[AC System Output (kW)]],TOU_CTabulation[[#This Row],[AC System Output (kW)]]) -> 86.089494 | N174: =VLOOKUP(TOU_CTabulation[[#This Row],[Month]],Season,2) -> Winter | O174: =VLOOKUP(TOU_CTabulation[[#This Row],[Season]],CRate,2) -> 10.5 | P174: =IF(A175>TOU_CTabulation[[#This Row],[Month]],TOU_CTabulation[[#This Row],[Day]]*TOU_CTabulation[[#This Row],[Base Allow]],0) -> 0 | Q174: =IF(A175>TOU_CTabulation[[#This Row],[Month]],TOU_CTabulation[[#This Row],[Month Cumm]],0) -> 0 | R174: =IF(TOU_CTabulation[[#This Row],[Month Base Gen]]=0,0,TOU_CTabulation[[#This Row],[Month Base Gen]]-TOU_CTabulation[[#This Row],[Day]]*TOU_CTabulation[[#This Row],[Base Allow]]) -> 0 | S174: =VLOOKUP(TOU_CTabulation[[#This Row],[Hour]],daypart,2) -> All | T174: =TOU_CTabulation[[#This Row],[Season]]&TOU_CTabulation[[#This Row],[Day-Part]] -> WinterAll | U174: =VLOOKUP(TOU_CTabulation[[#This Row],[Daypart]],TOUC,2) -> 0.25902 | V174: =VLOOKUP(TOU_CTabulation[[#This Row],[Daypart]],TOUC,3) -> 0.32596 | W174: =TOU_CTabulation[[#This Row],[Month Base Allow]]*TOU_CTabulation[[#This Row],[Base Rate]] -> 0 | X174: =TOU_CTabulation[[#This Row],[Month Overbase Gen]]*TOU_CTabulation[[#This Row],[Over Rate]] -> 0 | Y174: =TOU_CTabulation[[#This Row],[Base Value]]+TOU_CTabulation[[#This Row],[Over Value]] -> 0
A175: 1 | B175: 7 | C175: 2 | D175: 0 | E175: 0 | F175: 4 | G175: 1 | H175: 0 | I175: 4 | J175: 0 | K175: 0 | L175: =TOU_CTabulation[[#This Row],[AC System Output (W)]]/1000 -> 0 | M175: =IF(A174=TOU_CTabulation[[#This Row],[Month]],M174+TOU_CTabulation[[#This Row],[AC System Output (kW)]],TOU_CTabulation[[#This Row],[AC System Output (kW)]]) -> 86.089494 | N175: =VLOOKUP(TOU_CTabulation[[#This Row],[Month]],Season,2) -> Winter | O175: =VLOOKUP(TOU_CTabulation[[#This Row],[Season]],CRate,2) -> 10.5 | P175: =IF(A176>TOU_CTabulation[[#This Row],[Month]],TOU_CTabulation[[#This Row],[Day]]*TOU_CTabulation[[#This Row],[Base Allow]],0) -> 0 | Q175: =IF(A176>TOU_CTabulation[[#This Row],[Month]],TOU_CTabulation[[#This Row],[Month Cumm]],0) -> 0 | R175: =IF(TOU_CTabulation[[#This Row],[Month Base Gen]]=0,0,TOU_CTabulation[[#This Row],[Month Base Gen]]-TOU_CTabulation[[#This Row],[Day]]*TOU_CTabulation[[#This Row],[Base Allow]]) -> 0 | S175: =VLOOKUP(TOU_CTabulation[[#This Row],[Hour]],daypart,2) -> All | T175: =TOU_CTabulation[[#This Row],[Season]]&TOU_CTabulation[[#This Row],[Day-Part]] -> WinterAll | U175: =VLOOKUP(TOU_CTabulation[[#This Row],[Daypart]],TOUC,2) -> 0.25902 | V175: =VLOOKUP(TOU_CTabulation[[#This Row],[Daypart]],TOUC,3) -> 0.32596 | W175: =TOU_CTabulation[[#This Row],[Month Base Allow]]*TOU_CTabulation[[#This Row],[Base Rate]] -> 0 | X175: =TOU_CTabulation[[#This Row],[Month Overbase Gen]]*TOU_CTabulation[[#This Row],[Over Rate]] -> 0 | Y175: =TOU_CTabulation[[#This Row],[Base Value]]+TOU_CTabulation[[#This Row],[Over Value]] -> 0
A176: 1 | B176: 7 | C176: 3 | D176: 0 | E176: 0 | F176: 4 | G176: 1 | H176: 0 | I176: 4 | J176: 0 | K176: 0 | L176: =TOU_CTabulation[[#This Row],[AC System Output (W)]]/1000 -> 0 | M176: =IF(A175=TOU_CTabulation[[#This Row],[Month]],M175+TOU_CTabulation[[#This Row],[AC System Output (kW)]],TOU_CTabulation[[#This Row],[AC System Output (kW)]]) -> 86.089494 | N176: =VLOOKUP(TOU_CTabulation[[#This Row],[Month]],Season,2) -> Winter | O176: =VLOOKUP(TOU_CTabulation[[#This Row],[Season]],CRate,2) -> 10.5 | P176: =IF(A177>TOU_CTabulation[[#This Row],[Month]],TOU_CTabulation[[#This Row],[Day]]*TOU_CTabulation[[#This Row],[Base Allow]],0) -> 0 | Q176: =IF(A177>TOU_CTabulation[[#This Row],[Month]],TOU_CTabulation[[#This Row],[Month Cumm]],0) -> 0 | R176: =IF(TOU_CTabulation[[#This Row],[Month Base Gen]]=0,0,TOU_CTabulation[[#This Row],[Month Base Gen]]-TOU_CTabulation[[#This Row],[Day]]*TOU_CTabulation[[#This Row],[Base Allow]]) -> 0 | S176: =VLOOKUP(TOU_CTabulation[[#This Row],[Hour]],daypart,2) -> All | T176: =TOU_CTabulation[[#This Row],[Season]]&TOU_CTabulation[[#This Row],[Day-Part]] -> WinterAll | U176: =VLOOKUP(TOU_CTabulation[[#This Row],[Daypart]],TOUC,2) -> 0.25902 | V176: =VLOOKUP(TOU_CTabulation[[#This Row],[Daypart]],TOUC,3) -> 0.32596 | W176: =TOU_CTabulation[[#This Row],[Month Base Allow]]*TOU_CTabulation[[#This Row],[Base Rate]] -> 0 | X176: =TOU_CTabulation[[#This Row],[Month Overbase Gen]]*TOU_CTabulation[[#This Row],[Over Rate]] -> 0 | Y176: =TOU_CTabulation[[#This Row],[Base Value]]+TOU_CTabulation[[#This Row],[Over Value]] -> 0
A177: 1 | B177: 7 | C177: 4 | D177: 0 | E177: 0 | F177: 4 | G177: 1 | H177: 0 | I177: 4 | J177: 0 | K177: 0 | L177: =TOU_CTabulation[[#This Row],[AC System Output (W)]]/1000 -> 0 | M177: =IF(A176=TOU_CTabulation[[#This Row],[Month]],M176+TOU_CTabulation[[#This Row],[AC System Output (kW)]],TOU_CTabulation[[#This Row],[AC System Output (kW)]]) -> 86.089494 | N177: =VLOOKUP(TOU_CTabulation[[#This Row],[Month]],Season,2) -> Winter | O177: =VLOOKUP(TOU_CTabulation[[#This Row],[Season]],CRate,2) -> 10.5 | P177: =IF(A178>TOU_CTabulation[[#This Row],[Month]],TOU_CTabulation[[#This Row],[Day]]*TOU_CTabulation[[#This Row],[Base Allow]],0) -> 0 | Q177: =IF(A178>TOU_CTabulation[[#This Row],[Month]],TOU_CTabulation[[#This Row],[Month Cumm]],0) -> 0 | R177: =IF(TOU_CTabulation[[#This Row],[Month Base Gen]]=0,0,TOU_CTabulation[[#This Row],[Month Base Gen]]-TOU_CTabulation[[#This Row],[Day]]*TOU_CTabulation[[#This Row],[Base Allow]]) -> 0 | S177: =VLOOKUP(TOU_CTabulation[[#This Row],[Hour]],daypart,2) -> All | T177: =TOU_CTabulation[[#This Row],[Season]]&TOU_CTabulation[[#This Row],[Day-Part]] -> WinterAll | U177: =VLOOKUP(TOU_CTabulation[[#This Row],[Daypart]],TOUC,2) -> 0.25902 | V177: =VLOOKUP(TOU_CTabulation[[#This Row],[Daypart]],TOUC,3) -> 0.32596 | W177: =TOU_CTabulation[[#This Row],[Month Base Allow]]*TOU_CTabulation[[#This Row],[Base Rate]] -> 0 | X177: =TOU_CTabulation[[#This Row],[Month Overbase Gen]]*TOU_CTabulation[[#This Row],[Over Rate]] -> 0 | Y177: =TOU_CTabulation[[#This Row],[Base Value]]+TOU_CTabulation[[#This Row],[Over Value]] -> 0
A178: 1 | B178: 7 | C178: 5 | D178: 0 | E178: 0 | F178: 3 | G178: 1 | H178: 0 | I178: 3 | J178: 0 | K178: 0 | L178: =TOU_CTabulation[[#This Row],[AC System Output (W)]]/1000 -> 0 | M178: =IF(A177=TOU_CTabulation[[#This Row],[Month]],M177+TOU_CTabulation[[#This Row],[AC System Output (kW)]],TOU_CTabulation[[#This Row],[AC System Output (kW)]]) -> 86.089494 | N178: =VLOOKUP(TOU_CTabulation[[#This Row],[Month]],Season,2) -> Winter | O178: =VLOOKUP(TOU_CTabulation[[#This Row],[Season]],CRate,2) -> 10.5 | P178: =IF(A179>TOU_CTabulation[[#This Row],[Month]],TOU_CTabulation[[#This Row],[Day]]*TOU_CTabulation[[#This Row],[Base Allow]],0) -> 0 | Q178: =IF(A179>TOU_CTabulation[[#This Row],[Month]],TOU_CTabulation[[#This Row],[Month Cumm]],0) -> 0 | R178: =IF(TOU_CTabulation[[#This Row],[Month Base Gen]]=0,0,TOU_CTabulation[[#This Row],[Month Base Gen]]-TOU_CTabulation[[#This Row],[Day]]*TOU_CTabulation[[#This Row],[Base Allow]]) -> 0 | S178: =VLOOKUP(TOU_CTabulation[[#This Row],[Hour]],daypart,2) -> All | T178: =TOU_CTabulation[[#This Row],[Season]]&TOU_CTabulation[[#This Row],[Day-Part]] -> WinterAll | U178: =VLOOKUP(TOU_CTabulation[[#This Row],[Daypart]],TOUC,2) -> 0.25902 | V178: =VLOOKUP(TOU_CTabulation[[#This Row],[Daypart]],TOUC,3) -> 0.32596 | W178: =TOU_CTabulation[[#This Row],[Month Base Allow]]*TOU_CTabulation[[#This Row],[Base Rate]] -> 0 | X178: =TOU_CTabulation[[#This Row],[Month Overbase Gen]]*TOU_CTabulation[[#This Row],[Over Rate]] -> 0 | Y178: =TOU_CTabulation[[#This Row],[Base Value]]+TOU_CTabulation[[#This Row],[Over Value]] -> 0
A179: 1 | B179: 7 | C179: 6 | D179: 0 | E179: 0 | F179: 3 | G179: 1 | H179: 0 | I179: 3 | J179: 0 | K179: 0 | L179: =TOU_CTabulation[[#This Row],[AC System Output (W)]]/1000 -> 0 | M179: =IF(A178=TOU_CTabulation[[#This Row],[Month]],M178+TOU_CTabulation[[#This Row],[AC System Output (kW)]],TOU_CTabulation[[#This Row],[AC System Output (kW)]]) -> 86.089494 | N179: =VLOOKUP(TOU_CTabulation[[#This Row],[Month]],Season,2) -> Winter | O179: =VLOOKUP(TOU_CTabulation[[#This Row],[Season]],CRate,2) -> 10.5 | P179: =IF(A180>TOU_CTabulation[[#This Row],[Month]],TOU_CTabulation[[#This Row],[Day]]*TOU_CTabulation[[#This Row],[Base Allow]],0) -> 0 | Q179: =IF(A180>TOU_CTabulation[[#This Row],[Month]],TOU_CTabulation[[#This Row],[Month Cumm]],0) -> 0 | R179: =IF(TOU_CTabulation[[#This Row],[Month Base Gen]]=0,0,TOU_CTabulation[[#This Row],[Month Base Gen]]-TOU_CTabulation[[#This Row],[Day]]*TOU_CTabulation[[#This Row],[Base Allow]]) -> 0 | S179: =VLOOKUP(TOU_CTabulation[[#This Row],[Hour]],daypart,2) -> All | T179: =TOU_CTabulation[[#This Row],[Season]]&TOU_CTabulation[[#This Row],[Day-Part]] -> WinterAll | U179: =VLOOKUP(TOU_CTabulation[[#This Row],[Daypart]],TOUC,2) -> 0.25902 | V179: =VLOOKUP(TOU_CTabulation[[#This Row],[Daypart]],TOUC,3) -> 0.32596 | W179: =TOU_CTabulation[[#This Row],[Month Base Allow]]*TOU_CTabulation[[#This Row],[Base Rate]] -> 0 | X179: =TOU_CTabulation[[#This Row],[Month Overbase Gen]]*TOU_CTabulation[[#This Row],[Over Rate]] -> 0 | Y179: =TOU_CTabulation[[#This Row],[Base Value]]+TOU_CTabulation[[#This Row],[Over Value]] -> 0
A180: 1 | B180: 7 | C180: 7 | D180: 0 | E180: 28 | F180: 5 | G180: 1 | H180: 29.017 | I180: 3.235 | J180: 109.926 | K180: 87.486 | L180: =TOU_CTabulation[[#This Row],[AC System Output (W)]]/1000 -> 0.087486 | M180: =IF(A179=TOU_CTabulation[[#This Row],[Month]],M179+TOU_CTabulation[[#This Row],[AC System Output (kW)]],TOU_CTabulation[[#This Row],[AC System Output (kW)]]) -> 86.17698 | N180: =VLOOKUP(TOU_CTabulation[[#This Row],[Month]],Season,2) -> Winter | O180: =VLOOKUP(TOU_CTabulation[[#This Row],[Season]],CRate,2) -> 10.5 | P180: =IF(A181>TOU_CTabulation[[#This Row],[Month]],TOU_CTabulation[[#This Row],[Day]]*TOU_CTabulation[[#This Row],[Base Allow]],0) -> 0 | Q180: =IF(A181>TOU_CTabulation[[#This Row],[Month]],TOU_CTabulation[[#This Row],[Month Cumm]],0) -> 0 | R180: =IF(TOU_CTabulation[[#This Row],[Month Base Gen]]=0,0,TOU_CTabulation[[#This Row],[Month Base Gen]]-TOU_CTabulation[[#This Row],[Day]]*TOU_CTabulation[[#This Row],[Base Allow]]) -> 0 | S180: =VLOOKUP(TOU_CTabulation[[#This Row],[Hour]],daypart,2) -> All | T180: =TOU_CTabulation[[#This Row],[Season]]&TOU_CTabulation[[#This Row],[Day-Part]] -> WinterAll | U180: =VLOOKUP(TOU_CTabulation[[#This Row],[Daypart]],TOUC,2) -> 0.25902 | V180: =VLOOKUP(TOU_CTabulation[[#This Row],[Daypart]],TOUC,3) -> 0.32596 | W180: =TOU_CTabulation[[#This Row],[Month Base Allow]]*TOU_CTabulation[[#This Row],[Base Rate]] -> 0 | X180: =TOU_CTabulation[[#This Row],[Month Overbase Gen]]*TOU_CTabulation[[#This Row],[Over Rate]] -> 0 | Y180: =TOU_CTabulation[[#This Row],[Base Value]]+TOU_CTabulation[[#This Row],[Over Value]] -> 0
A181: 1 | B181: 7 | C181: 8 | D181: 86 | E181: 83 | F181: 8 | G181: 1 | H181: 129.857 | I181: 9.914 | J181: 465.88 | K181: 436.085 | L181: =TOU_CTabulation[[#This Row],[AC System Output (W)]]/1000 -> 0.436085 | M181: =IF(A180=TOU_CTabulation[[#This Row],[Month]],M180+TOU_CTabulation[[#This Row],[AC System Output (kW)]],TOU_CTabulation[[#This Row],[AC System Output (kW)]]) -> 86.613065 | N181: =VLOOKUP(TOU_CTabulation[[#This Row],[Month]],Season,2) -> Winter | O181: =VLOOKUP(TOU_CTabulation[[#This Row],[Season]],CRate,2) -> 10.5 | P181: =IF(A182>TOU_CTabulation[[#This Row],[Month]],TOU_CTabulation[[#This Row],[Day]]*TOU_CTabulation[[#This Row],[Base Allow]],0) -> 0 | Q181: =IF(A182>TOU_CTabulation[[#This Row],[Month]],TOU_CTabulation[[#This Row],[Month Cumm]],0) -> 0 | R181: =IF(TOU_CTabulation[[#This Row],[Month Base Gen]]=0,0,TOU_CTabulation[[#This Row],[Month Base Gen]]-TOU_CTabulation[[#This Row],[Day]]*TOU_CTabulation[[#This Row],[Base Allow]]) -> 0 | S181: =VLOOKUP(TOU_CTabulation[[#This Row],[Hour]],daypart,2) -> All | T181: =TOU_CTabulation[[#This Row],[Season]]&TOU_CTabulation[[#This Row],[Day-Part]] -> WinterAll | U181: =VLOOKUP(TOU_CTabulation[[#This Row],[Daypart]],TOUC,2) -> 0.25902 | V181: =VLOOKUP(TOU_CTabulation[[#This Row],[Daypart]],TOUC,3) -> 0.32596 | W181: =TOU_CTabulation[[#This Row],[Month Base Allow]]*TOU_CTabulation[[#This Row],[Base Rate]] -> 0 | X181: =TOU_CTabulation[[#This Row],[Month Overbase Gen]]*TOU_CTabulation[[#This Row],[Over Rate]] -> 0 | Y181: =TOU_CTabulation[[#This Row],[Base Value]]+TOU_CTabulation[[#This Row],[Over Value]] -> 0
A182: 1 | B182: 7 | C182: 9 | D182: 844 | E182: 58 | F182: 10 | G182: 1 | H182: 573.69 | I182: 26.649 | J182: 1904.406 | K182: 1832.892 | L182: =TOU_CTabulation[[#This Row],[AC System Output (W)]]/1000 -> 1.832892 | M182: =IF(A181=TOU_CTabulation[[#This Row],[Month]],M181+TOU_CTabulation[[#This Row],[AC System Output (kW)]],TOU_CTabulation[[#This Row],[AC System Output (kW)]]) -> 88.445957 | N182: =VLOOKUP(TOU_CTabulation[[#This Row],[Month]],Season,2) -> Winter | O182: =VLOOKUP(TOU_CTabulation[[#This Row],[Season]],CRate,2) -> 10.5 | P182: =IF(A183>TOU_CTabulation[[#This Row],[Month]],TOU_CTabulation[[#This Row],[Day]]*TOU_CTabulation[[#This Row],[Base Allow]],0) -> 0 | Q182: =IF(A183>TOU_CTabulation[[#This Row],[Month]],TOU_CTabulation[[#This Row],[Month Cumm]],0) -> 0 | R182: =IF(TOU_CTabulation[[#This Row],[Month Base Gen]]=0,0,TOU_CTabulation[[#This Row],[Month Base Gen]]-TOU_CTabulation[[#This Row],[Day]]*TOU_CTabulation[[#This Row],[Base Allow]]) -> 0 | S182: =VLOOKUP(TOU_CTabulation[[#This Row],[Hour]],daypart,2) -> All | T182: =TOU_CTabulation[[#This Row],[Season]]&TOU_CTabulation[[#This Row],[Day-Part]] -> WinterAll | U182: =VLOOKUP(TOU_CTabulation[[#This Row],[Daypart]],TOUC,2) -> 0.25902 | V182: =VLOOKUP(TOU_CTabulation[[#This Row],[Daypart]],TOUC,3) -> 0.32596 | W182: =TOU_CTabulation[[#This Row],[Month Base Allow]]*TOU_CTabulation[[#This Row],[Base Rate]] -> 0 | X182: =TOU_CTabulation[[#This Row],[Month Overbase Gen]]*TOU_CTabulation[[#This Row],[Over Rate]] -> 0 | Y182: =TOU_CTabulation[[#This Row],[Base Value]]+TOU_CTabulation[[#This Row],[Over Value]] -> 0
A183: 1 | B183: 7 | C183: 10 | D183: 909 | E183: 65 | F183: 13 | G183: 1 | H183: 729.303 | I183: 36.119 | J183: 2350.444 | K183: 2262.087 | L183: =TOU_CTabulation[[#This Row],[AC System Output (W)]]/1000 -> 2.262087 | M183: =IF(A182=TOU_CTabulation[[#This Row],[Month]],M182+TOU_CTabulation[[#This Row],[AC System Output (kW)]],TOU_CTabulation[[#This Row],[AC System Output (kW)]]) -> 90.708044 | N183: =VLOOKUP(TOU_CTabulation[[#This Row],[Month]],Season,2) -> Winter | O183: =VLOOKUP(TOU_CTabulation[[#This Row],[Season]],CRate,2) -> 10.5 | P183: =IF(A184>TOU_CTabulation[[#This Row],[Month]],TOU_CTabulation[[#This Row],[Day]]*TOU_CTabulation[[#This Row],[Base Allow]],0) -> 0 | Q183: =IF(A184>TOU_CTabulation[[#This Row],[Month]],TOU_CTabulation[[#This Row],[Month Cumm]],0) -> 0 | R183: =IF(TOU_CTabulation[[#This Row],[Month Base Gen]]=0,0,TOU_CTabulation[[#This Row],[Month Base Gen]]-TOU_CTabulation[[#This Row],[Day]]*TOU_CTabulation[[#This Row],[Base Allow]]) -> 0 | S183: =VLOOKUP(TOU_CTabulation[[#This Row],[Hour]],daypart,2) -> All | T183: =TOU_CTabulation[[#This Row],[Season]]&TOU_CTabulation[[#This Row],[Day-Part]] -> WinterAll | U183: =VLOOKUP(TOU_CTabulation[[#This Row],[Daypart]],TOUC,2) -> 0.25902 | V183: =VLOOKUP(TOU_CTabulation[[#This Row],[Daypart]],TOUC,3) -> 0.32596 | W183: =TOU_CTabulation[[#This Row],[Month Base Allow]]*TOU_CTabulation[[#This Row],[Base Rate]] -> 0 | X183: =TOU_CTabulation[[#This Row],[Month Overbase Gen]]*TOU_CTabulation[[#This Row],[Over Rate]] -> 0 | Y183: =TOU_CTabulation[[#This Row],[Base Value]]+TOU_CTabulation[[#This Row],[Over Value]] -> 0
A184: 1 | B184: 7 | C184: 11 | D184: 934 | E184: 69 | F184: 14 | G184: 2 | H184: 816.529 | I184: 36.118 | J184: 2644.8 | K184: 2544.315 | L184: =TOU_CTabulation[[#This Row],[AC System Output (W)]]/1000 -> 2.544315 | M184: =IF(A183=TOU_CTabulation[[#This Row],[Month]],M183+TOU_CTabulation[[#This Row],[AC System Output (kW)]],TOU_CTabulation[[#This Row],[AC System Output (kW)]]) -> 93.252359 | N184: =VLOOKUP(TOU_CTabulation[[#This Row],[Month]],Season,2) -> Winter | O184: =VLOOKUP(TOU_CTabulation[[#This Row],[Season]],CRate,2) -> 10.5 | P184: =IF(A185>TOU_CTabulation[[#This Row],[Month]],TOU_CTabulation[[#This Row],[Day]]*TOU_CTabulation[[#This Row],[Base Allow]],0) -> 0 | Q184: =IF(A185>TOU_CTabulation[[#This Row],[Month]],TOU_CTabulation[[#This Row],[Month Cumm]],0) -> 0 | R184: =IF(TOU_CTabulation[[#This Row],[Month Base Gen]]=0,0,TOU_CTabulation[[#This Row],[Month Base Gen]]-TOU_CTabulation[[#This Row],[Day]]*TOU_CTabulation[[#This Row],[Base Allow]]) -> 0 | S184: =VLOOKUP(TOU_CTabulation[[#This Row],[Hour]],daypart,2) -> All | T184: =TOU_CTabulation[[#This Row],[Season]]&TOU_CTabulation[[#This Row],[Day-Part]] -> WinterAll | U184: =VLOOKUP(TOU_CTabulation[[#This Row],[Daypart]],TOUC,2) -> 0.25902 | V184: =VLOOKUP(TOU_CTabulation[[#This Row],[Daypart]],TOUC,3) -> 0.32596 | W184: =TOU_CTabulation[[#This Row],[Month Base Allow]]*TOU_CTabulation[[#This Row],[Base Rate]] -> 0 | X184: =TOU_CTabulation[[#This Row],[Month Overbase Gen]]*TOU_CTabulation[[#This Row],[Over Rate]] -> 0 | Y184: =TOU_CTabulation[[#This Row],[Base Value]]+TOU_CTabulation[[#This Row],[Over Value]] -> 0
A185: 1 | B185: 7 | C185: 12 | D185: 932 | E185: 70 | F185: 15 | G185: 2 | H185: 824.904 | I185: 37.546 | J185: 2654.386 | K185: 2553.494 | L185: =TOU_CTabulation[[#This Row],[AC System Output (W)]]/1000 -> 2.553494 | M185: =IF(A184=TOU_CTabulation[[#This Row],[Month]],M184+TOU_CTabulation[[#This Row],[AC System Output (kW)]],TOU_CTabulation[[#This Row],[AC System Output (kW)]]) -> 95.805853 | N185: =VLOOKUP(TOU_CTabulation[[#This Row],[Month]],Season,2) -> Winter | O185: =VLOOKUP(TOU_CTabulation[[#This Row],[Season]],CRate,2) -> 10.5 | P185: =IF(A186>TOU_CTabulation[[#This Row],[Month]],TOU_CTabulation[[#This Row],[Day]]*TOU_CTabulation[[#This Row],[Base Allow]],0) -> 0 | Q185: =IF(A186>TOU_CTabulation[[#This Row],[Month]],TOU_CTabulation[[#This Row],[Month Cumm]],0) -> 0 | R185: =IF(TOU_CTabulation[[#This Row],[Month Base Gen]]=0,0,TOU_CTabulation[[#This Row],[Month Base Gen]]-TOU_CTabulation[[#This Row],[Day]]*TOU_CTabulation[[#This Row],[Base Allow]]) -> 0 | S185: =VLOOKUP(TOU_CTabulation[[#This Row],[Hour]],daypart,2) -> All | T185: =TOU_CTabulation[[#This Row],[Season]]&TOU_CTabulation[[#This Row],[Day-Part]] -> WinterAll | U185: =VLOOKUP(TOU_CTabulation[[#This Row],[Daypart]],TOUC,2) -> 0.25902 | V185: =VLOOKUP(TOU_CTabulation[[#This Row],[Daypart]],TOUC,3) -> 0.32596 | W185: =TOU_CTabulation[[#This Row],[Month Base Allow]]*TOU_CTabulation[[#This Row],[Base Rate]] -> 0 | X185: =TOU_CTabulation[[#This Row],[Month Overbase Gen]]*TOU_CTabulation[[#This Row],[Over Rate]] -> 0 | Y185: =TOU_CTabulation[[#This Row],[Base Value]]+TOU_CTabulation[[#This Row],[Over Value]] -> 0
A186: 1 | B186: 7 | C186: 13 | D186: 897 | E186: 70 | F186: 15 | G186: 2 | H186: 751.429 | I186: 35.724 | J186: 2432.171 | K186: 2340.529 | L186: =TOU_CTabulation[[#This Row],[AC System Output (W)]]/1000 -> 2.340529 | M186: =IF(A185=TOU_CTabulation[[#This Row],[Month]],M185+TOU_CTabulation[[#This Row],[AC System Output (kW)]],TOU_CTabulation[[#This Row],[AC System Output (kW)]]) -> 98.146382 | N186: =VLOOKUP(TOU_CTabulation[[#This Row],[Month]],Season,2) -> Winter | O186: =VLOOKUP(TOU_CTabulation[[#This Row],[Season]],CRate,2) -> 10.5 | P186: =IF(A187>TOU_CTabulation[[#This Row],[Month]],TOU_CTabulation[[#This Row],[Day]]*TOU_CTabulation[[#This Row],[Base Allow]],0) -> 0 | Q186: =IF(A187>TOU_CTabulation[[#This Row],[Month]],TOU_CTabulation[[#This Row],[Month Cumm]],0) -> 0 | R186: =IF(TOU_CTabulation[[#This Row],[Month Base Gen]]=0,0,TOU_CTabulation[[#This Row],[Month Base Gen]]-TOU_CTabulation[[#This Row],[Day]]*TOU_CTabulation[[#This Row],[Base Allow]]) -> 0 | S186: =VLOOKUP(TOU_CTabulation[[#This Row],[Hour]],daypart,2) -> All | T186: =TOU_CTabulation[[#This Row],[Season]]&TOU_CTabulation[[#This Row],[Day-Part]] -> WinterAll | U186: =VLOOKUP(TOU_CTabulation[[#This Row],[Daypart]],TOUC,2) -> 0.25902 | V186: =VLOOKUP(TOU_CTabulation[[#This Row],[Daypart]],TOUC,3) -> 0.32596 | W186: =TOU_CTabulation[[#This Row],[Month Base Allow]]*TOU_CTabulation[[#This Row],[Base Rate]] -> 0 | X186: =TOU_CTabulation[[#This Row],[Month Overbase Gen]]*TOU_CTabulation[[#This Row],[Over Rate]] -> 0 | Y186: =TOU_CTabulation[[#This Row],[Base Value]]+TOU_CTabulation[[#This Row],[Over Value]] -> 0
A187: 1 | B187: 7 | C187: 14 | D187: 832 | E187: 66 | F187: 14 | G187: 1 | H187: 612.895 | I187: 34.468 | J187: 1973.874 | K187: 1899.859 | L187: =TOU_CTabulation[[#This Row],[AC System Output (W)]]/1000 -> 1.899859 | M187: =IF(A186=TOU_CTabulation[[#This Row],[Month]],M186+TOU_CTabulation[[#This Row],[AC System Output (kW)]],TOU_CTabulation[[#This Row],[AC System Output (kW)]]) -> 100.046241 | N187: =VLOOKUP(TOU_CTabulation[[#This Row],[Month]],Season,2) -> Winter | O187: =VLOOKUP(TOU_CTabulation[[#This Row],[Season]],CRate,2) -> 10.5 | P187: =IF(A188>TOU_CTabulation[[#This Row],[Month]],TOU_CTabulation[[#This Row],[Day]]*TOU_CTabulation[[#This Row],[Base Allow]],0) -> 0 | Q187: =IF(A188>TOU_CTabulation[[#This Row],[Month]],TOU_CTabulation[[#This Row],[Month Cumm]],0) -> 0 | R187: =IF(TOU_CTabulation[[#This Row],[Month Base Gen]]=0,0,TOU_CTabulation[[#This Row],[Month Base Gen]]-TOU_CTabulation[[#This Row],[Day]]*TOU_CTabulation[[#This Row],[Base Allow]]) -> 0 | S187: =VLOOKUP(TOU_CTabulation[[#This Row],[Hour]],daypart,2) -> All | T187: =TOU_CTabulation[[#This Row],[Season]]&TOU_CTabulation[[#This Row],[Day-Part]] -> WinterAll | U187: =VLOOKUP(TOU_CTabulation[[#This Row],[Daypart]],TOUC,2) -> 0.25902 | V187: =VLOOKUP(TOU_CTabulation[[#This Row],[Daypart]],TOUC,3) -> 0.32596 | W187: =TOU_CTabulation[[#This Row],[Month Base Allow]]*TOU_CTabulation[[#This Row],[Base Rate]] -> 0 | X187: =TOU_CTabulation[[#This Row],[Month Overbase Gen]]*TOU_CTabulation[[#This Row],[Over Rate]] -> 0 | Y187: =TOU_CTabulation[[#This Row],[Base Value]]+TOU_CTabulation[[#This Row],[Over Value]] -> 0
A188: 1 | B188: 7 | C188: 15 | D188: 714 | E188: 53 | F188: 12 | G188: 1 | H188: 408.948 | I188: 25.861 | J188: 1324.858 | K188: 1272.466 | L188: =TOU_CTabulation[[#This Row],[AC System Output (W)]]/1000 -> 1.272466 | M188: =IF(A187=TOU_CTabulation[[#This Row],[Month]],M187+TOU_CTabulation[[#This Row],[AC System Output (kW)]],TOU_CTabulation[[#This Row],[AC System Output (kW)]]) -> 101.318707 | N188: =VLOOKUP(TOU_CTabulation[[#This Row],[Month]],Season,2) -> Winter | O188: =VLOOKUP(TOU_CTabulation[[#This Row],[Season]],CRate,2) -> 10.5 | P188: =IF(A189>TOU_CTabulation[[#This Row],[Month]],TOU_CTabulation[[#This Row],[Day]]*TOU_CTabulation[[#This Row],[Base Allow]],0) -> 0 | Q188: =IF(A189>TOU_CTabulation[[#This Row],[Month]],TOU_CTabulation[[#This Row],[Month Cumm]],0) -> 0 | R188: =IF(TOU_CTabulation[[#This Row],[Month Base Gen]]=0,0,TOU_CTabulation[[#This Row],[Month Base Gen]]-TOU_CTabulation[[#This Row],[Day]]*TOU_CTabulation[[#This Row],[Base Allow]]) -> 0 | S188: =VLOOKUP(TOU_CTabulation[[#This Row],[Hour]],daypart,2) -> All | T188: =TOU_CTabulation[[#This Row],[Season]]&TOU_CTabulation[[#This Row],[Day-Part]] -> WinterAll | U188: =VLOOKUP(TOU_CTabulation[[#This Row],[Daypart]],TOUC,2) -> 0.25902 | V188: =VLOOKUP(TOU_CTabulation[[#This Row],[Daypart]],TOUC,3) -> 0.32596 | W188: =TOU_CTabulation[[#This Row],[Month Base Allow]]*TOU_CTabulation[[#This Row],[Base Rate]] -> 0 | X188: =TOU_CTabulation[[#This Row],[Month Overbase Gen]]*TOU_CTabulation[[#This Row],[Over Rate]] -> 0 | Y188: =TOU_CTabulation[[#This Row],[Base Value]]+TOU_CTabulation[[#This Row],[Over Value]] -> 0
A189: 1 | B189: 7 | C189: 16 | D189: 53 | E189: 33 | F189: 10 | G189: 1 | H189: 53.743 | I189: 11.529 | J189: 185.421 | K189: 161.519 | L189: =TOU_CTabulation[[#This Row],[AC System Output (W)]]/1000 -> 0.161519 | M189: =IF(A188=TOU_CTabulation[[#This Row],[Month]],M188+TOU_CTabulation[[#This Row],[AC System Output (kW)]],TOU_CTabulation[[#This Row],[AC System Output (kW)]]) -> 101.480226 | N189: =VLOOKUP(TOU_CTabulation[[#This Row],[Month]],Season,2) -> Winter | O189: =VLOOKUP(TOU_CTabulation[[#This Row],[Season]],CRate,2) -> 10.5 | P189: =IF(A190>TOU_CTabulation[[#This Row],[Month]],TOU_CTabulation[[#This Row],[Day]]*TOU_CTabulation[[#This Row],[Base Allow]],0) -> 0 | Q189: =IF(A190>TOU_CTabulation[[#This Row],[Month]],TOU_CTabulation[[#This Row],[Month Cumm]],0) -> 0 | R189: =IF(TOU_CTabulation[[#This Row],[Month Base Gen]]=0,0,TOU_CTabulation[[#This Row],[Month Base Gen]]-TOU_CTabulation[[#This Row],[Day]]*TOU_CTabulation[[#This Row],[Base Allow]]) -> 0 | S189: =VLOOKUP(TOU_CTabulation[[#This Row],[Hour]],daypart,2) -> All | T189: =TOU_CTabulation[[#This Row],[Season]]&TOU_CTabulation[[#This Row],[Day-Part]] -> WinterAll | U189: =VLOOKUP(TOU_CTabulation[[#This Row],[Daypart]],TOUC,2) -> 0.25902 | V189: =VLOOKUP(TOU_CTabulation[[#This Row],[Daypart]],TOUC,3) -> 0.32596 | W189: =TOU_CTabulation[[#This Row],[Month Base Allow]]*TOU_CTabulation[[#This Row],[Base Rate]] -> 0 | X189: =TOU_CTabulation[[#This Row],[Month Overbase Gen]]*TOU_CTabulation[[#This Row],[Over Rate]] -> 0 | Y189: =TOU_CTabulation[[#This Row],[Base Value]]+TOU_CTabulation[[#This Row],[Over Value]] -> 0
A190: 1 | B190: 7 | C190: 17 | D190: 0 | E190: 0 | F190: 8 | G190: 1 | H190: 0 | I190: 8 | J190: 0 | K190: 0 | L190: =TOU_CTabulation[[#This Row],[AC System Output (W)]]/1000 -> 0 | M190: =IF(A189=TOU_CTabulation[[#This Row],[Month]],M189+TOU_CTabulation[[#This Row],[AC System Output (kW)]],TOU_CTabulation[[#This Row],[AC System Output (kW)]]) -> 101.480226 | N190: =VLOOKUP(TOU_CTabulation[[#This Row],[Month]],Season,2) -> Winter | O190: =VLOOKUP(TOU_CTabulation[[#This Row],[Season]],CRate,2) -> 10.5 | P190: =IF(A191>TOU_CTabulation[[#This Row],[Month]],TOU_CTabulation[[#This Row],[Day]]*TOU_CTabulation[[#This Row],[Base Allow]],0) -> 0 | Q190: =IF(A191>TOU_CTabulation[[#This Row],[Month]],TOU_CTabulation[[#This Row],[Month Cumm]],0) -> 0 | R190: =IF(TOU_CTabulation[[#This Row],[Month Base Gen]]=0,0,TOU_CTabulation[[#This Row],[Month Base Gen]]-TOU_CTabulation[[#This Row],[Day]]*TOU_CTabulation[[#This Row],[Base Allow]]) -> 0 | S190: =VLOOKUP(TOU_CTabulation[[#This Row],[Hour]],daypart,2) -> All | T190: =TOU_CTabulation[[#This Row],[Season]]&TOU_CTabulation[[#This Row],[Day-Part]] -> WinterAll | U190: =VLOOKUP(TOU_CTabulation[[#This Row],[Daypart]],TOUC,2) -> 0.25902 | V190: =VLOOKUP(TOU_CTabulation[[#This Row],[Daypart]],TOUC,3) -> 0.32596 | W190: =TOU_CTabulation[[#This Row],[Month Base Allow]]*TOU_CTabulation[[#This Row],[Base Rate]] -> 0 | X190: =TOU_CTabulation[[#This Row],[Month Overbase Gen]]*TOU_CTabulation[[#This Row],[Over Rate]] -> 0 | Y190: =TOU_CTabulation[[#This Row],[Base Value]]+TOU_CTabulation[[#This Row],[Over Value]] -> 0
A191: 1 | B191: 7 | C191: 18 | D191: 0 | E191: 0 | F191: 7 | G191: 1 | H191: 0 | I191: 7 | J191: 0 | K191: 0 | L191: =TOU_CTabulation[[#This Row],[AC System Output (W)]]/1000 -> 0 | M191: =IF(A190=TOU_CTabulation[[#This Row],[Month]],M190+TOU_CTabulation[[#This Row],[AC System Output (kW)]],TOU_CTabulation[[#This Row],[AC System Output (kW)]]) -> 101.480226 | N191: =VLOOKUP(TOU_CTabulation[[#This Row],[Month]],Season,2) -> Winter | O191: =VLOOKUP(TOU_CTabulation[[#This Row],[Season]],CRate,2) -> 10.5 | P191: =IF(A192>TOU_CTabulation[[#This Row],[Month]],TOU_CTabulation[[#This Row],[Day]]*TOU_CTabulation[[#This Row],[Base Allow]],0) -> 0 | Q191: =IF(A192>TOU_CTabulation[[#This Row],[Month]],TOU_CTabulation[[#This Row],[Month Cumm]],0) -> 0 | R191: =IF(TOU_CTabulation[[#This Row],[Month Base Gen]]=0,0,TOU_CTabulation[[#This Row],[Month Base Gen]]-TOU_CTabulation[[#This Row],[Day]]*TOU_CTabulation[[#This Row],[Base Allow]]) -> 0 | S191: =VLOOKUP(TOU_CTabulation[[#This Row],[Hour]],daypart,2) -> All | T191: =TOU_CTabulation[[#This Row],[Season]]&TOU_CTabulation[[#This Row],[Day-Part]] -> WinterAll | U191: =VLOOKUP(TOU_CTabulation[[#This Row],[Daypart]],TOUC,2) -> 0.25902 | V191: =VLOOKUP(TOU_CTabulation[[#This Row],[Daypart]],TOUC,3) -> 0.32596 | W191: =TOU_CTabulation[[#This Row],[Month Base Allow]]*TOU_CTabulation[[#This Row],[Base Rate]] -> 0 | X191: =TOU_CTabulation[[#This Row],[Month Overbase Gen]]*TOU_CTabulation[[#This Row],[Over Rate]] -> 0 | Y191: =TOU_CTabulation[[#This Row],[Base Value]]+TOU_CTabulation[[#This Row],[Over Value]] -> 0
A192: 1 | B192: 7 | C192: 19 | D192: 0 | E192: 0 | F192: 6 | G192: 1 | H192: 0 | I192: 6 | J192: 0 | K192: 0 | L192: =TOU_CTabulation[[#This Row],[AC System Output (W)]]/1000 -> 0 | M192: =IF(A191=TOU_CTabulation[[#This Row],[Month]],M191+TOU_CTabulation[[#This Row],[AC System Output (kW)]],TOU_CTabulation[[#This Row],[AC System Output (kW)]]) -> 101.480226 | N192: =VLOOKUP(TOU_CTabulation[[#This Row],[Month]],Season,2) -> Winter | O192: =VLOOKUP(TOU_CTabulation[[#This Row],[Season]],CRate,2) -> 10.5 | P192: =IF(A193>TOU_CTabulation[[#This Row],[Month]],TOU_CTabulation[[#This Row],[Day]]*TOU_CTabulation[[#This Row],[Base Allow]],0) -> 0 | Q192: =IF(A193>TOU_CTabulation[[#This Row],[Month]],TOU_CTabulation[[#This Row],[Month Cumm]],0) -> 0 | R192: =IF(TOU_CTabulation[[#This Row],[Month Base Gen]]=0,0,TOU_CTabulation[[#This Row],[Month Base Gen]]-TOU_CTabulation[[#This Row],[Day]]*TOU_CTabulation[[#This Row],[Base Allow]]) -> 0 | S192: =VLOOKUP(TOU_CTabulation[[#This Row],[Hour]],daypart,2) -> All | T192: =TOU_CTabulation[[#This Row],[Season]]&TOU_CTabulation[[#This Row],[Day-Part]] -> WinterAll | U192: =VLOOKUP(TOU_CTabulation[[#This Row],[Daypart]],TOUC,2) -> 0.25902 | V192: =VLOOKUP(TOU_CTabulation[[#This Row],[Daypart]],TOUC,3) -> 0.32596 | W192: =TOU_CTabulation[[#This Row],[Month Base Allow]]*TOU_CTabulation[[#This Row],[Base Rate]] -> 0 | X192: =TOU_CTabulation[[#This Row],[Month Overbase Gen]]*TOU_CTabulation[[#This Row],[Over Rate]] -> 0 | Y192: =TOU_CTabulation[[#This Row],[Base Value]]+TOU_CTabulation[[#This Row],[Over Value]] -> 0
A193: 1 | B193: 7 | C193: 20 | D193: 0 | E193: 0 | F193: 5 | G193: 1 | H193: 0 | I193: 5 | J193: 0 | K193: 0 | L193: =TOU_CTabulation[[#This Row],[AC System Output (W)]]/1000 -> 0 | M193: =IF(A192=TOU_CTabulation[[#This Row],[Month]],M192+TOU_CTabulation[[#This Row],[AC System Output (kW)]],TOU_CTabulation[[#This Row],[AC System Output (kW)]]) -> 101.480226 | N193: =VLOOKUP(TOU_CTabulation[[#This Row],[Month]],Season,2) -> Winter | O193: =VLOOKUP(TOU_CTabulation[[#This Row],[Season]],CRate,2) -> 10.5 | P193: =IF(A194>TOU_CTabulation[[#This Row],[Month]],TOU_CTabulation[[#This Row],[Day]]*TOU_CTabulation[[#This Row],[Base Allow]],0) -> 0 | Q193: =IF(A194>TOU_CTabulation[[#This Row],[Month]],TOU_CTabulation[[#This Row],[Month Cumm]],0) -> 0 | R193: =IF(TOU_CTabulation[[#This Row],[Month Base Gen]]=0,0,TOU_CTabulation[[#This Row],[Month Base Gen]]-TOU_CTabulation[[#This Row],[Day]]*TOU_CTabulation[[#This Row],[Base Allow]]) -> 0 | S193: =VLOOKUP(TOU_CTabulation[[#This Row],[Hour]],daypart,2) -> All | T193: =TOU_CTabulation[[#This Row],[Season]]&TOU_CTabulation[[#This Row],[Day-Part]] -> WinterAll | U193: =VLOOKUP(TOU_CTabulation[[#This Row],[Daypart]],TOUC,2) -> 0.25902 | V193: =VLOOKUP(TOU_CTabulation[[#This Row],[Daypart]],TOUC,3) -> 0.32596 | W193: =TOU_CTabulation[[#This Row],[Month Base Allow]]*TOU_CTabulation[[#This Row],[Base Rate]] -> 0 | X193: =TOU_CTabulation[[#This Row],[Month Overbase Gen]]*TOU_CTabulation[[#This Row],[Over Rate]] -> 0 | Y193: =TOU_CTabulation[[#This Row],[Base Value]]+TOU_CTabulation[[#This Row],[Over Value]] -> 0
A194: 1 | B194: 7 | C194: 21 | D194: 0 | E194: 0 | F194: 4 | G194: 1 | H194: 0 | I194: 4 | J194: 0 | K194: 0 | L194: =TOU_CTabulation[[#This Row],[AC System Output (W)]]/1000 -> 0 | M194: =IF(A193=TOU_CTabulation[[#This Row],[Month]],M193+TOU_CTabulation[[#This Row],[AC System Output (kW)]],TOU_CTabulation[[#This Row],[AC System Output (kW)]]) -> 101.480226 | N194: =VLOOKUP(TOU_CTabulation[[#This Row],[Month]],Season,2) -> Winter | O194: =VLOOKUP(TOU_CTabulation[[#This Row],[Season]],CRate,2) -> 10.5 | P194: =IF(A195>TOU_CTabulation[[#This Row],[Month]],TOU_CTabulation[[#This Row],[Day]]*TOU_CTabulation[[#This Row],[Base Allow]],0) -> 0 | Q194: =IF(A195>TOU_CTabulation[[#This Row],[Month]],TOU_CTabulation[[#This Row],[Month Cumm]],0) -> 0 | R194: =IF(TOU_CTabulation[[#This Row],[Month Base Gen]]=0,0,TOU_CTabulation[[#This Row],[Month Base Gen]]-TOU_CTabulation[[#This Row],[Day]]*TOU_CTabulation[[#This Row],[Base Allow]]) -> 0 | S194: =VLOOKUP(TOU_CTabulation[[#This Row],[Hour]],daypart,2) -> All | T194: =TOU_CTabulation[[#This Row],[Season]]&TOU_CTabulation[[#This Row],[Day-Part]] -> WinterAll | U194: =VLOOKUP(TOU_CTabulation[[#This Row],[Daypart]],TOUC,2) -> 0.25902 | V194: =VLOOKUP(TOU_CTabulation[[#This Row],[Daypart]],TOUC,3) -> 0.32596 | W194: =TOU_CTabulation[[#This Row],[Month Base Allow]]*TOU_CTabulation[[#This Row],[Base Rate]] -> 0 | X194: =TOU_CTabulation[[#This Row],[Month Overbase Gen]]*TOU_CTabulation[[#This Row],[Over Rate]] -> 0 | Y194: =TOU_CTabulation[[#This Row],[Base Value]]+TOU_CTabulation[[#This Row],[Over Value]] -> 0
A195: 1 | B195: 7 | C195: 22 | D195: 0 | E195: 0 | F195: 3 | G195: 1 | H195: 0 | I195: 3 | J195: 0 | K195: 0 | L195: =TOU_CTabulation[[#This Row],[AC System Output (W)]]/1000 -> 0 | M195: =IF(A194=TOU_CTabulation[[#This Row],[Month]],M194+TOU_CTabulation[[#This Row],[AC System Output (kW)]],TOU_CTabulation[[#This Row],[AC System Output (kW)]]) -> 101.480226 | N195: =VLOOKUP(TOU_CTabulation[[#This Row],[Month]],Season,2) -> Winter | O195: =VLOOKUP(TOU_CTabulation[[#This Row],[Season]],CRate,2) -> 10.5 | P195: =IF(A196>TOU_CTabulation[[#This Row],[Month]],TOU_CTabulation[[#This Row],[Day]]*TOU_CTabulation[[#This Row],[Base Allow]],0) -> 0 | Q195: =IF(A196>TOU_CTabulation[[#This Row],[Month]],TOU_CTabulation[[#This Row],[Month Cumm]],0) -> 0 | R195: =IF(TOU_CTabulation[[#This Row],[Month Base Gen]]=0,0,TOU_CTabulation[[#This Row],[Month Base Gen]]-TOU_CTabulation[[#This Row],[Day]]*TOU_CTabulation[[#This Row],[Base Allow]]) -> 0 | S195: =VLOOKUP(TOU_CTabulation[[#This Row],[Hour]],daypart,2) -> All | T195: =TOU_CTabulation[[#This Row],[Season]]&TOU_CTabulation[[#This Row],[Day-Part]] -> WinterAll | U195: =VLOOKUP(TOU_CTabulation[[#This Row],[Daypart]],TOUC,2) -> 0.25902 | V195: =VLOOKUP(TOU_CTabulation[[#This Row],[Daypart]],TOUC,3) -> 0.32596 | W195: =TOU_CTabulation[[#This Row],[Month Base Allow]]*TOU_CTabulation[[#This Row],[Base Rate]] -> 0 | X195: =TOU_CTabulation[[#This Row],[Month Overbase Gen]]*TOU_CTabulation[[#This Row],[Over Rate]] -> 0 | Y195: =TOU_CTabulation[[#This Row],[Base Value]]+TOU_CTabulation[[#This Row],[Over Value]] -> 0
A196: 1 | B196: 7 | C196: 23 | D196: 0 | E196: 0 | F196: 3 | G196: 2 | H196: 0 | I196: 3 | J196: 0 | K196: 0 | L196: =TOU_CTabulation[[#This Row],[AC System Output (W)]]/1000 -> 0 | M196: =IF(A195=TOU_CTabulation[[#This Row],[Month]],M195+TOU_CTabulation[[#This Row],[AC System Output (kW)]],TOU_CTabulation[[#This Row],[AC System Output (kW)]]) -> 101.480226 | N196: =VLOOKUP(TOU_CTabulation[[#This Row],[Month]],Season,2) -> Winter | O196: =VLOOKUP(TOU_CTabulation[[#This Row],[Season]],CRate,2) -> 10.5 | P196: =IF(A197>TOU_CTabulation[[#This Row],[Month]],TOU_CTabulation[[#This Row],[Day]]*TOU_CTabulation[[#This Row],[Base Allow]],0) -> 0 | Q196: =IF(A197>TOU_CTabulation[[#This Row],[Month]],TOU_CTabulation[[#This Row],[Month Cumm]],0) -> 0 | R196: =IF(TOU_CTabulation[[#This Row],[Month Base Gen]]=0,0,TOU_CTabulation[[#This Row],[Month Base Gen]]-TOU_CTabulation[[#This Row],[Day]]*TOU_CTabulation[[#This Row],[Base Allow]]) -> 0 | S196: =VLOOKUP(TOU_CTabulation[[#This Row],[Hour]],daypart,2) -> All | T196: =TOU_CTabulation[[#This Row],[Season]]&TOU_CTabulation[[#This Row],[Day-Part]] -> WinterAll | U196: =VLOOKUP(TOU_CTabulation[[#This Row],[Daypart]],TOUC,2) -> 0.25902 | V196: =VLOOKUP(TOU_CTabulation[[#This Row],[Daypart]],TOUC,3) -> 0.32596 | W196: =TOU_CTabulation[[#This Row],[Month Base Allow]]*TOU_CTabulation[[#This Row],[Base Rate]] -> 0 | X196: =TOU_CTabulation[[#This Row],[Month Overbase Gen]]*TOU_CTabulation[[#This Row],[Over Rate]] -> 0 | Y196: =TOU_CTabulation[[#This Row],[Base Value]]+TOU_CTabulation[[#This Row],[Over Value]] -> 0
A197: 1 | B197: 8 | C197: 0 | D197: 0 | E197: 0 | F197: 3 | G197: 2 | H197: 0 | I197: 3 | J197: 0 | K197: 0 | L197: =TOU_CTabulation[[#This Row],[AC System Output (W)]]/1000 -> 0 | M197: =IF(A196=TOU_CTabulation[[#This Row],[Month]],M196+TOU_CTabulation[[#This Row],[AC System Output (kW)]],TOU_CTabulation[[#This Row],[AC System Output (kW)]]) -> 101.480226 | N197: =VLOOKUP(TOU_CTabulation[[#This Row],[Month]],Season,2) -> Winter | O197: =VLOOKUP(TOU_CTabulation[[#This Row],[Season]],CRate,2) -> 10.5 | P197: =IF(A198>TOU_CTabulation[[#This Row],[Month]],TOU_CTabulation[[#This Row],[Day]]*TOU_CTabulation[[#This Row],[Base Allow]],0) -> 0 | Q197: =IF(A198>TOU_CTabulation[[#This Row],[Month]],TOU_CTabulation[[#This Row],[Month Cumm]],0) -> 0 | R197: =IF(TOU_CTabulation[[#This Row],[Month Base Gen]]=0,0,TOU_CTabulation[[#This Row],[Month Base Gen]]-TOU_CTabulation[[#This Row],[Day]]*TOU_CTabulation[[#This Row],[Base Allow]]) -> 0 | S197: =VLOOKUP(TOU_CTabulation[[#This Row],[Hour]],daypart,2) -> All | T197: =TOU_CTabulation[[#This Row],[Season]]&TOU_CTabulation[[#This Row],[Day-Part]] -> WinterAll | U197: =VLOOKUP(TOU_CTabulation[[#This Row],[Daypart]],TOUC,2) -> 0.25902 | V197: =VLOOKUP(TOU_CTabulation[[#This Row],[Daypart]],TOUC,3) -> 0.32596 | W197: =TOU_CTabulation[[#This Row],[Month Base Allow]]*TOU_CTabulation[[#This Row],[Base Rate]] -> 0 | X197: =TOU_CTabulation[[#This Row],[Month Overbase Gen]]*TOU_CTabulation[[#This Row],[Over Rate]] -> 0 | Y197: =TOU_CTabulation[[#This Row],[Base Value]]+TOU_CTabulation[[#This Row],[Over Value]] -> 0
A198: 1 | B198: 8 | C198: 1 | D198: 0 | E198: 0 | F198: 3 | G198: 2 | H198: 0 | I198: 3 | J198: 0 | K198: 0 | L198: =TOU_CTabulation[[#This Row],[AC System Output (W)]]/1000 -> 0 | M198: =IF(A197=TOU_CTabulation[[#This Row],[Month]],M197+TOU_CTabulation[[#This Row],[AC System Output (kW)]],TOU_CTabulation[[#This Row],[AC System Output (kW)]]) -> 101.480226 | N198: =VLOOKUP(TOU_CTabulation[[#This Row],[Month]],Season,2) -> Winter | O198: =VLOOKUP(TOU_CTabulation[[#This Row],[Season]],CRate,2) -> 10.5 | P198: =IF(A199>TOU_CTabulation[[#This Row],[Month]],TOU_CTabulation[[#This Row],[Day]]*TOU_CTabulation[[#This Row],[Base Allow]],0) -> 0 | Q198: =IF(A199>TOU_CTabulation[[#This Row],[Month]],TOU_CTabulation[[#This Row],[Month Cumm]],0) -> 0 | R198: =IF(TOU_CTabulation[[#This Row],[Month Base Gen]]=0,0,TOU_CTabulation[[#This Row],[Month Base Gen]]-TOU_CTabulation[[#This Row],[Day]]*TOU_CTabulation[[#This Row],[Base Allow]]) -> 0 | S198: =VLOOKUP(TOU_CTabulation[[#This Row],[Hour]],daypart,2) -> All | T198: =TOU_CTabulation[[#This Row],[Season]]&TOU_CTabulation[[#This Row],[Day-Part]] -> WinterAll | U198: =VLOOKUP(TOU_CTabulation[[#This Row],[Daypart]],TOUC,2) -> 0.25902 | V198: =VLOOKUP(TOU_CTabulation[[#This Row],[Daypart]],TOUC,3) -> 0.32596 | W198: =TOU_CTabulation[[#This Row],[Month Base Allow]]*TOU_CTabulation[[#This Row],[Base Rate]] -> 0 | X198: =TOU_CTabulation[[#This Row],[Month Overbase Gen]]*TOU_CTabulation[[#This Row],[Over Rate]] -> 0 | Y198: =TOU_CTabulation[[#This Row],[Base Value]]+TOU_CTabulation[[#This Row],[Over Value]] -> 0
A199: 1 | B199: 8 | C199: 2 | D199: 0 | E199: 0 | F199: 2 | G199: 3 | H199: 0 | I199: 2 | J199: 0 | K199: 0 | L199: =TOU_CTabulation[[#This Row],[AC System Output (W)]]/1000 -> 0 | M199: =IF(A198=TOU_CTabulation[[#This Row],[Month]],M198+TOU_CTabulation[[#This Row],[AC System Output (kW)]],TOU_CTabulation[[#This Row],[AC System Output (kW)]]) -> 101.480226 | N199: =VLOOKUP(TOU_CTabulation[[#This Row],[Month]],Season,2) -> Winter | O199: =VLOOKUP(TOU_CTabulation[[#This Row],[Season]],CRate,2) -> 10.5 | P199: =IF(A200>TOU_CTabulation[[#This Row],[Month]],TOU_CTabulation[[#This Row],[Day]]*TOU_CTabulation[[#This Row],[Base Allow]],0) -> 0 | Q199: =IF(A200>TOU_CTabulation[[#This Row],[Month]],TOU_CTabulation[[#This Row],[Month Cumm]],0) -> 0 | R199: =IF(TOU_CTabulation[[#This Row],[Month Base Gen]]=0,0,TOU_CTabulation[[#This Row],[Month Base Gen]]-TOU_CTabulation[[#This Row],[Day]]*TOU_CTabulation[[#This Row],[Base Allow]]) -> 0 | S199: =VLOOKUP(TOU_CTabulation[[#This Row],[Hour]],daypart,2) -> All | T199: =TOU_CTabulation[[#This Row],[Season]]&TOU_CTabulation[[#This Row],[Day-Part]] -> WinterAll | U199: =VLOOKUP(TOU_CTabulation[[#This Row],[Daypart]],TOUC,2) -> 0.25902 | V199: =VLOOKUP(TOU_CTabulation[[#This Row],[Daypart]],TOUC,3) -> 0.32596 | W199: =TOU_CTabulation[[#This Row],[Month Base Allow]]*TOU_CTabulation[[#This Row],[Base Rate]] -> 0 | X199: =TOU_CTabulation[[#This Row],[Month Overbase Gen]]*TOU_CTabulation[[#This Row],[Over Rate]] -> 0 | Y199: =TOU_CTabulation[[#This Row],[Base Value]]+TOU_CTabulation[[#This Row],[Over Value]] -> 0
A200: 1 | B200: 8 | C200: 3 | D200: 0 | E200: 0 | F200: 2 | G200: 3 | H200: 0 | I200: 2 | J200: 0 | K200: 0 | L200: =TOU_CTabulation[[#This Row],[AC System Output (W)]]/1000 -> 0 | M200: =IF(A199=TOU_CTabulation[[#This Row],[Month]],M199+TOU_CTabulation[[#This Row],[AC System Output (kW)]],TOU_CTabulation[[#This Row],[AC System Output (kW)]]) -> 101.480226 | N200: =VLOOKUP(TOU_CTabulation[[#This Row],[Month]],Season,2) -> Winter | O200: =VLOOKUP(TOU_CTabulation[[#This Row],[Season]],CRate,2) -> 10.5 | P200: =IF(A201>TOU_CTabulation[[#This Row],[Month]],TOU_CTabulation[[#This Row],[Day]]*TOU_CTabulation[[#This Row],[Base Allow]],0) -> 0 | Q200: =IF(A201>TOU_CTabulation[[#This Row],[Month]],TOU_CTabulation[[#This Row],[Month Cumm]],0) -> 0 | R200: =IF(TOU_CTabulation[[#This Row],[Month Base Gen]]=0,0,TOU_CTabulation[[#This Row],[Month Base Gen]]-TOU_CTabulation[[#This Row],[Day]]*TOU_CTabulation[[#This Row],[Base Allow]]) -> 0 | S200: =VLOOKUP(TOU_CTabulation[[#This Row],[Hour]],daypart,2) -> All | T200: =TOU_CTabulation[[#This Row],[Season]]&TOU_CTabulation[[#This Row],[Day-Part]] -> WinterAll | U200: =VLOOKUP(TOU_CTabulation[[#This Row],[Daypart]],TOUC,2) -> 0.25902 | V200: =VLOOKUP(TOU_CTabulation[[#This Row],[Daypart]],TOUC,3) -> 0.32596 | W200: =TOU_CTabulation[[#This Row],[Month Base Allow]]*TOU_CTabulation[[#This Row],[Base Rate]] -> 0 | X200: =TOU_CTabulation[[#This Row],[Month Overbase Gen]]*TOU_CTabulation[[#This Row],[Over Rate]] -> 0 | Y200: =TOU_CTabulation[[#This Row],[Base Value]]+TOU_CTabulation[[#This Row],[Over Value]] -> 0
A201: 1 | B201: 8 | C201: 4 | D201: 0 | E201: 0 | F201: 2 | G201: 3 | H201: 0 | I201: 2 | J201: 0 | K201: 0 | L201: =TOU_CTabulation[[#This Row],[AC System Output (W)]]/1000 -> 0 | M201: =IF(A200=TOU_CTabulation[[#This Row],[Month]],M200+TOU_CTabulation[[#This Row],[AC System Output (kW)]],TOU_CTabulation[[#This Row],[AC System Output (kW)]]) -> 101.480226 | N201: =VLOOKUP(TOU_CTabulation[[#This Row],[Month]],Season,2) -> Winter | O201: =VLOOKUP(TOU_CTabulation[[#This Row],[Season]],CRate,2) -> 10.5 | P201: =IF(A202>TOU_CTabulation[[#This Row],[Month]],TOU_CTabulation[[#This Row],[Day]]*TOU_CTabulation[[#This Row],[Base Allow]],0) -> 0 | Q201: =IF(A202>TOU_CTabulation[[#This Row],[Month]],TOU_CTabulation[[#This Row],[Month Cumm]],0) -> 0 | R201: =IF(TOU_CTabulation[[#This Row],[Month Base Gen]]=0,0,TOU_CTabulation[[#This Row],[Month Base Gen]]-TOU_CTabulation[[#This Row],[Day]]*TOU_CTabulation[[#This Row],[Base Allow]]) -> 0 | S201: =VLOOKUP(TOU_CTabulation[[#This Row],[Hour]],daypart,2) -> All | T201: =TOU_CTabulation[[#This Row],[Season]]&TOU_CTabulation[[#This Row],[Day-Part]] -> WinterAll | U201: =VLOOKUP(TOU_CTabulation[[#This Row],[Daypart]],TOUC,2) -> 0.25902 | V201: =VLOOKUP(TOU_CTabulation[[#This Row],[Daypart]],TOUC,3) -> 0.32596 | W201: =TOU_CTabulation[[#This Row],[Month Base Allow]]*TOU_CTabulation[[#This Row],[Base Rate]] -> 0 | X201: =TOU_CTabulation[[#This Row],[Month Overbase Gen]]*TOU_CTabulation[[#This Row],[Over Rate]] -> 0 | Y201: =TOU_CTabulation[[#This Row],[Base Value]]+TOU_CTabulation[[#This Row],[Over Value]] -> 0
A202: 1 | B202: 8 | C202: 5 | D202: 0 | E202: 0 | F202: 1 | G202: 4 | H202: 0 | I202: 1 | J202: 0 | K202: 0 | L202: =TOU_CTabulation[[#This Row],[AC System Output (W)]]/1000 -> 0 | M202: =IF(A201=TOU_CTabulation[[#This Row],[Month]],M201+TOU_CTabulation[[#This Row],[AC System Output (kW)]],TOU_CTabulation[[#This Row],[AC System Output (kW)]]) -> 101.480226 | N202: =VLOOKUP(TOU_CTabulation[[#This Row],[Month]],Season,2) -> Winter | O202: =VLOOKUP(TOU_CTabulation[[#This Row],[Season]],CRate,2) -> 10.5 | P202: =IF(A203>TOU_CTabulation[[#This Row],[Month]],TOU_CTabulation[[#This Row],[Day]]*TOU_CTabulation[[#This Row],[Base Allow]],0) -> 0 | Q202: =IF(A203>TOU_CTabulation[[#This Row],[Month]],TOU_CTabulation[[#This Row],[Month Cumm]],0) -> 0 | R202: =IF(TOU_CTabulation[[#This Row],[Month Base Gen]]=0,0,TOU_CTabulation[[#This Row],[Month Base Gen]]-TOU_CTabulation[[#This Row],[Day]]*TOU_CTabulation[[#This Row],[Base Allow]]) -> 0 | S202: =VLOOKUP(TOU_CTabulation[[#This Row],[Hour]],daypart,2) -> All | T202: =TOU_CTabulation[[#This Row],[Season]]&TOU_CTabulation[[#This Row],[Day-Part]] -> WinterAll | U202: =VLOOKUP(TOU_CTabulation[[#This Row],[Daypart]],TOUC,2) -> 0.25902 | V202: =VLOOKUP(TOU_CTabulation[[#This Row],[Daypart]],TOUC,3) -> 0.32596 | W202: =TOU_CTabulation[[#This Row],[Month Base Allow]]*TOU_CTabulation[[#This Row],[Base Rate]] -> 0 | X202: =TOU_CTabulation[[#This Row],[Month Overbase Gen]]*TOU_CTabulation[[#This Row],[Over Rate]] -> 0 | Y202: =TOU_CTabulation[[#This Row],[Base Value]]+TOU_CTabulation[[#This Row],[Over Value]] -> 0
A203: 1 | B203: 8 | C203: 6 | D203: 0 | E203: 0 | F203: 1 | G203: 4 | H203: 0 | I203: 1 | J203: 0 | K203: 0 | L203: =TOU_CTabulation[[#This Row],[AC System Output (W)]]/1000 -> 0 | M203: =IF(A202=TOU_CTabulation[[#This Row],[Month]],M202+TOU_CTabulation[[#This Row],[AC System Output (kW)]],TOU_CTabulation[[#This Row],[AC System Output (kW)]]) -> 101.480226 | N203: =VLOOKUP(TOU_CTabulation[[#This Row],[Month]],Season,2) -> Winter | O203: =VLOOKUP(TOU_CTabulation[[#This Row],[Season]],CRate,2) -> 10.5 | P203: =IF(A204>TOU_CTabulation[[#This Row],[Month]],TOU_CTabulation[[#This Row],[Day]]*TOU_CTabulation[[#This Row],[Base Allow]],0) -> 0 | Q203: =IF(A204>TOU_CTabulation[[#This Row],[Month]],TOU_CTabulation[[#This Row],[Month Cumm]],0) -> 0 | R203: =IF(TOU_CTabulation[[#This Row],[Month Base Gen]]=0,0,TOU_CTabulation[[#This Row],[Month Base Gen]]-TOU_CTabulation[[#This Row],[Day]]*TOU_CTabulation[[#This Row],[Base Allow]]) -> 0 | S203: =VLOOKUP(TOU_CTabulation[[#This Row],[Hour]],daypart,2) -> All | T203: =TOU_CTabulation[[#This Row],[Season]]&TOU_CTabulation[[#This Row],[Day-Part]] -> WinterAll | U203: =VLOOKUP(TOU_CTabulation[[#This Row],[Daypart]],TOUC,2) -> 0.25902 | V203: =VLOOKUP(TOU_CTabulation[[#This Row],[Daypart]],TOUC,3) -> 0.32596 | W203: =TOU_CTabulation[[#This Row],[Month Base Allow]]*TOU_CTabulation[[#This Row],[Base Rate]] -> 0 | X203: =TOU_CTabulation[[#This Row],[Month Overbase Gen]]*TOU_CTabulation[[#This Row],[Over Rate]] -> 0 | Y203: =TOU_CTabulation[[#This Row],[Base Value]]+TOU_CTabulation[[#This Row],[Over Value]] -> 0
... 2047 more rows

Sheet Supporting
A1: Miller Solar
A2: 17395 Oak Rd. Atascadero, CA 93422
A3: WORKSHEET
A5: Client:
A6: Project: | B6: TOU C Supporting Data
A7: Date: | D7: Revision:
A11: TOU-C | B11: Base | C11: OverBase
A12: SummerAll | B12: 0.25902 | C12: 0.32596
A14: WinterAll | B14: 0.25902 | C14: 0.32596
A17: Summer
A18: 2021-06-01 | B18: 2021-09-30
A19: Peak | B19: 16:00:00 | C19: 21:00:00
A20: Off | B20: 21:00:00 | C20: 16:00:00
A21: Winter
A22: 2021-10-01 | B22: 2022-05-31
A23: Peak | B23: 16:00:00 | C23: 21:00:00
A24: Off | B24: 21:00:00 | C24: 16:00:00
A26: Season
A27: Month | B27: Season
A28: 1 | B28: Winter
A29: 2 | B29: Winter
A30: 3 | B30: Winter
A31: 4 | B31: Winter
A32: 5 | B32: Winter
A33: 6 | B33: Summer
A34: 7 | B34: Summer
A35: 8 | B35: Summer
A36: 9 | B36: Summer
A37: 10 | B37: Winter
A38: 11 | B38: Winter
A39: 12 | B39: Winter
A41: Day Part
A42: Hour | B42: Summer | C42: Winter
A43: 0 | B43: All | C43: All
A44: 1 | B44: All | C44: All
A45: 2 | B45: All | C45: All
A46: 3 | B46: All | C46: All
A47: 4 | B47: All | C47: All
A48: 5 | B48: All | C48: All
A49: 6 | B49: All | C49: All
A50: 7 | B50: All | C50: All
A51: 8 | B51: All | C51: All
A52: 9 | B52: All | C52: All
A53: 10 | B53: All | C53: All
A54: 11 | B54: All | C54: All
A55: 12 | B55: All | C55: All
A56: 13 | B56: All | C56: All
A57: 14 | B57: All | C57: All
A58: 15 | B58: All | C58: All
A59: 16 | B59: All | C59: All
A60: 17 | B60: All | C60: All
A61: 18 | B61: All | C61: All
A62: 19 | B62: All | C62: All
A63: 20 | B63: All | C63: All
A64: 21 | B64: All | C64: All
A65: 22 | B65: All | C65: All
A66: 23 | B66: All | C66: All
A67: 24 | B67: All | C67: All
A70: Baseline
A71: Region | B71: X
A72: Summer | B72: 10.3
A73: Winter | B73: 10.5
